Workbook

Sheet WIA Trend NR (hidden)
D1: <0
A2: Reading | B2: Reading: % of Schools Decreased in % Satisfactory
A3: Subject | B3: Grade | C3: No. of Schools | D3: No. of Schools Decreased | E3: % of Schools Decreased
A4: Reading | B4: 3 | C4: =COUNT(#REF!) -> 0 | D4: =COUNTIF(#REF!,$D$1) ->  | E4: =D4/C4% -> 
A5: Reading | B5: 4 | C5: =COUNT(#REF!) -> 0 | D5: =COUNTIF(#REF!,$D$1) ->  | E5: =D5/C5% -> 
A6: Reading | B6: 5 | C6: =COUNT(#REF!) -> 0 | D6: =COUNTIF(#REF!,$D$1) -> 
A7: Reading | B7: 6 | C7: =COUNT(#REF!) -> 0 | D7: =COUNTIF(#REF!,$D$1) -> 
A8: Reading | B8: 7 | C8: =COUNT(#REF!) -> 0 | D8: =COUNTIF(#REF!,$D$1) -> 
A9: Reading | B9: 8 | C9: =COUNT(#REF!) -> 0 | D9: =COUNTIF(#REF!,$D$1) -> 
A10: Reading | B10: 9 | C10: =COUNT(#REF!) -> 0 | D10: =COUNTIF(#REF!,$D$1) -> 
A11: Reading | B11: 10 | C11: =COUNT(#REF!) -> 0 | D11: =COUNTIF(#REF!,$D$1) -> 
A13: Math | B13: Math: % of Schools Decreased in % Satisfactory
A14: Subject | B14: Grade | C14: No. of Schools | D14: No. of Schools Decreased | E14: % of Schools Decreased
A15: Math | B15: 3 | C15: =COUNT(#REF!) -> 0 | D15: =COUNTIF(#REF!,$D$1) ->  | E15: =D15/C15% -> 
A16: Math | B16: 4 | C16: =COUNT(#REF!) -> 0 | D16: =COUNTIF(#REF!,$D$1) -> 
A17: Math | B17: 5 | C17: =COUNT(#REF!) -> 0 | D17: =COUNTIF(#REF!,$D$1) -> 
A18: Math | B18: 6 | C18: =COUNT(#REF!) -> 0 | D18: =COUNTIF(#REF!,$D$1) -> 
A19: Math | B19: 7 | C19: =COUNT(#REF!) -> 0 | D19: =COUNTIF(#REF!,$D$1) -> 
A20: Math | B20: 8 | C20: =COUNT(#REF!) -> 0 | D20: =COUNTIF(#REF!,$D$1) -> 
A21: Math | B21: Alg-Middle | C21: =COUNT(#REF!) -> 0 | D21: =COUNTIF(#REF!,$D$1) -> 
A22: Math | B22: Alg-HS | C22: =COUNT(#REF!) -> 0 | D22: =COUNTIF(#REF!,$D$1) -> 
A23: Math | B23: Geo-Middle | C23: =COUNT(#REF!) -> 0 | D23: =COUNTIF(#REF!,$D$1) -> 
A24: Math | B24: Geo-HS | C24: =COUNT(#REF!) -> 0 | D24: =COUNTIF(#REF!,$D$1) -> 
A26: Science | B26: Science: % of Schools Decreased in % Satisfactory
A27: Subject | B27: Grade | C27: No. of Schools | D27: No. of Schools Decreased | E27: % of Schools Decreased
A28: Science | B28: 5 | C28: =COUNT(#REF!) -> 0 | D28: =COUNTIF(#REF!,$D$1) ->  | E28: =D28/C28% -> 
A29: Science | B29: 8 | C29: =COUNT(#REF!) -> 0 | D29: =COUNTIF(#REF!,$D$1) ->  | E29: =D29/C29% -> 

Sheet Elem DB WS All (hidden)
A1: School Number | B1: School Name | C1: Grade | D1: 2012 FCAT 2.0 | E1: 2012 WIA | F1: 2013 WIA | G1: 3 Reading | H1: Grade | I1: 2012 FCAT 2.0 | J1: 2012 WIA | K1: 2013 WIA | L1: 4 Reading | M1: Grade | N1: 2012 FCAT 2.0 | O1: 2012 WIA | P1: 2013 WIA | Q1: 5 Reading | R1: Grade | S1: 2012 FCAT 2.0 | T1: 2012 WIA | U1: 2013 WIA | V1: 3 Math | W1: Grade | X1: 2012 FCAT 2.0 | Y1: 2012 WIA | Z1: 2013 WIA | AA1: 4 Math | AB1: Grade | AC1: 2012 FCAT 2.0 | AD1: 2012 WIA | AE1: 2013 WIA | AF1: 5 Math | AG1: Grade | AH1: 2012 FCAT 2.0 Science Retrofitted | AI1: 2012 WIA New CutScores | AJ1: 2013 WIA | AK1: 5 Science | AL1: Region | AM1: School Type
A2: 9999 | B2: District | C2: 3 | D2: =IFERROR(IF(VLOOKUP($A2,'R-2012'!$A$6:$O$500,3,FALSE)<10,"",VLOOKUP($A2,'R-2012'!$A$6:$O$500,10,FALSE)),"") -> 53 | E2: =IFERROR(IF(VLOOKUP($A2,'2012 WIA-Read'!$A$14:$K$500,3,FALSE)<10,"",VLOOKUP($A2,'2012 WIA-Read'!$A$14:$K$500,11,FALSE)*100),"") -> 49.89 | F2: =IFERROR(IF(VLOOKUP($A2,'WIAG3-RALL'!$A$14:$CZ$500,3,FALSE)<10,"",VLOOKUP($A2,'WIAG3-RALL'!$A$14:$CZ$500,11,FALSE)*100),"") -> 53.31 | G2: =IFERROR(ROUND(F2,0)-ROUND(E2,0),"") -> 3 | H2: 4 | I2: =IFERROR(IF(VLOOKUP($A2,'R-2012'!$P$6:$AD$500,3,FALSE)<10,"",VLOOKUP($A2,'R-2012'!$P$6:$AD$500,10,FALSE)),"") -> 60 | J2: =IFERROR(IF(VLOOKUP($A2,'2012 WIA-Read'!$L$14:$V$500,3,FALSE)<10,"",VLOOKUP($A2,'2012 WIA-Read'!$L$14:$V$500,11,FALSE)*100),"") -> 57.86 | K2: =IFERROR(IF(VLOOKUP($A2,'WIAG4-RALL'!$A$14:$CZ$500,3,FALSE)<10,"",VLOOKUP($A2,'WIAG4-RALL'!$A$14:$CZ$500,11,FALSE)*100),"") -> 61.57 | L2: =IFERROR(ROUND(K2,0)-ROUND(J2,0),"") -> 4 | M2: 5 | N2: =IFERROR(IF(VLOOKUP($A2,'R-2012'!$AE$6:$AS$500,3,FALSE)<10,"",VLOOKUP($A2,'R-2012'!$AE$6:$AS$500,10,FALSE)),"") -> 60 | O2: =IFERROR(IF(VLOOKUP($A2,'2012 WIA-Read'!$W$14:$AG$500,3,FALSE)<10,"",VLOOKUP($A2,'2012 WIA-Read'!$W$14:$AG$500,11,FALSE)*100),"") -> 54.84 | P2: =IFERROR(IF(VLOOKUP($A2,'WIAG5-RALL'!$A$14:$CZ$500,3,FALSE)<10,"",VLOOKUP($A2,'WIAG5-RALL'!$A$14:$CZ$500,11,FALSE)*100),"") -> 57.39 | Q2: =IFERROR(ROUND(P2,0)-ROUND(O2,0),"") -> 2 | R2: 3 | S2: =IFERROR(IF(VLOOKUP($A2,'M-2012'!$A$6:$N$500,3,FALSE)<10,"",VLOOKUP($A2,'M-2012'!$A$6:$N$500,10,FALSE)),"") -> 60 | T2: =IFERROR(IF(VLOOKUP($A2,'2012 WIA-Math'!$A$14:$K$500,3,FALSE)<10,"",VLOOKUP($A2,'2012 WIA-Math'!$A$14:$K$500,11,FALSE)*100),"") -> 57.4 | U2: =IFERROR(IF(VLOOKUP($A2,'WIAG3-MALL'!$A$14:$CZ$500,3,FALSE)<10,"",VLOOKUP($A2,'WIAG3-MALL'!$A$14:$CZ$500,11,FALSE)*100),"") -> 64.35 | V2: =IFERROR(ROUND(U2,0)-ROUND(T2,0),"") -> 7 | W2: 4 | X2: =IFERROR(IF(VLOOKUP($A2,'M-2012'!$O$6:$AB$500,3,FALSE)<10,"",VLOOKUP($A2,'M-2012'!$O$6:$AB$500,10,FALSE)),"") -> 62 | Y2: =IFERROR(IF(VLOOKUP($A2,'2012 WIA-Math'!$L$14:$V$500,3,FALSE)<10,"",VLOOKUP($A2,'2012 WIA-Math'!$L$14:$V$500,11,FALSE)*100),"") -> 57.31 | Z2: =IFERROR(IF(VLOOKUP($A2,'WIAG4-MALL'!$A$14:$CZ$500,3,FALSE)<10,"",VLOOKUP($A2,'WIAG4-MALL'!$A$14:$CZ$500,11,FALSE)*100),"") -> 61.57 | AA2: =IFERROR(ROUND(Z2,0)-ROUND(Y2,0),"") -> 5 | AB2: 5 | AC2: =IFERROR(IF(VLOOKUP($A2,'M-2012'!$AC$6:$AP$500,3,FALSE)<10,"",VLOOKUP($A2,'M-2012'!$AC$6:$AP$500,10,FALSE)),"") -> 58 | AD2: =IFERROR(IF(VLOOKUP($A2,'2012 WIA-Math'!$W$14:$AG$500,3,FALSE)<10,"",VLOOKUP($A2,'2012 WIA-Math'!$W$14:$AG$500,11,FALSE)*100),"") -> 51.72 | AE2: =IFERROR(IF(VLOOKUP($A2,'WIAG5-MALL'!$A$14:$CZ$500,3,FALSE)<10,"",VLOOKUP($A2,'WIAG5-MALL'!$A$14:$CZ$500,11,FALSE)*100),"") -> 50.2 | AF2: =IFERROR(ROUND(AE2,0)-ROUND(AD2,0),"") -> -2 | AG2: 5 | AH2: =IFERROR(IF(VLOOKUP(TEXT($A2,"0000"),'2012 Sci Retrofitted'!$A$3:$G$267,3,FALSE)<10,"",VLOOKUP(TEXT($A2,"0000"),'2012 Sci Retrofitted'!$A$3:$G$267,5,FALSE)),"") -> 49.16104812 | AI2: =IFERROR(IF(VLOOKUP($A2,'2012 WIA-Sci'!$A$6:$G$500,3,FALSE)<10,"",VLOOKUP($A2,'2012 WIA-Sci'!$A$6:$G$500,7,FALSE)),"") -> 46 | AJ2: =IFERROR(IF(VLOOKUP($A2,'WIAG5-SALL'!$A$14:$CZ$500,3,FALSE)<10,"",VLOOKUP($A2,'WIAG5-SALL'!$A$14:$CZ$500,11,FALSE)*100),"") -> 52.43 | AK2: =IFERROR(ROUND(AJ2,0)-ROUND(AI2,0),"") -> 6 | AL2: =VLOOKUP(TEXT($A2,"0000"),#REF!,2,FALSE) ->  | AM2: =VLOOKUP(TEXT($A2,"0000"),#REF!,2,FALSE) -> 
A3: 91 | B3: BOB GRAHAM EDUCATION CTR | C3: 3 | D3: =IFERROR(IF(VLOOKUP($A3,'R-2012'!$A$6:$O$500,3,FALSE)<10,"",VLOOKUP($A3,'R-2012'!$A$6:$O$500,10,FALSE)),"") -> 71 | E3: =IFERROR(IF(VLOOKUP($A3,'2012 WIA-Read'!$A$14:$K$500,3,FALSE)<10,"",VLOOKUP($A3,'2012 WIA-Read'!$A$14:$K$500,11,FALSE)*100),"") -> 60.85 | F3: =IFERROR(IF(VLOOKUP($A3,'WIAG3-RALL'!$A$14:$CZ$500,3,FALSE)<10,"",VLOOKUP($A3,'WIAG3-RALL'!$A$14:$CZ$500,11,FALSE)*100),"") -> 61.46 | G3: =IFERROR(ROUND(F3,0)-ROUND(E3,0),"") -> 0 | H3: 4 | I3: =IFERROR(IF(VLOOKUP($A3,'R-2012'!$P$6:$AD$500,3,FALSE)<10,"",VLOOKUP($A3,'R-2012'!$P$6:$AD$500,10,FALSE)),"") -> 68 | J3: =IFERROR(IF(VLOOKUP($A3,'2012 WIA-Read'!$L$14:$V$500,3,FALSE)<10,"",VLOOKUP($A3,'2012 WIA-Read'!$L$14:$V$500,11,FALSE)*100),"") -> 62.75 | K3: =IFERROR(IF(VLOOKUP($A3,'WIAG4-RALL'!$A$14:$CZ$500,3,FALSE)<10,"",VLOOKUP($A3,'WIAG4-RALL'!$A$14:$CZ$500,11,FALSE)*100),"") -> 66.51 | L3: =IFERROR(ROUND(K3,0)-ROUND(J3,0),"") -> 4 | M3: 5 | N3: =IFERROR(IF(VLOOKUP($A3,'R-2012'!$AE$6:$AS$500,3,FALSE)<10,"",VLOOKUP($A3,'R-2012'!$AE$6:$AS$500,10,FALSE)),"") -> 60 | O3: =IFERROR(IF(VLOOKUP($A3,'2012 WIA-Read'!$W$14:$AG$500,3,FALSE)<10,"",VLOOKUP($A3,'2012 WIA-Read'!$W$14:$AG$500,11,FALSE)*100),"") -> 47.51 | P3: =IFERROR(IF(VLOOKUP($A3,'WIAG5-RALL'!$A$14:$CZ$500,3,FALSE)<10,"",VLOOKUP($A3,'WIAG5-RALL'!$A$14:$CZ$500,11,FALSE)*100),"") -> 52.88 | Q3: =IFERROR(ROUND(P3,0)-ROUND(O3,0),"") -> 5 | R3: 3 | S3: =IFERROR(IF(VLOOKUP($A3,'M-2012'!$A$6:$N$500,3,FALSE)<10,"",VLOOKUP($A3,'M-2012'!$A$6:$N$500,10,FALSE)),"") -> 70 | T3: =IFERROR(IF(VLOOKUP($A3,'2012 WIA-Math'!$A$14:$K$500,3,FALSE)<10,"",VLOOKUP($A3,'2012 WIA-Math'!$A$14:$K$500,11,FALSE)*100),"") -> 49.76 | U3: =IFERROR(IF(VLOOKUP($A3,'WIAG3-MALL'!$A$14:$CZ$500,3,FALSE)<10,"",VLOOKUP($A3,'WIAG3-MALL'!$A$14:$CZ$500,11,FALSE)*100),"") -> 41.05 | V3: =IFERROR(ROUND(U3,0)-ROUND(T3,0),"") -> -9 | W3: 4 | X3: =IFERROR(IF(VLOOKUP($A3,'M-2012'!$O$6:$AB$500,3,FALSE)<10,"",VLOOKUP($A3,'M-2012'!$O$6:$AB$500,10,FALSE)),"") -> 71 | Y3: =IFERROR(IF(VLOOKUP($A3,'2012 WIA-Math'!$L$14:$V$500,3,FALSE)<10,"",VLOOKUP($A3,'2012 WIA-Math'!$L$14:$V$500,11,FALSE)*100),"") -> 59.2 | Z3: =IFERROR(IF(VLOOKUP($A3,'WIAG4-MALL'!$A$14:$CZ$500,3,FALSE)<10,"",VLOOKUP($A3,'WIAG4-MALL'!$A$14:$CZ$500,11,FALSE)*100),"") -> 75 | AA3: =IFERROR(ROUND(Z3,0)-ROUND(Y3,0),"") -> 16 | AB3: 5 | AC3: =IFERROR(IF(VLOOKUP($A3,'M-2012'!$AC$6:$AP$500,3,FALSE)<10,"",VLOOKUP($A3,'M-2012'!$AC$6:$AP$500,10,FALSE)),"") -> 51 | AD3: =IFERROR(IF(VLOOKUP($A3,'2012 WIA-Math'!$W$14:$AG$500,3,FALSE)<10,"",VLOOKUP($A3,'2012 WIA-Math'!$W$14:$AG$500,11,FALSE)*100),"") -> 32.73 | AE3: =IFERROR(IF(VLOOKUP($A3,'WIAG5-MALL'!$A$14:$CZ$500,3,FALSE)<10,"",VLOOKUP($A3,'WIAG5-MALL'!$A$14:$CZ$500,11,FALSE)*100),"") -> 42.11 | AF3: =IFERROR(ROUND(AE3,0)-ROUND(AD3,0),"") -> 9 | AG3: 5 | AH3: =IFERROR(IF(VLOOKUP(TEXT($A3,"0000"),'2012 Sci Retrofitted'!$A$3:$G$267,3,FALSE)<10,"",VLOOKUP(TEXT($A3,"0000"),'2012 Sci Retrofitted'!$A$3:$G$267,5,FALSE)),"") -> 44.64285714 | AI3: =IFERROR(IF(VLOOKUP($A3,'2012 WIA-Sci'!$A$6:$G$500,3,FALSE)<10,"",VLOOKUP($A3,'2012 WIA-Sci'!$A$6:$G$500,7,FALSE)),"") -> 35 | AJ3: =IFERROR(IF(VLOOKUP($A3,'WIAG5-SALL'!$A$14:$CZ$500,3,FALSE)<10,"",VLOOKUP($A3,'WIAG5-SALL'!$A$14:$CZ$500,11,FALSE)*100),"") -> 50.83 | AK3: =IFERROR(ROUND(AJ3,0)-ROUND(AI3,0),"") -> 16 | AL3: =VLOOKUP(TEXT($A3,"0000"),#REF!,2,FALSE) ->  | AM3: =VLOOKUP(TEXT($A3,"0000"),#REF!,2,FALSE) -> 
A4: 92 | B4: NORMAN S. EDELCUP/SUNNY ISLES | C4: 3 | D4: =IFERROR(IF(VLOOKUP($A4,'R-2012'!$A$6:$O$500,3,FALSE)<10,"",VLOOKUP($A4,'R-2012'!$A$6:$O$500,10,FALSE)),"") -> 73 | E4: =IFERROR(IF(VLOOKUP($A4,'2012 WIA-Read'!$A$14:$K$500,3,FALSE)<10,"",VLOOKUP($A4,'2012 WIA-Read'!$A$14:$K$500,11,FALSE)*100),"") -> 73 | F4: =IFERROR(IF(VLOOKUP($A4,'WIAG3-RALL'!$A$14:$CZ$500,3,FALSE)<10,"",VLOOKUP($A4,'WIAG3-RALL'!$A$14:$CZ$500,11,FALSE)*100),"") -> 71.1 | G4: -2 | H4: 4 | I4: =IFERROR(IF(VLOOKUP($A4,'R-2012'!$P$6:$AD$500,3,FALSE)<10,"",VLOOKUP($A4,'R-2012'!$P$6:$AD$500,10,FALSE)),"") -> 69 | J4: =IFERROR(IF(VLOOKUP($A4,'2012 WIA-Read'!$L$14:$V$500,3,FALSE)<10,"",VLOOKUP($A4,'2012 WIA-Read'!$L$14:$V$500,11,FALSE)*100),"") -> 72.78 | K4: =IFERROR(IF(VLOOKUP($A4,'WIAG4-RALL'!$A$14:$CZ$500,3,FALSE)<10,"",VLOOKUP($A4,'WIAG4-RALL'!$A$14:$CZ$500,11,FALSE)*100),"") -> 74.88 | L4: 2 | M4: 5 | N4: =IFERROR(IF(VLOOKUP($A4,'R-2012'!$AE$6:$AS$500,3,FALSE)<10,"",VLOOKUP($A4,'R-2012'!$AE$6:$AS$500,10,FALSE)),"") -> 79 | O4: =IFERROR(IF(VLOOKUP($A4,'2012 WIA-Read'!$W$14:$AG$500,3,FALSE)<10,"",VLOOKUP($A4,'2012 WIA-Read'!$W$14:$AG$500,11,FALSE)*100),"") -> 76.36 | P4: =IFERROR(IF(VLOOKUP($A4,'WIAG5-RALL'!$A$14:$CZ$500,3,FALSE)<10,"",VLOOKUP($A4,'WIAG5-RALL'!$A$14:$CZ$500,11,FALSE)*100),"") -> 70.91 | Q4: -5 | R4: 3 | S4: =IFERROR(IF(VLOOKUP($A4,'M-2012'!$A$6:$N$500,3,FALSE)<10,"",VLOOKUP($A4,'M-2012'!$A$6:$N$500,10,FALSE)),"") -> 81 | T4: =IFERROR(IF(VLOOKUP($A4,'2012 WIA-Math'!$A$14:$K$500,3,FALSE)<10,"",VLOOKUP($A4,'2012 WIA-Math'!$A$14:$K$500,11,FALSE)*100),"") -> 88.44 | U4: =IFERROR(IF(VLOOKUP($A4,'WIAG3-MALL'!$A$14:$CZ$500,3,FALSE)<10,"",VLOOKUP($A4,'WIAG3-MALL'!$A$14:$CZ$500,11,FALSE)*100),"") -> 88.89 | V4: 1 | W4: 4 | X4: =IFERROR(IF(VLOOKUP($A4,'M-2012'!$O$6:$AB$500,3,FALSE)<10,"",VLOOKUP($A4,'M-2012'!$O$6:$AB$500,10,FALSE)),"") -> 72 | Y4: =IFERROR(IF(VLOOKUP($A4,'2012 WIA-Math'!$L$14:$V$500,3,FALSE)<10,"",VLOOKUP($A4,'2012 WIA-Math'!$L$14:$V$500,11,FALSE)*100),"") -> 72.62 | Z4: =IFERROR(IF(VLOOKUP($A4,'WIAG4-MALL'!$A$14:$CZ$500,3,FALSE)<10,"",VLOOKUP($A4,'WIAG4-MALL'!$A$14:$CZ$500,11,FALSE)*100),"") -> 76.1 | AA4: 3 | AB4: 5 | AC4: =IFERROR(IF(VLOOKUP($A4,'M-2012'!$AC$6:$AP$500,3,FALSE)<10,"",VLOOKUP($A4,'M-2012'!$AC$6:$AP$500,10,FALSE)),"") -> 81 | AD4: =IFERROR(IF(VLOOKUP($A4,'2012 WIA-Math'!$W$14:$AG$500,3,FALSE)<10,"",VLOOKUP($A4,'2012 WIA-Math'!$W$14:$AG$500,11,FALSE)*100),"") -> 81.82 | AE4: =IFERROR(IF(VLOOKUP($A4,'WIAG5-MALL'!$A$14:$CZ$500,3,FALSE)<10,"",VLOOKUP($A4,'WIAG5-MALL'!$A$14:$CZ$500,11,FALSE)*100),"") -> 81.71 | AF4: 0 | AG4: 5 | AH4: =IFERROR(IF(VLOOKUP(TEXT($A4,"0000"),'2012 Sci Retrofitted'!$A$3:$G$267,3,FALSE)<10,"",VLOOKUP(TEXT($A4,"0000"),'2012 Sci Retrofitted'!$A$3:$G$267,5,FALSE)),"") -> 65.89595376 | AI4: =IFERROR(IF(VLOOKUP($A4,'2012 WIA-Sci'!$A$6:$G$500,3,FALSE)<10,"",VLOOKUP($A4,'2012 WIA-Sci'!$A$6:$G$500,7,FALSE)),"") -> 67 | AJ4: =IFERROR(IF(VLOOKUP($A4,'WIAG5-SALL'!$A$14:$CZ$500,3,FALSE)<10,"",VLOOKUP($A4,'WIAG5-SALL'!$A$14:$CZ$500,11,FALSE)*100),"") -> 64.81 | AK4: -2 | AL4: =VLOOKUP(TEXT($A4,"0000"),#REF!,2,FALSE) ->  | AM4: =VLOOKUP(TEXT($A4,"0000"),#REF!,2,FALSE) -> 
A5: 231 | B5: AVENTURA WATERWAYS K-8 CENTER | C5: 3 | D5: =IFERROR(IF(VLOOKUP($A5,'R-2012'!$A$6:$O$500,3,FALSE)<10,"",VLOOKUP($A5,'R-2012'!$A$6:$O$500,10,FALSE)),"") -> 69 | E5: =IFERROR(IF(VLOOKUP($A5,'2012 WIA-Read'!$A$14:$K$500,3,FALSE)<10,"",VLOOKUP($A5,'2012 WIA-Read'!$A$14:$K$500,11,FALSE)*100),"") -> 59.91 | F5: =IFERROR(IF(VLOOKUP($A5,'WIAG3-RALL'!$A$14:$CZ$500,3,FALSE)<10,"",VLOOKUP($A5,'WIAG3-RALL'!$A$14:$CZ$500,11,FALSE)*100),"") -> 68.56 | G5: 9 | H5: 4 | I5: =IFERROR(IF(VLOOKUP($A5,'R-2012'!$P$6:$AD$500,3,FALSE)<10,"",VLOOKUP($A5,'R-2012'!$P$6:$AD$500,10,FALSE)),"") -> 64 | J5: =IFERROR(IF(VLOOKUP($A5,'2012 WIA-Read'!$L$14:$V$500,3,FALSE)<10,"",VLOOKUP($A5,'2012 WIA-Read'!$L$14:$V$500,11,FALSE)*100),"") -> 66 | K5: =IFERROR(IF(VLOOKUP($A5,'WIAG4-RALL'!$A$14:$CZ$500,3,FALSE)<10,"",VLOOKUP($A5,'WIAG4-RALL'!$A$14:$CZ$500,11,FALSE)*100),"") -> 71.09 | L5: 5 | M5: 5 | N5: =IFERROR(IF(VLOOKUP($A5,'R-2012'!$AE$6:$AS$500,3,FALSE)<10,"",VLOOKUP($A5,'R-2012'!$AE$6:$AS$500,10,FALSE)),"") -> 68 | O5: =IFERROR(IF(VLOOKUP($A5,'2012 WIA-Read'!$W$14:$AG$500,3,FALSE)<10,"",VLOOKUP($A5,'2012 WIA-Read'!$W$14:$AG$500,11,FALSE)*100),"") -> 66.01 | P5: =IFERROR(IF(VLOOKUP($A5,'WIAG5-RALL'!$A$14:$CZ$500,3,FALSE)<10,"",VLOOKUP($A5,'WIAG5-RALL'!$A$14:$CZ$500,11,FALSE)*100),"") -> 55.9 | Q5: -10 | R5: 3 | S5: =IFERROR(IF(VLOOKUP($A5,'M-2012'!$A$6:$N$500,3,FALSE)<10,"",VLOOKUP($A5,'M-2012'!$A$6:$N$500,10,FALSE)),"") -> 75 | T5: =IFERROR(IF(VLOOKUP($A5,'2012 WIA-Math'!$A$14:$K$500,3,FALSE)<10,"",VLOOKUP($A5,'2012 WIA-Math'!$A$14:$K$500,11,FALSE)*100),"") -> 73.18 | U5: =IFERROR(IF(VLOOKUP($A5,'WIAG3-MALL'!$A$14:$CZ$500,3,FALSE)<10,"",VLOOKUP($A5,'WIAG3-MALL'!$A$14:$CZ$500,11,FALSE)*100),"") -> 67.51 | V5: -5 | W5: 4 | X5: =IFERROR(IF(VLOOKUP($A5,'M-2012'!$O$6:$AB$500,3,FALSE)<10,"",VLOOKUP($A5,'M-2012'!$O$6:$AB$500,10,FALSE)),"") -> 57 | Y5: =IFERROR(IF(VLOOKUP($A5,'2012 WIA-Math'!$L$14:$V$500,3,FALSE)<10,"",VLOOKUP($A5,'2012 WIA-Math'!$L$14:$V$500,11,FALSE)*100),"") -> 68.47 | Z5: =IFERROR(IF(VLOOKUP($A5,'WIAG4-MALL'!$A$14:$CZ$500,3,FALSE)<10,"",VLOOKUP($A5,'WIAG4-MALL'!$A$14:$CZ$500,11,FALSE)*100),"") -> 64.29 | AA5: -4 | AB5: 5 | AC5: =IFERROR(IF(VLOOKUP($A5,'M-2012'!$AC$6:$AP$500,3,FALSE)<10,"",VLOOKUP($A5,'M-2012'!$AC$6:$AP$500,10,FALSE)),"") -> 68 | AD5: =IFERROR(IF(VLOOKUP($A5,'2012 WIA-Math'!$W$14:$AG$500,3,FALSE)<10,"",VLOOKUP($A5,'2012 WIA-Math'!$W$14:$AG$500,11,FALSE)*100),"") -> 61.69 | AE5: =IFERROR(IF(VLOOKUP($A5,'WIAG5-MALL'!$A$14:$CZ$500,3,FALSE)<10,"",VLOOKUP($A5,'WIAG5-MALL'!$A$14:$CZ$500,11,FALSE)*100),"") -> 45.36 | AF5: -17 | AG5: 5 | AH5: =IFERROR(IF(VLOOKUP(TEXT($A5,"0000"),'2012 Sci Retrofitted'!$A$3:$G$267,3,FALSE)<10,"",VLOOKUP(TEXT($A5,"0000"),'2012 Sci Retrofitted'!$A$3:$G$267,5,FALSE)),"") -> 65.86538462 | AI5: =IFERROR(IF(VLOOKUP($A5,'2012 WIA-Sci'!$A$6:$G$500,3,FALSE)<10,"",VLOOKUP($A5,'2012 WIA-Sci'!$A$6:$G$500,7,FALSE)),"") -> 49 | AJ5: =IFERROR(IF(VLOOKUP($A5,'WIAG5-SALL'!$A$14:$CZ$500,3,FALSE)<10,"",VLOOKUP($A5,'WIAG5-SALL'!$A$14:$CZ$500,11,FALSE)*100),"") -> 47.4 | AK5: -2 | AL5: =VLOOKUP(TEXT($A5,"0000"),#REF!,2,FALSE) ->  | AM5: =VLOOKUP(TEXT($A5,"0000"),#REF!,2,FALSE) -> 
A6: 241 | B6: RUTH K BROAD/BAY HARBOR K-8 | C6: 3 | D6: =IFERROR(IF(VLOOKUP($A6,'R-2012'!$A$6:$O$500,3,FALSE)<10,"",VLOOKUP($A6,'R-2012'!$A$6:$O$500,10,FALSE)),"") -> 77 | E6: =IFERROR(IF(VLOOKUP($A6,'2012 WIA-Read'!$A$14:$K$500,3,FALSE)<10,"",VLOOKUP($A6,'2012 WIA-Read'!$A$14:$K$500,11,FALSE)*100),"") -> 68.06 | F6: =IFERROR(IF(VLOOKUP($A6,'WIAG3-RALL'!$A$14:$CZ$500,3,FALSE)<10,"",VLOOKUP($A6,'WIAG3-RALL'!$A$14:$CZ$500,11,FALSE)*100),"") -> 71.03 | G6: 3 | H6: 4 | I6: =IFERROR(IF(VLOOKUP($A6,'R-2012'!$P$6:$AD$500,3,FALSE)<10,"",VLOOKUP($A6,'R-2012'!$P$6:$AD$500,10,FALSE)),"") -> 71 | J6: =IFERROR(IF(VLOOKUP($A6,'2012 WIA-Read'!$L$14:$V$500,3,FALSE)<10,"",VLOOKUP($A6,'2012 WIA-Read'!$L$14:$V$500,11,FALSE)*100),"") -> 81.08 | K6: =IFERROR(IF(VLOOKUP($A6,'WIAG4-RALL'!$A$14:$CZ$500,3,FALSE)<10,"",VLOOKUP($A6,'WIAG4-RALL'!$A$14:$CZ$500,11,FALSE)*100),"") -> 84.15 | L6: 3 | M6: 5 | N6: =IFERROR(IF(VLOOKUP($A6,'R-2012'!$AE$6:$AS$500,3,FALSE)<10,"",VLOOKUP($A6,'R-2012'!$AE$6:$AS$500,10,FALSE)),"") -> 84 | O6: =IFERROR(IF(VLOOKUP($A6,'2012 WIA-Read'!$W$14:$AG$500,3,FALSE)<10,"",VLOOKUP($A6,'2012 WIA-Read'!$W$14:$AG$500,11,FALSE)*100),"") -> 75.6 | P6: =IFERROR(IF(VLOOKUP($A6,'WIAG5-RALL'!$A$14:$CZ$500,3,FALSE)<10,"",VLOOKUP($A6,'WIAG5-RALL'!$A$14:$CZ$500,11,FALSE)*100),"") -> 62.1 | Q6: -14 | R6: 3 | S6: =IFERROR(IF(VLOOKUP($A6,'M-2012'!$A$6:$N$500,3,FALSE)<10,"",VLOOKUP($A6,'M-2012'!$A$6:$N$500,10,FALSE)),"") -> 83 | T6: =IFERROR(IF(VLOOKUP($A6,'2012 WIA-Math'!$A$14:$K$500,3,FALSE)<10,"",VLOOKUP($A6,'2012 WIA-Math'!$A$14:$K$500,11,FALSE)*100),"") -> 63.64 | U6: =IFERROR(IF(VLOOKUP($A6,'WIAG3-MALL'!$A$14:$CZ$500,3,FALSE)<10,"",VLOOKUP($A6,'WIAG3-MALL'!$A$14:$CZ$500,11,FALSE)*100),"") -> 71.03 | V6: 7 | W6: 4 | X6: =IFERROR(IF(VLOOKUP($A6,'M-2012'!$O$6:$AB$500,3,FALSE)<10,"",VLOOKUP($A6,'M-2012'!$O$6:$AB$500,10,FALSE)),"") -> 78 | Y6: =IFERROR(IF(VLOOKUP($A6,'2012 WIA-Math'!$L$14:$V$500,3,FALSE)<10,"",VLOOKUP($A6,'2012 WIA-Math'!$L$14:$V$500,11,FALSE)*100),"") -> 76.15 | Z6: =IFERROR(IF(VLOOKUP($A6,'WIAG4-MALL'!$A$14:$CZ$500,3,FALSE)<10,"",VLOOKUP($A6,'WIAG4-MALL'!$A$14:$CZ$500,11,FALSE)*100),"") -> 82.93 | AA6: 7 | AB6: 5 | AC6: =IFERROR(IF(VLOOKUP($A6,'M-2012'!$AC$6:$AP$500,3,FALSE)<10,"",VLOOKUP($A6,'M-2012'!$AC$6:$AP$500,10,FALSE)),"") -> 83 | AD6: =IFERROR(IF(VLOOKUP($A6,'2012 WIA-Math'!$W$14:$AG$500,3,FALSE)<10,"",VLOOKUP($A6,'2012 WIA-Math'!$W$14:$AG$500,11,FALSE)*100),"") -> 74.1 | AE6: =IFERROR(IF(VLOOKUP($A6,'WIAG5-MALL'!$A$14:$CZ$500,3,FALSE)<10,"",VLOOKUP($A6,'WIAG5-MALL'!$A$14:$CZ$500,11,FALSE)*100),"") -> 51.22 | AF6: -23 | AG6: 5 | AH6: =IFERROR(IF(VLOOKUP(TEXT($A6,"0000"),'2012 Sci Retrofitted'!$A$3:$G$267,3,FALSE)<10,"",VLOOKUP(TEXT($A6,"0000"),'2012 Sci Retrofitted'!$A$3:$G$267,5,FALSE)),"") -> 71.0982659 | AI6: =IFERROR(IF(VLOOKUP($A6,'2012 WIA-Sci'!$A$6:$G$500,3,FALSE)<10,"",VLOOKUP($A6,'2012 WIA-Sci'!$A$6:$G$500,7,FALSE)),"") -> 67 | AJ6: =IFERROR(IF(VLOOKUP($A6,'WIAG5-SALL'!$A$14:$CZ$500,3,FALSE)<10,"",VLOOKUP($A6,'WIAG5-SALL'!$A$14:$CZ$500,11,FALSE)*100),"") -> 45.08 | AK6: -22 | AL6: =VLOOKUP(TEXT($A6,"0000"),#REF!,2,FALSE) ->  | AM6: =VLOOKUP(TEXT($A6,"0000"),#REF!,2,FALSE) -> 
A7: 321 | B7: BISCAYNE ELEMENTARY | C7: 3 | D7: =IFERROR(IF(VLOOKUP($A7,'R-2012'!$A$6:$O$500,3,FALSE)<10,"",VLOOKUP($A7,'R-2012'!$A$6:$O$500,10,FALSE)),"") -> 42 | E7: =IFERROR(IF(VLOOKUP($A7,'2012 WIA-Read'!$A$14:$K$500,3,FALSE)<10,"",VLOOKUP($A7,'2012 WIA-Read'!$A$14:$K$500,11,FALSE)*100),"") -> 42.98 | F7: =IFERROR(IF(VLOOKUP($A7,'WIAG3-RALL'!$A$14:$CZ$500,3,FALSE)<10,"",VLOOKUP($A7,'WIAG3-RALL'!$A$14:$CZ$500,11,FALSE)*100),"") -> 27.97 | G7: -15 | H7: 4 | I7: =IFERROR(IF(VLOOKUP($A7,'R-2012'!$P$6:$AD$500,3,FALSE)<10,"",VLOOKUP($A7,'R-2012'!$P$6:$AD$500,10,FALSE)),"") -> 47 | J7: =IFERROR(IF(VLOOKUP($A7,'2012 WIA-Read'!$L$14:$V$500,3,FALSE)<10,"",VLOOKUP($A7,'2012 WIA-Read'!$L$14:$V$500,11,FALSE)*100),"") -> 47.22 | K7: =IFERROR(IF(VLOOKUP($A7,'WIAG4-RALL'!$A$14:$CZ$500,3,FALSE)<10,"",VLOOKUP($A7,'WIAG4-RALL'!$A$14:$CZ$500,11,FALSE)*100),"") -> 52.34 | L7: 5 | M7: 5 | N7: =IFERROR(IF(VLOOKUP($A7,'R-2012'!$AE$6:$AS$500,3,FALSE)<10,"",VLOOKUP($A7,'R-2012'!$AE$6:$AS$500,10,FALSE)),"") -> 47 | O7: =IFERROR(IF(VLOOKUP($A7,'2012 WIA-Read'!$W$14:$AG$500,3,FALSE)<10,"",VLOOKUP($A7,'2012 WIA-Read'!$W$14:$AG$500,11,FALSE)*100),"") -> 41.41 | P7: =IFERROR(IF(VLOOKUP($A7,'WIAG5-RALL'!$A$14:$CZ$500,3,FALSE)<10,"",VLOOKUP($A7,'WIAG5-RALL'!$A$14:$CZ$500,11,FALSE)*100),"") -> 55.24 | Q7: 14 | R7: 3 | S7: =IFERROR(IF(VLOOKUP($A7,'M-2012'!$A$6:$N$500,3,FALSE)<10,"",VLOOKUP($A7,'M-2012'!$A$6:$N$500,10,FALSE)),"") -> 48 | T7: =IFERROR(IF(VLOOKUP($A7,'2012 WIA-Math'!$A$14:$K$500,3,FALSE)<10,"",VLOOKUP($A7,'2012 WIA-Math'!$A$14:$K$500,11,FALSE)*100),"") -> 51.64 | U7: =IFERROR(IF(VLOOKUP($A7,'WIAG3-MALL'!$A$14:$CZ$500,3,FALSE)<10,"",VLOOKUP($A7,'WIAG3-MALL'!$A$14:$CZ$500,11,FALSE)*100),"") -> 36.75 | V7: -15 | W7: 4 | X7: =IFERROR(IF(VLOOKUP($A7,'M-2012'!$O$6:$AB$500,3,FALSE)<10,"",VLOOKUP($A7,'M-2012'!$O$6:$AB$500,10,FALSE)),"") -> 55 | Y7: =IFERROR(IF(VLOOKUP($A7,'2012 WIA-Math'!$L$14:$V$500,3,FALSE)<10,"",VLOOKUP($A7,'2012 WIA-Math'!$L$14:$V$500,11,FALSE)*100),"") -> 43.52 | Z7: =IFERROR(IF(VLOOKUP($A7,'WIAG4-MALL'!$A$14:$CZ$500,3,FALSE)<10,"",VLOOKUP($A7,'WIAG4-MALL'!$A$14:$CZ$500,11,FALSE)*100),"") -> 54.72 | AA7: 11 | AB7: 5 | AC7: =IFERROR(IF(VLOOKUP($A7,'M-2012'!$AC$6:$AP$500,3,FALSE)<10,"",VLOOKUP($A7,'M-2012'!$AC$6:$AP$500,10,FALSE)),"") -> 52 | AD7: =IFERROR(IF(VLOOKUP($A7,'2012 WIA-Math'!$W$14:$AG$500,3,FALSE)<10,"",VLOOKUP($A7,'2012 WIA-Math'!$W$14:$AG$500,11,FALSE)*100),"") -> 41.86 | AE7: =IFERROR(IF(VLOOKUP($A7,'WIAG5-MALL'!$A$14:$CZ$500,3,FALSE)<10,"",VLOOKUP($A7,'WIAG5-MALL'!$A$14:$CZ$500,11,FALSE)*100),"") -> 46.53 | AF7: 5 | AG7: 5 | AH7: =IFERROR(IF(VLOOKUP(TEXT($A7,"0000"),'2012 Sci Retrofitted'!$A$3:$G$267,3,FALSE)<10,"",VLOOKUP(TEXT($A7,"0000"),'2012 Sci Retrofitted'!$A$3:$G$267,5,FALSE)),"") -> 40.15151515 | AI7: =IFERROR(IF(VLOOKUP($A7,'2012 WIA-Sci'!$A$6:$G$500,3,FALSE)<10,"",VLOOKUP($A7,'2012 WIA-Sci'!$A$6:$G$500,7,FALSE)),"") -> 37 | AJ7: =IFERROR(IF(VLOOKUP($A7,'WIAG5-SALL'!$A$14:$CZ$500,3,FALSE)<10,"",VLOOKUP($A7,'WIAG5-SALL'!$A$14:$CZ$500,11,FALSE)*100),"") -> 40.38 | AK7: 3 | AL7: =VLOOKUP(TEXT($A7,"0000"),#REF!,2,FALSE) ->  | AM7: =VLOOKUP(TEXT($A7,"0000"),#REF!,2,FALSE) -> 
A8: 341 | B8: ARCH CREEK ELEMENTARY SCHOOL | C8: 3 | D8: =IFERROR(IF(VLOOKUP($A8,'R-2012'!$A$6:$O$500,3,FALSE)<10,"",VLOOKUP($A8,'R-2012'!$A$6:$O$500,10,FALSE)),"") -> 42 | E8: =IFERROR(IF(VLOOKUP($A8,'2012 WIA-Read'!$A$14:$K$500,3,FALSE)<10,"",VLOOKUP($A8,'2012 WIA-Read'!$A$14:$K$500,11,FALSE)*100),"") -> 41.75 | F8: =IFERROR(IF(VLOOKUP($A8,'WIAG3-RALL'!$A$14:$CZ$500,3,FALSE)<10,"",VLOOKUP($A8,'WIAG3-RALL'!$A$14:$CZ$500,11,FALSE)*100),"") -> 46.94 | G8: 5 | H8: 4 | I8: =IFERROR(IF(VLOOKUP($A8,'R-2012'!$P$6:$AD$500,3,FALSE)<10,"",VLOOKUP($A8,'R-2012'!$P$6:$AD$500,10,FALSE)),"") -> 50 | J8: =IFERROR(IF(VLOOKUP($A8,'2012 WIA-Read'!$L$14:$V$500,3,FALSE)<10,"",VLOOKUP($A8,'2012 WIA-Read'!$L$14:$V$500,11,FALSE)*100),"") -> 55.34 | K8: =IFERROR(IF(VLOOKUP($A8,'WIAG4-RALL'!$A$14:$CZ$500,3,FALSE)<10,"",VLOOKUP($A8,'WIAG4-RALL'!$A$14:$CZ$500,11,FALSE)*100),"") -> 59.79 | L8: 5 | M8: 5 | N8: =IFERROR(IF(VLOOKUP($A8,'R-2012'!$AE$6:$AS$500,3,FALSE)<10,"",VLOOKUP($A8,'R-2012'!$AE$6:$AS$500,10,FALSE)),"") -> 51 | O8: =IFERROR(IF(VLOOKUP($A8,'2012 WIA-Read'!$W$14:$AG$500,3,FALSE)<10,"",VLOOKUP($A8,'2012 WIA-Read'!$W$14:$AG$500,11,FALSE)*100),"") -> 41.49 | P8: =IFERROR(IF(VLOOKUP($A8,'WIAG5-RALL'!$A$14:$CZ$500,3,FALSE)<10,"",VLOOKUP($A8,'WIAG5-RALL'!$A$14:$CZ$500,11,FALSE)*100),"") -> 45.1 | Q8: 4 | R8: 3 | S8: =IFERROR(IF(VLOOKUP($A8,'M-2012'!$A$6:$N$500,3,FALSE)<10,"",VLOOKUP($A8,'M-2012'!$A$6:$N$500,10,FALSE)),"") -> 51 | T8: =IFERROR(IF(VLOOKUP($A8,'2012 WIA-Math'!$A$14:$K$500,3,FALSE)<10,"",VLOOKUP($A8,'2012 WIA-Math'!$A$14:$K$500,11,FALSE)*100),"") -> 47.57 | U8: =IFERROR(IF(VLOOKUP($A8,'WIAG3-MALL'!$A$14:$CZ$500,3,FALSE)<10,"",VLOOKUP($A8,'WIAG3-MALL'!$A$14:$CZ$500,11,FALSE)*100),"") -> 72.92 | V8: 25 | W8: 4 | X8: =IFERROR(IF(VLOOKUP($A8,'M-2012'!$O$6:$AB$500,3,FALSE)<10,"",VLOOKUP($A8,'M-2012'!$O$6:$AB$500,10,FALSE)),"") -> 38 | Y8: =IFERROR(IF(VLOOKUP($A8,'2012 WIA-Math'!$L$14:$V$500,3,FALSE)<10,"",VLOOKUP($A8,'2012 WIA-Math'!$L$14:$V$500,11,FALSE)*100),"") -> 50.49 | Z8: =IFERROR(IF(VLOOKUP($A8,'WIAG4-MALL'!$A$14:$CZ$500,3,FALSE)<10,"",VLOOKUP($A8,'WIAG4-MALL'!$A$14:$CZ$500,11,FALSE)*100),"") -> 59.18 | AA8: 9 | AB8: 5 | AC8: =IFERROR(IF(VLOOKUP($A8,'M-2012'!$AC$6:$AP$500,3,FALSE)<10,"",VLOOKUP($A8,'M-2012'!$AC$6:$AP$500,10,FALSE)),"") -> 54 | AD8: =IFERROR(IF(VLOOKUP($A8,'2012 WIA-Math'!$W$14:$AG$500,3,FALSE)<10,"",VLOOKUP($A8,'2012 WIA-Math'!$W$14:$AG$500,11,FALSE)*100),"") -> 39.36 | AE8: =IFERROR(IF(VLOOKUP($A8,'WIAG5-MALL'!$A$14:$CZ$500,3,FALSE)<10,"",VLOOKUP($A8,'WIAG5-MALL'!$A$14:$CZ$500,11,FALSE)*100),"") -> 32.67 | AF8: -6 | AG8: 5 | AH8: =IFERROR(IF(VLOOKUP(TEXT($A8,"0000"),'2012 Sci Retrofitted'!$A$3:$G$267,3,FALSE)<10,"",VLOOKUP(TEXT($A8,"0000"),'2012 Sci Retrofitted'!$A$3:$G$267,5,FALSE)),"") -> 26.66666667 | AI8: =IFERROR(IF(VLOOKUP($A8,'2012 WIA-Sci'!$A$6:$G$500,3,FALSE)<10,"",VLOOKUP($A8,'2012 WIA-Sci'!$A$6:$G$500,7,FALSE)),"") -> 23 | AJ8: =IFERROR(IF(VLOOKUP($A8,'WIAG5-SALL'!$A$14:$CZ$500,3,FALSE)<10,"",VLOOKUP($A8,'WIAG5-SALL'!$A$14:$CZ$500,11,FALSE)*100),"") -> 48.51 | AK8: 26 | AL8: =VLOOKUP(TEXT($A8,"0000"),#REF!,2,FALSE) ->  | AM8: =VLOOKUP(TEXT($A8,"0000"),#REF!,2,FALSE) -> 
A9: 461 | B9: BRENTWOOD ELEMENTARY | C9: 3 | D9: =IFERROR(IF(VLOOKUP($A9,'R-2012'!$A$6:$O$500,3,FALSE)<10,"",VLOOKUP($A9,'R-2012'!$A$6:$O$500,10,FALSE)),"") -> 32 | E9: =IFERROR(IF(VLOOKUP($A9,'2012 WIA-Read'!$A$14:$K$500,3,FALSE)<10,"",VLOOKUP($A9,'2012 WIA-Read'!$A$14:$K$500,11,FALSE)*100),"") -> 23.26 | F9: =IFERROR(IF(VLOOKUP($A9,'WIAG3-RALL'!$A$14:$CZ$500,3,FALSE)<10,"",VLOOKUP($A9,'WIAG3-RALL'!$A$14:$CZ$500,11,FALSE)*100),"") -> 34.59 | G9: 12 | H9: 4 | I9: =IFERROR(IF(VLOOKUP($A9,'R-2012'!$P$6:$AD$500,3,FALSE)<10,"",VLOOKUP($A9,'R-2012'!$P$6:$AD$500,10,FALSE)),"") -> 43 | J9: =IFERROR(IF(VLOOKUP($A9,'2012 WIA-Read'!$L$14:$V$500,3,FALSE)<10,"",VLOOKUP($A9,'2012 WIA-Read'!$L$14:$V$500,11,FALSE)*100),"") -> 42.5 | K9: =IFERROR(IF(VLOOKUP($A9,'WIAG4-RALL'!$A$14:$CZ$500,3,FALSE)<10,"",VLOOKUP($A9,'WIAG4-RALL'!$A$14:$CZ$500,11,FALSE)*100),"") -> 47.47 | L9: 4 | M9: 5 | N9: =IFERROR(IF(VLOOKUP($A9,'R-2012'!$AE$6:$AS$500,3,FALSE)<10,"",VLOOKUP($A9,'R-2012'!$AE$6:$AS$500,10,FALSE)),"") -> 50 | O9: =IFERROR(IF(VLOOKUP($A9,'2012 WIA-Read'!$W$14:$AG$500,3,FALSE)<10,"",VLOOKUP($A9,'2012 WIA-Read'!$W$14:$AG$500,11,FALSE)*100),"") -> 52.88 | P9: =IFERROR(IF(VLOOKUP($A9,'WIAG5-RALL'!$A$14:$CZ$500,3,FALSE)<10,"",VLOOKUP($A9,'WIAG5-RALL'!$A$14:$CZ$500,11,FALSE)*100),"") -> 42.5 | Q9: -10 | R9: 3 | S9: =IFERROR(IF(VLOOKUP($A9,'M-2012'!$A$6:$N$500,3,FALSE)<10,"",VLOOKUP($A9,'M-2012'!$A$6:$N$500,10,FALSE)),"") -> 35 | T9: =IFERROR(IF(VLOOKUP($A9,'2012 WIA-Math'!$A$14:$K$500,3,FALSE)<10,"",VLOOKUP($A9,'2012 WIA-Math'!$A$14:$K$500,11,FALSE)*100),"") -> 37.98 | U9: =IFERROR(IF(VLOOKUP($A9,'WIAG3-MALL'!$A$14:$CZ$500,3,FALSE)<10,"",VLOOKUP($A9,'WIAG3-MALL'!$A$14:$CZ$500,11,FALSE)*100),"") -> 39.39 | V9: 1 | W9: 4 | X9: =IFERROR(IF(VLOOKUP($A9,'M-2012'!$O$6:$AB$500,3,FALSE)<10,"",VLOOKUP($A9,'M-2012'!$O$6:$AB$500,10,FALSE)),"") -> 43 | Y9: =IFERROR(IF(VLOOKUP($A9,'2012 WIA-Math'!$L$14:$V$500,3,FALSE)<10,"",VLOOKUP($A9,'2012 WIA-Math'!$L$14:$V$500,11,FALSE)*100),"") -> 49.58 | Z9: =IFERROR(IF(VLOOKUP($A9,'WIAG4-MALL'!$A$14:$CZ$500,3,FALSE)<10,"",VLOOKUP($A9,'WIAG4-MALL'!$A$14:$CZ$500,11,FALSE)*100),"") -> 64.29 | AA9: 14 | AB9: 5 | AC9: =IFERROR(IF(VLOOKUP($A9,'M-2012'!$AC$6:$AP$500,3,FALSE)<10,"",VLOOKUP($A9,'M-2012'!$AC$6:$AP$500,10,FALSE)),"") -> 57 | AD9: =IFERROR(IF(VLOOKUP($A9,'2012 WIA-Math'!$W$14:$AG$500,3,FALSE)<10,"",VLOOKUP($A9,'2012 WIA-Math'!$W$14:$AG$500,11,FALSE)*100),"") -> 62.14 | AE9: =IFERROR(IF(VLOOKUP($A9,'WIAG5-MALL'!$A$14:$CZ$500,3,FALSE)<10,"",VLOOKUP($A9,'WIAG5-MALL'!$A$14:$CZ$500,11,FALSE)*100),"") -> 43.8 | AF9: -18 | AG9: 5 | AH9: =IFERROR(IF(VLOOKUP(TEXT($A9,"0000"),'2012 Sci Retrofitted'!$A$3:$G$267,3,FALSE)<10,"",VLOOKUP(TEXT($A9,"0000"),'2012 Sci Retrofitted'!$A$3:$G$267,5,FALSE)),"") -> 45.79439252 | AI9: =IFERROR(IF(VLOOKUP($A9,'2012 WIA-Sci'!$A$6:$G$500,3,FALSE)<10,"",VLOOKUP($A9,'2012 WIA-Sci'!$A$6:$G$500,7,FALSE)),"") -> 33 | AJ9: =IFERROR(IF(VLOOKUP($A9,'WIAG5-SALL'!$A$14:$CZ$500,3,FALSE)<10,"",VLOOKUP($A9,'WIAG5-SALL'!$A$14:$CZ$500,11,FALSE)*100),"") -> 34.17 | AK9: 1 | AL9: =VLOOKUP(TEXT($A9,"0000"),#REF!,2,FALSE) ->  | AM9: =VLOOKUP(TEXT($A9,"0000"),#REF!,2,FALSE) -> 
A10: 481 | B10: JAMES H. BRIGHT/JW JOHNSON ES | C10: 3 | D10: =IFERROR(IF(VLOOKUP($A10,'R-2012'!$A$6:$O$500,3,FALSE)<10,"",VLOOKUP($A10,'R-2012'!$A$6:$O$500,10,FALSE)),"") -> 48 | E10: =IFERROR(IF(VLOOKUP($A10,'2012 WIA-Read'!$A$14:$K$500,3,FALSE)<10,"",VLOOKUP($A10,'2012 WIA-Read'!$A$14:$K$500,11,FALSE)*100),"") -> 48.8 | F10: =IFERROR(IF(VLOOKUP($A10,'WIAG3-RALL'!$A$14:$CZ$500,3,FALSE)<10,"",VLOOKUP($A10,'WIAG3-RALL'!$A$14:$CZ$500,11,FALSE)*100),"") -> 47.29 | G10: -2 | H10: 4 | I10: =IFERROR(IF(VLOOKUP($A10,'R-2012'!$P$6:$AD$500,3,FALSE)<10,"",VLOOKUP($A10,'R-2012'!$P$6:$AD$500,10,FALSE)),"") -> 41 | J10: =IFERROR(IF(VLOOKUP($A10,'2012 WIA-Read'!$L$14:$V$500,3,FALSE)<10,"",VLOOKUP($A10,'2012 WIA-Read'!$L$14:$V$500,11,FALSE)*100),"") -> 47.5 | K10: =IFERROR(IF(VLOOKUP($A10,'WIAG4-RALL'!$A$14:$CZ$500,3,FALSE)<10,"",VLOOKUP($A10,'WIAG4-RALL'!$A$14:$CZ$500,11,FALSE)*100),"") -> 57.02 | L10: 9 | M10: 5 | N10: =IFERROR(IF(VLOOKUP($A10,'R-2012'!$AE$6:$AS$500,3,FALSE)<10,"",VLOOKUP($A10,'R-2012'!$AE$6:$AS$500,10,FALSE)),"") -> 44 | O10: =IFERROR(IF(VLOOKUP($A10,'2012 WIA-Read'!$W$14:$AG$500,3,FALSE)<10,"",VLOOKUP($A10,'2012 WIA-Read'!$W$14:$AG$500,11,FALSE)*100),"") -> 45.04 | P10: =IFERROR(IF(VLOOKUP($A10,'WIAG5-RALL'!$A$14:$CZ$500,3,FALSE)<10,"",VLOOKUP($A10,'WIAG5-RALL'!$A$14:$CZ$500,11,FALSE)*100),"") -> 38.06 | Q10: -7 | R10: 3 | S10: =IFERROR(IF(VLOOKUP($A10,'M-2012'!$A$6:$N$500,3,FALSE)<10,"",VLOOKUP($A10,'M-2012'!$A$6:$N$500,10,FALSE)),"") -> 72 | T10: =IFERROR(IF(VLOOKUP($A10,'2012 WIA-Math'!$A$14:$K$500,3,FALSE)<10,"",VLOOKUP($A10,'2012 WIA-Math'!$A$14:$K$500,11,FALSE)*100),"") -> 48.39 | U10: =IFERROR(IF(VLOOKUP($A10,'WIAG3-MALL'!$A$14:$CZ$500,3,FALSE)<10,"",VLOOKUP($A10,'WIAG3-MALL'!$A$14:$CZ$500,11,FALSE)*100),"") -> 50 | V10: 2 | W10: 4 | X10: =IFERROR(IF(VLOOKUP($A10,'M-2012'!$O$6:$AB$500,3,FALSE)<10,"",VLOOKUP($A10,'M-2012'!$O$6:$AB$500,10,FALSE)),"") -> 60 | Y10: =IFERROR(IF(VLOOKUP($A10,'2012 WIA-Math'!$L$14:$V$500,3,FALSE)<10,"",VLOOKUP($A10,'2012 WIA-Math'!$L$14:$V$500,11,FALSE)*100),"") -> 41.67 | Z10: =IFERROR(IF(VLOOKUP($A10,'WIAG4-MALL'!$A$14:$CZ$500,3,FALSE)<10,"",VLOOKUP($A10,'WIAG4-MALL'!$A$14:$CZ$500,11,FALSE)*100),"") -> 60.53 | AA10: 19 | AB10: 5 | AC10: =IFERROR(IF(VLOOKUP($A10,'M-2012'!$AC$6:$AP$500,3,FALSE)<10,"",VLOOKUP($A10,'M-2012'!$AC$6:$AP$500,10,FALSE)),"") -> 46 | AD10: =IFERROR(IF(VLOOKUP($A10,'2012 WIA-Math'!$W$14:$AG$500,3,FALSE)<10,"",VLOOKUP($A10,'2012 WIA-Math'!$W$14:$AG$500,11,FALSE)*100),"") -> 48.87 | AE10: =IFERROR(IF(VLOOKUP($A10,'WIAG5-MALL'!$A$14:$CZ$500,3,FALSE)<10,"",VLOOKUP($A10,'WIAG5-MALL'!$A$14:$CZ$500,11,FALSE)*100),"") -> 39.39 | AF10: -10 | AG10: 5 | AH10: =IFERROR(IF(VLOOKUP(TEXT($A10,"0000"),'2012 Sci Retrofitted'!$A$3:$G$267,3,FALSE)<10,"",VLOOKUP(TEXT($A10,"0000"),'2012 Sci Retrofitted'!$A$3:$G$267,5,FALSE)),"") -> 36.61971831 | AI10: =IFERROR(IF(VLOOKUP($A10,'2012 WIA-Sci'!$A$6:$G$500,3,FALSE)<10,"",VLOOKUP($A10,'2012 WIA-Sci'!$A$6:$G$500,7,FALSE)),"") -> 36 | AJ10: =IFERROR(IF(VLOOKUP($A10,'WIAG5-SALL'!$A$14:$CZ$500,3,FALSE)<10,"",VLOOKUP($A10,'WIAG5-SALL'!$A$14:$CZ$500,11,FALSE)*100),"") -> 34.59 | AK10: -1 | AL10: =VLOOKUP(TEXT($A10,"0000"),#REF!,2,FALSE) ->  | AM10: =VLOOKUP(TEXT($A10,"0000"),#REF!,2,FALSE) -> 
A11: 561 | B11: W.J. BRYAN ELEMENTARY | C11: 3 | D11: =IFERROR(IF(VLOOKUP($A11,'R-2012'!$A$6:$O$500,3,FALSE)<10,"",VLOOKUP($A11,'R-2012'!$A$6:$O$500,10,FALSE)),"") -> 43 | E11: =IFERROR(IF(VLOOKUP($A11,'2012 WIA-Read'!$A$14:$K$500,3,FALSE)<10,"",VLOOKUP($A11,'2012 WIA-Read'!$A$14:$K$500,11,FALSE)*100),"") -> 48.87 | F11: =IFERROR(IF(VLOOKUP($A11,'WIAG3-RALL'!$A$14:$CZ$500,3,FALSE)<10,"",VLOOKUP($A11,'WIAG3-RALL'!$A$14:$CZ$500,11,FALSE)*100),"") -> 41.88 | G11: -7 | H11: 4 | I11: =IFERROR(IF(VLOOKUP($A11,'R-2012'!$P$6:$AD$500,3,FALSE)<10,"",VLOOKUP($A11,'R-2012'!$P$6:$AD$500,10,FALSE)),"") -> 55 | J11: =IFERROR(IF(VLOOKUP($A11,'2012 WIA-Read'!$L$14:$V$500,3,FALSE)<10,"",VLOOKUP($A11,'2012 WIA-Read'!$L$14:$V$500,11,FALSE)*100),"") -> 55.26 | K11: =IFERROR(IF(VLOOKUP($A11,'WIAG4-RALL'!$A$14:$CZ$500,3,FALSE)<10,"",VLOOKUP($A11,'WIAG4-RALL'!$A$14:$CZ$500,11,FALSE)*100),"") -> 49.53 | L11: -5 | M11: 5 | N11: =IFERROR(IF(VLOOKUP($A11,'R-2012'!$AE$6:$AS$500,3,FALSE)<10,"",VLOOKUP($A11,'R-2012'!$AE$6:$AS$500,10,FALSE)),"") -> 47 | O11: =IFERROR(IF(VLOOKUP($A11,'2012 WIA-Read'!$W$14:$AG$500,3,FALSE)<10,"",VLOOKUP($A11,'2012 WIA-Read'!$W$14:$AG$500,11,FALSE)*100),"") -> 45 | P11: =IFERROR(IF(VLOOKUP($A11,'WIAG5-RALL'!$A$14:$CZ$500,3,FALSE)<10,"",VLOOKUP($A11,'WIAG5-RALL'!$A$14:$CZ$500,11,FALSE)*100),"") -> 62.9 | Q11: 18 | R11: 3 | S11: =IFERROR(IF(VLOOKUP($A11,'M-2012'!$A$6:$N$500,3,FALSE)<10,"",VLOOKUP($A11,'M-2012'!$A$6:$N$500,10,FALSE)),"") -> 59 | T11: =IFERROR(IF(VLOOKUP($A11,'2012 WIA-Math'!$A$14:$K$500,3,FALSE)<10,"",VLOOKUP($A11,'2012 WIA-Math'!$A$14:$K$500,11,FALSE)*100),"") -> 67.44 | U11: =IFERROR(IF(VLOOKUP($A11,'WIAG3-MALL'!$A$14:$CZ$500,3,FALSE)<10,"",VLOOKUP($A11,'WIAG3-MALL'!$A$14:$CZ$500,11,FALSE)*100),"") -> 51.26 | V11: -16 | W11: 4 | X11: =IFERROR(IF(VLOOKUP($A11,'M-2012'!$O$6:$AB$500,3,FALSE)<10,"",VLOOKUP($A11,'M-2012'!$O$6:$AB$500,10,FALSE)),"") -> 43 | Y11: =IFERROR(IF(VLOOKUP($A11,'2012 WIA-Math'!$L$14:$V$500,3,FALSE)<10,"",VLOOKUP($A11,'2012 WIA-Math'!$L$14:$V$500,11,FALSE)*100),"") -> 51.33 | Z11: =IFERROR(IF(VLOOKUP($A11,'WIAG4-MALL'!$A$14:$CZ$500,3,FALSE)<10,"",VLOOKUP($A11,'WIAG4-MALL'!$A$14:$CZ$500,11,FALSE)*100),"") -> 57.69 | AA11: 7 | AB11: 5 | AC11: =IFERROR(IF(VLOOKUP($A11,'M-2012'!$AC$6:$AP$500,3,FALSE)<10,"",VLOOKUP($A11,'M-2012'!$AC$6:$AP$500,10,FALSE)),"") -> 45 | AD11: =IFERROR(IF(VLOOKUP($A11,'2012 WIA-Math'!$W$14:$AG$500,3,FALSE)<10,"",VLOOKUP($A11,'2012 WIA-Math'!$W$14:$AG$500,11,FALSE)*100),"") -> 55.67 | AE11: =IFERROR(IF(VLOOKUP($A11,'WIAG5-MALL'!$A$14:$CZ$500,3,FALSE)<10,"",VLOOKUP($A11,'WIAG5-MALL'!$A$14:$CZ$500,11,FALSE)*100),"") -> 48.74 | AF11: -7 | AG11: 5 | AH11: =IFERROR(IF(VLOOKUP(TEXT($A11,"0000"),'2012 Sci Retrofitted'!$A$3:$G$267,3,FALSE)<10,"",VLOOKUP(TEXT($A11,"0000"),'2012 Sci Retrofitted'!$A$3:$G$267,5,FALSE)),"") -> 53.33333333 | AI11: =IFERROR(IF(VLOOKUP($A11,'2012 WIA-Sci'!$A$6:$G$500,3,FALSE)<10,"",VLOOKUP($A11,'2012 WIA-Sci'!$A$6:$G$500,7,FALSE)),"") -> 39 | AJ11: =IFERROR(IF(VLOOKUP($A11,'WIAG5-SALL'!$A$14:$CZ$500,3,FALSE)<10,"",VLOOKUP($A11,'WIAG5-SALL'!$A$14:$CZ$500,11,FALSE)*100),"") -> 54.84 | AK11: 16 | AL11: =VLOOKUP(TEXT($A11,"0000"),#REF!,2,FALSE) ->  | AM11: =VLOOKUP(TEXT($A11,"0000"),#REF!,2,FALSE) -> 
A12: 641 | B12: BUNCHE PARK ELEMENTARY | C12: 3 | D12: =IFERROR(IF(VLOOKUP($A12,'R-2012'!$A$6:$O$500,3,FALSE)<10,"",VLOOKUP($A12,'R-2012'!$A$6:$O$500,10,FALSE)),"") -> 23 | E12: =IFERROR(IF(VLOOKUP($A12,'2012 WIA-Read'!$A$14:$K$500,3,FALSE)<10,"",VLOOKUP($A12,'2012 WIA-Read'!$A$14:$K$500,11,FALSE)*100),"") -> 23.53 | F12: =IFERROR(IF(VLOOKUP($A12,'WIAG3-RALL'!$A$14:$CZ$500,3,FALSE)<10,"",VLOOKUP($A12,'WIAG3-RALL'!$A$14:$CZ$500,11,FALSE)*100),"") -> 31.58 | G12: 8 | H12: 4 | I12: =IFERROR(IF(VLOOKUP($A12,'R-2012'!$P$6:$AD$500,3,FALSE)<10,"",VLOOKUP($A12,'R-2012'!$P$6:$AD$500,10,FALSE)),"") -> 30 | J12: =IFERROR(IF(VLOOKUP($A12,'2012 WIA-Read'!$L$14:$V$500,3,FALSE)<10,"",VLOOKUP($A12,'2012 WIA-Read'!$L$14:$V$500,11,FALSE)*100),"") -> 27.59 | K12: =IFERROR(IF(VLOOKUP($A12,'WIAG4-RALL'!$A$14:$CZ$500,3,FALSE)<10,"",VLOOKUP($A12,'WIAG4-RALL'!$A$14:$CZ$500,11,FALSE)*100),"") -> 30.3 | L12: 2 | M12: 5 | N12: =IFERROR(IF(VLOOKUP($A12,'R-2012'!$AE$6:$AS$500,3,FALSE)<10,"",VLOOKUP($A12,'R-2012'!$AE$6:$AS$500,10,FALSE)),"") -> 31 | O12: =IFERROR(IF(VLOOKUP($A12,'2012 WIA-Read'!$W$14:$AG$500,3,FALSE)<10,"",VLOOKUP($A12,'2012 WIA-Read'!$W$14:$AG$500,11,FALSE)*100),"") -> 35.48 | P12: =IFERROR(IF(VLOOKUP($A12,'WIAG5-RALL'!$A$14:$CZ$500,3,FALSE)<10,"",VLOOKUP($A12,'WIAG5-RALL'!$A$14:$CZ$500,11,FALSE)*100),"") -> 33.33 | Q12: -2 | R12: 3 | S12: =IFERROR(IF(VLOOKUP($A12,'M-2012'!$A$6:$N$500,3,FALSE)<10,"",VLOOKUP($A12,'M-2012'!$A$6:$N$500,10,FALSE)),"") -> 63 | T12: =IFERROR(IF(VLOOKUP($A12,'2012 WIA-Math'!$A$14:$K$500,3,FALSE)<10,"",VLOOKUP($A12,'2012 WIA-Math'!$A$14:$K$500,11,FALSE)*100),"") -> 43.24 | U12: =IFERROR(IF(VLOOKUP($A12,'WIAG3-MALL'!$A$14:$CZ$500,3,FALSE)<10,"",VLOOKUP($A12,'WIAG3-MALL'!$A$14:$CZ$500,11,FALSE)*100),"") -> 64.86 | V12: 22 | W12: 4 | X12: =IFERROR(IF(VLOOKUP($A12,'M-2012'!$O$6:$AB$500,3,FALSE)<10,"",VLOOKUP($A12,'M-2012'!$O$6:$AB$500,10,FALSE)),"") -> 33 | Y12: =IFERROR(IF(VLOOKUP($A12,'2012 WIA-Math'!$L$14:$V$500,3,FALSE)<10,"",VLOOKUP($A12,'2012 WIA-Math'!$L$14:$V$500,11,FALSE)*100),"") -> 30.77 | Z12: =IFERROR(IF(VLOOKUP($A12,'WIAG4-MALL'!$A$14:$CZ$500,3,FALSE)<10,"",VLOOKUP($A12,'WIAG4-MALL'!$A$14:$CZ$500,11,FALSE)*100),"") -> 46.88 | AA12: 16 | AB12: 5 | AC12: =IFERROR(IF(VLOOKUP($A12,'M-2012'!$AC$6:$AP$500,3,FALSE)<10,"",VLOOKUP($A12,'M-2012'!$AC$6:$AP$500,10,FALSE)),"") -> 41 | AD12: =IFERROR(IF(VLOOKUP($A12,'2012 WIA-Math'!$W$14:$AG$500,3,FALSE)<10,"",VLOOKUP($A12,'2012 WIA-Math'!$W$14:$AG$500,11,FALSE)*100),"") -> 42.86 | AE12: =IFERROR(IF(VLOOKUP($A12,'WIAG5-MALL'!$A$14:$CZ$500,3,FALSE)<10,"",VLOOKUP($A12,'WIAG5-MALL'!$A$14:$CZ$500,11,FALSE)*100),"") -> 60 | AF12: 17 | AG12: 5 | AH12: =IFERROR(IF(VLOOKUP(TEXT($A12,"0000"),'2012 Sci Retrofitted'!$A$3:$G$267,3,FALSE)<10,"",VLOOKUP(TEXT($A12,"0000"),'2012 Sci Retrofitted'!$A$3:$G$267,5,FALSE)),"") -> 25 | AI12: =IFERROR(IF(VLOOKUP($A12,'2012 WIA-Sci'!$A$6:$G$500,3,FALSE)<10,"",VLOOKUP($A12,'2012 WIA-Sci'!$A$6:$G$500,7,FALSE)),"") -> 21 | AJ12: =IFERROR(IF(VLOOKUP($A12,'WIAG5-SALL'!$A$14:$CZ$500,3,FALSE)<10,"",VLOOKUP($A12,'WIAG5-SALL'!$A$14:$CZ$500,11,FALSE)*100),"") -> 70 | AK12: 49 | AL12: =VLOOKUP(TEXT($A12,"0000"),#REF!,2,FALSE) ->  | AM12: =VLOOKUP(TEXT($A12,"0000"),#REF!,2,FALSE) -> 
A13: 761 | B13: FIENBERG/FISHER K-8 CENTER | C13: 3 | D13: =IFERROR(IF(VLOOKUP($A13,'R-2012'!$A$6:$O$500,3,FALSE)<10,"",VLOOKUP($A13,'R-2012'!$A$6:$O$500,10,FALSE)),"") -> 46 | E13: =IFERROR(IF(VLOOKUP($A13,'2012 WIA-Read'!$A$14:$K$500,3,FALSE)<10,"",VLOOKUP($A13,'2012 WIA-Read'!$A$14:$K$500,11,FALSE)*100),"") -> 36.26 | F13: =IFERROR(IF(VLOOKUP($A13,'WIAG3-RALL'!$A$14:$CZ$500,3,FALSE)<10,"",VLOOKUP($A13,'WIAG3-RALL'!$A$14:$CZ$500,11,FALSE)*100),"") -> 44.19 | G13: 8 | H13: 4 | I13: =IFERROR(IF(VLOOKUP($A13,'R-2012'!$P$6:$AD$500,3,FALSE)<10,"",VLOOKUP($A13,'R-2012'!$P$6:$AD$500,10,FALSE)),"") -> 47 | J13: =IFERROR(IF(VLOOKUP($A13,'2012 WIA-Read'!$L$14:$V$500,3,FALSE)<10,"",VLOOKUP($A13,'2012 WIA-Read'!$L$14:$V$500,11,FALSE)*100),"") -> 50.56 | K13: =IFERROR(IF(VLOOKUP($A13,'WIAG4-RALL'!$A$14:$CZ$500,3,FALSE)<10,"",VLOOKUP($A13,'WIAG4-RALL'!$A$14:$CZ$500,11,FALSE)*100),"") -> 54.22 | L13: 3 | M13: 5 | N13: =IFERROR(IF(VLOOKUP($A13,'R-2012'!$AE$6:$AS$500,3,FALSE)<10,"",VLOOKUP($A13,'R-2012'!$AE$6:$AS$500,10,FALSE)),"") -> 44 | O13: =IFERROR(IF(VLOOKUP($A13,'2012 WIA-Read'!$W$14:$AG$500,3,FALSE)<10,"",VLOOKUP($A13,'2012 WIA-Read'!$W$14:$AG$500,11,FALSE)*100),"") -> 31.46 | P13: =IFERROR(IF(VLOOKUP($A13,'WIAG5-RALL'!$A$14:$CZ$500,3,FALSE)<10,"",VLOOKUP($A13,'WIAG5-RALL'!$A$14:$CZ$500,11,FALSE)*100),"") -> 30.77 | Q13: 0 | R13: 3 | S13: =IFERROR(IF(VLOOKUP($A13,'M-2012'!$A$6:$N$500,3,FALSE)<10,"",VLOOKUP($A13,'M-2012'!$A$6:$N$500,10,FALSE)),"") -> 37 | T13: =IFERROR(IF(VLOOKUP($A13,'2012 WIA-Math'!$A$14:$K$500,3,FALSE)<10,"",VLOOKUP($A13,'2012 WIA-Math'!$A$14:$K$500,11,FALSE)*100),"") -> 28.57 | U13: =IFERROR(IF(VLOOKUP($A13,'WIAG3-MALL'!$A$14:$CZ$500,3,FALSE)<10,"",VLOOKUP($A13,'WIAG3-MALL'!$A$14:$CZ$500,11,FALSE)*100),"") -> 34.52 | V13: 6 | W13: 4 | X13: =IFERROR(IF(VLOOKUP($A13,'M-2012'!$O$6:$AB$500,3,FALSE)<10,"",VLOOKUP($A13,'M-2012'!$O$6:$AB$500,10,FALSE)),"") -> 36 | Y13: =IFERROR(IF(VLOOKUP($A13,'2012 WIA-Math'!$L$14:$V$500,3,FALSE)<10,"",VLOOKUP($A13,'2012 WIA-Math'!$L$14:$V$500,11,FALSE)*100),"") -> 41.57 | Z13: =IFERROR(IF(VLOOKUP($A13,'WIAG4-MALL'!$A$14:$CZ$500,3,FALSE)<10,"",VLOOKUP($A13,'WIAG4-MALL'!$A$14:$CZ$500,11,FALSE)*100),"") -> 43.37 | AA13: 1 | AB13: 5 | AC13: =IFERROR(IF(VLOOKUP($A13,'M-2012'!$AC$6:$AP$500,3,FALSE)<10,"",VLOOKUP($A13,'M-2012'!$AC$6:$AP$500,10,FALSE)),"") -> 37 | AD13: =IFERROR(IF(VLOOKUP($A13,'2012 WIA-Math'!$W$14:$AG$500,3,FALSE)<10,"",VLOOKUP($A13,'2012 WIA-Math'!$W$14:$AG$500,11,FALSE)*100),"") -> 25.84 | AE13: =IFERROR(IF(VLOOKUP($A13,'WIAG5-MALL'!$A$14:$CZ$500,3,FALSE)<10,"",VLOOKUP($A13,'WIAG5-MALL'!$A$14:$CZ$500,11,FALSE)*100),"") -> 34.44 | AF13: 8 | AG13: 5 | AH13: =IFERROR(IF(VLOOKUP(TEXT($A13,"0000"),'2012 Sci Retrofitted'!$A$3:$G$267,3,FALSE)<10,"",VLOOKUP(TEXT($A13,"0000"),'2012 Sci Retrofitted'!$A$3:$G$267,5,FALSE)),"") -> 29.67032967 | AI13: =IFERROR(IF(VLOOKUP($A13,'2012 WIA-Sci'!$A$6:$G$500,3,FALSE)<10,"",VLOOKUP($A13,'2012 WIA-Sci'!$A$6:$G$500,7,FALSE)),"") -> 18 | AJ13: =IFERROR(IF(VLOOKUP($A13,'WIAG5-SALL'!$A$14:$CZ$500,3,FALSE)<10,"",VLOOKUP($A13,'WIAG5-SALL'!$A$14:$CZ$500,11,FALSE)*100),"") -> 21.11 | AK13: 3 | AL13: =VLOOKUP(TEXT($A13,"0000"),#REF!,2,FALSE) ->  | AM13: =VLOOKUP(TEXT($A13,"0000"),#REF!,2,FALSE) -> 
A14: 1161 | B14: CRESTVIEW ELEMENTARY | C14: 3 | D14: =IFERROR(IF(VLOOKUP($A14,'R-2012'!$A$6:$O$500,3,FALSE)<10,"",VLOOKUP($A14,'R-2012'!$A$6:$O$500,10,FALSE)),"") -> 43 | E14: =IFERROR(IF(VLOOKUP($A14,'2012 WIA-Read'!$A$14:$K$500,3,FALSE)<10,"",VLOOKUP($A14,'2012 WIA-Read'!$A$14:$K$500,11,FALSE)*100),"") -> 41.56 | F14: =IFERROR(IF(VLOOKUP($A14,'WIAG3-RALL'!$A$14:$CZ$500,3,FALSE)<10,"",VLOOKUP($A14,'WIAG3-RALL'!$A$14:$CZ$500,11,FALSE)*100),"") -> 44.19 | G14: 2 | H14: 4 | I14: =IFERROR(IF(VLOOKUP($A14,'R-2012'!$P$6:$AD$500,3,FALSE)<10,"",VLOOKUP($A14,'R-2012'!$P$6:$AD$500,10,FALSE)),"") -> 42 | J14: =IFERROR(IF(VLOOKUP($A14,'2012 WIA-Read'!$L$14:$V$500,3,FALSE)<10,"",VLOOKUP($A14,'2012 WIA-Read'!$L$14:$V$500,11,FALSE)*100),"") -> 41.96 | K14: =IFERROR(IF(VLOOKUP($A14,'WIAG4-RALL'!$A$14:$CZ$500,3,FALSE)<10,"",VLOOKUP($A14,'WIAG4-RALL'!$A$14:$CZ$500,11,FALSE)*100),"") -> 56.06 | L14: 14 | M14: 5 | N14: =IFERROR(IF(VLOOKUP($A14,'R-2012'!$AE$6:$AS$500,3,FALSE)<10,"",VLOOKUP($A14,'R-2012'!$AE$6:$AS$500,10,FALSE)),"") -> 61 | O14: =IFERROR(IF(VLOOKUP($A14,'2012 WIA-Read'!$W$14:$AG$500,3,FALSE)<10,"",VLOOKUP($A14,'2012 WIA-Read'!$W$14:$AG$500,11,FALSE)*100),"") -> 60.18 | P14: =IFERROR(IF(VLOOKUP($A14,'WIAG5-RALL'!$A$14:$CZ$500,3,FALSE)<10,"",VLOOKUP($A14,'WIAG5-RALL'!$A$14:$CZ$500,11,FALSE)*100),"") -> 47.96 | Q14: -12 | R14: 3 | S14: =IFERROR(IF(VLOOKUP($A14,'M-2012'!$A$6:$N$500,3,FALSE)<10,"",VLOOKUP($A14,'M-2012'!$A$6:$N$500,10,FALSE)),"") -> 36 | T14: =IFERROR(IF(VLOOKUP($A14,'2012 WIA-Math'!$A$14:$K$500,3,FALSE)<10,"",VLOOKUP($A14,'2012 WIA-Math'!$A$14:$K$500,11,FALSE)*100),"") -> 31.58 | U14: =IFERROR(IF(VLOOKUP($A14,'WIAG3-MALL'!$A$14:$CZ$500,3,FALSE)<10,"",VLOOKUP($A14,'WIAG3-MALL'!$A$14:$CZ$500,11,FALSE)*100),"") -> 49.43 | V14: 17 | W14: 4 | X14: =IFERROR(IF(VLOOKUP($A14,'M-2012'!$O$6:$AB$500,3,FALSE)<10,"",VLOOKUP($A14,'M-2012'!$O$6:$AB$500,10,FALSE)),"") -> 47 | Y14: =IFERROR(IF(VLOOKUP($A14,'2012 WIA-Math'!$L$14:$V$500,3,FALSE)<10,"",VLOOKUP($A14,'2012 WIA-Math'!$L$14:$V$500,11,FALSE)*100),"") -> 22.32 | Z14: =IFERROR(IF(VLOOKUP($A14,'WIAG4-MALL'!$A$14:$CZ$500,3,FALSE)<10,"",VLOOKUP($A14,'WIAG4-MALL'!$A$14:$CZ$500,11,FALSE)*100),"") -> 50.79 | AA14: 29 | AB14: 5 | AC14: =IFERROR(IF(VLOOKUP($A14,'M-2012'!$AC$6:$AP$500,3,FALSE)<10,"",VLOOKUP($A14,'M-2012'!$AC$6:$AP$500,10,FALSE)),"") -> 50 | AD14: =IFERROR(IF(VLOOKUP($A14,'2012 WIA-Math'!$W$14:$AG$500,3,FALSE)<10,"",VLOOKUP($A14,'2012 WIA-Math'!$W$14:$AG$500,11,FALSE)*100),"") -> 49.56 | AE14: =IFERROR(IF(VLOOKUP($A14,'WIAG5-MALL'!$A$14:$CZ$500,3,FALSE)<10,"",VLOOKUP($A14,'WIAG5-MALL'!$A$14:$CZ$500,11,FALSE)*100),"") -> 42.71 | AF14: -7 | AG14: 5 | AH14: =IFERROR(IF(VLOOKUP(TEXT($A14,"0000"),'2012 Sci Retrofitted'!$A$3:$G$267,3,FALSE)<10,"",VLOOKUP(TEXT($A14,"0000"),'2012 Sci Retrofitted'!$A$3:$G$267,5,FALSE)),"") -> 34.7826087 | AI14: =IFERROR(IF(VLOOKUP($A14,'2012 WIA-Sci'!$A$6:$G$500,3,FALSE)<10,"",VLOOKUP($A14,'2012 WIA-Sci'!$A$6:$G$500,7,FALSE)),"") -> 33 | AJ14: =IFERROR(IF(VLOOKUP($A14,'WIAG5-SALL'!$A$14:$CZ$500,3,FALSE)<10,"",VLOOKUP($A14,'WIAG5-SALL'!$A$14:$CZ$500,11,FALSE)*100),"") -> 24.21 | AK14: -9 | AL14: =VLOOKUP(TEXT($A14,"0000"),#REF!,2,FALSE) ->  | AM14: =VLOOKUP(TEXT($A14,"0000"),#REF!,2,FALSE) -> 
A15: 1481 | B15: JOHN G. DUPUIS ELEMENTARY | C15: 3 | D15: =IFERROR(IF(VLOOKUP($A15,'R-2012'!$A$6:$O$500,3,FALSE)<10,"",VLOOKUP($A15,'R-2012'!$A$6:$O$500,10,FALSE)),"") -> 59 | E15: =IFERROR(IF(VLOOKUP($A15,'2012 WIA-Read'!$A$14:$K$500,3,FALSE)<10,"",VLOOKUP($A15,'2012 WIA-Read'!$A$14:$K$500,11,FALSE)*100),"") -> 63.55 | F15: =IFERROR(IF(VLOOKUP($A15,'WIAG3-RALL'!$A$14:$CZ$500,3,FALSE)<10,"",VLOOKUP($A15,'WIAG3-RALL'!$A$14:$CZ$500,11,FALSE)*100),"") -> 64.36 | G15: 0 | H15: 4 | I15: =IFERROR(IF(VLOOKUP($A15,'R-2012'!$P$6:$AD$500,3,FALSE)<10,"",VLOOKUP($A15,'R-2012'!$P$6:$AD$500,10,FALSE)),"") -> 54 | J15: =IFERROR(IF(VLOOKUP($A15,'2012 WIA-Read'!$L$14:$V$500,3,FALSE)<10,"",VLOOKUP($A15,'2012 WIA-Read'!$L$14:$V$500,11,FALSE)*100),"") -> 67.94 | K15: =IFERROR(IF(VLOOKUP($A15,'WIAG4-RALL'!$A$14:$CZ$500,3,FALSE)<10,"",VLOOKUP($A15,'WIAG4-RALL'!$A$14:$CZ$500,11,FALSE)*100),"") -> 71.96 | L15: 4 | M15: 5 | N15: =IFERROR(IF(VLOOKUP($A15,'R-2012'!$AE$6:$AS$500,3,FALSE)<10,"",VLOOKUP($A15,'R-2012'!$AE$6:$AS$500,10,FALSE)),"") -> 50 | O15: =IFERROR(IF(VLOOKUP($A15,'2012 WIA-Read'!$W$14:$AG$500,3,FALSE)<10,"",VLOOKUP($A15,'2012 WIA-Read'!$W$14:$AG$500,11,FALSE)*100),"") -> 54.24 | P15: =IFERROR(IF(VLOOKUP($A15,'WIAG5-RALL'!$A$14:$CZ$500,3,FALSE)<10,"",VLOOKUP($A15,'WIAG5-RALL'!$A$14:$CZ$500,11,FALSE)*100),"") -> 50.77 | Q15: -3 | R15: 3 | S15: =IFERROR(IF(VLOOKUP($A15,'M-2012'!$A$6:$N$500,3,FALSE)<10,"",VLOOKUP($A15,'M-2012'!$A$6:$N$500,10,FALSE)),"") -> 67 | T15: =IFERROR(IF(VLOOKUP($A15,'2012 WIA-Math'!$A$14:$K$500,3,FALSE)<10,"",VLOOKUP($A15,'2012 WIA-Math'!$A$14:$K$500,11,FALSE)*100),"") -> 76.64 | U15: =IFERROR(IF(VLOOKUP($A15,'WIAG3-MALL'!$A$14:$CZ$500,3,FALSE)<10,"",VLOOKUP($A15,'WIAG3-MALL'!$A$14:$CZ$500,11,FALSE)*100),"") -> 76.24 | V15: -1 | W15: 4 | X15: =IFERROR(IF(VLOOKUP($A15,'M-2012'!$O$6:$AB$500,3,FALSE)<10,"",VLOOKUP($A15,'M-2012'!$O$6:$AB$500,10,FALSE)),"") -> 64 | Y15: =IFERROR(IF(VLOOKUP($A15,'2012 WIA-Math'!$L$14:$V$500,3,FALSE)<10,"",VLOOKUP($A15,'2012 WIA-Math'!$L$14:$V$500,11,FALSE)*100),"") -> 70.31 | Z15: =IFERROR(IF(VLOOKUP($A15,'WIAG4-MALL'!$A$14:$CZ$500,3,FALSE)<10,"",VLOOKUP($A15,'WIAG4-MALL'!$A$14:$CZ$500,11,FALSE)*100),"") -> 77.14 | AA15: 7 | AB15: 5 | AC15: =IFERROR(IF(VLOOKUP($A15,'M-2012'!$AC$6:$AP$500,3,FALSE)<10,"",VLOOKUP($A15,'M-2012'!$AC$6:$AP$500,10,FALSE)),"") -> 58 | AD15: =IFERROR(IF(VLOOKUP($A15,'2012 WIA-Math'!$W$14:$AG$500,3,FALSE)<10,"",VLOOKUP($A15,'2012 WIA-Math'!$W$14:$AG$500,11,FALSE)*100),"") -> 62.71 | AE15: =IFERROR(IF(VLOOKUP($A15,'WIAG5-MALL'!$A$14:$CZ$500,3,FALSE)<10,"",VLOOKUP($A15,'WIAG5-MALL'!$A$14:$CZ$500,11,FALSE)*100),"") -> 65.08 | AF15: 2 | AG15: 5 | AH15: =IFERROR(IF(VLOOKUP(TEXT($A15,"0000"),'2012 Sci Retrofitted'!$A$3:$G$267,3,FALSE)<10,"",VLOOKUP(TEXT($A15,"0000"),'2012 Sci Retrofitted'!$A$3:$G$267,5,FALSE)),"") -> 47.54098361 | AI15: =IFERROR(IF(VLOOKUP($A15,'2012 WIA-Sci'!$A$6:$G$500,3,FALSE)<10,"",VLOOKUP($A15,'2012 WIA-Sci'!$A$6:$G$500,7,FALSE)),"") -> 48 | AJ15: =IFERROR(IF(VLOOKUP($A15,'WIAG5-SALL'!$A$14:$CZ$500,3,FALSE)<10,"",VLOOKUP($A15,'WIAG5-SALL'!$A$14:$CZ$500,11,FALSE)*100),"") -> 51.54 | AK15: 4 | AL15: =VLOOKUP(TEXT($A15,"0000"),#REF!,2,FALSE) ->  | AM15: =VLOOKUP(TEXT($A15,"0000"),#REF!,2,FALSE) -> 
A16: 1521 | B16: AMELIA EARHART ELEMENTARY | C16: 3 | D16: =IFERROR(IF(VLOOKUP($A16,'R-2012'!$A$6:$O$500,3,FALSE)<10,"",VLOOKUP($A16,'R-2012'!$A$6:$O$500,10,FALSE)),"") -> 43 | E16: =IFERROR(IF(VLOOKUP($A16,'2012 WIA-Read'!$A$14:$K$500,3,FALSE)<10,"",VLOOKUP($A16,'2012 WIA-Read'!$A$14:$K$500,11,FALSE)*100),"") -> 37.33 | F16: =IFERROR(IF(VLOOKUP($A16,'WIAG3-RALL'!$A$14:$CZ$500,3,FALSE)<10,"",VLOOKUP($A16,'WIAG3-RALL'!$A$14:$CZ$500,11,FALSE)*100),"") -> 51.25 | G16: 14 | H16: 4 | I16: =IFERROR(IF(VLOOKUP($A16,'R-2012'!$P$6:$AD$500,3,FALSE)<10,"",VLOOKUP($A16,'R-2012'!$P$6:$AD$500,10,FALSE)),"") -> 49 | J16: =IFERROR(IF(VLOOKUP($A16,'2012 WIA-Read'!$L$14:$V$500,3,FALSE)<10,"",VLOOKUP($A16,'2012 WIA-Read'!$L$14:$V$500,11,FALSE)*100),"") -> 42.25 | K16: =IFERROR(IF(VLOOKUP($A16,'WIAG4-RALL'!$A$14:$CZ$500,3,FALSE)<10,"",VLOOKUP($A16,'WIAG4-RALL'!$A$14:$CZ$500,11,FALSE)*100),"") -> 69.23 | L16: 27 | M16: 5 | N16: =IFERROR(IF(VLOOKUP($A16,'R-2012'!$AE$6:$AS$500,3,FALSE)<10,"",VLOOKUP($A16,'R-2012'!$AE$6:$AS$500,10,FALSE)),"") -> 47 | O16: =IFERROR(IF(VLOOKUP($A16,'2012 WIA-Read'!$W$14:$AG$500,3,FALSE)<10,"",VLOOKUP($A16,'2012 WIA-Read'!$W$14:$AG$500,11,FALSE)*100),"") -> 46.43 | P16: =IFERROR(IF(VLOOKUP($A16,'WIAG5-RALL'!$A$14:$CZ$500,3,FALSE)<10,"",VLOOKUP($A16,'WIAG5-RALL'!$A$14:$CZ$500,11,FALSE)*100),"") -> 64.47 | Q16: 18 | R16: 3 | S16: =IFERROR(IF(VLOOKUP($A16,'M-2012'!$A$6:$N$500,3,FALSE)<10,"",VLOOKUP($A16,'M-2012'!$A$6:$N$500,10,FALSE)),"") -> 47 | T16: =IFERROR(IF(VLOOKUP($A16,'2012 WIA-Math'!$A$14:$K$500,3,FALSE)<10,"",VLOOKUP($A16,'2012 WIA-Math'!$A$14:$K$500,11,FALSE)*100),"") -> 32 | U16: =IFERROR(IF(VLOOKUP($A16,'WIAG3-MALL'!$A$14:$CZ$500,3,FALSE)<10,"",VLOOKUP($A16,'WIAG3-MALL'!$A$14:$CZ$500,11,FALSE)*100),"") -> 52.5 | V16: 21 | W16: 4 | X16: =IFERROR(IF(VLOOKUP($A16,'M-2012'!$O$6:$AB$500,3,FALSE)<10,"",VLOOKUP($A16,'M-2012'!$O$6:$AB$500,10,FALSE)),"") -> 67 | Y16: =IFERROR(IF(VLOOKUP($A16,'2012 WIA-Math'!$L$14:$V$500,3,FALSE)<10,"",VLOOKUP($A16,'2012 WIA-Math'!$L$14:$V$500,11,FALSE)*100),"") -> 74.65 | Z16: =IFERROR(IF(VLOOKUP($A16,'WIAG4-MALL'!$A$14:$CZ$500,3,FALSE)<10,"",VLOOKUP($A16,'WIAG4-MALL'!$A$14:$CZ$500,11,FALSE)*100),"") -> 80 | AA16: 5 | AB16: 5 | AC16: =IFERROR(IF(VLOOKUP($A16,'M-2012'!$AC$6:$AP$500,3,FALSE)<10,"",VLOOKUP($A16,'M-2012'!$AC$6:$AP$500,10,FALSE)),"") -> 29 | AD16: =IFERROR(IF(VLOOKUP($A16,'2012 WIA-Math'!$W$14:$AG$500,3,FALSE)<10,"",VLOOKUP($A16,'2012 WIA-Math'!$W$14:$AG$500,11,FALSE)*100),"") -> 23.81 | AE16: =IFERROR(IF(VLOOKUP($A16,'WIAG5-MALL'!$A$14:$CZ$500,3,FALSE)<10,"",VLOOKUP($A16,'WIAG5-MALL'!$A$14:$CZ$500,11,FALSE)*100),"") -> 40.79 | AF16: 17 | AG16: 5 | AH16: =IFERROR(IF(VLOOKUP(TEXT($A16,"0000"),'2012 Sci Retrofitted'!$A$3:$G$267,3,FALSE)<10,"",VLOOKUP(TEXT($A16,"0000"),'2012 Sci Retrofitted'!$A$3:$G$267,5,FALSE)),"") -> 42.35294118 | AI16: =IFERROR(IF(VLOOKUP($A16,'2012 WIA-Sci'!$A$6:$G$500,3,FALSE)<10,"",VLOOKUP($A16,'2012 WIA-Sci'!$A$6:$G$500,7,FALSE)),"") -> 32 | AJ16: =IFERROR(IF(VLOOKUP($A16,'WIAG5-SALL'!$A$14:$CZ$500,3,FALSE)<10,"",VLOOKUP($A16,'WIAG5-SALL'!$A$14:$CZ$500,11,FALSE)*100),"") -> 59.21 | AK16: 27 | AL16: =VLOOKUP(TEXT($A16,"0000"),#REF!,2,FALSE) ->  | AM16: =VLOOKUP(TEXT($A16,"0000"),#REF!,2,FALSE) -> 
A17: 1921 | B17: FLAMINGO ELEMENTARY | C17: 3 | D17: =IFERROR(IF(VLOOKUP($A17,'R-2012'!$A$6:$O$500,3,FALSE)<10,"",VLOOKUP($A17,'R-2012'!$A$6:$O$500,10,FALSE)),"") -> 46 | E17: =IFERROR(IF(VLOOKUP($A17,'2012 WIA-Read'!$A$14:$K$500,3,FALSE)<10,"",VLOOKUP($A17,'2012 WIA-Read'!$A$14:$K$500,11,FALSE)*100),"") -> 44.44 | F17: =IFERROR(IF(VLOOKUP($A17,'WIAG3-RALL'!$A$14:$CZ$500,3,FALSE)<10,"",VLOOKUP($A17,'WIAG3-RALL'!$A$14:$CZ$500,11,FALSE)*100),"") -> 41.96 | G17: -2 | H17: 4 | I17: =IFERROR(IF(VLOOKUP($A17,'R-2012'!$P$6:$AD$500,3,FALSE)<10,"",VLOOKUP($A17,'R-2012'!$P$6:$AD$500,10,FALSE)),"") -> 48 | J17: =IFERROR(IF(VLOOKUP($A17,'2012 WIA-Read'!$L$14:$V$500,3,FALSE)<10,"",VLOOKUP($A17,'2012 WIA-Read'!$L$14:$V$500,11,FALSE)*100),"") -> 46 | K17: =IFERROR(IF(VLOOKUP($A17,'WIAG4-RALL'!$A$14:$CZ$500,3,FALSE)<10,"",VLOOKUP($A17,'WIAG4-RALL'!$A$14:$CZ$500,11,FALSE)*100),"") -> 56 | L17: 10 | M17: 5 | N17: =IFERROR(IF(VLOOKUP($A17,'R-2012'!$AE$6:$AS$500,3,FALSE)<10,"",VLOOKUP($A17,'R-2012'!$AE$6:$AS$500,10,FALSE)),"") -> 59 | O17: =IFERROR(IF(VLOOKUP($A17,'2012 WIA-Read'!$W$14:$AG$500,3,FALSE)<10,"",VLOOKUP($A17,'2012 WIA-Read'!$W$14:$AG$500,11,FALSE)*100),"") -> 52.24 | P17: =IFERROR(IF(VLOOKUP($A17,'WIAG5-RALL'!$A$14:$CZ$500,3,FALSE)<10,"",VLOOKUP($A17,'WIAG5-RALL'!$A$14:$CZ$500,11,FALSE)*100),"") -> 56.77 | Q17: 5 | R17: 3 | S17: =IFERROR(IF(VLOOKUP($A17,'M-2012'!$A$6:$N$500,3,FALSE)<10,"",VLOOKUP($A17,'M-2012'!$A$6:$N$500,10,FALSE)),"") -> 45 | T17: =IFERROR(IF(VLOOKUP($A17,'2012 WIA-Math'!$A$14:$K$500,3,FALSE)<10,"",VLOOKUP($A17,'2012 WIA-Math'!$A$14:$K$500,11,FALSE)*100),"") -> 41.67 | U17: =IFERROR(IF(VLOOKUP($A17,'WIAG3-MALL'!$A$14:$CZ$500,3,FALSE)<10,"",VLOOKUP($A17,'WIAG3-MALL'!$A$14:$CZ$500,11,FALSE)*100),"") -> 48.25 | V17: 6 | W17: 4 | X17: =IFERROR(IF(VLOOKUP($A17,'M-2012'!$O$6:$AB$500,3,FALSE)<10,"",VLOOKUP($A17,'M-2012'!$O$6:$AB$500,10,FALSE)),"") -> 41 | Y17: =IFERROR(IF(VLOOKUP($A17,'2012 WIA-Math'!$L$14:$V$500,3,FALSE)<10,"",VLOOKUP($A17,'2012 WIA-Math'!$L$14:$V$500,11,FALSE)*100),"") -> 42.47 | Z17: =IFERROR(IF(VLOOKUP($A17,'WIAG4-MALL'!$A$14:$CZ$500,3,FALSE)<10,"",VLOOKUP($A17,'WIAG4-MALL'!$A$14:$CZ$500,11,FALSE)*100),"") -> 43.2 | AA17: 1 | AB17: 5 | AC17: =IFERROR(IF(VLOOKUP($A17,'M-2012'!$AC$6:$AP$500,3,FALSE)<10,"",VLOOKUP($A17,'M-2012'!$AC$6:$AP$500,10,FALSE)),"") -> 43 | AD17: =IFERROR(IF(VLOOKUP($A17,'2012 WIA-Math'!$W$14:$AG$500,3,FALSE)<10,"",VLOOKUP($A17,'2012 WIA-Math'!$W$14:$AG$500,11,FALSE)*100),"") -> 42.54 | AE17: =IFERROR(IF(VLOOKUP($A17,'WIAG5-MALL'!$A$14:$CZ$500,3,FALSE)<10,"",VLOOKUP($A17,'WIAG5-MALL'!$A$14:$CZ$500,11,FALSE)*100),"") -> 55.48 | AF17: 12 | AG17: 5 | AH17: =IFERROR(IF(VLOOKUP(TEXT($A17,"0000"),'2012 Sci Retrofitted'!$A$3:$G$267,3,FALSE)<10,"",VLOOKUP(TEXT($A17,"0000"),'2012 Sci Retrofitted'!$A$3:$G$267,5,FALSE)),"") -> 37.68115942 | AI17: =IFERROR(IF(VLOOKUP($A17,'2012 WIA-Sci'!$A$6:$G$500,3,FALSE)<10,"",VLOOKUP($A17,'2012 WIA-Sci'!$A$6:$G$500,7,FALSE)),"") -> 43 | AJ17: =IFERROR(IF(VLOOKUP($A17,'WIAG5-SALL'!$A$14:$CZ$500,3,FALSE)<10,"",VLOOKUP($A17,'WIAG5-SALL'!$A$14:$CZ$500,11,FALSE)*100),"") -> 47.1 | AK17: 4 | AL17: =VLOOKUP(TEXT($A17,"0000"),#REF!,2,FALSE) ->  | AM17: =VLOOKUP(TEXT($A17,"0000"),#REF!,2,FALSE) -> 
A18: 2081 | B18: FULFORD ELEMENTARY | C18: 3 | D18: =IFERROR(IF(VLOOKUP($A18,'R-2012'!$A$6:$O$500,3,FALSE)<10,"",VLOOKUP($A18,'R-2012'!$A$6:$O$500,10,FALSE)),"") -> 34 | E18: =IFERROR(IF(VLOOKUP($A18,'2012 WIA-Read'!$A$14:$K$500,3,FALSE)<10,"",VLOOKUP($A18,'2012 WIA-Read'!$A$14:$K$500,11,FALSE)*100),"") -> 37.89 | F18: =IFERROR(IF(VLOOKUP($A18,'WIAG3-RALL'!$A$14:$CZ$500,3,FALSE)<10,"",VLOOKUP($A18,'WIAG3-RALL'!$A$14:$CZ$500,11,FALSE)*100),"") -> 42.68 | G18: 5 | H18: 4 | I18: =IFERROR(IF(VLOOKUP($A18,'R-2012'!$P$6:$AD$500,3,FALSE)<10,"",VLOOKUP($A18,'R-2012'!$P$6:$AD$500,10,FALSE)),"") -> 46 | J18: =IFERROR(IF(VLOOKUP($A18,'2012 WIA-Read'!$L$14:$V$500,3,FALSE)<10,"",VLOOKUP($A18,'2012 WIA-Read'!$L$14:$V$500,11,FALSE)*100),"") -> 57.69 | K18: =IFERROR(IF(VLOOKUP($A18,'WIAG4-RALL'!$A$14:$CZ$500,3,FALSE)<10,"",VLOOKUP($A18,'WIAG4-RALL'!$A$14:$CZ$500,11,FALSE)*100),"") -> 47.19 | L18: -11 | M18: 5 | N18: =IFERROR(IF(VLOOKUP($A18,'R-2012'!$AE$6:$AS$500,3,FALSE)<10,"",VLOOKUP($A18,'R-2012'!$AE$6:$AS$500,10,FALSE)),"") -> 40 | O18: =IFERROR(IF(VLOOKUP($A18,'2012 WIA-Read'!$W$14:$AG$500,3,FALSE)<10,"",VLOOKUP($A18,'2012 WIA-Read'!$W$14:$AG$500,11,FALSE)*100),"") -> 39.29 | P18: =IFERROR(IF(VLOOKUP($A18,'WIAG5-RALL'!$A$14:$CZ$500,3,FALSE)<10,"",VLOOKUP($A18,'WIAG5-RALL'!$A$14:$CZ$500,11,FALSE)*100),"") -> 55.26 | Q18: 16 | R18: 3 | S18: =IFERROR(IF(VLOOKUP($A18,'M-2012'!$A$6:$N$500,3,FALSE)<10,"",VLOOKUP($A18,'M-2012'!$A$6:$N$500,10,FALSE)),"") -> 51 | T18: =IFERROR(IF(VLOOKUP($A18,'2012 WIA-Math'!$A$14:$K$500,3,FALSE)<10,"",VLOOKUP($A18,'2012 WIA-Math'!$A$14:$K$500,11,FALSE)*100),"") -> 54.17 | U18: =IFERROR(IF(VLOOKUP($A18,'WIAG3-MALL'!$A$14:$CZ$500,3,FALSE)<10,"",VLOOKUP($A18,'WIAG3-MALL'!$A$14:$CZ$500,11,FALSE)*100),"") -> 71.6 | V18: 18 | W18: 4 | X18: =IFERROR(IF(VLOOKUP($A18,'M-2012'!$O$6:$AB$500,3,FALSE)<10,"",VLOOKUP($A18,'M-2012'!$O$6:$AB$500,10,FALSE)),"") -> 47 | Y18: =IFERROR(IF(VLOOKUP($A18,'2012 WIA-Math'!$L$14:$V$500,3,FALSE)<10,"",VLOOKUP($A18,'2012 WIA-Math'!$L$14:$V$500,11,FALSE)*100),"") -> 53.25 | Z18: =IFERROR(IF(VLOOKUP($A18,'WIAG4-MALL'!$A$14:$CZ$500,3,FALSE)<10,"",VLOOKUP($A18,'WIAG4-MALL'!$A$14:$CZ$500,11,FALSE)*100),"") -> 58.43 | AA18: 5 | AB18: 5 | AC18: =IFERROR(IF(VLOOKUP($A18,'M-2012'!$AC$6:$AP$500,3,FALSE)<10,"",VLOOKUP($A18,'M-2012'!$AC$6:$AP$500,10,FALSE)),"") -> 43 | AD18: =IFERROR(IF(VLOOKUP($A18,'2012 WIA-Math'!$W$14:$AG$500,3,FALSE)<10,"",VLOOKUP($A18,'2012 WIA-Math'!$W$14:$AG$500,11,FALSE)*100),"") -> 57.14 | AE18: =IFERROR(IF(VLOOKUP($A18,'WIAG5-MALL'!$A$14:$CZ$500,3,FALSE)<10,"",VLOOKUP($A18,'WIAG5-MALL'!$A$14:$CZ$500,11,FALSE)*100),"") -> 37.33 | AF18: -20 | AG18: 5 | AH18: =IFERROR(IF(VLOOKUP(TEXT($A18,"0000"),'2012 Sci Retrofitted'!$A$3:$G$267,3,FALSE)<10,"",VLOOKUP(TEXT($A18,"0000"),'2012 Sci Retrofitted'!$A$3:$G$267,5,FALSE)),"") -> 36.04651163 | AI18: =IFERROR(IF(VLOOKUP($A18,'2012 WIA-Sci'!$A$6:$G$500,3,FALSE)<10,"",VLOOKUP($A18,'2012 WIA-Sci'!$A$6:$G$500,7,FALSE)),"") -> 20 | AJ18: =IFERROR(IF(VLOOKUP($A18,'WIAG5-SALL'!$A$14:$CZ$500,3,FALSE)<10,"",VLOOKUP($A18,'WIAG5-SALL'!$A$14:$CZ$500,11,FALSE)*100),"") -> 36.62 | AK18: 17 | AL18: =VLOOKUP(TEXT($A18,"0000"),#REF!,2,FALSE) ->  | AM18: =VLOOKUP(TEXT($A18,"0000"),#REF!,2,FALSE) -> 
A19: 2111 | B19: HIALEAH GARDENS ELEMENTARY | C19: 3 | D19: =IFERROR(IF(VLOOKUP($A19,'R-2012'!$A$6:$O$500,3,FALSE)<10,"",VLOOKUP($A19,'R-2012'!$A$6:$O$500,10,FALSE)),"") -> 62 | E19: =IFERROR(IF(VLOOKUP($A19,'2012 WIA-Read'!$A$14:$K$500,3,FALSE)<10,"",VLOOKUP($A19,'2012 WIA-Read'!$A$14:$K$500,11,FALSE)*100),"") -> 62.94 | F19: =IFERROR(IF(VLOOKUP($A19,'WIAG3-RALL'!$A$14:$CZ$500,3,FALSE)<10,"",VLOOKUP($A19,'WIAG3-RALL'!$A$14:$CZ$500,11,FALSE)*100),"") -> 72.31 | G19: 9 | H19: 4 | I19: =IFERROR(IF(VLOOKUP($A19,'R-2012'!$P$6:$AD$500,3,FALSE)<10,"",VLOOKUP($A19,'R-2012'!$P$6:$AD$500,10,FALSE)),"") -> 64 | J19: =IFERROR(IF(VLOOKUP($A19,'2012 WIA-Read'!$L$14:$V$500,3,FALSE)<10,"",VLOOKUP($A19,'2012 WIA-Read'!$L$14:$V$500,11,FALSE)*100),"") -> 66.41 | K19: =IFERROR(IF(VLOOKUP($A19,'WIAG4-RALL'!$A$14:$CZ$500,3,FALSE)<10,"",VLOOKUP($A19,'WIAG4-RALL'!$A$14:$CZ$500,11,FALSE)*100),"") -> 68.89 | L19: 3 | M19: 5 | N19: =IFERROR(IF(VLOOKUP($A19,'R-2012'!$AE$6:$AS$500,3,FALSE)<10,"",VLOOKUP($A19,'R-2012'!$AE$6:$AS$500,10,FALSE)),"") -> 68 | O19: =IFERROR(IF(VLOOKUP($A19,'2012 WIA-Read'!$W$14:$AG$500,3,FALSE)<10,"",VLOOKUP($A19,'2012 WIA-Read'!$W$14:$AG$500,11,FALSE)*100),"") -> 59.39 | P19: =IFERROR(IF(VLOOKUP($A19,'WIAG5-RALL'!$A$14:$CZ$500,3,FALSE)<10,"",VLOOKUP($A19,'WIAG5-RALL'!$A$14:$CZ$500,11,FALSE)*100),"") -> 64.96 | Q19: 6 | R19: 3 | S19: =IFERROR(IF(VLOOKUP($A19,'M-2012'!$A$6:$N$500,3,FALSE)<10,"",VLOOKUP($A19,'M-2012'!$A$6:$N$500,10,FALSE)),"") -> 72 | T19: =IFERROR(IF(VLOOKUP($A19,'2012 WIA-Math'!$A$14:$K$500,3,FALSE)<10,"",VLOOKUP($A19,'2012 WIA-Math'!$A$14:$K$500,11,FALSE)*100),"") -> 79.02 | U19: =IFERROR(IF(VLOOKUP($A19,'WIAG3-MALL'!$A$14:$CZ$500,3,FALSE)<10,"",VLOOKUP($A19,'WIAG3-MALL'!$A$14:$CZ$500,11,FALSE)*100),"") -> 89.23 | V19: 10 | W19: 4 | X19: =IFERROR(IF(VLOOKUP($A19,'M-2012'!$O$6:$AB$500,3,FALSE)<10,"",VLOOKUP($A19,'M-2012'!$O$6:$AB$500,10,FALSE)),"") -> 78 | Y19: =IFERROR(IF(VLOOKUP($A19,'2012 WIA-Math'!$L$14:$V$500,3,FALSE)<10,"",VLOOKUP($A19,'2012 WIA-Math'!$L$14:$V$500,11,FALSE)*100),"") -> 72.87 | Z19: =IFERROR(IF(VLOOKUP($A19,'WIAG4-MALL'!$A$14:$CZ$500,3,FALSE)<10,"",VLOOKUP($A19,'WIAG4-MALL'!$A$14:$CZ$500,11,FALSE)*100),"") -> 73.08 | AA19: 0 | AB19: 5 | AC19: =IFERROR(IF(VLOOKUP($A19,'M-2012'!$AC$6:$AP$500,3,FALSE)<10,"",VLOOKUP($A19,'M-2012'!$AC$6:$AP$500,10,FALSE)),"") -> 60 | AD19: =IFERROR(IF(VLOOKUP($A19,'2012 WIA-Math'!$W$14:$AG$500,3,FALSE)<10,"",VLOOKUP($A19,'2012 WIA-Math'!$W$14:$AG$500,11,FALSE)*100),"") -> 63.8 | AE19: =IFERROR(IF(VLOOKUP($A19,'WIAG5-MALL'!$A$14:$CZ$500,3,FALSE)<10,"",VLOOKUP($A19,'WIAG5-MALL'!$A$14:$CZ$500,11,FALSE)*100),"") -> 73.53 | AF19: 10 | AG19: 5 | AH19: =IFERROR(IF(VLOOKUP(TEXT($A19,"0000"),'2012 Sci Retrofitted'!$A$3:$G$267,3,FALSE)<10,"",VLOOKUP(TEXT($A19,"0000"),'2012 Sci Retrofitted'!$A$3:$G$267,5,FALSE)),"") -> 51.20481928 | AI19: =IFERROR(IF(VLOOKUP($A19,'2012 WIA-Sci'!$A$6:$G$500,3,FALSE)<10,"",VLOOKUP($A19,'2012 WIA-Sci'!$A$6:$G$500,7,FALSE)),"") -> 46 | AJ19: =IFERROR(IF(VLOOKUP($A19,'WIAG5-SALL'!$A$14:$CZ$500,3,FALSE)<10,"",VLOOKUP($A19,'WIAG5-SALL'!$A$14:$CZ$500,11,FALSE)*100),"") -> 46.32 | AK19: 0 | AL19: =VLOOKUP(TEXT($A19,"0000"),#REF!,2,FALSE) ->  | AM19: =VLOOKUP(TEXT($A19,"0000"),#REF!,2,FALSE) -> 
A20: 2181 | B20: JOELLA C. GOOD ELEMENTARY | C20: 3 | D20: =IFERROR(IF(VLOOKUP($A20,'R-2012'!$A$6:$O$500,3,FALSE)<10,"",VLOOKUP($A20,'R-2012'!$A$6:$O$500,10,FALSE)),"") -> 54 | E20: =IFERROR(IF(VLOOKUP($A20,'2012 WIA-Read'!$A$14:$K$500,3,FALSE)<10,"",VLOOKUP($A20,'2012 WIA-Read'!$A$14:$K$500,11,FALSE)*100),"") -> 62.86 | F20: =IFERROR(IF(VLOOKUP($A20,'WIAG3-RALL'!$A$14:$CZ$500,3,FALSE)<10,"",VLOOKUP($A20,'WIAG3-RALL'!$A$14:$CZ$500,11,FALSE)*100),"") -> 59.38 | G20: -4 | H20: 4 | I20: =IFERROR(IF(VLOOKUP($A20,'R-2012'!$P$6:$AD$500,3,FALSE)<10,"",VLOOKUP($A20,'R-2012'!$P$6:$AD$500,10,FALSE)),"") -> 62 | J20: =IFERROR(IF(VLOOKUP($A20,'2012 WIA-Read'!$L$14:$V$500,3,FALSE)<10,"",VLOOKUP($A20,'2012 WIA-Read'!$L$14:$V$500,11,FALSE)*100),"") -> 62.16 | K20: =IFERROR(IF(VLOOKUP($A20,'WIAG4-RALL'!$A$14:$CZ$500,3,FALSE)<10,"",VLOOKUP($A20,'WIAG4-RALL'!$A$14:$CZ$500,11,FALSE)*100),"") -> 74.55 | L20: 13 | M20: 5 | N20: =IFERROR(IF(VLOOKUP($A20,'R-2012'!$AE$6:$AS$500,3,FALSE)<10,"",VLOOKUP($A20,'R-2012'!$AE$6:$AS$500,10,FALSE)),"") -> 60 | O20: =IFERROR(IF(VLOOKUP($A20,'2012 WIA-Read'!$W$14:$AG$500,3,FALSE)<10,"",VLOOKUP($A20,'2012 WIA-Read'!$W$14:$AG$500,11,FALSE)*100),"") -> 65.22 | P20: =IFERROR(IF(VLOOKUP($A20,'WIAG5-RALL'!$A$14:$CZ$500,3,FALSE)<10,"",VLOOKUP($A20,'WIAG5-RALL'!$A$14:$CZ$500,11,FALSE)*100),"") -> 64.1 | Q20: -1 | R20: 3 | S20: =IFERROR(IF(VLOOKUP($A20,'M-2012'!$A$6:$N$500,3,FALSE)<10,"",VLOOKUP($A20,'M-2012'!$A$6:$N$500,10,FALSE)),"") -> 61 | T20: =IFERROR(IF(VLOOKUP($A20,'2012 WIA-Math'!$A$14:$K$500,3,FALSE)<10,"",VLOOKUP($A20,'2012 WIA-Math'!$A$14:$K$500,11,FALSE)*100),"") -> 73.45 | U20: =IFERROR(IF(VLOOKUP($A20,'WIAG3-MALL'!$A$14:$CZ$500,3,FALSE)<10,"",VLOOKUP($A20,'WIAG3-MALL'!$A$14:$CZ$500,11,FALSE)*100),"") -> 68.35 | V20: -5 | W20: 4 | X20: =IFERROR(IF(VLOOKUP($A20,'M-2012'!$O$6:$AB$500,3,FALSE)<10,"",VLOOKUP($A20,'M-2012'!$O$6:$AB$500,10,FALSE)),"") -> 63 | Y20: =IFERROR(IF(VLOOKUP($A20,'2012 WIA-Math'!$L$14:$V$500,3,FALSE)<10,"",VLOOKUP($A20,'2012 WIA-Math'!$L$14:$V$500,11,FALSE)*100),"") -> 57.62 | Z20: =IFERROR(IF(VLOOKUP($A20,'WIAG4-MALL'!$A$14:$CZ$500,3,FALSE)<10,"",VLOOKUP($A20,'WIAG4-MALL'!$A$14:$CZ$500,11,FALSE)*100),"") -> 69.51 | AA20: 12 | AB20: 5 | AC20: =IFERROR(IF(VLOOKUP($A20,'M-2012'!$AC$6:$AP$500,3,FALSE)<10,"",VLOOKUP($A20,'M-2012'!$AC$6:$AP$500,10,FALSE)),"") -> 63 | AD20: =IFERROR(IF(VLOOKUP($A20,'2012 WIA-Math'!$W$14:$AG$500,3,FALSE)<10,"",VLOOKUP($A20,'2012 WIA-Math'!$W$14:$AG$500,11,FALSE)*100),"") -> 62.11 | AE20: =IFERROR(IF(VLOOKUP($A20,'WIAG5-MALL'!$A$14:$CZ$500,3,FALSE)<10,"",VLOOKUP($A20,'WIAG5-MALL'!$A$14:$CZ$500,11,FALSE)*100),"") -> 64.1 | AF20: 2 | AG20: 5 | AH20: =IFERROR(IF(VLOOKUP(TEXT($A20,"0000"),'2012 Sci Retrofitted'!$A$3:$G$267,3,FALSE)<10,"",VLOOKUP(TEXT($A20,"0000"),'2012 Sci Retrofitted'!$A$3:$G$267,5,FALSE)),"") -> 45.73170732 | AI20: =IFERROR(IF(VLOOKUP($A20,'2012 WIA-Sci'!$A$6:$G$500,3,FALSE)<10,"",VLOOKUP($A20,'2012 WIA-Sci'!$A$6:$G$500,7,FALSE)),"") -> 53 | AJ20: =IFERROR(IF(VLOOKUP($A20,'WIAG5-SALL'!$A$14:$CZ$500,3,FALSE)<10,"",VLOOKUP($A20,'WIAG5-SALL'!$A$14:$CZ$500,11,FALSE)*100),"") -> 67.95 | AK20: 15 | AL20: =VLOOKUP(TEXT($A20,"0000"),#REF!,2,FALSE) ->  | AM20: =VLOOKUP(TEXT($A20,"0000"),#REF!,2,FALSE) -> 
A21: 2191 | B21: SPANISH LAKE ELEMENTARY | C21: 3 | D21: =IFERROR(IF(VLOOKUP($A21,'R-2012'!$A$6:$O$500,3,FALSE)<10,"",VLOOKUP($A21,'R-2012'!$A$6:$O$500,10,FALSE)),"") -> 64 | E21: =IFERROR(IF(VLOOKUP($A21,'2012 WIA-Read'!$A$14:$K$500,3,FALSE)<10,"",VLOOKUP($A21,'2012 WIA-Read'!$A$14:$K$500,11,FALSE)*100),"") -> 60.27 | F21: =IFERROR(IF(VLOOKUP($A21,'WIAG3-RALL'!$A$14:$CZ$500,3,FALSE)<10,"",VLOOKUP($A21,'WIAG3-RALL'!$A$14:$CZ$500,11,FALSE)*100),"") -> 63.85 | G21: 4 | H21: 4 | I21: =IFERROR(IF(VLOOKUP($A21,'R-2012'!$P$6:$AD$500,3,FALSE)<10,"",VLOOKUP($A21,'R-2012'!$P$6:$AD$500,10,FALSE)),"") -> 62 | J21: =IFERROR(IF(VLOOKUP($A21,'2012 WIA-Read'!$L$14:$V$500,3,FALSE)<10,"",VLOOKUP($A21,'2012 WIA-Read'!$L$14:$V$500,11,FALSE)*100),"") -> 70.69 | K21: =IFERROR(IF(VLOOKUP($A21,'WIAG4-RALL'!$A$14:$CZ$500,3,FALSE)<10,"",VLOOKUP($A21,'WIAG4-RALL'!$A$14:$CZ$500,11,FALSE)*100),"") -> 78.07 | L21: 7 | M21: 5 | N21: =IFERROR(IF(VLOOKUP($A21,'R-2012'!$AE$6:$AS$500,3,FALSE)<10,"",VLOOKUP($A21,'R-2012'!$AE$6:$AS$500,10,FALSE)),"") -> 65 | O21: =IFERROR(IF(VLOOKUP($A21,'2012 WIA-Read'!$W$14:$AG$500,3,FALSE)<10,"",VLOOKUP($A21,'2012 WIA-Read'!$W$14:$AG$500,11,FALSE)*100),"") -> 58.19 | P21: =IFERROR(IF(VLOOKUP($A21,'WIAG5-RALL'!$A$14:$CZ$500,3,FALSE)<10,"",VLOOKUP($A21,'WIAG5-RALL'!$A$14:$CZ$500,11,FALSE)*100),"") -> 67 | Q21: 9 | R21: 3 | S21: =IFERROR(IF(VLOOKUP($A21,'M-2012'!$A$6:$N$500,3,FALSE)<10,"",VLOOKUP($A21,'M-2012'!$A$6:$N$500,10,FALSE)),"") -> 71 | T21: =IFERROR(IF(VLOOKUP($A21,'2012 WIA-Math'!$A$14:$K$500,3,FALSE)<10,"",VLOOKUP($A21,'2012 WIA-Math'!$A$14:$K$500,11,FALSE)*100),"") -> 72.85 | U21: =IFERROR(IF(VLOOKUP($A21,'WIAG3-MALL'!$A$14:$CZ$500,3,FALSE)<10,"",VLOOKUP($A21,'WIAG3-MALL'!$A$14:$CZ$500,11,FALSE)*100),"") -> 78.67 | V21: 6 | W21: 4 | X21: =IFERROR(IF(VLOOKUP($A21,'M-2012'!$O$6:$AB$500,3,FALSE)<10,"",VLOOKUP($A21,'M-2012'!$O$6:$AB$500,10,FALSE)),"") -> 81 | Y21: =IFERROR(IF(VLOOKUP($A21,'2012 WIA-Math'!$L$14:$V$500,3,FALSE)<10,"",VLOOKUP($A21,'2012 WIA-Math'!$L$14:$V$500,11,FALSE)*100),"") -> 81.31 | Z21: =IFERROR(IF(VLOOKUP($A21,'WIAG4-MALL'!$A$14:$CZ$500,3,FALSE)<10,"",VLOOKUP($A21,'WIAG4-MALL'!$A$14:$CZ$500,11,FALSE)*100),"") -> 90.3 | AA21: 9 | AB21: 5 | AC21: =IFERROR(IF(VLOOKUP($A21,'M-2012'!$AC$6:$AP$500,3,FALSE)<10,"",VLOOKUP($A21,'M-2012'!$AC$6:$AP$500,10,FALSE)),"") -> 67 | AD21: =IFERROR(IF(VLOOKUP($A21,'2012 WIA-Math'!$W$14:$AG$500,3,FALSE)<10,"",VLOOKUP($A21,'2012 WIA-Math'!$W$14:$AG$500,11,FALSE)*100),"") -> 71.93 | AE21: =IFERROR(IF(VLOOKUP($A21,'WIAG5-MALL'!$A$14:$CZ$500,3,FALSE)<10,"",VLOOKUP($A21,'WIAG5-MALL'!$A$14:$CZ$500,11,FALSE)*100),"") -> 75.76 | AF21: 4 | AG21: 5 | AH21: =IFERROR(IF(VLOOKUP(TEXT($A21,"0000"),'2012 Sci Retrofitted'!$A$3:$G$267,3,FALSE)<10,"",VLOOKUP(TEXT($A21,"0000"),'2012 Sci Retrofitted'!$A$3:$G$267,5,FALSE)),"") -> 59.10652921 | AI21: =IFERROR(IF(VLOOKUP($A21,'2012 WIA-Sci'!$A$6:$G$500,3,FALSE)<10,"",VLOOKUP($A21,'2012 WIA-Sci'!$A$6:$G$500,7,FALSE)),"") -> 61 | AJ21: =IFERROR(IF(VLOOKUP($A21,'WIAG5-SALL'!$A$14:$CZ$500,3,FALSE)<10,"",VLOOKUP($A21,'WIAG5-SALL'!$A$14:$CZ$500,11,FALSE)*100),"") -> 65.1 | AK21: 4 | AL21: =VLOOKUP(TEXT($A21,"0000"),#REF!,2,FALSE) ->  | AM21: =VLOOKUP(TEXT($A21,"0000"),#REF!,2,FALSE) -> 
A22: 2281 | B22: GREYNOLDS PARK ELEMENTARY | C22: 3 | D22: =IFERROR(IF(VLOOKUP($A22,'R-2012'!$A$6:$O$500,3,FALSE)<10,"",VLOOKUP($A22,'R-2012'!$A$6:$O$500,10,FALSE)),"") -> 41 | E22: =IFERROR(IF(VLOOKUP($A22,'2012 WIA-Read'!$A$14:$K$500,3,FALSE)<10,"",VLOOKUP($A22,'2012 WIA-Read'!$A$14:$K$500,11,FALSE)*100),"") -> 41.22 | F22: =IFERROR(IF(VLOOKUP($A22,'WIAG3-RALL'!$A$14:$CZ$500,3,FALSE)<10,"",VLOOKUP($A22,'WIAG3-RALL'!$A$14:$CZ$500,11,FALSE)*100),"") -> 44.62 | G22: 4 | H22: 4 | I22: =IFERROR(IF(VLOOKUP($A22,'R-2012'!$P$6:$AD$500,3,FALSE)<10,"",VLOOKUP($A22,'R-2012'!$P$6:$AD$500,10,FALSE)),"") -> 45 | J22: =IFERROR(IF(VLOOKUP($A22,'2012 WIA-Read'!$L$14:$V$500,3,FALSE)<10,"",VLOOKUP($A22,'2012 WIA-Read'!$L$14:$V$500,11,FALSE)*100),"") -> 41.84 | K22: =IFERROR(IF(VLOOKUP($A22,'WIAG4-RALL'!$A$14:$CZ$500,3,FALSE)<10,"",VLOOKUP($A22,'WIAG4-RALL'!$A$14:$CZ$500,11,FALSE)*100),"") -> 61.17 | L22: 19 | M22: 5 | N22: =IFERROR(IF(VLOOKUP($A22,'R-2012'!$AE$6:$AS$500,3,FALSE)<10,"",VLOOKUP($A22,'R-2012'!$AE$6:$AS$500,10,FALSE)),"") -> 60 | O22: =IFERROR(IF(VLOOKUP($A22,'2012 WIA-Read'!$W$14:$AG$500,3,FALSE)<10,"",VLOOKUP($A22,'2012 WIA-Read'!$W$14:$AG$500,11,FALSE)*100),"") -> 50.46 | P22: =IFERROR(IF(VLOOKUP($A22,'WIAG5-RALL'!$A$14:$CZ$500,3,FALSE)<10,"",VLOOKUP($A22,'WIAG5-RALL'!$A$14:$CZ$500,11,FALSE)*100),"") -> 50 | Q22: 0 | R22: 3 | S22: =IFERROR(IF(VLOOKUP($A22,'M-2012'!$A$6:$N$500,3,FALSE)<10,"",VLOOKUP($A22,'M-2012'!$A$6:$N$500,10,FALSE)),"") -> 49 | T22: =IFERROR(IF(VLOOKUP($A22,'2012 WIA-Math'!$A$14:$K$500,3,FALSE)<10,"",VLOOKUP($A22,'2012 WIA-Math'!$A$14:$K$500,11,FALSE)*100),"") -> 50.75 | U22: =IFERROR(IF(VLOOKUP($A22,'WIAG3-MALL'!$A$14:$CZ$500,3,FALSE)<10,"",VLOOKUP($A22,'WIAG3-MALL'!$A$14:$CZ$500,11,FALSE)*100),"") -> 50.78 | V22: 0 | W22: 4 | X22: =IFERROR(IF(VLOOKUP($A22,'M-2012'!$O$6:$AB$500,3,FALSE)<10,"",VLOOKUP($A22,'M-2012'!$O$6:$AB$500,10,FALSE)),"") -> 50 | Y22: =IFERROR(IF(VLOOKUP($A22,'2012 WIA-Math'!$L$14:$V$500,3,FALSE)<10,"",VLOOKUP($A22,'2012 WIA-Math'!$L$14:$V$500,11,FALSE)*100),"") -> 36 | Z22: =IFERROR(IF(VLOOKUP($A22,'WIAG4-MALL'!$A$14:$CZ$500,3,FALSE)<10,"",VLOOKUP($A22,'WIAG4-MALL'!$A$14:$CZ$500,11,FALSE)*100),"") -> 48.54 | AA22: 13 | AB22: 5 | AC22: =IFERROR(IF(VLOOKUP($A22,'M-2012'!$AC$6:$AP$500,3,FALSE)<10,"",VLOOKUP($A22,'M-2012'!$AC$6:$AP$500,10,FALSE)),"") -> 51 | AD22: =IFERROR(IF(VLOOKUP($A22,'2012 WIA-Math'!$W$14:$AG$500,3,FALSE)<10,"",VLOOKUP($A22,'2012 WIA-Math'!$W$14:$AG$500,11,FALSE)*100),"") -> 45.45 | AE22: =IFERROR(IF(VLOOKUP($A22,'WIAG5-MALL'!$A$14:$CZ$500,3,FALSE)<10,"",VLOOKUP($A22,'WIAG5-MALL'!$A$14:$CZ$500,11,FALSE)*100),"") -> 34.82 | AF22: -10 | AG22: 5 | AH22: =IFERROR(IF(VLOOKUP(TEXT($A22,"0000"),'2012 Sci Retrofitted'!$A$3:$G$267,3,FALSE)<10,"",VLOOKUP(TEXT($A22,"0000"),'2012 Sci Retrofitted'!$A$3:$G$267,5,FALSE)),"") -> 40.51724138 | AI22: =IFERROR(IF(VLOOKUP($A22,'2012 WIA-Sci'!$A$6:$G$500,3,FALSE)<10,"",VLOOKUP($A22,'2012 WIA-Sci'!$A$6:$G$500,7,FALSE)),"") -> 40 | AJ22: =IFERROR(IF(VLOOKUP($A22,'WIAG5-SALL'!$A$14:$CZ$500,3,FALSE)<10,"",VLOOKUP($A22,'WIAG5-SALL'!$A$14:$CZ$500,11,FALSE)*100),"") -> 27.93 | AK22: -12 | AL22: =VLOOKUP(TEXT($A22,"0000"),#REF!,2,FALSE) ->  | AM22: =VLOOKUP(TEXT($A22,"0000"),#REF!,2,FALSE) -> 
A23: 2371 | B23: WEST HIALEAH GARDENS ELEM | C23: 3 | D23: =IFERROR(IF(VLOOKUP($A23,'R-2012'!$A$6:$O$500,3,FALSE)<10,"",VLOOKUP($A23,'R-2012'!$A$6:$O$500,10,FALSE)),"") -> 53 | E23: =IFERROR(IF(VLOOKUP($A23,'2012 WIA-Read'!$A$14:$K$500,3,FALSE)<10,"",VLOOKUP($A23,'2012 WIA-Read'!$A$14:$K$500,11,FALSE)*100),"") -> 51.17 | F23: =IFERROR(IF(VLOOKUP($A23,'WIAG3-RALL'!$A$14:$CZ$500,3,FALSE)<10,"",VLOOKUP($A23,'WIAG3-RALL'!$A$14:$CZ$500,11,FALSE)*100),"") -> 56.22 | G23: 5 | H23: 4 | I23: =IFERROR(IF(VLOOKUP($A23,'R-2012'!$P$6:$AD$500,3,FALSE)<10,"",VLOOKUP($A23,'R-2012'!$P$6:$AD$500,10,FALSE)),"") -> 64 | J23: =IFERROR(IF(VLOOKUP($A23,'2012 WIA-Read'!$L$14:$V$500,3,FALSE)<10,"",VLOOKUP($A23,'2012 WIA-Read'!$L$14:$V$500,11,FALSE)*100),"") -> 54.65 | K23: =IFERROR(IF(VLOOKUP($A23,'WIAG4-RALL'!$A$14:$CZ$500,3,FALSE)<10,"",VLOOKUP($A23,'WIAG4-RALL'!$A$14:$CZ$500,11,FALSE)*100),"") -> 64.73 | L23: 10 | M23: 5 | N23: =IFERROR(IF(VLOOKUP($A23,'R-2012'!$AE$6:$AS$500,3,FALSE)<10,"",VLOOKUP($A23,'R-2012'!$AE$6:$AS$500,10,FALSE)),"") -> 64 | O23: =IFERROR(IF(VLOOKUP($A23,'2012 WIA-Read'!$W$14:$AG$500,3,FALSE)<10,"",VLOOKUP($A23,'2012 WIA-Read'!$W$14:$AG$500,11,FALSE)*100),"") -> 58.85 | P23: =IFERROR(IF(VLOOKUP($A23,'WIAG5-RALL'!$A$14:$CZ$500,3,FALSE)<10,"",VLOOKUP($A23,'WIAG5-RALL'!$A$14:$CZ$500,11,FALSE)*100),"") -> 63.95 | Q23: 5 | R23: 3 | S23: =IFERROR(IF(VLOOKUP($A23,'M-2012'!$A$6:$N$500,3,FALSE)<10,"",VLOOKUP($A23,'M-2012'!$A$6:$N$500,10,FALSE)),"") -> 68 | T23: =IFERROR(IF(VLOOKUP($A23,'2012 WIA-Math'!$A$14:$K$500,3,FALSE)<10,"",VLOOKUP($A23,'2012 WIA-Math'!$A$14:$K$500,11,FALSE)*100),"") -> 67.46 | U23: =IFERROR(IF(VLOOKUP($A23,'WIAG3-MALL'!$A$14:$CZ$500,3,FALSE)<10,"",VLOOKUP($A23,'WIAG3-MALL'!$A$14:$CZ$500,11,FALSE)*100),"") -> 83.08 | V23: 16 | W23: 4 | X23: =IFERROR(IF(VLOOKUP($A23,'M-2012'!$O$6:$AB$500,3,FALSE)<10,"",VLOOKUP($A23,'M-2012'!$O$6:$AB$500,10,FALSE)),"") -> 66 | Y23: =IFERROR(IF(VLOOKUP($A23,'2012 WIA-Math'!$L$14:$V$500,3,FALSE)<10,"",VLOOKUP($A23,'2012 WIA-Math'!$L$14:$V$500,11,FALSE)*100),"") -> 63.01 | Z23: =IFERROR(IF(VLOOKUP($A23,'WIAG4-MALL'!$A$14:$CZ$500,3,FALSE)<10,"",VLOOKUP($A23,'WIAG4-MALL'!$A$14:$CZ$500,11,FALSE)*100),"") -> 76.59 | AA23: 14 | AB23: 5 | AC23: =IFERROR(IF(VLOOKUP($A23,'M-2012'!$AC$6:$AP$500,3,FALSE)<10,"",VLOOKUP($A23,'M-2012'!$AC$6:$AP$500,10,FALSE)),"") -> 73 | AD23: =IFERROR(IF(VLOOKUP($A23,'2012 WIA-Math'!$W$14:$AG$500,3,FALSE)<10,"",VLOOKUP($A23,'2012 WIA-Math'!$W$14:$AG$500,11,FALSE)*100),"") -> 55.24 | AE23: =IFERROR(IF(VLOOKUP($A23,'WIAG5-MALL'!$A$14:$CZ$500,3,FALSE)<10,"",VLOOKUP($A23,'WIAG5-MALL'!$A$14:$CZ$500,11,FALSE)*100),"") -> 49.43 | AF23: -6 | AG23: 5 | AH23: =IFERROR(IF(VLOOKUP(TEXT($A23,"0000"),'2012 Sci Retrofitted'!$A$3:$G$267,3,FALSE)<10,"",VLOOKUP(TEXT($A23,"0000"),'2012 Sci Retrofitted'!$A$3:$G$267,5,FALSE)),"") -> 46.44549763 | AI23: =IFERROR(IF(VLOOKUP($A23,'2012 WIA-Sci'!$A$6:$G$500,3,FALSE)<10,"",VLOOKUP($A23,'2012 WIA-Sci'!$A$6:$G$500,7,FALSE)),"") -> 47 | AJ23: =IFERROR(IF(VLOOKUP($A23,'WIAG5-SALL'!$A$14:$CZ$500,3,FALSE)<10,"",VLOOKUP($A23,'WIAG5-SALL'!$A$14:$CZ$500,11,FALSE)*100),"") -> 46.82 | AK23: 0 | AL23: =VLOOKUP(TEXT($A23,"0000"),#REF!,2,FALSE) ->  | AM23: =VLOOKUP(TEXT($A23,"0000"),#REF!,2,FALSE) -> 
A24: 2401 | B24: HIBISCUS ELEMENTARY | C24: 3 | D24: =IFERROR(IF(VLOOKUP($A24,'R-2012'!$A$6:$O$500,3,FALSE)<10,"",VLOOKUP($A24,'R-2012'!$A$6:$O$500,10,FALSE)),"") -> 40 | E24: =IFERROR(IF(VLOOKUP($A24,'2012 WIA-Read'!$A$14:$K$500,3,FALSE)<10,"",VLOOKUP($A24,'2012 WIA-Read'!$A$14:$K$500,11,FALSE)*100),"") -> 45.12 | F24: =IFERROR(IF(VLOOKUP($A24,'WIAG3-RALL'!$A$14:$CZ$500,3,FALSE)<10,"",VLOOKUP($A24,'WIAG3-RALL'!$A$14:$CZ$500,11,FALSE)*100),"") -> 58.14 | G24: 13 | H24: 4 | I24: =IFERROR(IF(VLOOKUP($A24,'R-2012'!$P$6:$AD$500,3,FALSE)<10,"",VLOOKUP($A24,'R-2012'!$P$6:$AD$500,10,FALSE)),"") -> 55 | J24: =IFERROR(IF(VLOOKUP($A24,'2012 WIA-Read'!$L$14:$V$500,3,FALSE)<10,"",VLOOKUP($A24,'2012 WIA-Read'!$L$14:$V$500,11,FALSE)*100),"") -> 51.33 | K24: =IFERROR(IF(VLOOKUP($A24,'WIAG4-RALL'!$A$14:$CZ$500,3,FALSE)<10,"",VLOOKUP($A24,'WIAG4-RALL'!$A$14:$CZ$500,11,FALSE)*100),"") -> 56.94 | L24: 6 | M24: 5 | N24: =IFERROR(IF(VLOOKUP($A24,'R-2012'!$AE$6:$AS$500,3,FALSE)<10,"",VLOOKUP($A24,'R-2012'!$AE$6:$AS$500,10,FALSE)),"") -> 47 | O24: =IFERROR(IF(VLOOKUP($A24,'2012 WIA-Read'!$W$14:$AG$500,3,FALSE)<10,"",VLOOKUP($A24,'2012 WIA-Read'!$W$14:$AG$500,11,FALSE)*100),"") -> 48.96 | P24: =IFERROR(IF(VLOOKUP($A24,'WIAG5-RALL'!$A$14:$CZ$500,3,FALSE)<10,"",VLOOKUP($A24,'WIAG5-RALL'!$A$14:$CZ$500,11,FALSE)*100),"") -> 53.57 | Q24: 5 | R24: 3 | S24: =IFERROR(IF(VLOOKUP($A24,'M-2012'!$A$6:$N$500,3,FALSE)<10,"",VLOOKUP($A24,'M-2012'!$A$6:$N$500,10,FALSE)),"") -> 50 | T24: =IFERROR(IF(VLOOKUP($A24,'2012 WIA-Math'!$A$14:$K$500,3,FALSE)<10,"",VLOOKUP($A24,'2012 WIA-Math'!$A$14:$K$500,11,FALSE)*100),"") -> 59.26 | U24: =IFERROR(IF(VLOOKUP($A24,'WIAG3-MALL'!$A$14:$CZ$500,3,FALSE)<10,"",VLOOKUP($A24,'WIAG3-MALL'!$A$14:$CZ$500,11,FALSE)*100),"") -> 82.56 | V24: 24 | W24: 4 | X24: =IFERROR(IF(VLOOKUP($A24,'M-2012'!$O$6:$AB$500,3,FALSE)<10,"",VLOOKUP($A24,'M-2012'!$O$6:$AB$500,10,FALSE)),"") -> 58 | Y24: =IFERROR(IF(VLOOKUP($A24,'2012 WIA-Math'!$L$14:$V$500,3,FALSE)<10,"",VLOOKUP($A24,'2012 WIA-Math'!$L$14:$V$500,11,FALSE)*100),"") -> 59.29 | Z24: =IFERROR(IF(VLOOKUP($A24,'WIAG4-MALL'!$A$14:$CZ$500,3,FALSE)<10,"",VLOOKUP($A24,'WIAG4-MALL'!$A$14:$CZ$500,11,FALSE)*100),"") -> 76.39 | AA24: 17 | AB24: 5 | AC24: =IFERROR(IF(VLOOKUP($A24,'M-2012'!$AC$6:$AP$500,3,FALSE)<10,"",VLOOKUP($A24,'M-2012'!$AC$6:$AP$500,10,FALSE)),"") -> 39 | AD24: =IFERROR(IF(VLOOKUP($A24,'2012 WIA-Math'!$W$14:$AG$500,3,FALSE)<10,"",VLOOKUP($A24,'2012 WIA-Math'!$W$14:$AG$500,11,FALSE)*100),"") -> 30.77 | AE24: =IFERROR(IF(VLOOKUP($A24,'WIAG5-MALL'!$A$14:$CZ$500,3,FALSE)<10,"",VLOOKUP($A24,'WIAG5-MALL'!$A$14:$CZ$500,11,FALSE)*100),"") -> 39.64 | AF24: 9 | AG24: 5 | AH24: =IFERROR(IF(VLOOKUP(TEXT($A24,"0000"),'2012 Sci Retrofitted'!$A$3:$G$267,3,FALSE)<10,"",VLOOKUP(TEXT($A24,"0000"),'2012 Sci Retrofitted'!$A$3:$G$267,5,FALSE)),"") -> 33.68421053 | AI24: =IFERROR(IF(VLOOKUP($A24,'2012 WIA-Sci'!$A$6:$G$500,3,FALSE)<10,"",VLOOKUP($A24,'2012 WIA-Sci'!$A$6:$G$500,7,FALSE)),"") -> 42 | AJ24: =IFERROR(IF(VLOOKUP($A24,'WIAG5-SALL'!$A$14:$CZ$500,3,FALSE)<10,"",VLOOKUP($A24,'WIAG5-SALL'!$A$14:$CZ$500,11,FALSE)*100),"") -> 34.91 | AK24: -7 | AL24: =VLOOKUP(TEXT($A24,"0000"),#REF!,2,FALSE) ->  | AM24: =VLOOKUP(TEXT($A24,"0000"),#REF!,2,FALSE) -> 
A25: 2441 | B25: VIRGINIA A BOONE/HIGHLAND OAKS | C25: 3 | D25: =IFERROR(IF(VLOOKUP($A25,'R-2012'!$A$6:$O$500,3,FALSE)<10,"",VLOOKUP($A25,'R-2012'!$A$6:$O$500,10,FALSE)),"") -> 78 | E25: =IFERROR(IF(VLOOKUP($A25,'2012 WIA-Read'!$A$14:$K$500,3,FALSE)<10,"",VLOOKUP($A25,'2012 WIA-Read'!$A$14:$K$500,11,FALSE)*100),"") -> 76.03 | F25: =IFERROR(IF(VLOOKUP($A25,'WIAG3-RALL'!$A$14:$CZ$500,3,FALSE)<10,"",VLOOKUP($A25,'WIAG3-RALL'!$A$14:$CZ$500,11,FALSE)*100),"") -> 67.88 | G25: -8 | H25: 4 | I25: =IFERROR(IF(VLOOKUP($A25,'R-2012'!$P$6:$AD$500,3,FALSE)<10,"",VLOOKUP($A25,'R-2012'!$P$6:$AD$500,10,FALSE)),"") -> 80 | J25: =IFERROR(IF(VLOOKUP($A25,'2012 WIA-Read'!$L$14:$V$500,3,FALSE)<10,"",VLOOKUP($A25,'2012 WIA-Read'!$L$14:$V$500,11,FALSE)*100),"") -> 78.31 | K25: =IFERROR(IF(VLOOKUP($A25,'WIAG4-RALL'!$A$14:$CZ$500,3,FALSE)<10,"",VLOOKUP($A25,'WIAG4-RALL'!$A$14:$CZ$500,11,FALSE)*100),"") -> 80.33 | L25: 2 | M25: 5 | N25: =IFERROR(IF(VLOOKUP($A25,'R-2012'!$AE$6:$AS$500,3,FALSE)<10,"",VLOOKUP($A25,'R-2012'!$AE$6:$AS$500,10,FALSE)),"") -> 79 | O25: =IFERROR(IF(VLOOKUP($A25,'2012 WIA-Read'!$W$14:$AG$500,3,FALSE)<10,"",VLOOKUP($A25,'2012 WIA-Read'!$W$14:$AG$500,11,FALSE)*100),"") -> 72.31 | P25: =IFERROR(IF(VLOOKUP($A25,'WIAG5-RALL'!$A$14:$CZ$500,3,FALSE)<10,"",VLOOKUP($A25,'WIAG5-RALL'!$A$14:$CZ$500,11,FALSE)*100),"") -> 61.25 | Q25: -11 | R25: 3 | S25: =IFERROR(IF(VLOOKUP($A25,'M-2012'!$A$6:$N$500,3,FALSE)<10,"",VLOOKUP($A25,'M-2012'!$A$6:$N$500,10,FALSE)),"") -> 76 | T25: =IFERROR(IF(VLOOKUP($A25,'2012 WIA-Math'!$A$14:$K$500,3,FALSE)<10,"",VLOOKUP($A25,'2012 WIA-Math'!$A$14:$K$500,11,FALSE)*100),"") -> 72.13 | U25: =IFERROR(IF(VLOOKUP($A25,'WIAG3-MALL'!$A$14:$CZ$500,3,FALSE)<10,"",VLOOKUP($A25,'WIAG3-MALL'!$A$14:$CZ$500,11,FALSE)*100),"") -> 65.25 | V25: -7 | W25: 4 | X25: =IFERROR(IF(VLOOKUP($A25,'M-2012'!$O$6:$AB$500,3,FALSE)<10,"",VLOOKUP($A25,'M-2012'!$O$6:$AB$500,10,FALSE)),"") -> 68 | Y25: =IFERROR(IF(VLOOKUP($A25,'2012 WIA-Math'!$L$14:$V$500,3,FALSE)<10,"",VLOOKUP($A25,'2012 WIA-Math'!$L$14:$V$500,11,FALSE)*100),"") -> 46.99 | Z25: =IFERROR(IF(VLOOKUP($A25,'WIAG4-MALL'!$A$14:$CZ$500,3,FALSE)<10,"",VLOOKUP($A25,'WIAG4-MALL'!$A$14:$CZ$500,11,FALSE)*100),"") -> 66.39 | AA25: 19 | AB25: 5 | AC25: =IFERROR(IF(VLOOKUP($A25,'M-2012'!$AC$6:$AP$500,3,FALSE)<10,"",VLOOKUP($A25,'M-2012'!$AC$6:$AP$500,10,FALSE)),"") -> 71 | AD25: =IFERROR(IF(VLOOKUP($A25,'2012 WIA-Math'!$W$14:$AG$500,3,FALSE)<10,"",VLOOKUP($A25,'2012 WIA-Math'!$W$14:$AG$500,11,FALSE)*100),"") -> 58.59 | AE25: =IFERROR(IF(VLOOKUP($A25,'WIAG5-MALL'!$A$14:$CZ$500,3,FALSE)<10,"",VLOOKUP($A25,'WIAG5-MALL'!$A$14:$CZ$500,11,FALSE)*100),"") -> 50.59 | AF25: -8 | AG25: 5 | AH25: =IFERROR(IF(VLOOKUP(TEXT($A25,"0000"),'2012 Sci Retrofitted'!$A$3:$G$267,3,FALSE)<10,"",VLOOKUP(TEXT($A25,"0000"),'2012 Sci Retrofitted'!$A$3:$G$267,5,FALSE)),"") -> 63.90977444 | AI25: =IFERROR(IF(VLOOKUP($A25,'2012 WIA-Sci'!$A$6:$G$500,3,FALSE)<10,"",VLOOKUP($A25,'2012 WIA-Sci'!$A$6:$G$500,7,FALSE)),"") -> 55 | AJ25: =IFERROR(IF(VLOOKUP($A25,'WIAG5-SALL'!$A$14:$CZ$500,3,FALSE)<10,"",VLOOKUP($A25,'WIAG5-SALL'!$A$14:$CZ$500,11,FALSE)*100),"") -> 61.18 | AK25: 6 | AL25: =VLOOKUP(TEXT($A25,"0000"),#REF!,2,FALSE) ->  | AM25: =VLOOKUP(TEXT($A25,"0000"),#REF!,2,FALSE) -> 
A26: 2581 | B26: MADIE IVES ELEMENTARY | C26: 3 | D26: =IFERROR(IF(VLOOKUP($A26,'R-2012'!$A$6:$O$500,3,FALSE)<10,"",VLOOKUP($A26,'R-2012'!$A$6:$O$500,10,FALSE)),"") -> 55 | E26: =IFERROR(IF(VLOOKUP($A26,'2012 WIA-Read'!$A$14:$K$500,3,FALSE)<10,"",VLOOKUP($A26,'2012 WIA-Read'!$A$14:$K$500,11,FALSE)*100),"") -> 51.88 | F26: =IFERROR(IF(VLOOKUP($A26,'WIAG3-RALL'!$A$14:$CZ$500,3,FALSE)<10,"",VLOOKUP($A26,'WIAG3-RALL'!$A$14:$CZ$500,11,FALSE)*100),"") -> 50.89 | G26: -1 | H26: 4 | I26: =IFERROR(IF(VLOOKUP($A26,'R-2012'!$P$6:$AD$500,3,FALSE)<10,"",VLOOKUP($A26,'R-2012'!$P$6:$AD$500,10,FALSE)),"") -> 61 | J26: =IFERROR(IF(VLOOKUP($A26,'2012 WIA-Read'!$L$14:$V$500,3,FALSE)<10,"",VLOOKUP($A26,'2012 WIA-Read'!$L$14:$V$500,11,FALSE)*100),"") -> 58.41 | K26: =IFERROR(IF(VLOOKUP($A26,'WIAG4-RALL'!$A$14:$CZ$500,3,FALSE)<10,"",VLOOKUP($A26,'WIAG4-RALL'!$A$14:$CZ$500,11,FALSE)*100),"") -> 60 | L26: 2 | M26: 5 | N26: =IFERROR(IF(VLOOKUP($A26,'R-2012'!$AE$6:$AS$500,3,FALSE)<10,"",VLOOKUP($A26,'R-2012'!$AE$6:$AS$500,10,FALSE)),"") -> 72 | O26: =IFERROR(IF(VLOOKUP($A26,'2012 WIA-Read'!$W$14:$AG$500,3,FALSE)<10,"",VLOOKUP($A26,'2012 WIA-Read'!$W$14:$AG$500,11,FALSE)*100),"") -> 57.34 | P26: =IFERROR(IF(VLOOKUP($A26,'WIAG5-RALL'!$A$14:$CZ$500,3,FALSE)<10,"",VLOOKUP($A26,'WIAG5-RALL'!$A$14:$CZ$500,11,FALSE)*100),"") -> 62.07 | Q26: 5 | R26: 3 | S26: =IFERROR(IF(VLOOKUP($A26,'M-2012'!$A$6:$N$500,3,FALSE)<10,"",VLOOKUP($A26,'M-2012'!$A$6:$N$500,10,FALSE)),"") -> 47 | T26: =IFERROR(IF(VLOOKUP($A26,'2012 WIA-Math'!$A$14:$K$500,3,FALSE)<10,"",VLOOKUP($A26,'2012 WIA-Math'!$A$14:$K$500,11,FALSE)*100),"") -> 47.66 | U26: =IFERROR(IF(VLOOKUP($A26,'WIAG3-MALL'!$A$14:$CZ$500,3,FALSE)<10,"",VLOOKUP($A26,'WIAG3-MALL'!$A$14:$CZ$500,11,FALSE)*100),"") -> 63.96 | V26: 16 | W26: 4 | X26: =IFERROR(IF(VLOOKUP($A26,'M-2012'!$O$6:$AB$500,3,FALSE)<10,"",VLOOKUP($A26,'M-2012'!$O$6:$AB$500,10,FALSE)),"") -> 44 | Y26: =IFERROR(IF(VLOOKUP($A26,'2012 WIA-Math'!$L$14:$V$500,3,FALSE)<10,"",VLOOKUP($A26,'2012 WIA-Math'!$L$14:$V$500,11,FALSE)*100),"") -> 45.54 | Z26: =IFERROR(IF(VLOOKUP($A26,'WIAG4-MALL'!$A$14:$CZ$500,3,FALSE)<10,"",VLOOKUP($A26,'WIAG4-MALL'!$A$14:$CZ$500,11,FALSE)*100),"") -> 52 | AA26: 6 | AB26: 5 | AC26: =IFERROR(IF(VLOOKUP($A26,'M-2012'!$AC$6:$AP$500,3,FALSE)<10,"",VLOOKUP($A26,'M-2012'!$AC$6:$AP$500,10,FALSE)),"") -> 55 | AD26: =IFERROR(IF(VLOOKUP($A26,'2012 WIA-Math'!$W$14:$AG$500,3,FALSE)<10,"",VLOOKUP($A26,'2012 WIA-Math'!$W$14:$AG$500,11,FALSE)*100),"") -> 50.7 | AE26: =IFERROR(IF(VLOOKUP($A26,'WIAG5-MALL'!$A$14:$CZ$500,3,FALSE)<10,"",VLOOKUP($A26,'WIAG5-MALL'!$A$14:$CZ$500,11,FALSE)*100),"") -> 33.9 | AF26: -17 | AG26: 5 | AH26: =IFERROR(IF(VLOOKUP(TEXT($A26,"0000"),'2012 Sci Retrofitted'!$A$3:$G$267,3,FALSE)<10,"",VLOOKUP(TEXT($A26,"0000"),'2012 Sci Retrofitted'!$A$3:$G$267,5,FALSE)),"") -> 56.16438356 | AI26: =IFERROR(IF(VLOOKUP($A26,'2012 WIA-Sci'!$A$6:$G$500,3,FALSE)<10,"",VLOOKUP($A26,'2012 WIA-Sci'!$A$6:$G$500,7,FALSE)),"") -> 58 | AJ26: =IFERROR(IF(VLOOKUP($A26,'WIAG5-SALL'!$A$14:$CZ$500,3,FALSE)<10,"",VLOOKUP($A26,'WIAG5-SALL'!$A$14:$CZ$500,11,FALSE)*100),"") -> 49.57 | AK26: -8 | AL26: =VLOOKUP(TEXT($A26,"0000"),#REF!,2,FALSE) ->  | AM26: =VLOOKUP(TEXT($A26,"0000"),#REF!,2,FALSE) -> 
A27: 2801 | B27: LAKE STEVENS ELEMENTARY | C27: 3 | D27: =IFERROR(IF(VLOOKUP($A27,'R-2012'!$A$6:$O$500,3,FALSE)<10,"",VLOOKUP($A27,'R-2012'!$A$6:$O$500,10,FALSE)),"") -> 38 | E27: =IFERROR(IF(VLOOKUP($A27,'2012 WIA-Read'!$A$14:$K$500,3,FALSE)<10,"",VLOOKUP($A27,'2012 WIA-Read'!$A$14:$K$500,11,FALSE)*100),"") -> 37.5 | F27: =IFERROR(IF(VLOOKUP($A27,'WIAG3-RALL'!$A$14:$CZ$500,3,FALSE)<10,"",VLOOKUP($A27,'WIAG3-RALL'!$A$14:$CZ$500,11,FALSE)*100),"") -> 53.85 | G27: 16 | H27: 4 | I27: =IFERROR(IF(VLOOKUP($A27,'R-2012'!$P$6:$AD$500,3,FALSE)<10,"",VLOOKUP($A27,'R-2012'!$P$6:$AD$500,10,FALSE)),"") -> 40 | J27: =IFERROR(IF(VLOOKUP($A27,'2012 WIA-Read'!$L$14:$V$500,3,FALSE)<10,"",VLOOKUP($A27,'2012 WIA-Read'!$L$14:$V$500,11,FALSE)*100),"") -> 52.38 | K27: =IFERROR(IF(VLOOKUP($A27,'WIAG4-RALL'!$A$14:$CZ$500,3,FALSE)<10,"",VLOOKUP($A27,'WIAG4-RALL'!$A$14:$CZ$500,11,FALSE)*100),"") -> 47.17 | L27: -5 | M27: 5 | N27: =IFERROR(IF(VLOOKUP($A27,'R-2012'!$AE$6:$AS$500,3,FALSE)<10,"",VLOOKUP($A27,'R-2012'!$AE$6:$AS$500,10,FALSE)),"") -> 57 | O27: =IFERROR(IF(VLOOKUP($A27,'2012 WIA-Read'!$W$14:$AG$500,3,FALSE)<10,"",VLOOKUP($A27,'2012 WIA-Read'!$W$14:$AG$500,11,FALSE)*100),"") -> 40.43 | P27: =IFERROR(IF(VLOOKUP($A27,'WIAG5-RALL'!$A$14:$CZ$500,3,FALSE)<10,"",VLOOKUP($A27,'WIAG5-RALL'!$A$14:$CZ$500,11,FALSE)*100),"") -> 50 | Q27: 10 | R27: 3 | S27: =IFERROR(IF(VLOOKUP($A27,'M-2012'!$A$6:$N$500,3,FALSE)<10,"",VLOOKUP($A27,'M-2012'!$A$6:$N$500,10,FALSE)),"") -> 52 | T27: =IFERROR(IF(VLOOKUP($A27,'2012 WIA-Math'!$A$14:$K$500,3,FALSE)<10,"",VLOOKUP($A27,'2012 WIA-Math'!$A$14:$K$500,11,FALSE)*100),"") -> 56.36 | U27: =IFERROR(IF(VLOOKUP($A27,'WIAG3-MALL'!$A$14:$CZ$500,3,FALSE)<10,"",VLOOKUP($A27,'WIAG3-MALL'!$A$14:$CZ$500,11,FALSE)*100),"") -> 84.62 | V27: 29 | W27: 4 | X27: =IFERROR(IF(VLOOKUP($A27,'M-2012'!$O$6:$AB$500,3,FALSE)<10,"",VLOOKUP($A27,'M-2012'!$O$6:$AB$500,10,FALSE)),"") -> 47 | Y27: =IFERROR(IF(VLOOKUP($A27,'2012 WIA-Math'!$L$14:$V$500,3,FALSE)<10,"",VLOOKUP($A27,'2012 WIA-Math'!$L$14:$V$500,11,FALSE)*100),"") -> 33.33 | Z27: =IFERROR(IF(VLOOKUP($A27,'WIAG4-MALL'!$A$14:$CZ$500,3,FALSE)<10,"",VLOOKUP($A27,'WIAG4-MALL'!$A$14:$CZ$500,11,FALSE)*100),"") -> 53.85 | AA27: 21 | AB27: 5 | AC27: =IFERROR(IF(VLOOKUP($A27,'M-2012'!$AC$6:$AP$500,3,FALSE)<10,"",VLOOKUP($A27,'M-2012'!$AC$6:$AP$500,10,FALSE)),"") -> 36 | AD27: =IFERROR(IF(VLOOKUP($A27,'2012 WIA-Math'!$W$14:$AG$500,3,FALSE)<10,"",VLOOKUP($A27,'2012 WIA-Math'!$W$14:$AG$500,11,FALSE)*100),"") -> 31.91 | AE27: =IFERROR(IF(VLOOKUP($A27,'WIAG5-MALL'!$A$14:$CZ$500,3,FALSE)<10,"",VLOOKUP($A27,'WIAG5-MALL'!$A$14:$CZ$500,11,FALSE)*100),"") -> 26.19 | AF27: -6 | AG27: 5 | AH27: =IFERROR(IF(VLOOKUP(TEXT($A27,"0000"),'2012 Sci Retrofitted'!$A$3:$G$267,3,FALSE)<10,"",VLOOKUP(TEXT($A27,"0000"),'2012 Sci Retrofitted'!$A$3:$G$267,5,FALSE)),"") -> 31.91489362 | AI27: =IFERROR(IF(VLOOKUP($A27,'2012 WIA-Sci'!$A$6:$G$500,3,FALSE)<10,"",VLOOKUP($A27,'2012 WIA-Sci'!$A$6:$G$500,7,FALSE)),"") -> 33 | AJ27: =IFERROR(IF(VLOOKUP($A27,'WIAG5-SALL'!$A$14:$CZ$500,3,FALSE)<10,"",VLOOKUP($A27,'WIAG5-SALL'!$A$14:$CZ$500,11,FALSE)*100),"") -> 47.62 | AK27: 15 | AL27: =VLOOKUP(TEXT($A27,"0000"),#REF!,2,FALSE) ->  | AM27: =VLOOKUP(TEXT($A27,"0000"),#REF!,2,FALSE) -> 
A28: 2911 | B28: LINDA LENTIN K-8 CENTER | C28: 3 | D28: =IFERROR(IF(VLOOKUP($A28,'R-2012'!$A$6:$O$500,3,FALSE)<10,"",VLOOKUP($A28,'R-2012'!$A$6:$O$500,10,FALSE)),"") -> 40 | E28: =IFERROR(IF(VLOOKUP($A28,'2012 WIA-Read'!$A$14:$K$500,3,FALSE)<10,"",VLOOKUP($A28,'2012 WIA-Read'!$A$14:$K$500,11,FALSE)*100),"") -> 28.72 | F28: =IFERROR(IF(VLOOKUP($A28,'WIAG3-RALL'!$A$14:$CZ$500,3,FALSE)<10,"",VLOOKUP($A28,'WIAG3-RALL'!$A$14:$CZ$500,11,FALSE)*100),"") -> 35.71 | G28: 7 | H28: 4 | I28: =IFERROR(IF(VLOOKUP($A28,'R-2012'!$P$6:$AD$500,3,FALSE)<10,"",VLOOKUP($A28,'R-2012'!$P$6:$AD$500,10,FALSE)),"") -> 40 | J28: =IFERROR(IF(VLOOKUP($A28,'2012 WIA-Read'!$L$14:$V$500,3,FALSE)<10,"",VLOOKUP($A28,'2012 WIA-Read'!$L$14:$V$500,11,FALSE)*100),"") -> 37.61 | K28: =IFERROR(IF(VLOOKUP($A28,'WIAG4-RALL'!$A$14:$CZ$500,3,FALSE)<10,"",VLOOKUP($A28,'WIAG4-RALL'!$A$14:$CZ$500,11,FALSE)*100),"") -> 50 | L28: 12 | M28: 5 | N28: =IFERROR(IF(VLOOKUP($A28,'R-2012'!$AE$6:$AS$500,3,FALSE)<10,"",VLOOKUP($A28,'R-2012'!$AE$6:$AS$500,10,FALSE)),"") -> 34 | O28: =IFERROR(IF(VLOOKUP($A28,'2012 WIA-Read'!$W$14:$AG$500,3,FALSE)<10,"",VLOOKUP($A28,'2012 WIA-Read'!$W$14:$AG$500,11,FALSE)*100),"") -> 27.52 | P28: =IFERROR(IF(VLOOKUP($A28,'WIAG5-RALL'!$A$14:$CZ$500,3,FALSE)<10,"",VLOOKUP($A28,'WIAG5-RALL'!$A$14:$CZ$500,11,FALSE)*100),"") -> 30.3 | Q28: 2 | R28: 3 | S28: =IFERROR(IF(VLOOKUP($A28,'M-2012'!$A$6:$N$500,3,FALSE)<10,"",VLOOKUP($A28,'M-2012'!$A$6:$N$500,10,FALSE)),"") -> 42 | T28: =IFERROR(IF(VLOOKUP($A28,'2012 WIA-Math'!$A$14:$K$500,3,FALSE)<10,"",VLOOKUP($A28,'2012 WIA-Math'!$A$14:$K$500,11,FALSE)*100),"") -> 27.96 | U28: =IFERROR(IF(VLOOKUP($A28,'WIAG3-MALL'!$A$14:$CZ$500,3,FALSE)<10,"",VLOOKUP($A28,'WIAG3-MALL'!$A$14:$CZ$500,11,FALSE)*100),"") -> 55.67 | V28: 28 | W28: 4 | X28: =IFERROR(IF(VLOOKUP($A28,'M-2012'!$O$6:$AB$500,3,FALSE)<10,"",VLOOKUP($A28,'M-2012'!$O$6:$AB$500,10,FALSE)),"") -> 48 | Y28: =IFERROR(IF(VLOOKUP($A28,'2012 WIA-Math'!$L$14:$V$500,3,FALSE)<10,"",VLOOKUP($A28,'2012 WIA-Math'!$L$14:$V$500,11,FALSE)*100),"") -> 43.22 | Z28: =IFERROR(IF(VLOOKUP($A28,'WIAG4-MALL'!$A$14:$CZ$500,3,FALSE)<10,"",VLOOKUP($A28,'WIAG4-MALL'!$A$14:$CZ$500,11,FALSE)*100),"") -> 55 | AA28: 12 | AB28: 5 | AC28: =IFERROR(IF(VLOOKUP($A28,'M-2012'!$AC$6:$AP$500,3,FALSE)<10,"",VLOOKUP($A28,'M-2012'!$AC$6:$AP$500,10,FALSE)),"") -> 39 | AD28: =IFERROR(IF(VLOOKUP($A28,'2012 WIA-Math'!$W$14:$AG$500,3,FALSE)<10,"",VLOOKUP($A28,'2012 WIA-Math'!$W$14:$AG$500,11,FALSE)*100),"") -> 27.52 | AE28: =IFERROR(IF(VLOOKUP($A28,'WIAG5-MALL'!$A$14:$CZ$500,3,FALSE)<10,"",VLOOKUP($A28,'WIAG5-MALL'!$A$14:$CZ$500,11,FALSE)*100),"") -> 34.35 | AF28: 6 | AG28: 5 | AH28: =IFERROR(IF(VLOOKUP(TEXT($A28,"0000"),'2012 Sci Retrofitted'!$A$3:$G$267,3,FALSE)<10,"",VLOOKUP(TEXT($A28,"0000"),'2012 Sci Retrofitted'!$A$3:$G$267,5,FALSE)),"") -> 22.52252252 | AI28: =IFERROR(IF(VLOOKUP($A28,'2012 WIA-Sci'!$A$6:$G$500,3,FALSE)<10,"",VLOOKUP($A28,'2012 WIA-Sci'!$A$6:$G$500,7,FALSE)),"") -> 19 | AJ28: =IFERROR(IF(VLOOKUP($A28,'WIAG5-SALL'!$A$14:$CZ$500,3,FALSE)<10,"",VLOOKUP($A28,'WIAG5-SALL'!$A$14:$CZ$500,11,FALSE)*100),"") -> 27.07 | AK28: 8 | AL28: =VLOOKUP(TEXT($A28,"0000"),#REF!,2,FALSE) ->  | AM28: =VLOOKUP(TEXT($A28,"0000"),#REF!,2,FALSE) -> 
A29: 3141 | B29: MEADOWLANE ELEMENTARY | C29: 3 | D29: =IFERROR(IF(VLOOKUP($A29,'R-2012'!$A$6:$O$500,3,FALSE)<10,"",VLOOKUP($A29,'R-2012'!$A$6:$O$500,10,FALSE)),"") -> 54 | E29: =IFERROR(IF(VLOOKUP($A29,'2012 WIA-Read'!$A$14:$K$500,3,FALSE)<10,"",VLOOKUP($A29,'2012 WIA-Read'!$A$14:$K$500,11,FALSE)*100),"") -> 50.51 | F29: =IFERROR(IF(VLOOKUP($A29,'WIAG3-RALL'!$A$14:$CZ$500,3,FALSE)<10,"",VLOOKUP($A29,'WIAG3-RALL'!$A$14:$CZ$500,11,FALSE)*100),"") -> 58.06 | G29: 7 | H29: 4 | I29: =IFERROR(IF(VLOOKUP($A29,'R-2012'!$P$6:$AD$500,3,FALSE)<10,"",VLOOKUP($A29,'R-2012'!$P$6:$AD$500,10,FALSE)),"") -> 42 | J29: =IFERROR(IF(VLOOKUP($A29,'2012 WIA-Read'!$L$14:$V$500,3,FALSE)<10,"",VLOOKUP($A29,'2012 WIA-Read'!$L$14:$V$500,11,FALSE)*100),"") -> 51.18 | K29: =IFERROR(IF(VLOOKUP($A29,'WIAG4-RALL'!$A$14:$CZ$500,3,FALSE)<10,"",VLOOKUP($A29,'WIAG4-RALL'!$A$14:$CZ$500,11,FALSE)*100),"") -> 62.5 | L29: 12 | M29: 5 | N29: =IFERROR(IF(VLOOKUP($A29,'R-2012'!$AE$6:$AS$500,3,FALSE)<10,"",VLOOKUP($A29,'R-2012'!$AE$6:$AS$500,10,FALSE)),"") -> 60 | O29: =IFERROR(IF(VLOOKUP($A29,'2012 WIA-Read'!$W$14:$AG$500,3,FALSE)<10,"",VLOOKUP($A29,'2012 WIA-Read'!$W$14:$AG$500,11,FALSE)*100),"") -> 70.35 | P29: =IFERROR(IF(VLOOKUP($A29,'WIAG5-RALL'!$A$14:$CZ$500,3,FALSE)<10,"",VLOOKUP($A29,'WIAG5-RALL'!$A$14:$CZ$500,11,FALSE)*100),"") -> 59.72 | Q29: -10 | R29: 3 | S29: =IFERROR(IF(VLOOKUP($A29,'M-2012'!$A$6:$N$500,3,FALSE)<10,"",VLOOKUP($A29,'M-2012'!$A$6:$N$500,10,FALSE)),"") -> 64 | T29: =IFERROR(IF(VLOOKUP($A29,'2012 WIA-Math'!$A$14:$K$500,3,FALSE)<10,"",VLOOKUP($A29,'2012 WIA-Math'!$A$14:$K$500,11,FALSE)*100),"") -> 59.39 | U29: =IFERROR(IF(VLOOKUP($A29,'WIAG3-MALL'!$A$14:$CZ$500,3,FALSE)<10,"",VLOOKUP($A29,'WIAG3-MALL'!$A$14:$CZ$500,11,FALSE)*100),"") -> 80.54 | V29: 22 | W29: 4 | X29: =IFERROR(IF(VLOOKUP($A29,'M-2012'!$O$6:$AB$500,3,FALSE)<10,"",VLOOKUP($A29,'M-2012'!$O$6:$AB$500,10,FALSE)),"") -> 51 | Y29: =IFERROR(IF(VLOOKUP($A29,'2012 WIA-Math'!$L$14:$V$500,3,FALSE)<10,"",VLOOKUP($A29,'2012 WIA-Math'!$L$14:$V$500,11,FALSE)*100),"") -> 46.19 | Z29: =IFERROR(IF(VLOOKUP($A29,'WIAG4-MALL'!$A$14:$CZ$500,3,FALSE)<10,"",VLOOKUP($A29,'WIAG4-MALL'!$A$14:$CZ$500,11,FALSE)*100),"") -> 67.36 | AA29: 21 | AB29: 5 | AC29: =IFERROR(IF(VLOOKUP($A29,'M-2012'!$AC$6:$AP$500,3,FALSE)<10,"",VLOOKUP($A29,'M-2012'!$AC$6:$AP$500,10,FALSE)),"") -> 69 | AD29: =IFERROR(IF(VLOOKUP($A29,'2012 WIA-Math'!$W$14:$AG$500,3,FALSE)<10,"",VLOOKUP($A29,'2012 WIA-Math'!$W$14:$AG$500,11,FALSE)*100),"") -> 71 | AE29: =IFERROR(IF(VLOOKUP($A29,'WIAG5-MALL'!$A$14:$CZ$500,3,FALSE)<10,"",VLOOKUP($A29,'WIAG5-MALL'!$A$14:$CZ$500,11,FALSE)*100),"") -> 68.2 | AF29: -3 | AG29: 5 | AH29: =IFERROR(IF(VLOOKUP(TEXT($A29,"0000"),'2012 Sci Retrofitted'!$A$3:$G$267,3,FALSE)<10,"",VLOOKUP(TEXT($A29,"0000"),'2012 Sci Retrofitted'!$A$3:$G$267,5,FALSE)),"") -> 59.61538462 | AI29: =IFERROR(IF(VLOOKUP($A29,'2012 WIA-Sci'!$A$6:$G$500,3,FALSE)<10,"",VLOOKUP($A29,'2012 WIA-Sci'!$A$6:$G$500,7,FALSE)),"") -> 75 | AJ29: =IFERROR(IF(VLOOKUP($A29,'WIAG5-SALL'!$A$14:$CZ$500,3,FALSE)<10,"",VLOOKUP($A29,'WIAG5-SALL'!$A$14:$CZ$500,11,FALSE)*100),"") -> 70.97 | AK29: -4 | AL29: =VLOOKUP(TEXT($A29,"0000"),#REF!,2,FALSE) ->  | AM29: =VLOOKUP(TEXT($A29,"0000"),#REF!,2,FALSE) -> 
A30: 3241 | B30: MIAMI GARDENS ELEMENTARY | C30: 3 | D30: =IFERROR(IF(VLOOKUP($A30,'R-2012'!$A$6:$O$500,3,FALSE)<10,"",VLOOKUP($A30,'R-2012'!$A$6:$O$500,10,FALSE)),"") -> 47 | E30: =IFERROR(IF(VLOOKUP($A30,'2012 WIA-Read'!$A$14:$K$500,3,FALSE)<10,"",VLOOKUP($A30,'2012 WIA-Read'!$A$14:$K$500,11,FALSE)*100),"") -> 33.33 | F30: =IFERROR(IF(VLOOKUP($A30,'WIAG3-RALL'!$A$14:$CZ$500,3,FALSE)<10,"",VLOOKUP($A30,'WIAG3-RALL'!$A$14:$CZ$500,11,FALSE)*100),"") -> 50 | G30: 17 | H30: 4 | I30: =IFERROR(IF(VLOOKUP($A30,'R-2012'!$P$6:$AD$500,3,FALSE)<10,"",VLOOKUP($A30,'R-2012'!$P$6:$AD$500,10,FALSE)),"") -> 35 | J30: =IFERROR(IF(VLOOKUP($A30,'2012 WIA-Read'!$L$14:$V$500,3,FALSE)<10,"",VLOOKUP($A30,'2012 WIA-Read'!$L$14:$V$500,11,FALSE)*100),"") -> 40.54 | K30: =IFERROR(IF(VLOOKUP($A30,'WIAG4-RALL'!$A$14:$CZ$500,3,FALSE)<10,"",VLOOKUP($A30,'WIAG4-RALL'!$A$14:$CZ$500,11,FALSE)*100),"") -> 48.08 | L30: 7 | M30: 5 | N30: =IFERROR(IF(VLOOKUP($A30,'R-2012'!$AE$6:$AS$500,3,FALSE)<10,"",VLOOKUP($A30,'R-2012'!$AE$6:$AS$500,10,FALSE)),"") -> 58 | O30: =IFERROR(IF(VLOOKUP($A30,'2012 WIA-Read'!$W$14:$AG$500,3,FALSE)<10,"",VLOOKUP($A30,'2012 WIA-Read'!$W$14:$AG$500,11,FALSE)*100),"") -> 57.89 | P30: =IFERROR(IF(VLOOKUP($A30,'WIAG5-RALL'!$A$14:$CZ$500,3,FALSE)<10,"",VLOOKUP($A30,'WIAG5-RALL'!$A$14:$CZ$500,11,FALSE)*100),"") -> 34.21 | Q30: -24 | R30: 3 | S30: =IFERROR(IF(VLOOKUP($A30,'M-2012'!$A$6:$N$500,3,FALSE)<10,"",VLOOKUP($A30,'M-2012'!$A$6:$N$500,10,FALSE)),"") -> 53 | T30: =IFERROR(IF(VLOOKUP($A30,'2012 WIA-Math'!$A$14:$K$500,3,FALSE)<10,"",VLOOKUP($A30,'2012 WIA-Math'!$A$14:$K$500,11,FALSE)*100),"") -> 60 | U30: =IFERROR(IF(VLOOKUP($A30,'WIAG3-MALL'!$A$14:$CZ$500,3,FALSE)<10,"",VLOOKUP($A30,'WIAG3-MALL'!$A$14:$CZ$500,11,FALSE)*100),"") -> 40.54 | V30: -19 | W30: 4 | X30: =IFERROR(IF(VLOOKUP($A30,'M-2012'!$O$6:$AB$500,3,FALSE)<10,"",VLOOKUP($A30,'M-2012'!$O$6:$AB$500,10,FALSE)),"") -> 54 | Y30: =IFERROR(IF(VLOOKUP($A30,'2012 WIA-Math'!$L$14:$V$500,3,FALSE)<10,"",VLOOKUP($A30,'2012 WIA-Math'!$L$14:$V$500,11,FALSE)*100),"") -> 21.62 | Z30: =IFERROR(IF(VLOOKUP($A30,'WIAG4-MALL'!$A$14:$CZ$500,3,FALSE)<10,"",VLOOKUP($A30,'WIAG4-MALL'!$A$14:$CZ$500,11,FALSE)*100),"") -> 41.51 | AA30: 20 | AB30: 5 | AC30: =IFERROR(IF(VLOOKUP($A30,'M-2012'!$AC$6:$AP$500,3,FALSE)<10,"",VLOOKUP($A30,'M-2012'!$AC$6:$AP$500,10,FALSE)),"") -> 64 | AD30: =IFERROR(IF(VLOOKUP($A30,'2012 WIA-Math'!$W$14:$AG$500,3,FALSE)<10,"",VLOOKUP($A30,'2012 WIA-Math'!$W$14:$AG$500,11,FALSE)*100),"") -> 42.11 | AE30: =IFERROR(IF(VLOOKUP($A30,'WIAG5-MALL'!$A$14:$CZ$500,3,FALSE)<10,"",VLOOKUP($A30,'WIAG5-MALL'!$A$14:$CZ$500,11,FALSE)*100),"") -> 34.21 | AF30: -8 | AG30: 5 | AH30: =IFERROR(IF(VLOOKUP(TEXT($A30,"0000"),'2012 Sci Retrofitted'!$A$3:$G$267,3,FALSE)<10,"",VLOOKUP(TEXT($A30,"0000"),'2012 Sci Retrofitted'!$A$3:$G$267,5,FALSE)),"") -> 32.20338983 | AI30: =IFERROR(IF(VLOOKUP($A30,'2012 WIA-Sci'!$A$6:$G$500,3,FALSE)<10,"",VLOOKUP($A30,'2012 WIA-Sci'!$A$6:$G$500,7,FALSE)),"") -> 30 | AJ30: =IFERROR(IF(VLOOKUP($A30,'WIAG5-SALL'!$A$14:$CZ$500,3,FALSE)<10,"",VLOOKUP($A30,'WIAG5-SALL'!$A$14:$CZ$500,11,FALSE)*100),"") -> 26.32 | AK30: -4 | AL30: =VLOOKUP(TEXT($A30,"0000"),#REF!,2,FALSE) ->  | AM30: =VLOOKUP(TEXT($A30,"0000"),#REF!,2,FALSE) -> 
A31: 3281 | B31: MIAMI LAKES K-8 CENTER | C31: 3 | D31: =IFERROR(IF(VLOOKUP($A31,'R-2012'!$A$6:$O$500,3,FALSE)<10,"",VLOOKUP($A31,'R-2012'!$A$6:$O$500,10,FALSE)),"") -> 71 | E31: =IFERROR(IF(VLOOKUP($A31,'2012 WIA-Read'!$A$14:$K$500,3,FALSE)<10,"",VLOOKUP($A31,'2012 WIA-Read'!$A$14:$K$500,11,FALSE)*100),"") -> 56.65 | F31: =IFERROR(IF(VLOOKUP($A31,'WIAG3-RALL'!$A$14:$CZ$500,3,FALSE)<10,"",VLOOKUP($A31,'WIAG3-RALL'!$A$14:$CZ$500,11,FALSE)*100),"") -> 52.74 | G31: -4 | H31: 4 | I31: =IFERROR(IF(VLOOKUP($A31,'R-2012'!$P$6:$AD$500,3,FALSE)<10,"",VLOOKUP($A31,'R-2012'!$P$6:$AD$500,10,FALSE)),"") -> 65 | J31: =IFERROR(IF(VLOOKUP($A31,'2012 WIA-Read'!$L$14:$V$500,3,FALSE)<10,"",VLOOKUP($A31,'2012 WIA-Read'!$L$14:$V$500,11,FALSE)*100),"") -> 61.74 | K31: =IFERROR(IF(VLOOKUP($A31,'WIAG4-RALL'!$A$14:$CZ$500,3,FALSE)<10,"",VLOOKUP($A31,'WIAG4-RALL'!$A$14:$CZ$500,11,FALSE)*100),"") -> 63.25 | L31: 1 | M31: 5 | N31: =IFERROR(IF(VLOOKUP($A31,'R-2012'!$AE$6:$AS$500,3,FALSE)<10,"",VLOOKUP($A31,'R-2012'!$AE$6:$AS$500,10,FALSE)),"") -> 72 | O31: =IFERROR(IF(VLOOKUP($A31,'2012 WIA-Read'!$W$14:$AG$500,3,FALSE)<10,"",VLOOKUP($A31,'2012 WIA-Read'!$W$14:$AG$500,11,FALSE)*100),"") -> 55.06 | P31: =IFERROR(IF(VLOOKUP($A31,'WIAG5-RALL'!$A$14:$CZ$500,3,FALSE)<10,"",VLOOKUP($A31,'WIAG5-RALL'!$A$14:$CZ$500,11,FALSE)*100),"") -> 61.18 | Q31: 6 | R31: 3 | S31: =IFERROR(IF(VLOOKUP($A31,'M-2012'!$A$6:$N$500,3,FALSE)<10,"",VLOOKUP($A31,'M-2012'!$A$6:$N$500,10,FALSE)),"") -> 75 | T31: =IFERROR(IF(VLOOKUP($A31,'2012 WIA-Math'!$A$14:$K$500,3,FALSE)<10,"",VLOOKUP($A31,'2012 WIA-Math'!$A$14:$K$500,11,FALSE)*100),"") -> 57.23 | U31: =IFERROR(IF(VLOOKUP($A31,'WIAG3-MALL'!$A$14:$CZ$500,3,FALSE)<10,"",VLOOKUP($A31,'WIAG3-MALL'!$A$14:$CZ$500,11,FALSE)*100),"") -> 57.53 | V31: 1 | W31: 4 | X31: =IFERROR(IF(VLOOKUP($A31,'M-2012'!$O$6:$AB$500,3,FALSE)<10,"",VLOOKUP($A31,'M-2012'!$O$6:$AB$500,10,FALSE)),"") -> 51 | Y31: =IFERROR(IF(VLOOKUP($A31,'2012 WIA-Math'!$L$14:$V$500,3,FALSE)<10,"",VLOOKUP($A31,'2012 WIA-Math'!$L$14:$V$500,11,FALSE)*100),"") -> 51.01 | Z31: =IFERROR(IF(VLOOKUP($A31,'WIAG4-MALL'!$A$14:$CZ$500,3,FALSE)<10,"",VLOOKUP($A31,'WIAG4-MALL'!$A$14:$CZ$500,11,FALSE)*100),"") -> 53.61 | AA31: 3 | AB31: 5 | AC31: =IFERROR(IF(VLOOKUP($A31,'M-2012'!$AC$6:$AP$500,3,FALSE)<10,"",VLOOKUP($A31,'M-2012'!$AC$6:$AP$500,10,FALSE)),"") -> 61 | AD31: =IFERROR(IF(VLOOKUP($A31,'2012 WIA-Math'!$W$14:$AG$500,3,FALSE)<10,"",VLOOKUP($A31,'2012 WIA-Math'!$W$14:$AG$500,11,FALSE)*100),"") -> 59.22 | AE31: =IFERROR(IF(VLOOKUP($A31,'WIAG5-MALL'!$A$14:$CZ$500,3,FALSE)<10,"",VLOOKUP($A31,'WIAG5-MALL'!$A$14:$CZ$500,11,FALSE)*100),"") -> 58.82 | AF31: 0 | AG31: 5 | AH31: =IFERROR(IF(VLOOKUP(TEXT($A31,"0000"),'2012 Sci Retrofitted'!$A$3:$G$267,3,FALSE)<10,"",VLOOKUP(TEXT($A31,"0000"),'2012 Sci Retrofitted'!$A$3:$G$267,5,FALSE)),"") -> 46.44808743 | AI31: =IFERROR(IF(VLOOKUP($A31,'2012 WIA-Sci'!$A$6:$G$500,3,FALSE)<10,"",VLOOKUP($A31,'2012 WIA-Sci'!$A$6:$G$500,7,FALSE)),"") -> 42 | AJ31: =IFERROR(IF(VLOOKUP($A31,'WIAG5-SALL'!$A$14:$CZ$500,3,FALSE)<10,"",VLOOKUP($A31,'WIAG5-SALL'!$A$14:$CZ$500,11,FALSE)*100),"") -> 51.01 | AK31: 9 | AL31: =VLOOKUP(TEXT($A31,"0000"),#REF!,2,FALSE) ->  | AM31: =VLOOKUP(TEXT($A31,"0000"),#REF!,2,FALSE) -> 
A32: 3421 | B32: M.A. MILAM K-8 CENTER | C32: 3 | D32: =IFERROR(IF(VLOOKUP($A32,'R-2012'!$A$6:$O$500,3,FALSE)<10,"",VLOOKUP($A32,'R-2012'!$A$6:$O$500,10,FALSE)),"") -> 47 | E32: =IFERROR(IF(VLOOKUP($A32,'2012 WIA-Read'!$A$14:$K$500,3,FALSE)<10,"",VLOOKUP($A32,'2012 WIA-Read'!$A$14:$K$500,11,FALSE)*100),"") -> 42.31 | F32: =IFERROR(IF(VLOOKUP($A32,'WIAG3-RALL'!$A$14:$CZ$500,3,FALSE)<10,"",VLOOKUP($A32,'WIAG3-RALL'!$A$14:$CZ$500,11,FALSE)*100),"") -> 35.79 | G32: -6 | H32: 4 | I32: =IFERROR(IF(VLOOKUP($A32,'R-2012'!$P$6:$AD$500,3,FALSE)<10,"",VLOOKUP($A32,'R-2012'!$P$6:$AD$500,10,FALSE)),"") -> 56 | J32: =IFERROR(IF(VLOOKUP($A32,'2012 WIA-Read'!$L$14:$V$500,3,FALSE)<10,"",VLOOKUP($A32,'2012 WIA-Read'!$L$14:$V$500,11,FALSE)*100),"") -> 46.09 | K32: =IFERROR(IF(VLOOKUP($A32,'WIAG4-RALL'!$A$14:$CZ$500,3,FALSE)<10,"",VLOOKUP($A32,'WIAG4-RALL'!$A$14:$CZ$500,11,FALSE)*100),"") -> 50.98 | L32: 5 | M32: 5 | N32: =IFERROR(IF(VLOOKUP($A32,'R-2012'!$AE$6:$AS$500,3,FALSE)<10,"",VLOOKUP($A32,'R-2012'!$AE$6:$AS$500,10,FALSE)),"") -> 57 | O32: =IFERROR(IF(VLOOKUP($A32,'2012 WIA-Read'!$W$14:$AG$500,3,FALSE)<10,"",VLOOKUP($A32,'2012 WIA-Read'!$W$14:$AG$500,11,FALSE)*100),"") -> 45.76 | P32: =IFERROR(IF(VLOOKUP($A32,'WIAG5-RALL'!$A$14:$CZ$500,3,FALSE)<10,"",VLOOKUP($A32,'WIAG5-RALL'!$A$14:$CZ$500,11,FALSE)*100),"") -> 53.64 | Q32: 8 | R32: 3 | S32: =IFERROR(IF(VLOOKUP($A32,'M-2012'!$A$6:$N$500,3,FALSE)<10,"",VLOOKUP($A32,'M-2012'!$A$6:$N$500,10,FALSE)),"") -> 59 | T32: =IFERROR(IF(VLOOKUP($A32,'2012 WIA-Math'!$A$14:$K$500,3,FALSE)<10,"",VLOOKUP($A32,'2012 WIA-Math'!$A$14:$K$500,11,FALSE)*100),"") -> 51.4 | U32: =IFERROR(IF(VLOOKUP($A32,'WIAG3-MALL'!$A$14:$CZ$500,3,FALSE)<10,"",VLOOKUP($A32,'WIAG3-MALL'!$A$14:$CZ$500,11,FALSE)*100),"") -> 73.96 | V32: 23 | W32: 4 | X32: =IFERROR(IF(VLOOKUP($A32,'M-2012'!$O$6:$AB$500,3,FALSE)<10,"",VLOOKUP($A32,'M-2012'!$O$6:$AB$500,10,FALSE)),"") -> 46 | Y32: =IFERROR(IF(VLOOKUP($A32,'2012 WIA-Math'!$L$14:$V$500,3,FALSE)<10,"",VLOOKUP($A32,'2012 WIA-Math'!$L$14:$V$500,11,FALSE)*100),"") -> 40.35 | Z32: =IFERROR(IF(VLOOKUP($A32,'WIAG4-MALL'!$A$14:$CZ$500,3,FALSE)<10,"",VLOOKUP($A32,'WIAG4-MALL'!$A$14:$CZ$500,11,FALSE)*100),"") -> 50 | AA32: 10 | AB32: 5 | AC32: =IFERROR(IF(VLOOKUP($A32,'M-2012'!$AC$6:$AP$500,3,FALSE)<10,"",VLOOKUP($A32,'M-2012'!$AC$6:$AP$500,10,FALSE)),"") -> 42 | AD32: =IFERROR(IF(VLOOKUP($A32,'2012 WIA-Math'!$W$14:$AG$500,3,FALSE)<10,"",VLOOKUP($A32,'2012 WIA-Math'!$W$14:$AG$500,11,FALSE)*100),"") -> 31.9 | AE32: =IFERROR(IF(VLOOKUP($A32,'WIAG5-MALL'!$A$14:$CZ$500,3,FALSE)<10,"",VLOOKUP($A32,'WIAG5-MALL'!$A$14:$CZ$500,11,FALSE)*100),"") -> 47.32 | AF32: 15 | AG32: 5 | AH32: =IFERROR(IF(VLOOKUP(TEXT($A32,"0000"),'2012 Sci Retrofitted'!$A$3:$G$267,3,FALSE)<10,"",VLOOKUP(TEXT($A32,"0000"),'2012 Sci Retrofitted'!$A$3:$G$267,5,FALSE)),"") -> 41.32231405 | AI32: =IFERROR(IF(VLOOKUP($A32,'2012 WIA-Sci'!$A$6:$G$500,3,FALSE)<10,"",VLOOKUP($A32,'2012 WIA-Sci'!$A$6:$G$500,7,FALSE)),"") -> 34 | AJ32: =IFERROR(IF(VLOOKUP($A32,'WIAG5-SALL'!$A$14:$CZ$500,3,FALSE)<10,"",VLOOKUP($A32,'WIAG5-SALL'!$A$14:$CZ$500,11,FALSE)*100),"") -> 53.4 | AK32: 19 | AL32: =VLOOKUP(TEXT($A32,"0000"),#REF!,2,FALSE) ->  | AM32: =VLOOKUP(TEXT($A32,"0000"),#REF!,2,FALSE) -> 
A33: 3581 | B33: MYRTLE GROVE K-8 CENTER | C33: 3 | D33: =IFERROR(IF(VLOOKUP($A33,'R-2012'!$A$6:$O$500,3,FALSE)<10,"",VLOOKUP($A33,'R-2012'!$A$6:$O$500,10,FALSE)),"") -> 28 | E33: =IFERROR(IF(VLOOKUP($A33,'2012 WIA-Read'!$A$14:$K$500,3,FALSE)<10,"",VLOOKUP($A33,'2012 WIA-Read'!$A$14:$K$500,11,FALSE)*100),"") -> 31.03 | F33: =IFERROR(IF(VLOOKUP($A33,'WIAG3-RALL'!$A$14:$CZ$500,3,FALSE)<10,"",VLOOKUP($A33,'WIAG3-RALL'!$A$14:$CZ$500,11,FALSE)*100),"") -> 30.77 | G33: 0 | H33: 4 | I33: =IFERROR(IF(VLOOKUP($A33,'R-2012'!$P$6:$AD$500,3,FALSE)<10,"",VLOOKUP($A33,'R-2012'!$P$6:$AD$500,10,FALSE)),"") -> 30 | J33: =IFERROR(IF(VLOOKUP($A33,'2012 WIA-Read'!$L$14:$V$500,3,FALSE)<10,"",VLOOKUP($A33,'2012 WIA-Read'!$L$14:$V$500,11,FALSE)*100),"") -> 39.53 | K33: =IFERROR(IF(VLOOKUP($A33,'WIAG4-RALL'!$A$14:$CZ$500,3,FALSE)<10,"",VLOOKUP($A33,'WIAG4-RALL'!$A$14:$CZ$500,11,FALSE)*100),"") -> 39.22 | L33: -1 | M33: 5 | N33: =IFERROR(IF(VLOOKUP($A33,'R-2012'!$AE$6:$AS$500,3,FALSE)<10,"",VLOOKUP($A33,'R-2012'!$AE$6:$AS$500,10,FALSE)),"") -> 29 | O33: =IFERROR(IF(VLOOKUP($A33,'2012 WIA-Read'!$W$14:$AG$500,3,FALSE)<10,"",VLOOKUP($A33,'2012 WIA-Read'!$W$14:$AG$500,11,FALSE)*100),"") -> 55.32 | P33: =IFERROR(IF(VLOOKUP($A33,'WIAG5-RALL'!$A$14:$CZ$500,3,FALSE)<10,"",VLOOKUP($A33,'WIAG5-RALL'!$A$14:$CZ$500,11,FALSE)*100),"") -> 52.94 | Q33: -2 | R33: 3 | S33: =IFERROR(IF(VLOOKUP($A33,'M-2012'!$A$6:$N$500,3,FALSE)<10,"",VLOOKUP($A33,'M-2012'!$A$6:$N$500,10,FALSE)),"") -> 48 | T33: =IFERROR(IF(VLOOKUP($A33,'2012 WIA-Math'!$A$14:$K$500,3,FALSE)<10,"",VLOOKUP($A33,'2012 WIA-Math'!$A$14:$K$500,11,FALSE)*100),"") -> 48.28 | U33: =IFERROR(IF(VLOOKUP($A33,'WIAG3-MALL'!$A$14:$CZ$500,3,FALSE)<10,"",VLOOKUP($A33,'WIAG3-MALL'!$A$14:$CZ$500,11,FALSE)*100),"") -> 68 | V33: 20 | W33: 4 | X33: =IFERROR(IF(VLOOKUP($A33,'M-2012'!$O$6:$AB$500,3,FALSE)<10,"",VLOOKUP($A33,'M-2012'!$O$6:$AB$500,10,FALSE)),"") -> 41 | Y33: =IFERROR(IF(VLOOKUP($A33,'2012 WIA-Math'!$L$14:$V$500,3,FALSE)<10,"",VLOOKUP($A33,'2012 WIA-Math'!$L$14:$V$500,11,FALSE)*100),"") -> 20.45 | Z33: =IFERROR(IF(VLOOKUP($A33,'WIAG4-MALL'!$A$14:$CZ$500,3,FALSE)<10,"",VLOOKUP($A33,'WIAG4-MALL'!$A$14:$CZ$500,11,FALSE)*100),"") -> 70.83 | AA33: 51 | AB33: 5 | AC33: =IFERROR(IF(VLOOKUP($A33,'M-2012'!$AC$6:$AP$500,3,FALSE)<10,"",VLOOKUP($A33,'M-2012'!$AC$6:$AP$500,10,FALSE)),"") -> 37 | AD33: =IFERROR(IF(VLOOKUP($A33,'2012 WIA-Math'!$W$14:$AG$500,3,FALSE)<10,"",VLOOKUP($A33,'2012 WIA-Math'!$W$14:$AG$500,11,FALSE)*100),"") -> 41.67 | AE33: =IFERROR(IF(VLOOKUP($A33,'WIAG5-MALL'!$A$14:$CZ$500,3,FALSE)<10,"",VLOOKUP($A33,'WIAG5-MALL'!$A$14:$CZ$500,11,FALSE)*100),"") -> 53.06 | AF33: 11 | AG33: 5 | AH33: =IFERROR(IF(VLOOKUP(TEXT($A33,"0000"),'2012 Sci Retrofitted'!$A$3:$G$267,3,FALSE)<10,"",VLOOKUP(TEXT($A33,"0000"),'2012 Sci Retrofitted'!$A$3:$G$267,5,FALSE)),"") -> 53.19148936 | AI33: =IFERROR(IF(VLOOKUP($A33,'2012 WIA-Sci'!$A$6:$G$500,3,FALSE)<10,"",VLOOKUP($A33,'2012 WIA-Sci'!$A$6:$G$500,7,FALSE)),"") -> 52 | AJ33: =IFERROR(IF(VLOOKUP($A33,'WIAG5-SALL'!$A$14:$CZ$500,3,FALSE)<10,"",VLOOKUP($A33,'WIAG5-SALL'!$A$14:$CZ$500,11,FALSE)*100),"") -> 33.33 | AK33: -19 | AL33: =VLOOKUP(TEXT($A33,"0000"),#REF!,2,FALSE) ->  | AM33: =VLOOKUP(TEXT($A33,"0000"),#REF!,2,FALSE) -> 
A34: 3661 | B34: NATURAL BRIDGE ELEMENTARY | C34: 3 | D34: =IFERROR(IF(VLOOKUP($A34,'R-2012'!$A$6:$O$500,3,FALSE)<10,"",VLOOKUP($A34,'R-2012'!$A$6:$O$500,10,FALSE)),"") -> 32 | E34: =IFERROR(IF(VLOOKUP($A34,'2012 WIA-Read'!$A$14:$K$500,3,FALSE)<10,"",VLOOKUP($A34,'2012 WIA-Read'!$A$14:$K$500,11,FALSE)*100),"") -> 35.05 | F34: =IFERROR(IF(VLOOKUP($A34,'WIAG3-RALL'!$A$14:$CZ$500,3,FALSE)<10,"",VLOOKUP($A34,'WIAG3-RALL'!$A$14:$CZ$500,11,FALSE)*100),"") -> 36.84 | G34: 2 | H34: 4 | I34: =IFERROR(IF(VLOOKUP($A34,'R-2012'!$P$6:$AD$500,3,FALSE)<10,"",VLOOKUP($A34,'R-2012'!$P$6:$AD$500,10,FALSE)),"") -> 53 | J34: =IFERROR(IF(VLOOKUP($A34,'2012 WIA-Read'!$L$14:$V$500,3,FALSE)<10,"",VLOOKUP($A34,'2012 WIA-Read'!$L$14:$V$500,11,FALSE)*100),"") -> 45.21 | K34: =IFERROR(IF(VLOOKUP($A34,'WIAG4-RALL'!$A$14:$CZ$500,3,FALSE)<10,"",VLOOKUP($A34,'WIAG4-RALL'!$A$14:$CZ$500,11,FALSE)*100),"") -> 37.21 | L34: -8 | M34: 5 | N34: =IFERROR(IF(VLOOKUP($A34,'R-2012'!$AE$6:$AS$500,3,FALSE)<10,"",VLOOKUP($A34,'R-2012'!$AE$6:$AS$500,10,FALSE)),"") -> 49 | O34: =IFERROR(IF(VLOOKUP($A34,'2012 WIA-Read'!$W$14:$AG$500,3,FALSE)<10,"",VLOOKUP($A34,'2012 WIA-Read'!$W$14:$AG$500,11,FALSE)*100),"") -> 51.09 | P34: =IFERROR(IF(VLOOKUP($A34,'WIAG5-RALL'!$A$14:$CZ$500,3,FALSE)<10,"",VLOOKUP($A34,'WIAG5-RALL'!$A$14:$CZ$500,11,FALSE)*100),"") -> 50 | Q34: -1 | R34: 3 | S34: =IFERROR(IF(VLOOKUP($A34,'M-2012'!$A$6:$N$500,3,FALSE)<10,"",VLOOKUP($A34,'M-2012'!$A$6:$N$500,10,FALSE)),"") -> 40 | T34: =IFERROR(IF(VLOOKUP($A34,'2012 WIA-Math'!$A$14:$K$500,3,FALSE)<10,"",VLOOKUP($A34,'2012 WIA-Math'!$A$14:$K$500,11,FALSE)*100),"") -> 46.39 | U34: =IFERROR(IF(VLOOKUP($A34,'WIAG3-MALL'!$A$14:$CZ$500,3,FALSE)<10,"",VLOOKUP($A34,'WIAG3-MALL'!$A$14:$CZ$500,11,FALSE)*100),"") -> 50 | V34: 4 | W34: 4 | X34: =IFERROR(IF(VLOOKUP($A34,'M-2012'!$O$6:$AB$500,3,FALSE)<10,"",VLOOKUP($A34,'M-2012'!$O$6:$AB$500,10,FALSE)),"") -> 43 | Y34: =IFERROR(IF(VLOOKUP($A34,'2012 WIA-Math'!$L$14:$V$500,3,FALSE)<10,"",VLOOKUP($A34,'2012 WIA-Math'!$L$14:$V$500,11,FALSE)*100),"") -> 31.08 | Z34: =IFERROR(IF(VLOOKUP($A34,'WIAG4-MALL'!$A$14:$CZ$500,3,FALSE)<10,"",VLOOKUP($A34,'WIAG4-MALL'!$A$14:$CZ$500,11,FALSE)*100),"") -> 40 | AA34: 9 | AB34: 5 | AC34: =IFERROR(IF(VLOOKUP($A34,'M-2012'!$AC$6:$AP$500,3,FALSE)<10,"",VLOOKUP($A34,'M-2012'!$AC$6:$AP$500,10,FALSE)),"") -> 60 | AD34: =IFERROR(IF(VLOOKUP($A34,'2012 WIA-Math'!$W$14:$AG$500,3,FALSE)<10,"",VLOOKUP($A34,'2012 WIA-Math'!$W$14:$AG$500,11,FALSE)*100),"") -> 52.81 | AE34: =IFERROR(IF(VLOOKUP($A34,'WIAG5-MALL'!$A$14:$CZ$500,3,FALSE)<10,"",VLOOKUP($A34,'WIAG5-MALL'!$A$14:$CZ$500,11,FALSE)*100),"") -> 47.89 | AF34: -5 | AG34: 5 | AH34: =IFERROR(IF(VLOOKUP(TEXT($A34,"0000"),'2012 Sci Retrofitted'!$A$3:$G$267,3,FALSE)<10,"",VLOOKUP(TEXT($A34,"0000"),'2012 Sci Retrofitted'!$A$3:$G$267,5,FALSE)),"") -> 35.86956522 | AI34: =IFERROR(IF(VLOOKUP($A34,'2012 WIA-Sci'!$A$6:$G$500,3,FALSE)<10,"",VLOOKUP($A34,'2012 WIA-Sci'!$A$6:$G$500,7,FALSE)),"") -> 34 | AJ34: =IFERROR(IF(VLOOKUP($A34,'WIAG5-SALL'!$A$14:$CZ$500,3,FALSE)<10,"",VLOOKUP($A34,'WIAG5-SALL'!$A$14:$CZ$500,11,FALSE)*100),"") -> 60.27 | AK34: 26 | AL34: =VLOOKUP(TEXT($A34,"0000"),#REF!,2,FALSE) ->  | AM34: =VLOOKUP(TEXT($A34,"0000"),#REF!,2,FALSE) -> 
A35: 3701 | B35: NORLAND ELEMENTARY | C35: 3 | D35: =IFERROR(IF(VLOOKUP($A35,'R-2012'!$A$6:$O$500,3,FALSE)<10,"",VLOOKUP($A35,'R-2012'!$A$6:$O$500,10,FALSE)),"") -> 40 | E35: =IFERROR(IF(VLOOKUP($A35,'2012 WIA-Read'!$A$14:$K$500,3,FALSE)<10,"",VLOOKUP($A35,'2012 WIA-Read'!$A$14:$K$500,11,FALSE)*100),"") -> 39.81 | F35: =IFERROR(IF(VLOOKUP($A35,'WIAG3-RALL'!$A$14:$CZ$500,3,FALSE)<10,"",VLOOKUP($A35,'WIAG3-RALL'!$A$14:$CZ$500,11,FALSE)*100),"") -> 45.56 | G35: 6 | H35: 4 | I35: =IFERROR(IF(VLOOKUP($A35,'R-2012'!$P$6:$AD$500,3,FALSE)<10,"",VLOOKUP($A35,'R-2012'!$P$6:$AD$500,10,FALSE)),"") -> 48 | J35: =IFERROR(IF(VLOOKUP($A35,'2012 WIA-Read'!$L$14:$V$500,3,FALSE)<10,"",VLOOKUP($A35,'2012 WIA-Read'!$L$14:$V$500,11,FALSE)*100),"") -> 56.12 | K35: =IFERROR(IF(VLOOKUP($A35,'WIAG4-RALL'!$A$14:$CZ$500,3,FALSE)<10,"",VLOOKUP($A35,'WIAG4-RALL'!$A$14:$CZ$500,11,FALSE)*100),"") -> 64.58 | L35: 9 | M35: 5 | N35: =IFERROR(IF(VLOOKUP($A35,'R-2012'!$AE$6:$AS$500,3,FALSE)<10,"",VLOOKUP($A35,'R-2012'!$AE$6:$AS$500,10,FALSE)),"") -> 45 | O35: =IFERROR(IF(VLOOKUP($A35,'2012 WIA-Read'!$W$14:$AG$500,3,FALSE)<10,"",VLOOKUP($A35,'2012 WIA-Read'!$W$14:$AG$500,11,FALSE)*100),"") -> 50.89 | P35: =IFERROR(IF(VLOOKUP($A35,'WIAG5-RALL'!$A$14:$CZ$500,3,FALSE)<10,"",VLOOKUP($A35,'WIAG5-RALL'!$A$14:$CZ$500,11,FALSE)*100),"") -> 47.27 | Q35: -4 | R35: 3 | S35: =IFERROR(IF(VLOOKUP($A35,'M-2012'!$A$6:$N$500,3,FALSE)<10,"",VLOOKUP($A35,'M-2012'!$A$6:$N$500,10,FALSE)),"") -> 52 | T35: =IFERROR(IF(VLOOKUP($A35,'2012 WIA-Math'!$A$14:$K$500,3,FALSE)<10,"",VLOOKUP($A35,'2012 WIA-Math'!$A$14:$K$500,11,FALSE)*100),"") -> 61.22 | U35: =IFERROR(IF(VLOOKUP($A35,'WIAG3-MALL'!$A$14:$CZ$500,3,FALSE)<10,"",VLOOKUP($A35,'WIAG3-MALL'!$A$14:$CZ$500,11,FALSE)*100),"") -> 42.05 | V35: -19 | W35: 4 | X35: =IFERROR(IF(VLOOKUP($A35,'M-2012'!$O$6:$AB$500,3,FALSE)<10,"",VLOOKUP($A35,'M-2012'!$O$6:$AB$500,10,FALSE)),"") -> 51 | Y35: =IFERROR(IF(VLOOKUP($A35,'2012 WIA-Math'!$L$14:$V$500,3,FALSE)<10,"",VLOOKUP($A35,'2012 WIA-Math'!$L$14:$V$500,11,FALSE)*100),"") -> 43.88 | Z35: =IFERROR(IF(VLOOKUP($A35,'WIAG4-MALL'!$A$14:$CZ$500,3,FALSE)<10,"",VLOOKUP($A35,'WIAG4-MALL'!$A$14:$CZ$500,11,FALSE)*100),"") -> 70.21 | AA35: 26 | AB35: 5 | AC35: =IFERROR(IF(VLOOKUP($A35,'M-2012'!$AC$6:$AP$500,3,FALSE)<10,"",VLOOKUP($A35,'M-2012'!$AC$6:$AP$500,10,FALSE)),"") -> 44 | AD35: =IFERROR(IF(VLOOKUP($A35,'2012 WIA-Math'!$W$14:$AG$500,3,FALSE)<10,"",VLOOKUP($A35,'2012 WIA-Math'!$W$14:$AG$500,11,FALSE)*100),"") -> 31.53 | AE35: =IFERROR(IF(VLOOKUP($A35,'WIAG5-MALL'!$A$14:$CZ$500,3,FALSE)<10,"",VLOOKUP($A35,'WIAG5-MALL'!$A$14:$CZ$500,11,FALSE)*100),"") -> 32.41 | AF35: 0 | AG35: 5 | AH35: =IFERROR(IF(VLOOKUP(TEXT($A35,"0000"),'2012 Sci Retrofitted'!$A$3:$G$267,3,FALSE)<10,"",VLOOKUP(TEXT($A35,"0000"),'2012 Sci Retrofitted'!$A$3:$G$267,5,FALSE)),"") -> 35.34482759 | AI35: =IFERROR(IF(VLOOKUP($A35,'2012 WIA-Sci'!$A$6:$G$500,3,FALSE)<10,"",VLOOKUP($A35,'2012 WIA-Sci'!$A$6:$G$500,7,FALSE)),"") -> 36 | AJ35: =IFERROR(IF(VLOOKUP($A35,'WIAG5-SALL'!$A$14:$CZ$500,3,FALSE)<10,"",VLOOKUP($A35,'WIAG5-SALL'!$A$14:$CZ$500,11,FALSE)*100),"") -> 43.12 | AK35: 7 | AL35: =VLOOKUP(TEXT($A35,"0000"),#REF!,2,FALSE) ->  | AM35: =VLOOKUP(TEXT($A35,"0000"),#REF!,2,FALSE) -> 
A36: 3741 | B36: NORTH BEACH ELEMENTARY | C36: 3 | D36: =IFERROR(IF(VLOOKUP($A36,'R-2012'!$A$6:$O$500,3,FALSE)<10,"",VLOOKUP($A36,'R-2012'!$A$6:$O$500,10,FALSE)),"") -> 77 | E36: =IFERROR(IF(VLOOKUP($A36,'2012 WIA-Read'!$A$14:$K$500,3,FALSE)<10,"",VLOOKUP($A36,'2012 WIA-Read'!$A$14:$K$500,11,FALSE)*100),"") -> 72.85 | F36: =IFERROR(IF(VLOOKUP($A36,'WIAG3-RALL'!$A$14:$CZ$500,3,FALSE)<10,"",VLOOKUP($A36,'WIAG3-RALL'!$A$14:$CZ$500,11,FALSE)*100),"") -> 75.58 | G36: 3 | H36: 4 | I36: =IFERROR(IF(VLOOKUP($A36,'R-2012'!$P$6:$AD$500,3,FALSE)<10,"",VLOOKUP($A36,'R-2012'!$P$6:$AD$500,10,FALSE)),"") -> 84 | J36: =IFERROR(IF(VLOOKUP($A36,'2012 WIA-Read'!$L$14:$V$500,3,FALSE)<10,"",VLOOKUP($A36,'2012 WIA-Read'!$L$14:$V$500,11,FALSE)*100),"") -> 77.48 | K36: =IFERROR(IF(VLOOKUP($A36,'WIAG4-RALL'!$A$14:$CZ$500,3,FALSE)<10,"",VLOOKUP($A36,'WIAG4-RALL'!$A$14:$CZ$500,11,FALSE)*100),"") -> 77.18 | L36: 0 | M36: 5 | N36: =IFERROR(IF(VLOOKUP($A36,'R-2012'!$AE$6:$AS$500,3,FALSE)<10,"",VLOOKUP($A36,'R-2012'!$AE$6:$AS$500,10,FALSE)),"") -> 81 | O36: =IFERROR(IF(VLOOKUP($A36,'2012 WIA-Read'!$W$14:$AG$500,3,FALSE)<10,"",VLOOKUP($A36,'2012 WIA-Read'!$W$14:$AG$500,11,FALSE)*100),"") -> 70.07 | P36: =IFERROR(IF(VLOOKUP($A36,'WIAG5-RALL'!$A$14:$CZ$500,3,FALSE)<10,"",VLOOKUP($A36,'WIAG5-RALL'!$A$14:$CZ$500,11,FALSE)*100),"") -> 88.2 | Q36: 18 | R36: 3 | S36: =IFERROR(IF(VLOOKUP($A36,'M-2012'!$A$6:$N$500,3,FALSE)<10,"",VLOOKUP($A36,'M-2012'!$A$6:$N$500,10,FALSE)),"") -> 84 | T36: =IFERROR(IF(VLOOKUP($A36,'2012 WIA-Math'!$A$14:$K$500,3,FALSE)<10,"",VLOOKUP($A36,'2012 WIA-Math'!$A$14:$K$500,11,FALSE)*100),"") -> 64.24 | U36: =IFERROR(IF(VLOOKUP($A36,'WIAG3-MALL'!$A$14:$CZ$500,3,FALSE)<10,"",VLOOKUP($A36,'WIAG3-MALL'!$A$14:$CZ$500,11,FALSE)*100),"") -> 75.44 | V36: 11 | W36: 4 | X36: =IFERROR(IF(VLOOKUP($A36,'M-2012'!$O$6:$AB$500,3,FALSE)<10,"",VLOOKUP($A36,'M-2012'!$O$6:$AB$500,10,FALSE)),"") -> 81 | Y36: =IFERROR(IF(VLOOKUP($A36,'2012 WIA-Math'!$L$14:$V$500,3,FALSE)<10,"",VLOOKUP($A36,'2012 WIA-Math'!$L$14:$V$500,11,FALSE)*100),"") -> 66.23 | Z36: =IFERROR(IF(VLOOKUP($A36,'WIAG4-MALL'!$A$14:$CZ$500,3,FALSE)<10,"",VLOOKUP($A36,'WIAG4-MALL'!$A$14:$CZ$500,11,FALSE)*100),"") -> 70.67 | AA36: 5 | AB36: 5 | AC36: =IFERROR(IF(VLOOKUP($A36,'M-2012'!$AC$6:$AP$500,3,FALSE)<10,"",VLOOKUP($A36,'M-2012'!$AC$6:$AP$500,10,FALSE)),"") -> 77 | AD36: =IFERROR(IF(VLOOKUP($A36,'2012 WIA-Math'!$W$14:$AG$500,3,FALSE)<10,"",VLOOKUP($A36,'2012 WIA-Math'!$W$14:$AG$500,11,FALSE)*100),"") -> 58.52 | AE36: =IFERROR(IF(VLOOKUP($A36,'WIAG5-MALL'!$A$14:$CZ$500,3,FALSE)<10,"",VLOOKUP($A36,'WIAG5-MALL'!$A$14:$CZ$500,11,FALSE)*100),"") -> 75.31 | AF36: 16 | AG36: 5 | AH36: =IFERROR(IF(VLOOKUP(TEXT($A36,"0000"),'2012 Sci Retrofitted'!$A$3:$G$267,3,FALSE)<10,"",VLOOKUP(TEXT($A36,"0000"),'2012 Sci Retrofitted'!$A$3:$G$267,5,FALSE)),"") -> 70.34482759 | AI36: =IFERROR(IF(VLOOKUP($A36,'2012 WIA-Sci'!$A$6:$G$500,3,FALSE)<10,"",VLOOKUP($A36,'2012 WIA-Sci'!$A$6:$G$500,7,FALSE)),"") -> 63 | AJ36: =IFERROR(IF(VLOOKUP($A36,'WIAG5-SALL'!$A$14:$CZ$500,3,FALSE)<10,"",VLOOKUP($A36,'WIAG5-SALL'!$A$14:$CZ$500,11,FALSE)*100),"") -> 81.76 | AK36: 19 | AL36: =VLOOKUP(TEXT($A36,"0000"),#REF!,2,FALSE) ->  | AM36: =VLOOKUP(TEXT($A36,"0000"),#REF!,2,FALSE) -> 
A37: 3861 | B37: NORTH GLADE ELEMENTARY | C37: 3 | D37: =IFERROR(IF(VLOOKUP($A37,'R-2012'!$A$6:$O$500,3,FALSE)<10,"",VLOOKUP($A37,'R-2012'!$A$6:$O$500,10,FALSE)),"") -> 32 | E37: =IFERROR(IF(VLOOKUP($A37,'2012 WIA-Read'!$A$14:$K$500,3,FALSE)<10,"",VLOOKUP($A37,'2012 WIA-Read'!$A$14:$K$500,11,FALSE)*100),"") -> 17.78 | F37: =IFERROR(IF(VLOOKUP($A37,'WIAG3-RALL'!$A$14:$CZ$500,3,FALSE)<10,"",VLOOKUP($A37,'WIAG3-RALL'!$A$14:$CZ$500,11,FALSE)*100),"") -> 27.94 | G37: 10 | H37: 4 | I37: =IFERROR(IF(VLOOKUP($A37,'R-2012'!$P$6:$AD$500,3,FALSE)<10,"",VLOOKUP($A37,'R-2012'!$P$6:$AD$500,10,FALSE)),"") -> 59 | J37: =IFERROR(IF(VLOOKUP($A37,'2012 WIA-Read'!$L$14:$V$500,3,FALSE)<10,"",VLOOKUP($A37,'2012 WIA-Read'!$L$14:$V$500,11,FALSE)*100),"") -> 42.55 | K37: =IFERROR(IF(VLOOKUP($A37,'WIAG4-RALL'!$A$14:$CZ$500,3,FALSE)<10,"",VLOOKUP($A37,'WIAG4-RALL'!$A$14:$CZ$500,11,FALSE)*100),"") -> 32 | L37: -11 | M37: 5 | N37: =IFERROR(IF(VLOOKUP($A37,'R-2012'!$AE$6:$AS$500,3,FALSE)<10,"",VLOOKUP($A37,'R-2012'!$AE$6:$AS$500,10,FALSE)),"") -> 42 | O37: =IFERROR(IF(VLOOKUP($A37,'2012 WIA-Read'!$W$14:$AG$500,3,FALSE)<10,"",VLOOKUP($A37,'2012 WIA-Read'!$W$14:$AG$500,11,FALSE)*100),"") -> 35.71 | P37: =IFERROR(IF(VLOOKUP($A37,'WIAG5-RALL'!$A$14:$CZ$500,3,FALSE)<10,"",VLOOKUP($A37,'WIAG5-RALL'!$A$14:$CZ$500,11,FALSE)*100),"") -> 52.27 | Q37: 16 | R37: 3 | S37: =IFERROR(IF(VLOOKUP($A37,'M-2012'!$A$6:$N$500,3,FALSE)<10,"",VLOOKUP($A37,'M-2012'!$A$6:$N$500,10,FALSE)),"") -> 26 | T37: =IFERROR(IF(VLOOKUP($A37,'2012 WIA-Math'!$A$14:$K$500,3,FALSE)<10,"",VLOOKUP($A37,'2012 WIA-Math'!$A$14:$K$500,11,FALSE)*100),"") -> 15.91 | U37: =IFERROR(IF(VLOOKUP($A37,'WIAG3-MALL'!$A$14:$CZ$500,3,FALSE)<10,"",VLOOKUP($A37,'WIAG3-MALL'!$A$14:$CZ$500,11,FALSE)*100),"") -> 40.58 | V37: 25 | W37: 4 | X37: =IFERROR(IF(VLOOKUP($A37,'M-2012'!$O$6:$AB$500,3,FALSE)<10,"",VLOOKUP($A37,'M-2012'!$O$6:$AB$500,10,FALSE)),"") -> 54 | Y37: =IFERROR(IF(VLOOKUP($A37,'2012 WIA-Math'!$L$14:$V$500,3,FALSE)<10,"",VLOOKUP($A37,'2012 WIA-Math'!$L$14:$V$500,11,FALSE)*100),"") -> 27.66 | Z37: =IFERROR(IF(VLOOKUP($A37,'WIAG4-MALL'!$A$14:$CZ$500,3,FALSE)<10,"",VLOOKUP($A37,'WIAG4-MALL'!$A$14:$CZ$500,11,FALSE)*100),"") -> 54 | AA37: 26 | AB37: 5 | AC37: =IFERROR(IF(VLOOKUP($A37,'M-2012'!$AC$6:$AP$500,3,FALSE)<10,"",VLOOKUP($A37,'M-2012'!$AC$6:$AP$500,10,FALSE)),"") -> 44 | AD37: =IFERROR(IF(VLOOKUP($A37,'2012 WIA-Math'!$W$14:$AG$500,3,FALSE)<10,"",VLOOKUP($A37,'2012 WIA-Math'!$W$14:$AG$500,11,FALSE)*100),"") -> 35.71 | AE37: =IFERROR(IF(VLOOKUP($A37,'WIAG5-MALL'!$A$14:$CZ$500,3,FALSE)<10,"",VLOOKUP($A37,'WIAG5-MALL'!$A$14:$CZ$500,11,FALSE)*100),"") -> 22.22 | AF37: -14 | AG37: 5 | AH37: =IFERROR(IF(VLOOKUP(TEXT($A37,"0000"),'2012 Sci Retrofitted'!$A$3:$G$267,3,FALSE)<10,"",VLOOKUP(TEXT($A37,"0000"),'2012 Sci Retrofitted'!$A$3:$G$267,5,FALSE)),"") -> 37.20930233 | AI37: =IFERROR(IF(VLOOKUP($A37,'2012 WIA-Sci'!$A$6:$G$500,3,FALSE)<10,"",VLOOKUP($A37,'2012 WIA-Sci'!$A$6:$G$500,7,FALSE)),"") -> 27 | AJ37: =IFERROR(IF(VLOOKUP($A37,'WIAG5-SALL'!$A$14:$CZ$500,3,FALSE)<10,"",VLOOKUP($A37,'WIAG5-SALL'!$A$14:$CZ$500,11,FALSE)*100),"") -> 36.96 | AK37: 10 | AL37: =VLOOKUP(TEXT($A37,"0000"),#REF!,2,FALSE) ->  | AM37: =VLOOKUP(TEXT($A37,"0000"),#REF!,2,FALSE) -> 
A38: 3901 | B38: NORTH HIALEAH ELEMENTARY | C38: 3 | D38: =IFERROR(IF(VLOOKUP($A38,'R-2012'!$A$6:$O$500,3,FALSE)<10,"",VLOOKUP($A38,'R-2012'!$A$6:$O$500,10,FALSE)),"") -> 42 | E38: =IFERROR(IF(VLOOKUP($A38,'2012 WIA-Read'!$A$14:$K$500,3,FALSE)<10,"",VLOOKUP($A38,'2012 WIA-Read'!$A$14:$K$500,11,FALSE)*100),"") -> 33.64 | F38: =IFERROR(IF(VLOOKUP($A38,'WIAG3-RALL'!$A$14:$CZ$500,3,FALSE)<10,"",VLOOKUP($A38,'WIAG3-RALL'!$A$14:$CZ$500,11,FALSE)*100),"") -> 37.14 | G38: 3 | H38: 4 | I38: =IFERROR(IF(VLOOKUP($A38,'R-2012'!$P$6:$AD$500,3,FALSE)<10,"",VLOOKUP($A38,'R-2012'!$P$6:$AD$500,10,FALSE)),"") -> 57 | J38: =IFERROR(IF(VLOOKUP($A38,'2012 WIA-Read'!$L$14:$V$500,3,FALSE)<10,"",VLOOKUP($A38,'2012 WIA-Read'!$L$14:$V$500,11,FALSE)*100),"") -> 51.82 | K38: =IFERROR(IF(VLOOKUP($A38,'WIAG4-RALL'!$A$14:$CZ$500,3,FALSE)<10,"",VLOOKUP($A38,'WIAG4-RALL'!$A$14:$CZ$500,11,FALSE)*100),"") -> 42.99 | L38: -9 | M38: 5 | N38: =IFERROR(IF(VLOOKUP($A38,'R-2012'!$AE$6:$AS$500,3,FALSE)<10,"",VLOOKUP($A38,'R-2012'!$AE$6:$AS$500,10,FALSE)),"") -> 53 | O38: =IFERROR(IF(VLOOKUP($A38,'2012 WIA-Read'!$W$14:$AG$500,3,FALSE)<10,"",VLOOKUP($A38,'2012 WIA-Read'!$W$14:$AG$500,11,FALSE)*100),"") -> 56.3 | P38: =IFERROR(IF(VLOOKUP($A38,'WIAG5-RALL'!$A$14:$CZ$500,3,FALSE)<10,"",VLOOKUP($A38,'WIAG5-RALL'!$A$14:$CZ$500,11,FALSE)*100),"") -> 56.19 | Q38: 0 | R38: 3 | S38: =IFERROR(IF(VLOOKUP($A38,'M-2012'!$A$6:$N$500,3,FALSE)<10,"",VLOOKUP($A38,'M-2012'!$A$6:$N$500,10,FALSE)),"") -> 53 | T38: =IFERROR(IF(VLOOKUP($A38,'2012 WIA-Math'!$A$14:$K$500,3,FALSE)<10,"",VLOOKUP($A38,'2012 WIA-Math'!$A$14:$K$500,11,FALSE)*100),"") -> 49.09 | U38: =IFERROR(IF(VLOOKUP($A38,'WIAG3-MALL'!$A$14:$CZ$500,3,FALSE)<10,"",VLOOKUP($A38,'WIAG3-MALL'!$A$14:$CZ$500,11,FALSE)*100),"") -> 58.59 | V38: 10 | W38: 4 | X38: =IFERROR(IF(VLOOKUP($A38,'M-2012'!$O$6:$AB$500,3,FALSE)<10,"",VLOOKUP($A38,'M-2012'!$O$6:$AB$500,10,FALSE)),"") -> 55 | Y38: =IFERROR(IF(VLOOKUP($A38,'2012 WIA-Math'!$L$14:$V$500,3,FALSE)<10,"",VLOOKUP($A38,'2012 WIA-Math'!$L$14:$V$500,11,FALSE)*100),"") -> 49.09 | Z38: =IFERROR(IF(VLOOKUP($A38,'WIAG4-MALL'!$A$14:$CZ$500,3,FALSE)<10,"",VLOOKUP($A38,'WIAG4-MALL'!$A$14:$CZ$500,11,FALSE)*100),"") -> 41.75 | AA38: -7 | AB38: 5 | AC38: =IFERROR(IF(VLOOKUP($A38,'M-2012'!$AC$6:$AP$500,3,FALSE)<10,"",VLOOKUP($A38,'M-2012'!$AC$6:$AP$500,10,FALSE)),"") -> 52 | AD38: =IFERROR(IF(VLOOKUP($A38,'2012 WIA-Math'!$W$14:$AG$500,3,FALSE)<10,"",VLOOKUP($A38,'2012 WIA-Math'!$W$14:$AG$500,11,FALSE)*100),"") -> 48.28 | AE38: =IFERROR(IF(VLOOKUP($A38,'WIAG5-MALL'!$A$14:$CZ$500,3,FALSE)<10,"",VLOOKUP($A38,'WIAG5-MALL'!$A$14:$CZ$500,11,FALSE)*100),"") -> 38 | AF38: -10 | AG38: 5 | AH38: =IFERROR(IF(VLOOKUP(TEXT($A38,"0000"),'2012 Sci Retrofitted'!$A$3:$G$267,3,FALSE)<10,"",VLOOKUP(TEXT($A38,"0000"),'2012 Sci Retrofitted'!$A$3:$G$267,5,FALSE)),"") -> 47.89915966 | AI38: =IFERROR(IF(VLOOKUP($A38,'2012 WIA-Sci'!$A$6:$G$500,3,FALSE)<10,"",VLOOKUP($A38,'2012 WIA-Sci'!$A$6:$G$500,7,FALSE)),"") -> 48 | AJ38: =IFERROR(IF(VLOOKUP($A38,'WIAG5-SALL'!$A$14:$CZ$500,3,FALSE)<10,"",VLOOKUP($A38,'WIAG5-SALL'!$A$14:$CZ$500,11,FALSE)*100),"") -> 64.49 | AK38: 16 | AL38: =VLOOKUP(TEXT($A38,"0000"),#REF!,2,FALSE) ->  | AM38: =VLOOKUP(TEXT($A38,"0000"),#REF!,2,FALSE) -> 
A39: 3941 | B39: NORTH MIAMI ELEMENTARY | C39: 3 | D39: =IFERROR(IF(VLOOKUP($A39,'R-2012'!$A$6:$O$500,3,FALSE)<10,"",VLOOKUP($A39,'R-2012'!$A$6:$O$500,10,FALSE)),"") -> 25 | E39: =IFERROR(IF(VLOOKUP($A39,'2012 WIA-Read'!$A$14:$K$500,3,FALSE)<10,"",VLOOKUP($A39,'2012 WIA-Read'!$A$14:$K$500,11,FALSE)*100),"") -> 25.44 | F39: =IFERROR(IF(VLOOKUP($A39,'WIAG3-RALL'!$A$14:$CZ$500,3,FALSE)<10,"",VLOOKUP($A39,'WIAG3-RALL'!$A$14:$CZ$500,11,FALSE)*100),"") -> 32.14 | G39: 7 | H39: 4 | I39: =IFERROR(IF(VLOOKUP($A39,'R-2012'!$P$6:$AD$500,3,FALSE)<10,"",VLOOKUP($A39,'R-2012'!$P$6:$AD$500,10,FALSE)),"") -> 43 | J39: =IFERROR(IF(VLOOKUP($A39,'2012 WIA-Read'!$L$14:$V$500,3,FALSE)<10,"",VLOOKUP($A39,'2012 WIA-Read'!$L$14:$V$500,11,FALSE)*100),"") -> 30.67 | K39: =IFERROR(IF(VLOOKUP($A39,'WIAG4-RALL'!$A$14:$CZ$500,3,FALSE)<10,"",VLOOKUP($A39,'WIAG4-RALL'!$A$14:$CZ$500,11,FALSE)*100),"") -> 34.41 | L39: 3 | M39: 5 | N39: =IFERROR(IF(VLOOKUP($A39,'R-2012'!$AE$6:$AS$500,3,FALSE)<10,"",VLOOKUP($A39,'R-2012'!$AE$6:$AS$500,10,FALSE)),"") -> 36 | O39: =IFERROR(IF(VLOOKUP($A39,'2012 WIA-Read'!$W$14:$AG$500,3,FALSE)<10,"",VLOOKUP($A39,'2012 WIA-Read'!$W$14:$AG$500,11,FALSE)*100),"") -> 33.7 | P39: =IFERROR(IF(VLOOKUP($A39,'WIAG5-RALL'!$A$14:$CZ$500,3,FALSE)<10,"",VLOOKUP($A39,'WIAG5-RALL'!$A$14:$CZ$500,11,FALSE)*100),"") -> 48 | Q39: 14 | R39: 3 | S39: =IFERROR(IF(VLOOKUP($A39,'M-2012'!$A$6:$N$500,3,FALSE)<10,"",VLOOKUP($A39,'M-2012'!$A$6:$N$500,10,FALSE)),"") -> 36 | T39: =IFERROR(IF(VLOOKUP($A39,'2012 WIA-Math'!$A$14:$K$500,3,FALSE)<10,"",VLOOKUP($A39,'2012 WIA-Math'!$A$14:$K$500,11,FALSE)*100),"") -> 40.71 | U39: =IFERROR(IF(VLOOKUP($A39,'WIAG3-MALL'!$A$14:$CZ$500,3,FALSE)<10,"",VLOOKUP($A39,'WIAG3-MALL'!$A$14:$CZ$500,11,FALSE)*100),"") -> 57.83 | V39: 17 | W39: 4 | X39: =IFERROR(IF(VLOOKUP($A39,'M-2012'!$O$6:$AB$500,3,FALSE)<10,"",VLOOKUP($A39,'M-2012'!$O$6:$AB$500,10,FALSE)),"") -> 47 | Y39: =IFERROR(IF(VLOOKUP($A39,'2012 WIA-Math'!$L$14:$V$500,3,FALSE)<10,"",VLOOKUP($A39,'2012 WIA-Math'!$L$14:$V$500,11,FALSE)*100),"") -> 40.79 | Z39: =IFERROR(IF(VLOOKUP($A39,'WIAG4-MALL'!$A$14:$CZ$500,3,FALSE)<10,"",VLOOKUP($A39,'WIAG4-MALL'!$A$14:$CZ$500,11,FALSE)*100),"") -> 48.39 | AA39: 7 | AB39: 5 | AC39: =IFERROR(IF(VLOOKUP($A39,'M-2012'!$AC$6:$AP$500,3,FALSE)<10,"",VLOOKUP($A39,'M-2012'!$AC$6:$AP$500,10,FALSE)),"") -> 32 | AD39: =IFERROR(IF(VLOOKUP($A39,'2012 WIA-Math'!$W$14:$AG$500,3,FALSE)<10,"",VLOOKUP($A39,'2012 WIA-Math'!$W$14:$AG$500,11,FALSE)*100),"") -> 27.17 | AE39: =IFERROR(IF(VLOOKUP($A39,'WIAG5-MALL'!$A$14:$CZ$500,3,FALSE)<10,"",VLOOKUP($A39,'WIAG5-MALL'!$A$14:$CZ$500,11,FALSE)*100),"") -> 57.97 | AF39: 31 | AG39: 5 | AH39: =IFERROR(IF(VLOOKUP(TEXT($A39,"0000"),'2012 Sci Retrofitted'!$A$3:$G$267,3,FALSE)<10,"",VLOOKUP(TEXT($A39,"0000"),'2012 Sci Retrofitted'!$A$3:$G$267,5,FALSE)),"") -> 17.89473684 | AI39: =IFERROR(IF(VLOOKUP($A39,'2012 WIA-Sci'!$A$6:$G$500,3,FALSE)<10,"",VLOOKUP($A39,'2012 WIA-Sci'!$A$6:$G$500,7,FALSE)),"") -> 24 | AJ39: =IFERROR(IF(VLOOKUP($A39,'WIAG5-SALL'!$A$14:$CZ$500,3,FALSE)<10,"",VLOOKUP($A39,'WIAG5-SALL'!$A$14:$CZ$500,11,FALSE)*100),"") -> 34.21 | AK39: 10 | AL39: =VLOOKUP(TEXT($A39,"0000"),#REF!,2,FALSE) ->  | AM39: =VLOOKUP(TEXT($A39,"0000"),#REF!,2,FALSE) -> 
A40: 3981 | B40: NORTH TWIN LAKES ELEMENTARY | C40: 3 | D40: =IFERROR(IF(VLOOKUP($A40,'R-2012'!$A$6:$O$500,3,FALSE)<10,"",VLOOKUP($A40,'R-2012'!$A$6:$O$500,10,FALSE)),"") -> 53 | E40: =IFERROR(IF(VLOOKUP($A40,'2012 WIA-Read'!$A$14:$K$500,3,FALSE)<10,"",VLOOKUP($A40,'2012 WIA-Read'!$A$14:$K$500,11,FALSE)*100),"") -> 42.37 | F40: =IFERROR(IF(VLOOKUP($A40,'WIAG3-RALL'!$A$14:$CZ$500,3,FALSE)<10,"",VLOOKUP($A40,'WIAG3-RALL'!$A$14:$CZ$500,11,FALSE)*100),"") -> 56 | G40: 14 | H40: 4 | I40: =IFERROR(IF(VLOOKUP($A40,'R-2012'!$P$6:$AD$500,3,FALSE)<10,"",VLOOKUP($A40,'R-2012'!$P$6:$AD$500,10,FALSE)),"") -> 53 | J40: =IFERROR(IF(VLOOKUP($A40,'2012 WIA-Read'!$L$14:$V$500,3,FALSE)<10,"",VLOOKUP($A40,'2012 WIA-Read'!$L$14:$V$500,11,FALSE)*100),"") -> 50 | K40: =IFERROR(IF(VLOOKUP($A40,'WIAG4-RALL'!$A$14:$CZ$500,3,FALSE)<10,"",VLOOKUP($A40,'WIAG4-RALL'!$A$14:$CZ$500,11,FALSE)*100),"") -> 65.14 | L40: 15 | M40: 5 | N40: =IFERROR(IF(VLOOKUP($A40,'R-2012'!$AE$6:$AS$500,3,FALSE)<10,"",VLOOKUP($A40,'R-2012'!$AE$6:$AS$500,10,FALSE)),"") -> 62 | O40: =IFERROR(IF(VLOOKUP($A40,'2012 WIA-Read'!$W$14:$AG$500,3,FALSE)<10,"",VLOOKUP($A40,'2012 WIA-Read'!$W$14:$AG$500,11,FALSE)*100),"") -> 61.11 | P40: =IFERROR(IF(VLOOKUP($A40,'WIAG5-RALL'!$A$14:$CZ$500,3,FALSE)<10,"",VLOOKUP($A40,'WIAG5-RALL'!$A$14:$CZ$500,11,FALSE)*100),"") -> 67.47 | Q40: 6 | R40: 3 | S40: =IFERROR(IF(VLOOKUP($A40,'M-2012'!$A$6:$N$500,3,FALSE)<10,"",VLOOKUP($A40,'M-2012'!$A$6:$N$500,10,FALSE)),"") -> 58 | T40: =IFERROR(IF(VLOOKUP($A40,'2012 WIA-Math'!$A$14:$K$500,3,FALSE)<10,"",VLOOKUP($A40,'2012 WIA-Math'!$A$14:$K$500,11,FALSE)*100),"") -> 38.66 | U40: =IFERROR(IF(VLOOKUP($A40,'WIAG3-MALL'!$A$14:$CZ$500,3,FALSE)<10,"",VLOOKUP($A40,'WIAG3-MALL'!$A$14:$CZ$500,11,FALSE)*100),"") -> 55.56 | V40: 17 | W40: 4 | X40: =IFERROR(IF(VLOOKUP($A40,'M-2012'!$O$6:$AB$500,3,FALSE)<10,"",VLOOKUP($A40,'M-2012'!$O$6:$AB$500,10,FALSE)),"") -> 66 | Y40: =IFERROR(IF(VLOOKUP($A40,'2012 WIA-Math'!$L$14:$V$500,3,FALSE)<10,"",VLOOKUP($A40,'2012 WIA-Math'!$L$14:$V$500,11,FALSE)*100),"") -> 41.11 | Z40: =IFERROR(IF(VLOOKUP($A40,'WIAG4-MALL'!$A$14:$CZ$500,3,FALSE)<10,"",VLOOKUP($A40,'WIAG4-MALL'!$A$14:$CZ$500,11,FALSE)*100),"") -> 58.72 | AA40: 18 | AB40: 5 | AC40: =IFERROR(IF(VLOOKUP($A40,'M-2012'!$AC$6:$AP$500,3,FALSE)<10,"",VLOOKUP($A40,'M-2012'!$AC$6:$AP$500,10,FALSE)),"") -> 59 | AD40: =IFERROR(IF(VLOOKUP($A40,'2012 WIA-Math'!$W$14:$AG$500,3,FALSE)<10,"",VLOOKUP($A40,'2012 WIA-Math'!$W$14:$AG$500,11,FALSE)*100),"") -> 51.69 | AE40: =IFERROR(IF(VLOOKUP($A40,'WIAG5-MALL'!$A$14:$CZ$500,3,FALSE)<10,"",VLOOKUP($A40,'WIAG5-MALL'!$A$14:$CZ$500,11,FALSE)*100),"") -> 60.24 | AF40: 8 | AG40: 5 | AH40: =IFERROR(IF(VLOOKUP(TEXT($A40,"0000"),'2012 Sci Retrofitted'!$A$3:$G$267,3,FALSE)<10,"",VLOOKUP(TEXT($A40,"0000"),'2012 Sci Retrofitted'!$A$3:$G$267,5,FALSE)),"") -> 51.61290323 | AI40: =IFERROR(IF(VLOOKUP($A40,'2012 WIA-Sci'!$A$6:$G$500,3,FALSE)<10,"",VLOOKUP($A40,'2012 WIA-Sci'!$A$6:$G$500,7,FALSE)),"") -> 51 | AJ40: =IFERROR(IF(VLOOKUP($A40,'WIAG5-SALL'!$A$14:$CZ$500,3,FALSE)<10,"",VLOOKUP($A40,'WIAG5-SALL'!$A$14:$CZ$500,11,FALSE)*100),"") -> 56.63 | AK40: 6 | AL40: =VLOOKUP(TEXT($A40,"0000"),#REF!,2,FALSE) ->  | AM40: =VLOOKUP(TEXT($A40,"0000"),#REF!,2,FALSE) -> 
A41: 4001 | B41: NORWOOD ELEMENTARY | C41: 3 | D41: =IFERROR(IF(VLOOKUP($A41,'R-2012'!$A$6:$O$500,3,FALSE)<10,"",VLOOKUP($A41,'R-2012'!$A$6:$O$500,10,FALSE)),"") -> 54 | E41: =IFERROR(IF(VLOOKUP($A41,'2012 WIA-Read'!$A$14:$K$500,3,FALSE)<10,"",VLOOKUP($A41,'2012 WIA-Read'!$A$14:$K$500,11,FALSE)*100),"") -> 53.97 | F41: =IFERROR(IF(VLOOKUP($A41,'WIAG3-RALL'!$A$14:$CZ$500,3,FALSE)<10,"",VLOOKUP($A41,'WIAG3-RALL'!$A$14:$CZ$500,11,FALSE)*100),"") -> 42.19 | G41: -12 | H41: 4 | I41: =IFERROR(IF(VLOOKUP($A41,'R-2012'!$P$6:$AD$500,3,FALSE)<10,"",VLOOKUP($A41,'R-2012'!$P$6:$AD$500,10,FALSE)),"") -> 62 | J41: =IFERROR(IF(VLOOKUP($A41,'2012 WIA-Read'!$L$14:$V$500,3,FALSE)<10,"",VLOOKUP($A41,'2012 WIA-Read'!$L$14:$V$500,11,FALSE)*100),"") -> 54.84 | K41: =IFERROR(IF(VLOOKUP($A41,'WIAG4-RALL'!$A$14:$CZ$500,3,FALSE)<10,"",VLOOKUP($A41,'WIAG4-RALL'!$A$14:$CZ$500,11,FALSE)*100),"") -> 57.81 | L41: 3 | M41: 5 | N41: =IFERROR(IF(VLOOKUP($A41,'R-2012'!$AE$6:$AS$500,3,FALSE)<10,"",VLOOKUP($A41,'R-2012'!$AE$6:$AS$500,10,FALSE)),"") -> 64 | O41: =IFERROR(IF(VLOOKUP($A41,'2012 WIA-Read'!$W$14:$AG$500,3,FALSE)<10,"",VLOOKUP($A41,'2012 WIA-Read'!$W$14:$AG$500,11,FALSE)*100),"") -> 66.67 | P41: =IFERROR(IF(VLOOKUP($A41,'WIAG5-RALL'!$A$14:$CZ$500,3,FALSE)<10,"",VLOOKUP($A41,'WIAG5-RALL'!$A$14:$CZ$500,11,FALSE)*100),"") -> 56.25 | Q41: -11 | R41: 3 | S41: =IFERROR(IF(VLOOKUP($A41,'M-2012'!$A$6:$N$500,3,FALSE)<10,"",VLOOKUP($A41,'M-2012'!$A$6:$N$500,10,FALSE)),"") -> 75 | T41: =IFERROR(IF(VLOOKUP($A41,'2012 WIA-Math'!$A$14:$K$500,3,FALSE)<10,"",VLOOKUP($A41,'2012 WIA-Math'!$A$14:$K$500,11,FALSE)*100),"") -> 84.85 | U41: =IFERROR(IF(VLOOKUP($A41,'WIAG3-MALL'!$A$14:$CZ$500,3,FALSE)<10,"",VLOOKUP($A41,'WIAG3-MALL'!$A$14:$CZ$500,11,FALSE)*100),"") -> 76.56 | V41: -8 | W41: 4 | X41: =IFERROR(IF(VLOOKUP($A41,'M-2012'!$O$6:$AB$500,3,FALSE)<10,"",VLOOKUP($A41,'M-2012'!$O$6:$AB$500,10,FALSE)),"") -> 70 | Y41: =IFERROR(IF(VLOOKUP($A41,'2012 WIA-Math'!$L$14:$V$500,3,FALSE)<10,"",VLOOKUP($A41,'2012 WIA-Math'!$L$14:$V$500,11,FALSE)*100),"") -> 66.1 | Z41: =IFERROR(IF(VLOOKUP($A41,'WIAG4-MALL'!$A$14:$CZ$500,3,FALSE)<10,"",VLOOKUP($A41,'WIAG4-MALL'!$A$14:$CZ$500,11,FALSE)*100),"") -> 53.03 | AA41: -13 | AB41: 5 | AC41: =IFERROR(IF(VLOOKUP($A41,'M-2012'!$AC$6:$AP$500,3,FALSE)<10,"",VLOOKUP($A41,'M-2012'!$AC$6:$AP$500,10,FALSE)),"") -> 71 | AD41: =IFERROR(IF(VLOOKUP($A41,'2012 WIA-Math'!$W$14:$AG$500,3,FALSE)<10,"",VLOOKUP($A41,'2012 WIA-Math'!$W$14:$AG$500,11,FALSE)*100),"") -> 61.97 | AE41: =IFERROR(IF(VLOOKUP($A41,'WIAG5-MALL'!$A$14:$CZ$500,3,FALSE)<10,"",VLOOKUP($A41,'WIAG5-MALL'!$A$14:$CZ$500,11,FALSE)*100),"") -> 61.54 | AF41: 0 | AG41: 5 | AH41: =IFERROR(IF(VLOOKUP(TEXT($A41,"0000"),'2012 Sci Retrofitted'!$A$3:$G$267,3,FALSE)<10,"",VLOOKUP(TEXT($A41,"0000"),'2012 Sci Retrofitted'!$A$3:$G$267,5,FALSE)),"") -> 47.94520548 | AI41: =IFERROR(IF(VLOOKUP($A41,'2012 WIA-Sci'!$A$6:$G$500,3,FALSE)<10,"",VLOOKUP($A41,'2012 WIA-Sci'!$A$6:$G$500,7,FALSE)),"") -> 44 | AJ41: =IFERROR(IF(VLOOKUP($A41,'WIAG5-SALL'!$A$14:$CZ$500,3,FALSE)<10,"",VLOOKUP($A41,'WIAG5-SALL'!$A$14:$CZ$500,11,FALSE)*100),"") -> 52.31 | AK41: 8 | AL41: =VLOOKUP(TEXT($A41,"0000"),#REF!,2,FALSE) ->  | AM41: =VLOOKUP(TEXT($A41,"0000"),#REF!,2,FALSE) -> 
A42: 4021 | B42: OAK GROVE ELEMENTARY | C42: 3 | D42: =IFERROR(IF(VLOOKUP($A42,'R-2012'!$A$6:$O$500,3,FALSE)<10,"",VLOOKUP($A42,'R-2012'!$A$6:$O$500,10,FALSE)),"") -> 50 | E42: =IFERROR(IF(VLOOKUP($A42,'2012 WIA-Read'!$A$14:$K$500,3,FALSE)<10,"",VLOOKUP($A42,'2012 WIA-Read'!$A$14:$K$500,11,FALSE)*100),"") -> 52.83 | F42: =IFERROR(IF(VLOOKUP($A42,'WIAG3-RALL'!$A$14:$CZ$500,3,FALSE)<10,"",VLOOKUP($A42,'WIAG3-RALL'!$A$14:$CZ$500,11,FALSE)*100),"") -> 35.05 | G42: -18 | H42: 4 | I42: =IFERROR(IF(VLOOKUP($A42,'R-2012'!$P$6:$AD$500,3,FALSE)<10,"",VLOOKUP($A42,'R-2012'!$P$6:$AD$500,10,FALSE)),"") -> 43 | J42: =IFERROR(IF(VLOOKUP($A42,'2012 WIA-Read'!$L$14:$V$500,3,FALSE)<10,"",VLOOKUP($A42,'2012 WIA-Read'!$L$14:$V$500,11,FALSE)*100),"") -> 54.29 | K42: =IFERROR(IF(VLOOKUP($A42,'WIAG4-RALL'!$A$14:$CZ$500,3,FALSE)<10,"",VLOOKUP($A42,'WIAG4-RALL'!$A$14:$CZ$500,11,FALSE)*100),"") -> 58.59 | L42: 5 | M42: 5 | N42: =IFERROR(IF(VLOOKUP($A42,'R-2012'!$AE$6:$AS$500,3,FALSE)<10,"",VLOOKUP($A42,'R-2012'!$AE$6:$AS$500,10,FALSE)),"") -> 38 | O42: =IFERROR(IF(VLOOKUP($A42,'2012 WIA-Read'!$W$14:$AG$500,3,FALSE)<10,"",VLOOKUP($A42,'2012 WIA-Read'!$W$14:$AG$500,11,FALSE)*100),"") -> 38.58 | P42: =IFERROR(IF(VLOOKUP($A42,'WIAG5-RALL'!$A$14:$CZ$500,3,FALSE)<10,"",VLOOKUP($A42,'WIAG5-RALL'!$A$14:$CZ$500,11,FALSE)*100),"") -> 51.85 | Q42: 13 | R42: 3 | S42: =IFERROR(IF(VLOOKUP($A42,'M-2012'!$A$6:$N$500,3,FALSE)<10,"",VLOOKUP($A42,'M-2012'!$A$6:$N$500,10,FALSE)),"") -> 59 | T42: =IFERROR(IF(VLOOKUP($A42,'2012 WIA-Math'!$A$14:$K$500,3,FALSE)<10,"",VLOOKUP($A42,'2012 WIA-Math'!$A$14:$K$500,11,FALSE)*100),"") -> 55.96 | U42: =IFERROR(IF(VLOOKUP($A42,'WIAG3-MALL'!$A$14:$CZ$500,3,FALSE)<10,"",VLOOKUP($A42,'WIAG3-MALL'!$A$14:$CZ$500,11,FALSE)*100),"") -> 55.67 | V42: 0 | W42: 4 | X42: =IFERROR(IF(VLOOKUP($A42,'M-2012'!$O$6:$AB$500,3,FALSE)<10,"",VLOOKUP($A42,'M-2012'!$O$6:$AB$500,10,FALSE)),"") -> 59 | Y42: =IFERROR(IF(VLOOKUP($A42,'2012 WIA-Math'!$L$14:$V$500,3,FALSE)<10,"",VLOOKUP($A42,'2012 WIA-Math'!$L$14:$V$500,11,FALSE)*100),"") -> 48.11 | Z42: =IFERROR(IF(VLOOKUP($A42,'WIAG4-MALL'!$A$14:$CZ$500,3,FALSE)<10,"",VLOOKUP($A42,'WIAG4-MALL'!$A$14:$CZ$500,11,FALSE)*100),"") -> 49.47 | AA42: 1 | AB42: 5 | AC42: =IFERROR(IF(VLOOKUP($A42,'M-2012'!$AC$6:$AP$500,3,FALSE)<10,"",VLOOKUP($A42,'M-2012'!$AC$6:$AP$500,10,FALSE)),"") -> 46 | AD42: =IFERROR(IF(VLOOKUP($A42,'2012 WIA-Math'!$W$14:$AG$500,3,FALSE)<10,"",VLOOKUP($A42,'2012 WIA-Math'!$W$14:$AG$500,11,FALSE)*100),"") -> 35.77 | AE42: =IFERROR(IF(VLOOKUP($A42,'WIAG5-MALL'!$A$14:$CZ$500,3,FALSE)<10,"",VLOOKUP($A42,'WIAG5-MALL'!$A$14:$CZ$500,11,FALSE)*100),"") -> 36.45 | AF42: 0 | AG42: 5 | AH42: =IFERROR(IF(VLOOKUP(TEXT($A42,"0000"),'2012 Sci Retrofitted'!$A$3:$G$267,3,FALSE)<10,"",VLOOKUP(TEXT($A42,"0000"),'2012 Sci Retrofitted'!$A$3:$G$267,5,FALSE)),"") -> 38.88888889 | AI42: =IFERROR(IF(VLOOKUP($A42,'2012 WIA-Sci'!$A$6:$G$500,3,FALSE)<10,"",VLOOKUP($A42,'2012 WIA-Sci'!$A$6:$G$500,7,FALSE)),"") -> 29 | AJ42: =IFERROR(IF(VLOOKUP($A42,'WIAG5-SALL'!$A$14:$CZ$500,3,FALSE)<10,"",VLOOKUP($A42,'WIAG5-SALL'!$A$14:$CZ$500,11,FALSE)*100),"") -> 43.4 | AK42: 14 | AL42: =VLOOKUP(TEXT($A42,"0000"),#REF!,2,FALSE) ->  | AM42: =VLOOKUP(TEXT($A42,"0000"),#REF!,2,FALSE) -> 
A43: 4061 | B43: OJUS ELEMENTARY | C43: 3 | D43: =IFERROR(IF(VLOOKUP($A43,'R-2012'!$A$6:$O$500,3,FALSE)<10,"",VLOOKUP($A43,'R-2012'!$A$6:$O$500,10,FALSE)),"") -> 68 | E43: =IFERROR(IF(VLOOKUP($A43,'2012 WIA-Read'!$A$14:$K$500,3,FALSE)<10,"",VLOOKUP($A43,'2012 WIA-Read'!$A$14:$K$500,11,FALSE)*100),"") -> 60.87 | F43: =IFERROR(IF(VLOOKUP($A43,'WIAG3-RALL'!$A$14:$CZ$500,3,FALSE)<10,"",VLOOKUP($A43,'WIAG3-RALL'!$A$14:$CZ$500,11,FALSE)*100),"") -> 65.41 | G43: 4 | H43: 4 | I43: =IFERROR(IF(VLOOKUP($A43,'R-2012'!$P$6:$AD$500,3,FALSE)<10,"",VLOOKUP($A43,'R-2012'!$P$6:$AD$500,10,FALSE)),"") -> 68 | J43: =IFERROR(IF(VLOOKUP($A43,'2012 WIA-Read'!$L$14:$V$500,3,FALSE)<10,"",VLOOKUP($A43,'2012 WIA-Read'!$L$14:$V$500,11,FALSE)*100),"") -> 65.31 | K43: =IFERROR(IF(VLOOKUP($A43,'WIAG4-RALL'!$A$14:$CZ$500,3,FALSE)<10,"",VLOOKUP($A43,'WIAG4-RALL'!$A$14:$CZ$500,11,FALSE)*100),"") -> 71.97 | L43: 7 | M43: 5 | N43: =IFERROR(IF(VLOOKUP($A43,'R-2012'!$AE$6:$AS$500,3,FALSE)<10,"",VLOOKUP($A43,'R-2012'!$AE$6:$AS$500,10,FALSE)),"") -> 82 | O43: =IFERROR(IF(VLOOKUP($A43,'2012 WIA-Read'!$W$14:$AG$500,3,FALSE)<10,"",VLOOKUP($A43,'2012 WIA-Read'!$W$14:$AG$500,11,FALSE)*100),"") -> 79.1 | P43: =IFERROR(IF(VLOOKUP($A43,'WIAG5-RALL'!$A$14:$CZ$500,3,FALSE)<10,"",VLOOKUP($A43,'WIAG5-RALL'!$A$14:$CZ$500,11,FALSE)*100),"") -> 67.59 | Q43: -11 | R43: 3 | S43: =IFERROR(IF(VLOOKUP($A43,'M-2012'!$A$6:$N$500,3,FALSE)<10,"",VLOOKUP($A43,'M-2012'!$A$6:$N$500,10,FALSE)),"") -> 81 | T43: =IFERROR(IF(VLOOKUP($A43,'2012 WIA-Math'!$A$14:$K$500,3,FALSE)<10,"",VLOOKUP($A43,'2012 WIA-Math'!$A$14:$K$500,11,FALSE)*100),"") -> 80.75 | U43: =IFERROR(IF(VLOOKUP($A43,'WIAG3-MALL'!$A$14:$CZ$500,3,FALSE)<10,"",VLOOKUP($A43,'WIAG3-MALL'!$A$14:$CZ$500,11,FALSE)*100),"") -> 75.47 | V43: -6 | W43: 4 | X43: =IFERROR(IF(VLOOKUP($A43,'M-2012'!$O$6:$AB$500,3,FALSE)<10,"",VLOOKUP($A43,'M-2012'!$O$6:$AB$500,10,FALSE)),"") -> 71 | Y43: =IFERROR(IF(VLOOKUP($A43,'2012 WIA-Math'!$L$14:$V$500,3,FALSE)<10,"",VLOOKUP($A43,'2012 WIA-Math'!$L$14:$V$500,11,FALSE)*100),"") -> 71.33 | Z43: =IFERROR(IF(VLOOKUP($A43,'WIAG4-MALL'!$A$14:$CZ$500,3,FALSE)<10,"",VLOOKUP($A43,'WIAG4-MALL'!$A$14:$CZ$500,11,FALSE)*100),"") -> 67.31 | AA43: -4 | AB43: 5 | AC43: =IFERROR(IF(VLOOKUP($A43,'M-2012'!$AC$6:$AP$500,3,FALSE)<10,"",VLOOKUP($A43,'M-2012'!$AC$6:$AP$500,10,FALSE)),"") -> 65 | AD43: =IFERROR(IF(VLOOKUP($A43,'2012 WIA-Math'!$W$14:$AG$500,3,FALSE)<10,"",VLOOKUP($A43,'2012 WIA-Math'!$W$14:$AG$500,11,FALSE)*100),"") -> 71.11 | AE43: =IFERROR(IF(VLOOKUP($A43,'WIAG5-MALL'!$A$14:$CZ$500,3,FALSE)<10,"",VLOOKUP($A43,'WIAG5-MALL'!$A$14:$CZ$500,11,FALSE)*100),"") -> 54.61 | AF43: -16 | AG43: 5 | AH43: =IFERROR(IF(VLOOKUP(TEXT($A43,"0000"),'2012 Sci Retrofitted'!$A$3:$G$267,3,FALSE)<10,"",VLOOKUP(TEXT($A43,"0000"),'2012 Sci Retrofitted'!$A$3:$G$267,5,FALSE)),"") -> 42.02898551 | AI43: =IFERROR(IF(VLOOKUP($A43,'2012 WIA-Sci'!$A$6:$G$500,3,FALSE)<10,"",VLOOKUP($A43,'2012 WIA-Sci'!$A$6:$G$500,7,FALSE)),"") -> 49 | AJ43: =IFERROR(IF(VLOOKUP($A43,'WIAG5-SALL'!$A$14:$CZ$500,3,FALSE)<10,"",VLOOKUP($A43,'WIAG5-SALL'!$A$14:$CZ$500,11,FALSE)*100),"") -> 54.55 | AK43: 6 | AL43: =VLOOKUP(TEXT($A43,"0000"),#REF!,2,FALSE) ->  | AM43: =VLOOKUP(TEXT($A43,"0000"),#REF!,2,FALSE) -> 
A44: 4241 | B44: PALM LAKES ELEMENTARY | C44: 3 | D44: =IFERROR(IF(VLOOKUP($A44,'R-2012'!$A$6:$O$500,3,FALSE)<10,"",VLOOKUP($A44,'R-2012'!$A$6:$O$500,10,FALSE)),"") -> 58 | E44: =IFERROR(IF(VLOOKUP($A44,'2012 WIA-Read'!$A$14:$K$500,3,FALSE)<10,"",VLOOKUP($A44,'2012 WIA-Read'!$A$14:$K$500,11,FALSE)*100),"") -> 49.66 | F44: =IFERROR(IF(VLOOKUP($A44,'WIAG3-RALL'!$A$14:$CZ$500,3,FALSE)<10,"",VLOOKUP($A44,'WIAG3-RALL'!$A$14:$CZ$500,11,FALSE)*100),"") -> 55.19 | G44: 5 | H44: 4 | I44: =IFERROR(IF(VLOOKUP($A44,'R-2012'!$P$6:$AD$500,3,FALSE)<10,"",VLOOKUP($A44,'R-2012'!$P$6:$AD$500,10,FALSE)),"") -> 55 | J44: =IFERROR(IF(VLOOKUP($A44,'2012 WIA-Read'!$L$14:$V$500,3,FALSE)<10,"",VLOOKUP($A44,'2012 WIA-Read'!$L$14:$V$500,11,FALSE)*100),"") -> 65.06 | K44: =IFERROR(IF(VLOOKUP($A44,'WIAG4-RALL'!$A$14:$CZ$500,3,FALSE)<10,"",VLOOKUP($A44,'WIAG4-RALL'!$A$14:$CZ$500,11,FALSE)*100),"") -> 60.14 | L44: -5 | M44: 5 | N44: =IFERROR(IF(VLOOKUP($A44,'R-2012'!$AE$6:$AS$500,3,FALSE)<10,"",VLOOKUP($A44,'R-2012'!$AE$6:$AS$500,10,FALSE)),"") -> 60 | O44: =IFERROR(IF(VLOOKUP($A44,'2012 WIA-Read'!$W$14:$AG$500,3,FALSE)<10,"",VLOOKUP($A44,'2012 WIA-Read'!$W$14:$AG$500,11,FALSE)*100),"") -> 47.18 | P44: =IFERROR(IF(VLOOKUP($A44,'WIAG5-RALL'!$A$14:$CZ$500,3,FALSE)<10,"",VLOOKUP($A44,'WIAG5-RALL'!$A$14:$CZ$500,11,FALSE)*100),"") -> 51.79 | Q44: 5 | R44: 3 | S44: =IFERROR(IF(VLOOKUP($A44,'M-2012'!$A$6:$N$500,3,FALSE)<10,"",VLOOKUP($A44,'M-2012'!$A$6:$N$500,10,FALSE)),"") -> 53 | T44: =IFERROR(IF(VLOOKUP($A44,'2012 WIA-Math'!$A$14:$K$500,3,FALSE)<10,"",VLOOKUP($A44,'2012 WIA-Math'!$A$14:$K$500,11,FALSE)*100),"") -> 58.62 | U44: =IFERROR(IF(VLOOKUP($A44,'WIAG3-MALL'!$A$14:$CZ$500,3,FALSE)<10,"",VLOOKUP($A44,'WIAG3-MALL'!$A$14:$CZ$500,11,FALSE)*100),"") -> 73.55 | V44: 15 | W44: 4 | X44: =IFERROR(IF(VLOOKUP($A44,'M-2012'!$O$6:$AB$500,3,FALSE)<10,"",VLOOKUP($A44,'M-2012'!$O$6:$AB$500,10,FALSE)),"") -> 56 | Y44: =IFERROR(IF(VLOOKUP($A44,'2012 WIA-Math'!$L$14:$V$500,3,FALSE)<10,"",VLOOKUP($A44,'2012 WIA-Math'!$L$14:$V$500,11,FALSE)*100),"") -> 71.69 | Z44: =IFERROR(IF(VLOOKUP($A44,'WIAG4-MALL'!$A$14:$CZ$500,3,FALSE)<10,"",VLOOKUP($A44,'WIAG4-MALL'!$A$14:$CZ$500,11,FALSE)*100),"") -> 64.75 | AA44: -7 | AB44: 5 | AC44: =IFERROR(IF(VLOOKUP($A44,'M-2012'!$AC$6:$AP$500,3,FALSE)<10,"",VLOOKUP($A44,'M-2012'!$AC$6:$AP$500,10,FALSE)),"") -> 60 | AD44: =IFERROR(IF(VLOOKUP($A44,'2012 WIA-Math'!$W$14:$AG$500,3,FALSE)<10,"",VLOOKUP($A44,'2012 WIA-Math'!$W$14:$AG$500,11,FALSE)*100),"") -> 52.14 | AE44: =IFERROR(IF(VLOOKUP($A44,'WIAG5-MALL'!$A$14:$CZ$500,3,FALSE)<10,"",VLOOKUP($A44,'WIAG5-MALL'!$A$14:$CZ$500,11,FALSE)*100),"") -> 40 | AF44: -12 | AG44: 5 | AH44: =IFERROR(IF(VLOOKUP(TEXT($A44,"0000"),'2012 Sci Retrofitted'!$A$3:$G$267,3,FALSE)<10,"",VLOOKUP(TEXT($A44,"0000"),'2012 Sci Retrofitted'!$A$3:$G$267,5,FALSE)),"") -> 53.84615385 | AI44: =IFERROR(IF(VLOOKUP($A44,'2012 WIA-Sci'!$A$6:$G$500,3,FALSE)<10,"",VLOOKUP($A44,'2012 WIA-Sci'!$A$6:$G$500,7,FALSE)),"") -> 59 | AJ44: =IFERROR(IF(VLOOKUP($A44,'WIAG5-SALL'!$A$14:$CZ$500,3,FALSE)<10,"",VLOOKUP($A44,'WIAG5-SALL'!$A$14:$CZ$500,11,FALSE)*100),"") -> 44.05 | AK44: -15 | AL44: =VLOOKUP(TEXT($A44,"0000"),#REF!,2,FALSE) ->  | AM44: =VLOOKUP(TEXT($A44,"0000"),#REF!,2,FALSE) -> 
A45: 4261 | B45: PALM SPRINGS ELEMENTARY | C45: 3 | D45: =IFERROR(IF(VLOOKUP($A45,'R-2012'!$A$6:$O$500,3,FALSE)<10,"",VLOOKUP($A45,'R-2012'!$A$6:$O$500,10,FALSE)),"") -> 43 | E45: =IFERROR(IF(VLOOKUP($A45,'2012 WIA-Read'!$A$14:$K$500,3,FALSE)<10,"",VLOOKUP($A45,'2012 WIA-Read'!$A$14:$K$500,11,FALSE)*100),"") -> 37.04 | F45: =IFERROR(IF(VLOOKUP($A45,'WIAG3-RALL'!$A$14:$CZ$500,3,FALSE)<10,"",VLOOKUP($A45,'WIAG3-RALL'!$A$14:$CZ$500,11,FALSE)*100),"") -> 40.77 | G45: 4 | H45: 4 | I45: =IFERROR(IF(VLOOKUP($A45,'R-2012'!$P$6:$AD$500,3,FALSE)<10,"",VLOOKUP($A45,'R-2012'!$P$6:$AD$500,10,FALSE)),"") -> 57 | J45: =IFERROR(IF(VLOOKUP($A45,'2012 WIA-Read'!$L$14:$V$500,3,FALSE)<10,"",VLOOKUP($A45,'2012 WIA-Read'!$L$14:$V$500,11,FALSE)*100),"") -> 56.14 | K45: =IFERROR(IF(VLOOKUP($A45,'WIAG4-RALL'!$A$14:$CZ$500,3,FALSE)<10,"",VLOOKUP($A45,'WIAG4-RALL'!$A$14:$CZ$500,11,FALSE)*100),"") -> 57.94 | L45: 2 | M45: 5 | N45: =IFERROR(IF(VLOOKUP($A45,'R-2012'!$AE$6:$AS$500,3,FALSE)<10,"",VLOOKUP($A45,'R-2012'!$AE$6:$AS$500,10,FALSE)),"") -> 51 | O45: =IFERROR(IF(VLOOKUP($A45,'2012 WIA-Read'!$W$14:$AG$500,3,FALSE)<10,"",VLOOKUP($A45,'2012 WIA-Read'!$W$14:$AG$500,11,FALSE)*100),"") -> 41.61 | P45: =IFERROR(IF(VLOOKUP($A45,'WIAG5-RALL'!$A$14:$CZ$500,3,FALSE)<10,"",VLOOKUP($A45,'WIAG5-RALL'!$A$14:$CZ$500,11,FALSE)*100),"") -> 59.13 | Q45: 17 | R45: 3 | S45: =IFERROR(IF(VLOOKUP($A45,'M-2012'!$A$6:$N$500,3,FALSE)<10,"",VLOOKUP($A45,'M-2012'!$A$6:$N$500,10,FALSE)),"") -> 51 | T45: =IFERROR(IF(VLOOKUP($A45,'2012 WIA-Math'!$A$14:$K$500,3,FALSE)<10,"",VLOOKUP($A45,'2012 WIA-Math'!$A$14:$K$500,11,FALSE)*100),"") -> 45.93 | U45: =IFERROR(IF(VLOOKUP($A45,'WIAG3-MALL'!$A$14:$CZ$500,3,FALSE)<10,"",VLOOKUP($A45,'WIAG3-MALL'!$A$14:$CZ$500,11,FALSE)*100),"") -> 56.59 | V45: 11 | W45: 4 | X45: =IFERROR(IF(VLOOKUP($A45,'M-2012'!$O$6:$AB$500,3,FALSE)<10,"",VLOOKUP($A45,'M-2012'!$O$6:$AB$500,10,FALSE)),"") -> 56 | Y45: =IFERROR(IF(VLOOKUP($A45,'2012 WIA-Math'!$L$14:$V$500,3,FALSE)<10,"",VLOOKUP($A45,'2012 WIA-Math'!$L$14:$V$500,11,FALSE)*100),"") -> 54.39 | Z45: =IFERROR(IF(VLOOKUP($A45,'WIAG4-MALL'!$A$14:$CZ$500,3,FALSE)<10,"",VLOOKUP($A45,'WIAG4-MALL'!$A$14:$CZ$500,11,FALSE)*100),"") -> 57.94 | AA45: 4 | AB45: 5 | AC45: =IFERROR(IF(VLOOKUP($A45,'M-2012'!$AC$6:$AP$500,3,FALSE)<10,"",VLOOKUP($A45,'M-2012'!$AC$6:$AP$500,10,FALSE)),"") -> 66 | AD45: =IFERROR(IF(VLOOKUP($A45,'2012 WIA-Math'!$W$14:$AG$500,3,FALSE)<10,"",VLOOKUP($A45,'2012 WIA-Math'!$W$14:$AG$500,11,FALSE)*100),"") -> 59.85 | AE45: =IFERROR(IF(VLOOKUP($A45,'WIAG5-MALL'!$A$14:$CZ$500,3,FALSE)<10,"",VLOOKUP($A45,'WIAG5-MALL'!$A$14:$CZ$500,11,FALSE)*100),"") -> 71.93 | AF45: 12 | AG45: 5 | AH45: =IFERROR(IF(VLOOKUP(TEXT($A45,"0000"),'2012 Sci Retrofitted'!$A$3:$G$267,3,FALSE)<10,"",VLOOKUP(TEXT($A45,"0000"),'2012 Sci Retrofitted'!$A$3:$G$267,5,FALSE)),"") -> 56.42857143 | AI45: =IFERROR(IF(VLOOKUP($A45,'2012 WIA-Sci'!$A$6:$G$500,3,FALSE)<10,"",VLOOKUP($A45,'2012 WIA-Sci'!$A$6:$G$500,7,FALSE)),"") -> 37 | AJ45: =IFERROR(IF(VLOOKUP($A45,'WIAG5-SALL'!$A$14:$CZ$500,3,FALSE)<10,"",VLOOKUP($A45,'WIAG5-SALL'!$A$14:$CZ$500,11,FALSE)*100),"") -> 60.87 | AK45: 24 | AL45: =VLOOKUP(TEXT($A45,"0000"),#REF!,2,FALSE) ->  | AM45: =VLOOKUP(TEXT($A45,"0000"),#REF!,2,FALSE) -> 
A46: 4281 | B46: PALM SPRINGS NORTH ELEMENTARY | C46: 3 | D46: =IFERROR(IF(VLOOKUP($A46,'R-2012'!$A$6:$O$500,3,FALSE)<10,"",VLOOKUP($A46,'R-2012'!$A$6:$O$500,10,FALSE)),"") -> 64 | E46: =IFERROR(IF(VLOOKUP($A46,'2012 WIA-Read'!$A$14:$K$500,3,FALSE)<10,"",VLOOKUP($A46,'2012 WIA-Read'!$A$14:$K$500,11,FALSE)*100),"") -> 61.29 | F46: =IFERROR(IF(VLOOKUP($A46,'WIAG3-RALL'!$A$14:$CZ$500,3,FALSE)<10,"",VLOOKUP($A46,'WIAG3-RALL'!$A$14:$CZ$500,11,FALSE)*100),"") -> 62.89 | G46: 2 | H46: 4 | I46: =IFERROR(IF(VLOOKUP($A46,'R-2012'!$P$6:$AD$500,3,FALSE)<10,"",VLOOKUP($A46,'R-2012'!$P$6:$AD$500,10,FALSE)),"") -> 65 | J46: =IFERROR(IF(VLOOKUP($A46,'2012 WIA-Read'!$L$14:$V$500,3,FALSE)<10,"",VLOOKUP($A46,'2012 WIA-Read'!$L$14:$V$500,11,FALSE)*100),"") -> 67.5 | K46: =IFERROR(IF(VLOOKUP($A46,'WIAG4-RALL'!$A$14:$CZ$500,3,FALSE)<10,"",VLOOKUP($A46,'WIAG4-RALL'!$A$14:$CZ$500,11,FALSE)*100),"") -> 68.85 | L46: 1 | M46: 5 | N46: =IFERROR(IF(VLOOKUP($A46,'R-2012'!$AE$6:$AS$500,3,FALSE)<10,"",VLOOKUP($A46,'R-2012'!$AE$6:$AS$500,10,FALSE)),"") -> 69 | O46: =IFERROR(IF(VLOOKUP($A46,'2012 WIA-Read'!$W$14:$AG$500,3,FALSE)<10,"",VLOOKUP($A46,'2012 WIA-Read'!$W$14:$AG$500,11,FALSE)*100),"") -> 57.82 | P46: =IFERROR(IF(VLOOKUP($A46,'WIAG5-RALL'!$A$14:$CZ$500,3,FALSE)<10,"",VLOOKUP($A46,'WIAG5-RALL'!$A$14:$CZ$500,11,FALSE)*100),"") -> 61.39 | Q46: 3 | R46: 3 | S46: =IFERROR(IF(VLOOKUP($A46,'M-2012'!$A$6:$N$500,3,FALSE)<10,"",VLOOKUP($A46,'M-2012'!$A$6:$N$500,10,FALSE)),"") -> 76 | T46: =IFERROR(IF(VLOOKUP($A46,'2012 WIA-Math'!$A$14:$K$500,3,FALSE)<10,"",VLOOKUP($A46,'2012 WIA-Math'!$A$14:$K$500,11,FALSE)*100),"") -> 77.72 | U46: =IFERROR(IF(VLOOKUP($A46,'WIAG3-MALL'!$A$14:$CZ$500,3,FALSE)<10,"",VLOOKUP($A46,'WIAG3-MALL'!$A$14:$CZ$500,11,FALSE)*100),"") -> 78.71 | V46: 1 | W46: 4 | X46: =IFERROR(IF(VLOOKUP($A46,'M-2012'!$O$6:$AB$500,3,FALSE)<10,"",VLOOKUP($A46,'M-2012'!$O$6:$AB$500,10,FALSE)),"") -> 70 | Y46: =IFERROR(IF(VLOOKUP($A46,'2012 WIA-Math'!$L$14:$V$500,3,FALSE)<10,"",VLOOKUP($A46,'2012 WIA-Math'!$L$14:$V$500,11,FALSE)*100),"") -> 68.99 | Z46: =IFERROR(IF(VLOOKUP($A46,'WIAG4-MALL'!$A$14:$CZ$500,3,FALSE)<10,"",VLOOKUP($A46,'WIAG4-MALL'!$A$14:$CZ$500,11,FALSE)*100),"") -> 79.89 | AA46: 11 | AB46: 5 | AC46: =IFERROR(IF(VLOOKUP($A46,'M-2012'!$AC$6:$AP$500,3,FALSE)<10,"",VLOOKUP($A46,'M-2012'!$AC$6:$AP$500,10,FALSE)),"") -> 72 | AD46: =IFERROR(IF(VLOOKUP($A46,'2012 WIA-Math'!$W$14:$AG$500,3,FALSE)<10,"",VLOOKUP($A46,'2012 WIA-Math'!$W$14:$AG$500,11,FALSE)*100),"") -> 51.68 | AE46: =IFERROR(IF(VLOOKUP($A46,'WIAG5-MALL'!$A$14:$CZ$500,3,FALSE)<10,"",VLOOKUP($A46,'WIAG5-MALL'!$A$14:$CZ$500,11,FALSE)*100),"") -> 55.88 | AF46: 4 | AG46: 5 | AH46: =IFERROR(IF(VLOOKUP(TEXT($A46,"0000"),'2012 Sci Retrofitted'!$A$3:$G$267,3,FALSE)<10,"",VLOOKUP(TEXT($A46,"0000"),'2012 Sci Retrofitted'!$A$3:$G$267,5,FALSE)),"") -> 64.66666667 | AI46: =IFERROR(IF(VLOOKUP($A46,'2012 WIA-Sci'!$A$6:$G$500,3,FALSE)<10,"",VLOOKUP($A46,'2012 WIA-Sci'!$A$6:$G$500,7,FALSE)),"") -> 48 | AJ46: =IFERROR(IF(VLOOKUP($A46,'WIAG5-SALL'!$A$14:$CZ$500,3,FALSE)<10,"",VLOOKUP($A46,'WIAG5-SALL'!$A$14:$CZ$500,11,FALSE)*100),"") -> 53.1 | AK46: 5 | AL46: =VLOOKUP(TEXT($A46,"0000"),#REF!,2,FALSE) ->  | AM46: =VLOOKUP(TEXT($A46,"0000"),#REF!,2,FALSE) -> 
A47: 4301 | B47: PARKVIEW ELEMENTARY | C47: 3 | D47: =IFERROR(IF(VLOOKUP($A47,'R-2012'!$A$6:$O$500,3,FALSE)<10,"",VLOOKUP($A47,'R-2012'!$A$6:$O$500,10,FALSE)),"") -> 44 | E47: =IFERROR(IF(VLOOKUP($A47,'2012 WIA-Read'!$A$14:$K$500,3,FALSE)<10,"",VLOOKUP($A47,'2012 WIA-Read'!$A$14:$K$500,11,FALSE)*100),"") -> 47.54 | F47: =IFERROR(IF(VLOOKUP($A47,'WIAG3-RALL'!$A$14:$CZ$500,3,FALSE)<10,"",VLOOKUP($A47,'WIAG3-RALL'!$A$14:$CZ$500,11,FALSE)*100),"") -> 59.42 | G47: 11 | H47: 4 | I47: =IFERROR(IF(VLOOKUP($A47,'R-2012'!$P$6:$AD$500,3,FALSE)<10,"",VLOOKUP($A47,'R-2012'!$P$6:$AD$500,10,FALSE)),"") -> 57 | J47: =IFERROR(IF(VLOOKUP($A47,'2012 WIA-Read'!$L$14:$V$500,3,FALSE)<10,"",VLOOKUP($A47,'2012 WIA-Read'!$L$14:$V$500,11,FALSE)*100),"") -> 69.23 | K47: =IFERROR(IF(VLOOKUP($A47,'WIAG4-RALL'!$A$14:$CZ$500,3,FALSE)<10,"",VLOOKUP($A47,'WIAG4-RALL'!$A$14:$CZ$500,11,FALSE)*100),"") -> 90.16 | L47: 21 | M47: 5 | N47: =IFERROR(IF(VLOOKUP($A47,'R-2012'!$AE$6:$AS$500,3,FALSE)<10,"",VLOOKUP($A47,'R-2012'!$AE$6:$AS$500,10,FALSE)),"") -> 49 | O47: =IFERROR(IF(VLOOKUP($A47,'2012 WIA-Read'!$W$14:$AG$500,3,FALSE)<10,"",VLOOKUP($A47,'2012 WIA-Read'!$W$14:$AG$500,11,FALSE)*100),"") -> 46.67 | P47: =IFERROR(IF(VLOOKUP($A47,'WIAG5-RALL'!$A$14:$CZ$500,3,FALSE)<10,"",VLOOKUP($A47,'WIAG5-RALL'!$A$14:$CZ$500,11,FALSE)*100),"") -> 74 | Q47: 27 | R47: 3 | S47: =IFERROR(IF(VLOOKUP($A47,'M-2012'!$A$6:$N$500,3,FALSE)<10,"",VLOOKUP($A47,'M-2012'!$A$6:$N$500,10,FALSE)),"") -> 55 | T47: =IFERROR(IF(VLOOKUP($A47,'2012 WIA-Math'!$A$14:$K$500,3,FALSE)<10,"",VLOOKUP($A47,'2012 WIA-Math'!$A$14:$K$500,11,FALSE)*100),"") -> 53.33 | U47: =IFERROR(IF(VLOOKUP($A47,'WIAG3-MALL'!$A$14:$CZ$500,3,FALSE)<10,"",VLOOKUP($A47,'WIAG3-MALL'!$A$14:$CZ$500,11,FALSE)*100),"") -> 73.91 | V47: 21 | W47: 4 | X47: =IFERROR(IF(VLOOKUP($A47,'M-2012'!$O$6:$AB$500,3,FALSE)<10,"",VLOOKUP($A47,'M-2012'!$O$6:$AB$500,10,FALSE)),"") -> 70 | Y47: =IFERROR(IF(VLOOKUP($A47,'2012 WIA-Math'!$L$14:$V$500,3,FALSE)<10,"",VLOOKUP($A47,'2012 WIA-Math'!$L$14:$V$500,11,FALSE)*100),"") -> 34.62 | Z47: =IFERROR(IF(VLOOKUP($A47,'WIAG4-MALL'!$A$14:$CZ$500,3,FALSE)<10,"",VLOOKUP($A47,'WIAG4-MALL'!$A$14:$CZ$500,11,FALSE)*100),"") -> 33.33 | AA47: -2 | AB47: 5 | AC47: =IFERROR(IF(VLOOKUP($A47,'M-2012'!$AC$6:$AP$500,3,FALSE)<10,"",VLOOKUP($A47,'M-2012'!$AC$6:$AP$500,10,FALSE)),"") -> 68 | AD47: =IFERROR(IF(VLOOKUP($A47,'2012 WIA-Math'!$W$14:$AG$500,3,FALSE)<10,"",VLOOKUP($A47,'2012 WIA-Math'!$W$14:$AG$500,11,FALSE)*100),"") -> 60.34 | AE47: =IFERROR(IF(VLOOKUP($A47,'WIAG5-MALL'!$A$14:$CZ$500,3,FALSE)<10,"",VLOOKUP($A47,'WIAG5-MALL'!$A$14:$CZ$500,11,FALSE)*100),"") -> 54.9 | AF47: -5 | AG47: 5 | AH47: =IFERROR(IF(VLOOKUP(TEXT($A47,"0000"),'2012 Sci Retrofitted'!$A$3:$G$267,3,FALSE)<10,"",VLOOKUP(TEXT($A47,"0000"),'2012 Sci Retrofitted'!$A$3:$G$267,5,FALSE)),"") -> 52.38095238 | AI47: =IFERROR(IF(VLOOKUP($A47,'2012 WIA-Sci'!$A$6:$G$500,3,FALSE)<10,"",VLOOKUP($A47,'2012 WIA-Sci'!$A$6:$G$500,7,FALSE)),"") -> 71 | AJ47: =IFERROR(IF(VLOOKUP($A47,'WIAG5-SALL'!$A$14:$CZ$500,3,FALSE)<10,"",VLOOKUP($A47,'WIAG5-SALL'!$A$14:$CZ$500,11,FALSE)*100),"") -> 86.27 | AK47: 15 | AL47: =VLOOKUP(TEXT($A47,"0000"),#REF!,2,FALSE) ->  | AM47: =VLOOKUP(TEXT($A47,"0000"),#REF!,2,FALSE) -> 
A48: 4541 | B48: RAINBOW PARK ELEMENTARY | C48: 3 | D48: =IFERROR(IF(VLOOKUP($A48,'R-2012'!$A$6:$O$500,3,FALSE)<10,"",VLOOKUP($A48,'R-2012'!$A$6:$O$500,10,FALSE)),"") -> 44 | E48: =IFERROR(IF(VLOOKUP($A48,'2012 WIA-Read'!$A$14:$K$500,3,FALSE)<10,"",VLOOKUP($A48,'2012 WIA-Read'!$A$14:$K$500,11,FALSE)*100),"") -> 55.56 | F48: =IFERROR(IF(VLOOKUP($A48,'WIAG3-RALL'!$A$14:$CZ$500,3,FALSE)<10,"",VLOOKUP($A48,'WIAG3-RALL'!$A$14:$CZ$500,11,FALSE)*100),"") -> 43.75 | G48: -12 | H48: 4 | I48: =IFERROR(IF(VLOOKUP($A48,'R-2012'!$P$6:$AD$500,3,FALSE)<10,"",VLOOKUP($A48,'R-2012'!$P$6:$AD$500,10,FALSE)),"") -> 51 | J48: =IFERROR(IF(VLOOKUP($A48,'2012 WIA-Read'!$L$14:$V$500,3,FALSE)<10,"",VLOOKUP($A48,'2012 WIA-Read'!$L$14:$V$500,11,FALSE)*100),"") -> 50.7 | K48: =IFERROR(IF(VLOOKUP($A48,'WIAG4-RALL'!$A$14:$CZ$500,3,FALSE)<10,"",VLOOKUP($A48,'WIAG4-RALL'!$A$14:$CZ$500,11,FALSE)*100),"") -> 57.41 | L48: 6 | M48: 5 | N48: =IFERROR(IF(VLOOKUP($A48,'R-2012'!$AE$6:$AS$500,3,FALSE)<10,"",VLOOKUP($A48,'R-2012'!$AE$6:$AS$500,10,FALSE)),"") -> 47 | O48: =IFERROR(IF(VLOOKUP($A48,'2012 WIA-Read'!$W$14:$AG$500,3,FALSE)<10,"",VLOOKUP($A48,'2012 WIA-Read'!$W$14:$AG$500,11,FALSE)*100),"") -> 55.71 | P48: =IFERROR(IF(VLOOKUP($A48,'WIAG5-RALL'!$A$14:$CZ$500,3,FALSE)<10,"",VLOOKUP($A48,'WIAG5-RALL'!$A$14:$CZ$500,11,FALSE)*100),"") -> 55.07 | Q48: -1 | R48: 3 | S48: =IFERROR(IF(VLOOKUP($A48,'M-2012'!$A$6:$N$500,3,FALSE)<10,"",VLOOKUP($A48,'M-2012'!$A$6:$N$500,10,FALSE)),"") -> 52 | T48: =IFERROR(IF(VLOOKUP($A48,'2012 WIA-Math'!$A$14:$K$500,3,FALSE)<10,"",VLOOKUP($A48,'2012 WIA-Math'!$A$14:$K$500,11,FALSE)*100),"") -> 30.65 | U48: =IFERROR(IF(VLOOKUP($A48,'WIAG3-MALL'!$A$14:$CZ$500,3,FALSE)<10,"",VLOOKUP($A48,'WIAG3-MALL'!$A$14:$CZ$500,11,FALSE)*100),"") -> 49.21 | V48: 18 | W48: 4 | X48: =IFERROR(IF(VLOOKUP($A48,'M-2012'!$O$6:$AB$500,3,FALSE)<10,"",VLOOKUP($A48,'M-2012'!$O$6:$AB$500,10,FALSE)),"") -> 64 | Y48: =IFERROR(IF(VLOOKUP($A48,'2012 WIA-Math'!$L$14:$V$500,3,FALSE)<10,"",VLOOKUP($A48,'2012 WIA-Math'!$L$14:$V$500,11,FALSE)*100),"") -> 67.61 | Z48: =IFERROR(IF(VLOOKUP($A48,'WIAG4-MALL'!$A$14:$CZ$500,3,FALSE)<10,"",VLOOKUP($A48,'WIAG4-MALL'!$A$14:$CZ$500,11,FALSE)*100),"") -> 50 | AA48: -18 | AB48: 5 | AC48: =IFERROR(IF(VLOOKUP($A48,'M-2012'!$AC$6:$AP$500,3,FALSE)<10,"",VLOOKUP($A48,'M-2012'!$AC$6:$AP$500,10,FALSE)),"") -> 56 | AD48: =IFERROR(IF(VLOOKUP($A48,'2012 WIA-Math'!$W$14:$AG$500,3,FALSE)<10,"",VLOOKUP($A48,'2012 WIA-Math'!$W$14:$AG$500,11,FALSE)*100),"") -> 55.71 | AE48: =IFERROR(IF(VLOOKUP($A48,'WIAG5-MALL'!$A$14:$CZ$500,3,FALSE)<10,"",VLOOKUP($A48,'WIAG5-MALL'!$A$14:$CZ$500,11,FALSE)*100),"") -> 61.43 | AF48: 5 | AG48: 5 | AH48: =IFERROR(IF(VLOOKUP(TEXT($A48,"0000"),'2012 Sci Retrofitted'!$A$3:$G$267,3,FALSE)<10,"",VLOOKUP(TEXT($A48,"0000"),'2012 Sci Retrofitted'!$A$3:$G$267,5,FALSE)),"") -> 40.29850746 | AI48: =IFERROR(IF(VLOOKUP($A48,'2012 WIA-Sci'!$A$6:$G$500,3,FALSE)<10,"",VLOOKUP($A48,'2012 WIA-Sci'!$A$6:$G$500,7,FALSE)),"") -> 41 | AJ48: =IFERROR(IF(VLOOKUP($A48,'WIAG5-SALL'!$A$14:$CZ$500,3,FALSE)<10,"",VLOOKUP($A48,'WIAG5-SALL'!$A$14:$CZ$500,11,FALSE)*100),"") -> 52.86 | AK48: 12 | AL48: =VLOOKUP(TEXT($A48,"0000"),#REF!,2,FALSE) ->  | AM48: =VLOOKUP(TEXT($A48,"0000"),#REF!,2,FALSE) -> 
A49: 4801 | B49: GERTRUDE EDELMAN/SABAL PALM EL | C49: 3 | D49: =IFERROR(IF(VLOOKUP($A49,'R-2012'!$A$6:$O$500,3,FALSE)<10,"",VLOOKUP($A49,'R-2012'!$A$6:$O$500,10,FALSE)),"") -> 42 | E49: =IFERROR(IF(VLOOKUP($A49,'2012 WIA-Read'!$A$14:$K$500,3,FALSE)<10,"",VLOOKUP($A49,'2012 WIA-Read'!$A$14:$K$500,11,FALSE)*100),"") -> 41.88 | F49: =IFERROR(IF(VLOOKUP($A49,'WIAG3-RALL'!$A$14:$CZ$500,3,FALSE)<10,"",VLOOKUP($A49,'WIAG3-RALL'!$A$14:$CZ$500,11,FALSE)*100),"") -> 49.04 | G49: 7 | H49: 4 | I49: =IFERROR(IF(VLOOKUP($A49,'R-2012'!$P$6:$AD$500,3,FALSE)<10,"",VLOOKUP($A49,'R-2012'!$P$6:$AD$500,10,FALSE)),"") -> 50 | J49: =IFERROR(IF(VLOOKUP($A49,'2012 WIA-Read'!$L$14:$V$500,3,FALSE)<10,"",VLOOKUP($A49,'2012 WIA-Read'!$L$14:$V$500,11,FALSE)*100),"") -> 50.71 | K49: =IFERROR(IF(VLOOKUP($A49,'WIAG4-RALL'!$A$14:$CZ$500,3,FALSE)<10,"",VLOOKUP($A49,'WIAG4-RALL'!$A$14:$CZ$500,11,FALSE)*100),"") -> 57.55 | L49: 7 | M49: 5 | N49: =IFERROR(IF(VLOOKUP($A49,'R-2012'!$AE$6:$AS$500,3,FALSE)<10,"",VLOOKUP($A49,'R-2012'!$AE$6:$AS$500,10,FALSE)),"") -> 45 | O49: =IFERROR(IF(VLOOKUP($A49,'2012 WIA-Read'!$W$14:$AG$500,3,FALSE)<10,"",VLOOKUP($A49,'2012 WIA-Read'!$W$14:$AG$500,11,FALSE)*100),"") -> 50.38 | P49: =IFERROR(IF(VLOOKUP($A49,'WIAG5-RALL'!$A$14:$CZ$500,3,FALSE)<10,"",VLOOKUP($A49,'WIAG5-RALL'!$A$14:$CZ$500,11,FALSE)*100),"") -> 53.33 | Q49: 3 | R49: 3 | S49: =IFERROR(IF(VLOOKUP($A49,'M-2012'!$A$6:$N$500,3,FALSE)<10,"",VLOOKUP($A49,'M-2012'!$A$6:$N$500,10,FALSE)),"") -> 50 | T49: =IFERROR(IF(VLOOKUP($A49,'2012 WIA-Math'!$A$14:$K$500,3,FALSE)<10,"",VLOOKUP($A49,'2012 WIA-Math'!$A$14:$K$500,11,FALSE)*100),"") -> 53.45 | U49: =IFERROR(IF(VLOOKUP($A49,'WIAG3-MALL'!$A$14:$CZ$500,3,FALSE)<10,"",VLOOKUP($A49,'WIAG3-MALL'!$A$14:$CZ$500,11,FALSE)*100),"") -> 53.85 | V49: 1 | W49: 4 | X49: =IFERROR(IF(VLOOKUP($A49,'M-2012'!$O$6:$AB$500,3,FALSE)<10,"",VLOOKUP($A49,'M-2012'!$O$6:$AB$500,10,FALSE)),"") -> 40 | Y49: =IFERROR(IF(VLOOKUP($A49,'2012 WIA-Math'!$L$14:$V$500,3,FALSE)<10,"",VLOOKUP($A49,'2012 WIA-Math'!$L$14:$V$500,11,FALSE)*100),"") -> 41.13 | Z49: =IFERROR(IF(VLOOKUP($A49,'WIAG4-MALL'!$A$14:$CZ$500,3,FALSE)<10,"",VLOOKUP($A49,'WIAG4-MALL'!$A$14:$CZ$500,11,FALSE)*100),"") -> 40.38 | AA49: -1 | AB49: 5 | AC49: =IFERROR(IF(VLOOKUP($A49,'M-2012'!$AC$6:$AP$500,3,FALSE)<10,"",VLOOKUP($A49,'M-2012'!$AC$6:$AP$500,10,FALSE)),"") -> 48 | AD49: =IFERROR(IF(VLOOKUP($A49,'2012 WIA-Math'!$W$14:$AG$500,3,FALSE)<10,"",VLOOKUP($A49,'2012 WIA-Math'!$W$14:$AG$500,11,FALSE)*100),"") -> 31.82 | AE49: =IFERROR(IF(VLOOKUP($A49,'WIAG5-MALL'!$A$14:$CZ$500,3,FALSE)<10,"",VLOOKUP($A49,'WIAG5-MALL'!$A$14:$CZ$500,11,FALSE)*100),"") -> 43.18 | AF49: 11 | AG49: 5 | AH49: =IFERROR(IF(VLOOKUP(TEXT($A49,"0000"),'2012 Sci Retrofitted'!$A$3:$G$267,3,FALSE)<10,"",VLOOKUP(TEXT($A49,"0000"),'2012 Sci Retrofitted'!$A$3:$G$267,5,FALSE)),"") -> 34.81481481 | AI49: =IFERROR(IF(VLOOKUP($A49,'2012 WIA-Sci'!$A$6:$G$500,3,FALSE)<10,"",VLOOKUP($A49,'2012 WIA-Sci'!$A$6:$G$500,7,FALSE)),"") -> 28 | AJ49: =IFERROR(IF(VLOOKUP($A49,'WIAG5-SALL'!$A$14:$CZ$500,3,FALSE)<10,"",VLOOKUP($A49,'WIAG5-SALL'!$A$14:$CZ$500,11,FALSE)*100),"") -> 51.11 | AK49: 23 | AL49: =VLOOKUP(TEXT($A49,"0000"),#REF!,2,FALSE) ->  | AM49: =VLOOKUP(TEXT($A49,"0000"),#REF!,2,FALSE) -> 
A50: 4881 | B50: SCOTT LAKE ELEMENTARY | C50: 3 | D50: =IFERROR(IF(VLOOKUP($A50,'R-2012'!$A$6:$O$500,3,FALSE)<10,"",VLOOKUP($A50,'R-2012'!$A$6:$O$500,10,FALSE)),"") -> 33 | E50: =IFERROR(IF(VLOOKUP($A50,'2012 WIA-Read'!$A$14:$K$500,3,FALSE)<10,"",VLOOKUP($A50,'2012 WIA-Read'!$A$14:$K$500,11,FALSE)*100),"") -> 35.96 | F50: =IFERROR(IF(VLOOKUP($A50,'WIAG3-RALL'!$A$14:$CZ$500,3,FALSE)<10,"",VLOOKUP($A50,'WIAG3-RALL'!$A$14:$CZ$500,11,FALSE)*100),"") -> 43.75 | G50: 8 | H50: 4 | I50: =IFERROR(IF(VLOOKUP($A50,'R-2012'!$P$6:$AD$500,3,FALSE)<10,"",VLOOKUP($A50,'R-2012'!$P$6:$AD$500,10,FALSE)),"") -> 42 | J50: =IFERROR(IF(VLOOKUP($A50,'2012 WIA-Read'!$L$14:$V$500,3,FALSE)<10,"",VLOOKUP($A50,'2012 WIA-Read'!$L$14:$V$500,11,FALSE)*100),"") -> 46.91 | K50: =IFERROR(IF(VLOOKUP($A50,'WIAG4-RALL'!$A$14:$CZ$500,3,FALSE)<10,"",VLOOKUP($A50,'WIAG4-RALL'!$A$14:$CZ$500,11,FALSE)*100),"") -> 50 | L50: 3 | M50: 5 | N50: =IFERROR(IF(VLOOKUP($A50,'R-2012'!$AE$6:$AS$500,3,FALSE)<10,"",VLOOKUP($A50,'R-2012'!$AE$6:$AS$500,10,FALSE)),"") -> 55 | O50: =IFERROR(IF(VLOOKUP($A50,'2012 WIA-Read'!$W$14:$AG$500,3,FALSE)<10,"",VLOOKUP($A50,'2012 WIA-Read'!$W$14:$AG$500,11,FALSE)*100),"") -> 54.22 | P50: =IFERROR(IF(VLOOKUP($A50,'WIAG5-RALL'!$A$14:$CZ$500,3,FALSE)<10,"",VLOOKUP($A50,'WIAG5-RALL'!$A$14:$CZ$500,11,FALSE)*100),"") -> 53.57 | Q50: 0 | R50: 3 | S50: =IFERROR(IF(VLOOKUP($A50,'M-2012'!$A$6:$N$500,3,FALSE)<10,"",VLOOKUP($A50,'M-2012'!$A$6:$N$500,10,FALSE)),"") -> 27 | T50: =IFERROR(IF(VLOOKUP($A50,'2012 WIA-Math'!$A$14:$K$500,3,FALSE)<10,"",VLOOKUP($A50,'2012 WIA-Math'!$A$14:$K$500,11,FALSE)*100),"") -> 41.57 | U50: =IFERROR(IF(VLOOKUP($A50,'WIAG3-MALL'!$A$14:$CZ$500,3,FALSE)<10,"",VLOOKUP($A50,'WIAG3-MALL'!$A$14:$CZ$500,11,FALSE)*100),"") -> 56.25 | V50: 14 | W50: 4 | X50: =IFERROR(IF(VLOOKUP($A50,'M-2012'!$O$6:$AB$500,3,FALSE)<10,"",VLOOKUP($A50,'M-2012'!$O$6:$AB$500,10,FALSE)),"") -> 39 | Y50: =IFERROR(IF(VLOOKUP($A50,'2012 WIA-Math'!$L$14:$V$500,3,FALSE)<10,"",VLOOKUP($A50,'2012 WIA-Math'!$L$14:$V$500,11,FALSE)*100),"") -> 62.03 | Z50: =IFERROR(IF(VLOOKUP($A50,'WIAG4-MALL'!$A$14:$CZ$500,3,FALSE)<10,"",VLOOKUP($A50,'WIAG4-MALL'!$A$14:$CZ$500,11,FALSE)*100),"") -> 50 | AA50: -12 | AB50: 5 | AC50: =IFERROR(IF(VLOOKUP($A50,'M-2012'!$AC$6:$AP$500,3,FALSE)<10,"",VLOOKUP($A50,'M-2012'!$AC$6:$AP$500,10,FALSE)),"") -> 43 | AD50: =IFERROR(IF(VLOOKUP($A50,'2012 WIA-Math'!$W$14:$AG$500,3,FALSE)<10,"",VLOOKUP($A50,'2012 WIA-Math'!$W$14:$AG$500,11,FALSE)*100),"") -> 72.29 | AE50: =IFERROR(IF(VLOOKUP($A50,'WIAG5-MALL'!$A$14:$CZ$500,3,FALSE)<10,"",VLOOKUP($A50,'WIAG5-MALL'!$A$14:$CZ$500,11,FALSE)*100),"") -> 32.93 | AF50: -39 | AG50: 5 | AH50: =IFERROR(IF(VLOOKUP(TEXT($A50,"0000"),'2012 Sci Retrofitted'!$A$3:$G$267,3,FALSE)<10,"",VLOOKUP(TEXT($A50,"0000"),'2012 Sci Retrofitted'!$A$3:$G$267,5,FALSE)),"") -> 41.46341463 | AI50: =IFERROR(IF(VLOOKUP($A50,'2012 WIA-Sci'!$A$6:$G$500,3,FALSE)<10,"",VLOOKUP($A50,'2012 WIA-Sci'!$A$6:$G$500,7,FALSE)),"") -> 51 | AJ50: =IFERROR(IF(VLOOKUP($A50,'WIAG5-SALL'!$A$14:$CZ$500,3,FALSE)<10,"",VLOOKUP($A50,'WIAG5-SALL'!$A$14:$CZ$500,11,FALSE)*100),"") -> 55.95 | AK50: 5 | AL50: =VLOOKUP(TEXT($A50,"0000"),#REF!,2,FALSE) ->  | AM50: =VLOOKUP(TEXT($A50,"0000"),#REF!,2,FALSE) -> 
A51: 5005 | B51: DAVID LAWRENCE JR K-8 CENTER | C51: 3 | D51: =IFERROR(IF(VLOOKUP($A51,'R-2012'!$A$6:$O$500,3,FALSE)<10,"",VLOOKUP($A51,'R-2012'!$A$6:$O$500,10,FALSE)),"") -> 52 | E51: =IFERROR(IF(VLOOKUP($A51,'2012 WIA-Read'!$A$14:$K$500,3,FALSE)<10,"",VLOOKUP($A51,'2012 WIA-Read'!$A$14:$K$500,11,FALSE)*100),"") -> 46.33 | F51: =IFERROR(IF(VLOOKUP($A51,'WIAG3-RALL'!$A$14:$CZ$500,3,FALSE)<10,"",VLOOKUP($A51,'WIAG3-RALL'!$A$14:$CZ$500,11,FALSE)*100),"") -> 49.24 | G51: 3 | H51: 4 | I51: =IFERROR(IF(VLOOKUP($A51,'R-2012'!$P$6:$AD$500,3,FALSE)<10,"",VLOOKUP($A51,'R-2012'!$P$6:$AD$500,10,FALSE)),"") -> 65 | J51: =IFERROR(IF(VLOOKUP($A51,'2012 WIA-Read'!$L$14:$V$500,3,FALSE)<10,"",VLOOKUP($A51,'2012 WIA-Read'!$L$14:$V$500,11,FALSE)*100),"") -> 64.63 | K51: =IFERROR(IF(VLOOKUP($A51,'WIAG4-RALL'!$A$14:$CZ$500,3,FALSE)<10,"",VLOOKUP($A51,'WIAG4-RALL'!$A$14:$CZ$500,11,FALSE)*100),"") -> 63.37 | L51: -2 | M51: 5 | N51: =IFERROR(IF(VLOOKUP($A51,'R-2012'!$AE$6:$AS$500,3,FALSE)<10,"",VLOOKUP($A51,'R-2012'!$AE$6:$AS$500,10,FALSE)),"") -> 64 | O51: =IFERROR(IF(VLOOKUP($A51,'2012 WIA-Read'!$W$14:$AG$500,3,FALSE)<10,"",VLOOKUP($A51,'2012 WIA-Read'!$W$14:$AG$500,11,FALSE)*100),"") -> 57.5 | P51: =IFERROR(IF(VLOOKUP($A51,'WIAG5-RALL'!$A$14:$CZ$500,3,FALSE)<10,"",VLOOKUP($A51,'WIAG5-RALL'!$A$14:$CZ$500,11,FALSE)*100),"") -> 64.56 | Q51: 7 | R51: 3 | S51: =IFERROR(IF(VLOOKUP($A51,'M-2012'!$A$6:$N$500,3,FALSE)<10,"",VLOOKUP($A51,'M-2012'!$A$6:$N$500,10,FALSE)),"") -> 59 | T51: =IFERROR(IF(VLOOKUP($A51,'2012 WIA-Math'!$A$14:$K$500,3,FALSE)<10,"",VLOOKUP($A51,'2012 WIA-Math'!$A$14:$K$500,11,FALSE)*100),"") -> 39.44 | U51: =IFERROR(IF(VLOOKUP($A51,'WIAG3-MALL'!$A$14:$CZ$500,3,FALSE)<10,"",VLOOKUP($A51,'WIAG3-MALL'!$A$14:$CZ$500,11,FALSE)*100),"") -> 48.22 | V51: 9 | W51: 4 | X51: =IFERROR(IF(VLOOKUP($A51,'M-2012'!$O$6:$AB$500,3,FALSE)<10,"",VLOOKUP($A51,'M-2012'!$O$6:$AB$500,10,FALSE)),"") -> 50 | Y51: =IFERROR(IF(VLOOKUP($A51,'2012 WIA-Math'!$L$14:$V$500,3,FALSE)<10,"",VLOOKUP($A51,'2012 WIA-Math'!$L$14:$V$500,11,FALSE)*100),"") -> 59.46 | Z51: =IFERROR(IF(VLOOKUP($A51,'WIAG4-MALL'!$A$14:$CZ$500,3,FALSE)<10,"",VLOOKUP($A51,'WIAG4-MALL'!$A$14:$CZ$500,11,FALSE)*100),"") -> 53.85 | AA51: -5 | AB51: 5 | AC51: =IFERROR(IF(VLOOKUP($A51,'M-2012'!$AC$6:$AP$500,3,FALSE)<10,"",VLOOKUP($A51,'M-2012'!$AC$6:$AP$500,10,FALSE)),"") -> 56 | AD51: =IFERROR(IF(VLOOKUP($A51,'2012 WIA-Math'!$W$14:$AG$500,3,FALSE)<10,"",VLOOKUP($A51,'2012 WIA-Math'!$W$14:$AG$500,11,FALSE)*100),"") -> 51.25 | AE51: =IFERROR(IF(VLOOKUP($A51,'WIAG5-MALL'!$A$14:$CZ$500,3,FALSE)<10,"",VLOOKUP($A51,'WIAG5-MALL'!$A$14:$CZ$500,11,FALSE)*100),"") -> 46.88 | AF51: -4 | AG51: 5 | AH51: =IFERROR(IF(VLOOKUP(TEXT($A51,"0000"),'2012 Sci Retrofitted'!$A$3:$G$267,3,FALSE)<10,"",VLOOKUP(TEXT($A51,"0000"),'2012 Sci Retrofitted'!$A$3:$G$267,5,FALSE)),"") -> 52.17391304 | AI51: =IFERROR(IF(VLOOKUP($A51,'2012 WIA-Sci'!$A$6:$G$500,3,FALSE)<10,"",VLOOKUP($A51,'2012 WIA-Sci'!$A$6:$G$500,7,FALSE)),"") -> 47 | AJ51: =IFERROR(IF(VLOOKUP($A51,'WIAG5-SALL'!$A$14:$CZ$500,3,FALSE)<10,"",VLOOKUP($A51,'WIAG5-SALL'!$A$14:$CZ$500,11,FALSE)*100),"") -> 63.23 | AK51: 16 | AL51: =VLOOKUP(TEXT($A51,"0000"),#REF!,2,FALSE) ->  | AM51: =VLOOKUP(TEXT($A51,"0000"),#REF!,2,FALSE) -> 
A52: 5021 | B52: BEN SHEPPARD ELEMENTARY | C52: 3 | D52: =IFERROR(IF(VLOOKUP($A52,'R-2012'!$A$6:$O$500,3,FALSE)<10,"",VLOOKUP($A52,'R-2012'!$A$6:$O$500,10,FALSE)),"") -> 52 | E52: =IFERROR(IF(VLOOKUP($A52,'2012 WIA-Read'!$A$14:$K$500,3,FALSE)<10,"",VLOOKUP($A52,'2012 WIA-Read'!$A$14:$K$500,11,FALSE)*100),"") -> 48.19 | F52: =IFERROR(IF(VLOOKUP($A52,'WIAG3-RALL'!$A$14:$CZ$500,3,FALSE)<10,"",VLOOKUP($A52,'WIAG3-RALL'!$A$14:$CZ$500,11,FALSE)*100),"") -> 43.59 | G52: -4 | H52: 4 | I52: =IFERROR(IF(VLOOKUP($A52,'R-2012'!$P$6:$AD$500,3,FALSE)<10,"",VLOOKUP($A52,'R-2012'!$P$6:$AD$500,10,FALSE)),"") -> 47 | J52: =IFERROR(IF(VLOOKUP($A52,'2012 WIA-Read'!$L$14:$V$500,3,FALSE)<10,"",VLOOKUP($A52,'2012 WIA-Read'!$L$14:$V$500,11,FALSE)*100),"") -> 50.99 | K52: =IFERROR(IF(VLOOKUP($A52,'WIAG4-RALL'!$A$14:$CZ$500,3,FALSE)<10,"",VLOOKUP($A52,'WIAG4-RALL'!$A$14:$CZ$500,11,FALSE)*100),"") -> 61.78 | L52: 11 | M52: 5 | N52: =IFERROR(IF(VLOOKUP($A52,'R-2012'!$AE$6:$AS$500,3,FALSE)<10,"",VLOOKUP($A52,'R-2012'!$AE$6:$AS$500,10,FALSE)),"") -> 46 | O52: =IFERROR(IF(VLOOKUP($A52,'2012 WIA-Read'!$W$14:$AG$500,3,FALSE)<10,"",VLOOKUP($A52,'2012 WIA-Read'!$W$14:$AG$500,11,FALSE)*100),"") -> 47.62 | P52: =IFERROR(IF(VLOOKUP($A52,'WIAG5-RALL'!$A$14:$CZ$500,3,FALSE)<10,"",VLOOKUP($A52,'WIAG5-RALL'!$A$14:$CZ$500,11,FALSE)*100),"") -> 48.32 | Q52: 0 | R52: 3 | S52: =IFERROR(IF(VLOOKUP($A52,'M-2012'!$A$6:$N$500,3,FALSE)<10,"",VLOOKUP($A52,'M-2012'!$A$6:$N$500,10,FALSE)),"") -> 60 | T52: =IFERROR(IF(VLOOKUP($A52,'2012 WIA-Math'!$A$14:$K$500,3,FALSE)<10,"",VLOOKUP($A52,'2012 WIA-Math'!$A$14:$K$500,11,FALSE)*100),"") -> 54.55 | U52: =IFERROR(IF(VLOOKUP($A52,'WIAG3-MALL'!$A$14:$CZ$500,3,FALSE)<10,"",VLOOKUP($A52,'WIAG3-MALL'!$A$14:$CZ$500,11,FALSE)*100),"") -> 59.74 | V52: 5 | W52: 4 | X52: =IFERROR(IF(VLOOKUP($A52,'M-2012'!$O$6:$AB$500,3,FALSE)<10,"",VLOOKUP($A52,'M-2012'!$O$6:$AB$500,10,FALSE)),"") -> 58 | Y52: =IFERROR(IF(VLOOKUP($A52,'2012 WIA-Math'!$L$14:$V$500,3,FALSE)<10,"",VLOOKUP($A52,'2012 WIA-Math'!$L$14:$V$500,11,FALSE)*100),"") -> 53.33 | Z52: =IFERROR(IF(VLOOKUP($A52,'WIAG4-MALL'!$A$14:$CZ$500,3,FALSE)<10,"",VLOOKUP($A52,'WIAG4-MALL'!$A$14:$CZ$500,11,FALSE)*100),"") -> 61.39 | AA52: 8 | AB52: 5 | AC52: =IFERROR(IF(VLOOKUP($A52,'M-2012'!$AC$6:$AP$500,3,FALSE)<10,"",VLOOKUP($A52,'M-2012'!$AC$6:$AP$500,10,FALSE)),"") -> 52 | AD52: =IFERROR(IF(VLOOKUP($A52,'2012 WIA-Math'!$W$14:$AG$500,3,FALSE)<10,"",VLOOKUP($A52,'2012 WIA-Math'!$W$14:$AG$500,11,FALSE)*100),"") -> 53.29 | AE52: =IFERROR(IF(VLOOKUP($A52,'WIAG5-MALL'!$A$14:$CZ$500,3,FALSE)<10,"",VLOOKUP($A52,'WIAG5-MALL'!$A$14:$CZ$500,11,FALSE)*100),"") -> 69.44 | AF52: 16 | AG52: 5 | AH52: =IFERROR(IF(VLOOKUP(TEXT($A52,"0000"),'2012 Sci Retrofitted'!$A$3:$G$267,3,FALSE)<10,"",VLOOKUP(TEXT($A52,"0000"),'2012 Sci Retrofitted'!$A$3:$G$267,5,FALSE)),"") -> 42.6035503 | AI52: =IFERROR(IF(VLOOKUP($A52,'2012 WIA-Sci'!$A$6:$G$500,3,FALSE)<10,"",VLOOKUP($A52,'2012 WIA-Sci'!$A$6:$G$500,7,FALSE)),"") -> 45 | AJ52: =IFERROR(IF(VLOOKUP($A52,'WIAG5-SALL'!$A$14:$CZ$500,3,FALSE)<10,"",VLOOKUP($A52,'WIAG5-SALL'!$A$14:$CZ$500,11,FALSE)*100),"") -> 66.89 | AK52: 22 | AL52: =VLOOKUP(TEXT($A52,"0000"),#REF!,2,FALSE) ->  | AM52: =VLOOKUP(TEXT($A52,"0000"),#REF!,2,FALSE) -> 
A53: 5051 | B53: ERNEST R GRAHAM K-8 CENTER | C53: 3 | D53: =IFERROR(IF(VLOOKUP($A53,'R-2012'!$A$6:$O$500,3,FALSE)<10,"",VLOOKUP($A53,'R-2012'!$A$6:$O$500,10,FALSE)),"") -> 64 | E53: =IFERROR(IF(VLOOKUP($A53,'2012 WIA-Read'!$A$14:$K$500,3,FALSE)<10,"",VLOOKUP($A53,'2012 WIA-Read'!$A$14:$K$500,11,FALSE)*100),"") -> 60.21 | F53: =IFERROR(IF(VLOOKUP($A53,'WIAG3-RALL'!$A$14:$CZ$500,3,FALSE)<10,"",VLOOKUP($A53,'WIAG3-RALL'!$A$14:$CZ$500,11,FALSE)*100),"") -> 61.25 | G53: 1 | H53: 4 | I53: =IFERROR(IF(VLOOKUP($A53,'R-2012'!$P$6:$AD$500,3,FALSE)<10,"",VLOOKUP($A53,'R-2012'!$P$6:$AD$500,10,FALSE)),"") -> 68 | J53: =IFERROR(IF(VLOOKUP($A53,'2012 WIA-Read'!$L$14:$V$500,3,FALSE)<10,"",VLOOKUP($A53,'2012 WIA-Read'!$L$14:$V$500,11,FALSE)*100),"") -> 69.34 | K53: =IFERROR(IF(VLOOKUP($A53,'WIAG4-RALL'!$A$14:$CZ$500,3,FALSE)<10,"",VLOOKUP($A53,'WIAG4-RALL'!$A$14:$CZ$500,11,FALSE)*100),"") -> 65.82 | L53: -3 | M53: 5 | N53: =IFERROR(IF(VLOOKUP($A53,'R-2012'!$AE$6:$AS$500,3,FALSE)<10,"",VLOOKUP($A53,'R-2012'!$AE$6:$AS$500,10,FALSE)),"") -> 67 | O53: =IFERROR(IF(VLOOKUP($A53,'2012 WIA-Read'!$W$14:$AG$500,3,FALSE)<10,"",VLOOKUP($A53,'2012 WIA-Read'!$W$14:$AG$500,11,FALSE)*100),"") -> 64.91 | P53: =IFERROR(IF(VLOOKUP($A53,'WIAG5-RALL'!$A$14:$CZ$500,3,FALSE)<10,"",VLOOKUP($A53,'WIAG5-RALL'!$A$14:$CZ$500,11,FALSE)*100),"") -> 68.72 | Q53: 4 | R53: 3 | S53: =IFERROR(IF(VLOOKUP($A53,'M-2012'!$A$6:$N$500,3,FALSE)<10,"",VLOOKUP($A53,'M-2012'!$A$6:$N$500,10,FALSE)),"") -> 69 | T53: =IFERROR(IF(VLOOKUP($A53,'2012 WIA-Math'!$A$14:$K$500,3,FALSE)<10,"",VLOOKUP($A53,'2012 WIA-Math'!$A$14:$K$500,11,FALSE)*100),"") -> 59.16 | U53: =IFERROR(IF(VLOOKUP($A53,'WIAG3-MALL'!$A$14:$CZ$500,3,FALSE)<10,"",VLOOKUP($A53,'WIAG3-MALL'!$A$14:$CZ$500,11,FALSE)*100),"") -> 77.41 | V53: 18 | W53: 4 | X53: =IFERROR(IF(VLOOKUP($A53,'M-2012'!$O$6:$AB$500,3,FALSE)<10,"",VLOOKUP($A53,'M-2012'!$O$6:$AB$500,10,FALSE)),"") -> 70 | Y53: =IFERROR(IF(VLOOKUP($A53,'2012 WIA-Math'!$L$14:$V$500,3,FALSE)<10,"",VLOOKUP($A53,'2012 WIA-Math'!$L$14:$V$500,11,FALSE)*100),"") -> 68.25 | Z53: =IFERROR(IF(VLOOKUP($A53,'WIAG4-MALL'!$A$14:$CZ$500,3,FALSE)<10,"",VLOOKUP($A53,'WIAG4-MALL'!$A$14:$CZ$500,11,FALSE)*100),"") -> 74.49 | AA53: 6 | AB53: 5 | AC53: =IFERROR(IF(VLOOKUP($A53,'M-2012'!$AC$6:$AP$500,3,FALSE)<10,"",VLOOKUP($A53,'M-2012'!$AC$6:$AP$500,10,FALSE)),"") -> 70 | AD53: =IFERROR(IF(VLOOKUP($A53,'2012 WIA-Math'!$W$14:$AG$500,3,FALSE)<10,"",VLOOKUP($A53,'2012 WIA-Math'!$W$14:$AG$500,11,FALSE)*100),"") -> 61.13 | AE53: =IFERROR(IF(VLOOKUP($A53,'WIAG5-MALL'!$A$14:$CZ$500,3,FALSE)<10,"",VLOOKUP($A53,'WIAG5-MALL'!$A$14:$CZ$500,11,FALSE)*100),"") -> 64.2 | AF53: 3 | AG53: 5 | AH53: =IFERROR(IF(VLOOKUP(TEXT($A53,"0000"),'2012 Sci Retrofitted'!$A$3:$G$267,3,FALSE)<10,"",VLOOKUP(TEXT($A53,"0000"),'2012 Sci Retrofitted'!$A$3:$G$267,5,FALSE)),"") -> 62.03007519 | AI53: =IFERROR(IF(VLOOKUP($A53,'2012 WIA-Sci'!$A$6:$G$500,3,FALSE)<10,"",VLOOKUP($A53,'2012 WIA-Sci'!$A$6:$G$500,7,FALSE)),"") -> 62 | AJ53: =IFERROR(IF(VLOOKUP($A53,'WIAG5-SALL'!$A$14:$CZ$500,3,FALSE)<10,"",VLOOKUP($A53,'WIAG5-SALL'!$A$14:$CZ$500,11,FALSE)*100),"") -> 61.25 | AK53: -1 | AL53: =VLOOKUP(TEXT($A53,"0000"),#REF!,2,FALSE) ->  | AM53: =VLOOKUP(TEXT($A53,"0000"),#REF!,2,FALSE) -> 
A54: 5091 | B54: SOUTH POINTE ELEMENTARY | C54: 3 | D54: =IFERROR(IF(VLOOKUP($A54,'R-2012'!$A$6:$O$500,3,FALSE)<10,"",VLOOKUP($A54,'R-2012'!$A$6:$O$500,10,FALSE)),"") -> 84 | E54: =IFERROR(IF(VLOOKUP($A54,'2012 WIA-Read'!$A$14:$K$500,3,FALSE)<10,"",VLOOKUP($A54,'2012 WIA-Read'!$A$14:$K$500,11,FALSE)*100),"") -> 80.22 | F54: =IFERROR(IF(VLOOKUP($A54,'WIAG3-RALL'!$A$14:$CZ$500,3,FALSE)<10,"",VLOOKUP($A54,'WIAG3-RALL'!$A$14:$CZ$500,11,FALSE)*100),"") -> 80.9 | G54: 1 | H54: 4 | I54: =IFERROR(IF(VLOOKUP($A54,'R-2012'!$P$6:$AD$500,3,FALSE)<10,"",VLOOKUP($A54,'R-2012'!$P$6:$AD$500,10,FALSE)),"") -> 85 | J54: =IFERROR(IF(VLOOKUP($A54,'2012 WIA-Read'!$L$14:$V$500,3,FALSE)<10,"",VLOOKUP($A54,'2012 WIA-Read'!$L$14:$V$500,11,FALSE)*100),"") -> 89.33 | K54: =IFERROR(IF(VLOOKUP($A54,'WIAG4-RALL'!$A$14:$CZ$500,3,FALSE)<10,"",VLOOKUP($A54,'WIAG4-RALL'!$A$14:$CZ$500,11,FALSE)*100),"") -> 85.56 | L54: -3 | M54: 5 | N54: =IFERROR(IF(VLOOKUP($A54,'R-2012'!$AE$6:$AS$500,3,FALSE)<10,"",VLOOKUP($A54,'R-2012'!$AE$6:$AS$500,10,FALSE)),"") -> 80 | O54: =IFERROR(IF(VLOOKUP($A54,'2012 WIA-Read'!$W$14:$AG$500,3,FALSE)<10,"",VLOOKUP($A54,'2012 WIA-Read'!$W$14:$AG$500,11,FALSE)*100),"") -> 75.9 | P54: =IFERROR(IF(VLOOKUP($A54,'WIAG5-RALL'!$A$14:$CZ$500,3,FALSE)<10,"",VLOOKUP($A54,'WIAG5-RALL'!$A$14:$CZ$500,11,FALSE)*100),"") -> 83.1 | Q54: 7 | R54: 3 | S54: =IFERROR(IF(VLOOKUP($A54,'M-2012'!$A$6:$N$500,3,FALSE)<10,"",VLOOKUP($A54,'M-2012'!$A$6:$N$500,10,FALSE)),"") -> 77 | T54: =IFERROR(IF(VLOOKUP($A54,'2012 WIA-Math'!$A$14:$K$500,3,FALSE)<10,"",VLOOKUP($A54,'2012 WIA-Math'!$A$14:$K$500,11,FALSE)*100),"") -> 79.12 | U54: =IFERROR(IF(VLOOKUP($A54,'WIAG3-MALL'!$A$14:$CZ$500,3,FALSE)<10,"",VLOOKUP($A54,'WIAG3-MALL'!$A$14:$CZ$500,11,FALSE)*100),"") -> 92.05 | V54: 13 | W54: 4 | X54: =IFERROR(IF(VLOOKUP($A54,'M-2012'!$O$6:$AB$500,3,FALSE)<10,"",VLOOKUP($A54,'M-2012'!$O$6:$AB$500,10,FALSE)),"") -> 86 | Y54: =IFERROR(IF(VLOOKUP($A54,'2012 WIA-Math'!$L$14:$V$500,3,FALSE)<10,"",VLOOKUP($A54,'2012 WIA-Math'!$L$14:$V$500,11,FALSE)*100),"") -> 76.92 | Z54: =IFERROR(IF(VLOOKUP($A54,'WIAG4-MALL'!$A$14:$CZ$500,3,FALSE)<10,"",VLOOKUP($A54,'WIAG4-MALL'!$A$14:$CZ$500,11,FALSE)*100),"") -> 78.16 | AA54: 1 | AB54: 5 | AC54: =IFERROR(IF(VLOOKUP($A54,'M-2012'!$AC$6:$AP$500,3,FALSE)<10,"",VLOOKUP($A54,'M-2012'!$AC$6:$AP$500,10,FALSE)),"") -> 74 | AD54: =IFERROR(IF(VLOOKUP($A54,'2012 WIA-Math'!$W$14:$AG$500,3,FALSE)<10,"",VLOOKUP($A54,'2012 WIA-Math'!$W$14:$AG$500,11,FALSE)*100),"") -> 70.24 | AE54: =IFERROR(IF(VLOOKUP($A54,'WIAG5-MALL'!$A$14:$CZ$500,3,FALSE)<10,"",VLOOKUP($A54,'WIAG5-MALL'!$A$14:$CZ$500,11,FALSE)*100),"") -> 63.01 | AF54: -7 | AG54: 5 | AH54: =IFERROR(IF(VLOOKUP(TEXT($A54,"0000"),'2012 Sci Retrofitted'!$A$3:$G$267,3,FALSE)<10,"",VLOOKUP(TEXT($A54,"0000"),'2012 Sci Retrofitted'!$A$3:$G$267,5,FALSE)),"") -> 74.11764706 | AI54: =IFERROR(IF(VLOOKUP($A54,'2012 WIA-Sci'!$A$6:$G$500,3,FALSE)<10,"",VLOOKUP($A54,'2012 WIA-Sci'!$A$6:$G$500,7,FALSE)),"") -> 66 | AJ54: =IFERROR(IF(VLOOKUP($A54,'WIAG5-SALL'!$A$14:$CZ$500,3,FALSE)<10,"",VLOOKUP($A54,'WIAG5-SALL'!$A$14:$CZ$500,11,FALSE)*100),"") -> 81.94 | AK54: 16 | AL54: =VLOOKUP(TEXT($A54,"0000"),#REF!,2,FALSE) ->  | AM54: =VLOOKUP(TEXT($A54,"0000"),#REF!,2,FALSE) -> 
A55: 5131 | B55: N. DADE CTR FOR MODERN LANG | C55: 3 | D55: =IFERROR(IF(VLOOKUP($A55,'R-2012'!$A$6:$O$500,3,FALSE)<10,"",VLOOKUP($A55,'R-2012'!$A$6:$O$500,10,FALSE)),"") -> 87 | E55: =IFERROR(IF(VLOOKUP($A55,'2012 WIA-Read'!$A$14:$K$500,3,FALSE)<10,"",VLOOKUP($A55,'2012 WIA-Read'!$A$14:$K$500,11,FALSE)*100),"") -> 76.34 | F55: =IFERROR(IF(VLOOKUP($A55,'WIAG3-RALL'!$A$14:$CZ$500,3,FALSE)<10,"",VLOOKUP($A55,'WIAG3-RALL'!$A$14:$CZ$500,11,FALSE)*100),"") -> 76.19 | G55: 0 | H55: 4 | I55: =IFERROR(IF(VLOOKUP($A55,'R-2012'!$P$6:$AD$500,3,FALSE)<10,"",VLOOKUP($A55,'R-2012'!$P$6:$AD$500,10,FALSE)),"") -> 84 | J55: =IFERROR(IF(VLOOKUP($A55,'2012 WIA-Read'!$L$14:$V$500,3,FALSE)<10,"",VLOOKUP($A55,'2012 WIA-Read'!$L$14:$V$500,11,FALSE)*100),"") -> 81.82 | K55: =IFERROR(IF(VLOOKUP($A55,'WIAG4-RALL'!$A$14:$CZ$500,3,FALSE)<10,"",VLOOKUP($A55,'WIAG4-RALL'!$A$14:$CZ$500,11,FALSE)*100),"") -> 74.73 | L55: -7 | M55: 5 | N55: =IFERROR(IF(VLOOKUP($A55,'R-2012'!$AE$6:$AS$500,3,FALSE)<10,"",VLOOKUP($A55,'R-2012'!$AE$6:$AS$500,10,FALSE)),"") -> 82 | O55: =IFERROR(IF(VLOOKUP($A55,'2012 WIA-Read'!$W$14:$AG$500,3,FALSE)<10,"",VLOOKUP($A55,'2012 WIA-Read'!$W$14:$AG$500,11,FALSE)*100),"") -> 78.95 | P55: =IFERROR(IF(VLOOKUP($A55,'WIAG5-RALL'!$A$14:$CZ$500,3,FALSE)<10,"",VLOOKUP($A55,'WIAG5-RALL'!$A$14:$CZ$500,11,FALSE)*100),"") -> 84.42 | Q55: 5 | R55: 3 | S55: =IFERROR(IF(VLOOKUP($A55,'M-2012'!$A$6:$N$500,3,FALSE)<10,"",VLOOKUP($A55,'M-2012'!$A$6:$N$500,10,FALSE)),"") -> 82 | T55: =IFERROR(IF(VLOOKUP($A55,'2012 WIA-Math'!$A$14:$K$500,3,FALSE)<10,"",VLOOKUP($A55,'2012 WIA-Math'!$A$14:$K$500,11,FALSE)*100),"") -> 77.42 | U55: =IFERROR(IF(VLOOKUP($A55,'WIAG3-MALL'!$A$14:$CZ$500,3,FALSE)<10,"",VLOOKUP($A55,'WIAG3-MALL'!$A$14:$CZ$500,11,FALSE)*100),"") -> 72.62 | V55: -4 | W55: 4 | X55: =IFERROR(IF(VLOOKUP($A55,'M-2012'!$O$6:$AB$500,3,FALSE)<10,"",VLOOKUP($A55,'M-2012'!$O$6:$AB$500,10,FALSE)),"") -> 86 | Y55: =IFERROR(IF(VLOOKUP($A55,'2012 WIA-Math'!$L$14:$V$500,3,FALSE)<10,"",VLOOKUP($A55,'2012 WIA-Math'!$L$14:$V$500,11,FALSE)*100),"") -> 87.01 | Z55: =IFERROR(IF(VLOOKUP($A55,'WIAG4-MALL'!$A$14:$CZ$500,3,FALSE)<10,"",VLOOKUP($A55,'WIAG4-MALL'!$A$14:$CZ$500,11,FALSE)*100),"") -> 82.61 | AA55: -4 | AB55: 5 | AC55: =IFERROR(IF(VLOOKUP($A55,'M-2012'!$AC$6:$AP$500,3,FALSE)<10,"",VLOOKUP($A55,'M-2012'!$AC$6:$AP$500,10,FALSE)),"") -> 72 | AD55: =IFERROR(IF(VLOOKUP($A55,'2012 WIA-Math'!$W$14:$AG$500,3,FALSE)<10,"",VLOOKUP($A55,'2012 WIA-Math'!$W$14:$AG$500,11,FALSE)*100),"") -> 64.47 | AE55: =IFERROR(IF(VLOOKUP($A55,'WIAG5-MALL'!$A$14:$CZ$500,3,FALSE)<10,"",VLOOKUP($A55,'WIAG5-MALL'!$A$14:$CZ$500,11,FALSE)*100),"") -> 81.82 | AF55: 18 | AG55: 5 | AH55: =IFERROR(IF(VLOOKUP(TEXT($A55,"0000"),'2012 Sci Retrofitted'!$A$3:$G$267,3,FALSE)<10,"",VLOOKUP(TEXT($A55,"0000"),'2012 Sci Retrofitted'!$A$3:$G$267,5,FALSE)),"") -> 75 | AI55: =IFERROR(IF(VLOOKUP($A55,'2012 WIA-Sci'!$A$6:$G$500,3,FALSE)<10,"",VLOOKUP($A55,'2012 WIA-Sci'!$A$6:$G$500,7,FALSE)),"") -> 61 | AJ55: =IFERROR(IF(VLOOKUP($A55,'WIAG5-SALL'!$A$14:$CZ$500,3,FALSE)<10,"",VLOOKUP($A55,'WIAG5-SALL'!$A$14:$CZ$500,11,FALSE)*100),"") -> 70.13 | AK55: 9 | AL55: =VLOOKUP(TEXT($A55,"0000"),#REF!,2,FALSE) ->  | AM55: =VLOOKUP(TEXT($A55,"0000"),#REF!,2,FALSE) -> 
A56: 5141 | B56: HUBERT O. SIBLEY K-8 CENTER | C56: 3 | D56: =IFERROR(IF(VLOOKUP($A56,'R-2012'!$A$6:$O$500,3,FALSE)<10,"",VLOOKUP($A56,'R-2012'!$A$6:$O$500,10,FALSE)),"") -> 37 | E56: =IFERROR(IF(VLOOKUP($A56,'2012 WIA-Read'!$A$14:$K$500,3,FALSE)<10,"",VLOOKUP($A56,'2012 WIA-Read'!$A$14:$K$500,11,FALSE)*100),"") -> 37.76 | F56: =IFERROR(IF(VLOOKUP($A56,'WIAG3-RALL'!$A$14:$CZ$500,3,FALSE)<10,"",VLOOKUP($A56,'WIAG3-RALL'!$A$14:$CZ$500,11,FALSE)*100),"") -> 35.77 | G56: -2 | H56: 4 | I56: =IFERROR(IF(VLOOKUP($A56,'R-2012'!$P$6:$AD$500,3,FALSE)<10,"",VLOOKUP($A56,'R-2012'!$P$6:$AD$500,10,FALSE)),"") -> 41 | J56: =IFERROR(IF(VLOOKUP($A56,'2012 WIA-Read'!$L$14:$V$500,3,FALSE)<10,"",VLOOKUP($A56,'2012 WIA-Read'!$L$14:$V$500,11,FALSE)*100),"") -> 42.7 | K56: =IFERROR(IF(VLOOKUP($A56,'WIAG4-RALL'!$A$14:$CZ$500,3,FALSE)<10,"",VLOOKUP($A56,'WIAG4-RALL'!$A$14:$CZ$500,11,FALSE)*100),"") -> 55.41 | L56: 12 | M56: 5 | N56: =IFERROR(IF(VLOOKUP($A56,'R-2012'!$AE$6:$AS$500,3,FALSE)<10,"",VLOOKUP($A56,'R-2012'!$AE$6:$AS$500,10,FALSE)),"") -> 43 | O56: =IFERROR(IF(VLOOKUP($A56,'2012 WIA-Read'!$W$14:$AG$500,3,FALSE)<10,"",VLOOKUP($A56,'2012 WIA-Read'!$W$14:$AG$500,11,FALSE)*100),"") -> 48.51 | P56: =IFERROR(IF(VLOOKUP($A56,'WIAG5-RALL'!$A$14:$CZ$500,3,FALSE)<10,"",VLOOKUP($A56,'WIAG5-RALL'!$A$14:$CZ$500,11,FALSE)*100),"") -> 41.46 | Q56: -8 | R56: 3 | S56: =IFERROR(IF(VLOOKUP($A56,'M-2012'!$A$6:$N$500,3,FALSE)<10,"",VLOOKUP($A56,'M-2012'!$A$6:$N$500,10,FALSE)),"") -> 31 | T56: =IFERROR(IF(VLOOKUP($A56,'2012 WIA-Math'!$A$14:$K$500,3,FALSE)<10,"",VLOOKUP($A56,'2012 WIA-Math'!$A$14:$K$500,11,FALSE)*100),"") -> 37.76 | U56: =IFERROR(IF(VLOOKUP($A56,'WIAG3-MALL'!$A$14:$CZ$500,3,FALSE)<10,"",VLOOKUP($A56,'WIAG3-MALL'!$A$14:$CZ$500,11,FALSE)*100),"") -> 43.7 | V56: 6 | W56: 4 | X56: =IFERROR(IF(VLOOKUP($A56,'M-2012'!$O$6:$AB$500,3,FALSE)<10,"",VLOOKUP($A56,'M-2012'!$O$6:$AB$500,10,FALSE)),"") -> 29 | Y56: =IFERROR(IF(VLOOKUP($A56,'2012 WIA-Math'!$L$14:$V$500,3,FALSE)<10,"",VLOOKUP($A56,'2012 WIA-Math'!$L$14:$V$500,11,FALSE)*100),"") -> 27.38 | Z56: =IFERROR(IF(VLOOKUP($A56,'WIAG4-MALL'!$A$14:$CZ$500,3,FALSE)<10,"",VLOOKUP($A56,'WIAG4-MALL'!$A$14:$CZ$500,11,FALSE)*100),"") -> 44.44 | AA56: 17 | AB56: 5 | AC56: =IFERROR(IF(VLOOKUP($A56,'M-2012'!$AC$6:$AP$500,3,FALSE)<10,"",VLOOKUP($A56,'M-2012'!$AC$6:$AP$500,10,FALSE)),"") -> 36 | AD56: =IFERROR(IF(VLOOKUP($A56,'2012 WIA-Math'!$W$14:$AG$500,3,FALSE)<10,"",VLOOKUP($A56,'2012 WIA-Math'!$W$14:$AG$500,11,FALSE)*100),"") -> 28.85 | AE56: =IFERROR(IF(VLOOKUP($A56,'WIAG5-MALL'!$A$14:$CZ$500,3,FALSE)<10,"",VLOOKUP($A56,'WIAG5-MALL'!$A$14:$CZ$500,11,FALSE)*100),"") -> 27.71 | AF56: -1 | AG56: 5 | AH56: =IFERROR(IF(VLOOKUP(TEXT($A56,"0000"),'2012 Sci Retrofitted'!$A$3:$G$267,3,FALSE)<10,"",VLOOKUP(TEXT($A56,"0000"),'2012 Sci Retrofitted'!$A$3:$G$267,5,FALSE)),"") -> 37.38317757 | AI56: =IFERROR(IF(VLOOKUP($A56,'2012 WIA-Sci'!$A$6:$G$500,3,FALSE)<10,"",VLOOKUP($A56,'2012 WIA-Sci'!$A$6:$G$500,7,FALSE)),"") -> 30 | AJ56: =IFERROR(IF(VLOOKUP($A56,'WIAG5-SALL'!$A$14:$CZ$500,3,FALSE)<10,"",VLOOKUP($A56,'WIAG5-SALL'!$A$14:$CZ$500,11,FALSE)*100),"") -> 38.1 | AK56: 8 | AL56: =VLOOKUP(TEXT($A56,"0000"),#REF!,2,FALSE) ->  | AM56: =VLOOKUP(TEXT($A56,"0000"),#REF!,2,FALSE) -> 
A57: 5481 | B57: TREASURE ISLAND ELEMENTARY | C57: 3 | D57: =IFERROR(IF(VLOOKUP($A57,'R-2012'!$A$6:$O$500,3,FALSE)<10,"",VLOOKUP($A57,'R-2012'!$A$6:$O$500,10,FALSE)),"") -> 56 | E57: =IFERROR(IF(VLOOKUP($A57,'2012 WIA-Read'!$A$14:$K$500,3,FALSE)<10,"",VLOOKUP($A57,'2012 WIA-Read'!$A$14:$K$500,11,FALSE)*100),"") -> 52.63 | F57: =IFERROR(IF(VLOOKUP($A57,'WIAG3-RALL'!$A$14:$CZ$500,3,FALSE)<10,"",VLOOKUP($A57,'WIAG3-RALL'!$A$14:$CZ$500,11,FALSE)*100),"") -> 53.51 | G57: 1 | H57: 4 | I57: =IFERROR(IF(VLOOKUP($A57,'R-2012'!$P$6:$AD$500,3,FALSE)<10,"",VLOOKUP($A57,'R-2012'!$P$6:$AD$500,10,FALSE)),"") -> 62 | J57: =IFERROR(IF(VLOOKUP($A57,'2012 WIA-Read'!$L$14:$V$500,3,FALSE)<10,"",VLOOKUP($A57,'2012 WIA-Read'!$L$14:$V$500,11,FALSE)*100),"") -> 66.67 | K57: =IFERROR(IF(VLOOKUP($A57,'WIAG4-RALL'!$A$14:$CZ$500,3,FALSE)<10,"",VLOOKUP($A57,'WIAG4-RALL'!$A$14:$CZ$500,11,FALSE)*100),"") -> 60 | L57: -7 | M57: 5 | N57: =IFERROR(IF(VLOOKUP($A57,'R-2012'!$AE$6:$AS$500,3,FALSE)<10,"",VLOOKUP($A57,'R-2012'!$AE$6:$AS$500,10,FALSE)),"") -> 56 | O57: =IFERROR(IF(VLOOKUP($A57,'2012 WIA-Read'!$W$14:$AG$500,3,FALSE)<10,"",VLOOKUP($A57,'2012 WIA-Read'!$W$14:$AG$500,11,FALSE)*100),"") -> 52.58 | P57: =IFERROR(IF(VLOOKUP($A57,'WIAG5-RALL'!$A$14:$CZ$500,3,FALSE)<10,"",VLOOKUP($A57,'WIAG5-RALL'!$A$14:$CZ$500,11,FALSE)*100),"") -> 63.93 | Q57: 11 | R57: 3 | S57: =IFERROR(IF(VLOOKUP($A57,'M-2012'!$A$6:$N$500,3,FALSE)<10,"",VLOOKUP($A57,'M-2012'!$A$6:$N$500,10,FALSE)),"") -> 59 | T57: =IFERROR(IF(VLOOKUP($A57,'2012 WIA-Math'!$A$14:$K$500,3,FALSE)<10,"",VLOOKUP($A57,'2012 WIA-Math'!$A$14:$K$500,11,FALSE)*100),"") -> 66.07 | U57: =IFERROR(IF(VLOOKUP($A57,'WIAG3-MALL'!$A$14:$CZ$500,3,FALSE)<10,"",VLOOKUP($A57,'WIAG3-MALL'!$A$14:$CZ$500,11,FALSE)*100),"") -> 82.46 | V57: 16 | W57: 4 | X57: =IFERROR(IF(VLOOKUP($A57,'M-2012'!$O$6:$AB$500,3,FALSE)<10,"",VLOOKUP($A57,'M-2012'!$O$6:$AB$500,10,FALSE)),"") -> 66 | Y57: =IFERROR(IF(VLOOKUP($A57,'2012 WIA-Math'!$L$14:$V$500,3,FALSE)<10,"",VLOOKUP($A57,'2012 WIA-Math'!$L$14:$V$500,11,FALSE)*100),"") -> 62.71 | Z57: =IFERROR(IF(VLOOKUP($A57,'WIAG4-MALL'!$A$14:$CZ$500,3,FALSE)<10,"",VLOOKUP($A57,'WIAG4-MALL'!$A$14:$CZ$500,11,FALSE)*100),"") -> 58 | AA57: -5 | AB57: 5 | AC57: =IFERROR(IF(VLOOKUP($A57,'M-2012'!$AC$6:$AP$500,3,FALSE)<10,"",VLOOKUP($A57,'M-2012'!$AC$6:$AP$500,10,FALSE)),"") -> 51 | AD57: =IFERROR(IF(VLOOKUP($A57,'2012 WIA-Math'!$W$14:$AG$500,3,FALSE)<10,"",VLOOKUP($A57,'2012 WIA-Math'!$W$14:$AG$500,11,FALSE)*100),"") -> 51.55 | AE57: =IFERROR(IF(VLOOKUP($A57,'WIAG5-MALL'!$A$14:$CZ$500,3,FALSE)<10,"",VLOOKUP($A57,'WIAG5-MALL'!$A$14:$CZ$500,11,FALSE)*100),"") -> 41.8 | AF57: -10 | AG57: 5 | AH57: =IFERROR(IF(VLOOKUP(TEXT($A57,"0000"),'2012 Sci Retrofitted'!$A$3:$G$267,3,FALSE)<10,"",VLOOKUP(TEXT($A57,"0000"),'2012 Sci Retrofitted'!$A$3:$G$267,5,FALSE)),"") -> 41.66666667 | AI57: =IFERROR(IF(VLOOKUP($A57,'2012 WIA-Sci'!$A$6:$G$500,3,FALSE)<10,"",VLOOKUP($A57,'2012 WIA-Sci'!$A$6:$G$500,7,FALSE)),"") -> 42 | AJ57: =IFERROR(IF(VLOOKUP($A57,'WIAG5-SALL'!$A$14:$CZ$500,3,FALSE)<10,"",VLOOKUP($A57,'WIAG5-SALL'!$A$14:$CZ$500,11,FALSE)*100),"") -> 50.86 | AK57: 9 | AL57: =VLOOKUP(TEXT($A57,"0000"),#REF!,2,FALSE) ->  | AM57: =VLOOKUP(TEXT($A57,"0000"),#REF!,2,FALSE) -> 
A58: 5601 | B58: TWIN LAKES ELEMENTARY | C58: 3 | D58: =IFERROR(IF(VLOOKUP($A58,'R-2012'!$A$6:$O$500,3,FALSE)<10,"",VLOOKUP($A58,'R-2012'!$A$6:$O$500,10,FALSE)),"") -> 66 | E58: =IFERROR(IF(VLOOKUP($A58,'2012 WIA-Read'!$A$14:$K$500,3,FALSE)<10,"",VLOOKUP($A58,'2012 WIA-Read'!$A$14:$K$500,11,FALSE)*100),"") -> 53.47 | F58: =IFERROR(IF(VLOOKUP($A58,'WIAG3-RALL'!$A$14:$CZ$500,3,FALSE)<10,"",VLOOKUP($A58,'WIAG3-RALL'!$A$14:$CZ$500,11,FALSE)*100),"") -> 57.52 | G58: 5 | H58: 4 | I58: =IFERROR(IF(VLOOKUP($A58,'R-2012'!$P$6:$AD$500,3,FALSE)<10,"",VLOOKUP($A58,'R-2012'!$P$6:$AD$500,10,FALSE)),"") -> 64 | J58: =IFERROR(IF(VLOOKUP($A58,'2012 WIA-Read'!$L$14:$V$500,3,FALSE)<10,"",VLOOKUP($A58,'2012 WIA-Read'!$L$14:$V$500,11,FALSE)*100),"") -> 67.31 | K58: =IFERROR(IF(VLOOKUP($A58,'WIAG4-RALL'!$A$14:$CZ$500,3,FALSE)<10,"",VLOOKUP($A58,'WIAG4-RALL'!$A$14:$CZ$500,11,FALSE)*100),"") -> 70.59 | L58: 4 | M58: 5 | N58: =IFERROR(IF(VLOOKUP($A58,'R-2012'!$AE$6:$AS$500,3,FALSE)<10,"",VLOOKUP($A58,'R-2012'!$AE$6:$AS$500,10,FALSE)),"") -> 66 | O58: =IFERROR(IF(VLOOKUP($A58,'2012 WIA-Read'!$W$14:$AG$500,3,FALSE)<10,"",VLOOKUP($A58,'2012 WIA-Read'!$W$14:$AG$500,11,FALSE)*100),"") -> 62.4 | P58: =IFERROR(IF(VLOOKUP($A58,'WIAG5-RALL'!$A$14:$CZ$500,3,FALSE)<10,"",VLOOKUP($A58,'WIAG5-RALL'!$A$14:$CZ$500,11,FALSE)*100),"") -> 57.01 | Q58: -5 | R58: 3 | S58: =IFERROR(IF(VLOOKUP($A58,'M-2012'!$A$6:$N$500,3,FALSE)<10,"",VLOOKUP($A58,'M-2012'!$A$6:$N$500,10,FALSE)),"") -> 74 | T58: =IFERROR(IF(VLOOKUP($A58,'2012 WIA-Math'!$A$14:$K$500,3,FALSE)<10,"",VLOOKUP($A58,'2012 WIA-Math'!$A$14:$K$500,11,FALSE)*100),"") -> 73.27 | U58: =IFERROR(IF(VLOOKUP($A58,'WIAG3-MALL'!$A$14:$CZ$500,3,FALSE)<10,"",VLOOKUP($A58,'WIAG3-MALL'!$A$14:$CZ$500,11,FALSE)*100),"") -> 69.03 | V58: -4 | W58: 4 | X58: =IFERROR(IF(VLOOKUP($A58,'M-2012'!$O$6:$AB$500,3,FALSE)<10,"",VLOOKUP($A58,'M-2012'!$O$6:$AB$500,10,FALSE)),"") -> 70 | Y58: =IFERROR(IF(VLOOKUP($A58,'2012 WIA-Math'!$L$14:$V$500,3,FALSE)<10,"",VLOOKUP($A58,'2012 WIA-Math'!$L$14:$V$500,11,FALSE)*100),"") -> 76.19 | Z58: =IFERROR(IF(VLOOKUP($A58,'WIAG4-MALL'!$A$14:$CZ$500,3,FALSE)<10,"",VLOOKUP($A58,'WIAG4-MALL'!$A$14:$CZ$500,11,FALSE)*100),"") -> 77.45 | AA58: 1 | AB58: 5 | AC58: =IFERROR(IF(VLOOKUP($A58,'M-2012'!$AC$6:$AP$500,3,FALSE)<10,"",VLOOKUP($A58,'M-2012'!$AC$6:$AP$500,10,FALSE)),"") -> 65 | AD58: =IFERROR(IF(VLOOKUP($A58,'2012 WIA-Math'!$W$14:$AG$500,3,FALSE)<10,"",VLOOKUP($A58,'2012 WIA-Math'!$W$14:$AG$500,11,FALSE)*100),"") -> 66.13 | AE58: =IFERROR(IF(VLOOKUP($A58,'WIAG5-MALL'!$A$14:$CZ$500,3,FALSE)<10,"",VLOOKUP($A58,'WIAG5-MALL'!$A$14:$CZ$500,11,FALSE)*100),"") -> 80.37 | AF58: 14 | AG58: 5 | AH58: =IFERROR(IF(VLOOKUP(TEXT($A58,"0000"),'2012 Sci Retrofitted'!$A$3:$G$267,3,FALSE)<10,"",VLOOKUP(TEXT($A58,"0000"),'2012 Sci Retrofitted'!$A$3:$G$267,5,FALSE)),"") -> 59.375 | AI58: =IFERROR(IF(VLOOKUP($A58,'2012 WIA-Sci'!$A$6:$G$500,3,FALSE)<10,"",VLOOKUP($A58,'2012 WIA-Sci'!$A$6:$G$500,7,FALSE)),"") -> 53 | AJ58: =IFERROR(IF(VLOOKUP($A58,'WIAG5-SALL'!$A$14:$CZ$500,3,FALSE)<10,"",VLOOKUP($A58,'WIAG5-SALL'!$A$14:$CZ$500,11,FALSE)*100),"") -> 57.94 | AK58: 5 | AL58: =VLOOKUP(TEXT($A58,"0000"),#REF!,2,FALSE) ->  | AM58: =VLOOKUP(TEXT($A58,"0000"),#REF!,2,FALSE) -> 
A59: 5711 | B59: MAE WALTERS ELEMENTARY | C59: 3 | D59: =IFERROR(IF(VLOOKUP($A59,'R-2012'!$A$6:$O$500,3,FALSE)<10,"",VLOOKUP($A59,'R-2012'!$A$6:$O$500,10,FALSE)),"") -> 56 | E59: =IFERROR(IF(VLOOKUP($A59,'2012 WIA-Read'!$A$14:$K$500,3,FALSE)<10,"",VLOOKUP($A59,'2012 WIA-Read'!$A$14:$K$500,11,FALSE)*100),"") -> 50 | F59: =IFERROR(IF(VLOOKUP($A59,'WIAG3-RALL'!$A$14:$CZ$500,3,FALSE)<10,"",VLOOKUP($A59,'WIAG3-RALL'!$A$14:$CZ$500,11,FALSE)*100),"") -> 49.57 | G59: 0 | H59: 4 | I59: =IFERROR(IF(VLOOKUP($A59,'R-2012'!$P$6:$AD$500,3,FALSE)<10,"",VLOOKUP($A59,'R-2012'!$P$6:$AD$500,10,FALSE)),"") -> 61 | J59: =IFERROR(IF(VLOOKUP($A59,'2012 WIA-Read'!$L$14:$V$500,3,FALSE)<10,"",VLOOKUP($A59,'2012 WIA-Read'!$L$14:$V$500,11,FALSE)*100),"") -> 54.78 | K59: =IFERROR(IF(VLOOKUP($A59,'WIAG4-RALL'!$A$14:$CZ$500,3,FALSE)<10,"",VLOOKUP($A59,'WIAG4-RALL'!$A$14:$CZ$500,11,FALSE)*100),"") -> 54.88 | L59: 0 | M59: 5 | N59: =IFERROR(IF(VLOOKUP($A59,'R-2012'!$AE$6:$AS$500,3,FALSE)<10,"",VLOOKUP($A59,'R-2012'!$AE$6:$AS$500,10,FALSE)),"") -> 56 | O59: =IFERROR(IF(VLOOKUP($A59,'2012 WIA-Read'!$W$14:$AG$500,3,FALSE)<10,"",VLOOKUP($A59,'2012 WIA-Read'!$W$14:$AG$500,11,FALSE)*100),"") -> 44 | P59: =IFERROR(IF(VLOOKUP($A59,'WIAG5-RALL'!$A$14:$CZ$500,3,FALSE)<10,"",VLOOKUP($A59,'WIAG5-RALL'!$A$14:$CZ$500,11,FALSE)*100),"") -> 50 | Q59: 6 | R59: 3 | S59: =IFERROR(IF(VLOOKUP($A59,'M-2012'!$A$6:$N$500,3,FALSE)<10,"",VLOOKUP($A59,'M-2012'!$A$6:$N$500,10,FALSE)),"") -> 63 | T59: =IFERROR(IF(VLOOKUP($A59,'2012 WIA-Math'!$A$14:$K$500,3,FALSE)<10,"",VLOOKUP($A59,'2012 WIA-Math'!$A$14:$K$500,11,FALSE)*100),"") -> 61.35 | U59: =IFERROR(IF(VLOOKUP($A59,'WIAG3-MALL'!$A$14:$CZ$500,3,FALSE)<10,"",VLOOKUP($A59,'WIAG3-MALL'!$A$14:$CZ$500,11,FALSE)*100),"") -> 75.65 | V59: 15 | W59: 4 | X59: =IFERROR(IF(VLOOKUP($A59,'M-2012'!$O$6:$AB$500,3,FALSE)<10,"",VLOOKUP($A59,'M-2012'!$O$6:$AB$500,10,FALSE)),"") -> 58 | Y59: =IFERROR(IF(VLOOKUP($A59,'2012 WIA-Math'!$L$14:$V$500,3,FALSE)<10,"",VLOOKUP($A59,'2012 WIA-Math'!$L$14:$V$500,11,FALSE)*100),"") -> 62.28 | Z59: =IFERROR(IF(VLOOKUP($A59,'WIAG4-MALL'!$A$14:$CZ$500,3,FALSE)<10,"",VLOOKUP($A59,'WIAG4-MALL'!$A$14:$CZ$500,11,FALSE)*100),"") -> 52.12 | AA59: -10 | AB59: 5 | AC59: =IFERROR(IF(VLOOKUP($A59,'M-2012'!$AC$6:$AP$500,3,FALSE)<10,"",VLOOKUP($A59,'M-2012'!$AC$6:$AP$500,10,FALSE)),"") -> 49 | AD59: =IFERROR(IF(VLOOKUP($A59,'2012 WIA-Math'!$W$14:$AG$500,3,FALSE)<10,"",VLOOKUP($A59,'2012 WIA-Math'!$W$14:$AG$500,11,FALSE)*100),"") -> 50 | AE59: =IFERROR(IF(VLOOKUP($A59,'WIAG5-MALL'!$A$14:$CZ$500,3,FALSE)<10,"",VLOOKUP($A59,'WIAG5-MALL'!$A$14:$CZ$500,11,FALSE)*100),"") -> 46.43 | AF59: -4 | AG59: 5 | AH59: =IFERROR(IF(VLOOKUP(TEXT($A59,"0000"),'2012 Sci Retrofitted'!$A$3:$G$267,3,FALSE)<10,"",VLOOKUP(TEXT($A59,"0000"),'2012 Sci Retrofitted'!$A$3:$G$267,5,FALSE)),"") -> 42.06349206 | AI59: =IFERROR(IF(VLOOKUP($A59,'2012 WIA-Sci'!$A$6:$G$500,3,FALSE)<10,"",VLOOKUP($A59,'2012 WIA-Sci'!$A$6:$G$500,7,FALSE)),"") -> 39 | AJ59: =IFERROR(IF(VLOOKUP($A59,'WIAG5-SALL'!$A$14:$CZ$500,3,FALSE)<10,"",VLOOKUP($A59,'WIAG5-SALL'!$A$14:$CZ$500,11,FALSE)*100),"") -> 52.68 | AK59: 14 | AL59: =VLOOKUP(TEXT($A59,"0000"),#REF!,2,FALSE) ->  | AM59: =VLOOKUP(TEXT($A59,"0000"),#REF!,2,FALSE) -> 
A60: 6023 | B60: ANDOVER MIDDLE SCHOOL | C60: 3 | D60: =IFERROR(IF(VLOOKUP($A60,'R-2012'!$A$6:$O$500,3,FALSE)<10,"",VLOOKUP($A60,'R-2012'!$A$6:$O$500,10,FALSE)),"") ->  | E60: =IFERROR(IF(VLOOKUP($A60,'2012 WIA-Read'!$A$14:$K$500,3,FALSE)<10,"",VLOOKUP($A60,'2012 WIA-Read'!$A$14:$K$500,11,FALSE)*100),"") ->  | F60: =IFERROR(IF(VLOOKUP($A60,'WIAG3-RALL'!$A$14:$CZ$500,3,FALSE)<10,"",VLOOKUP($A60,'WIAG3-RALL'!$A$14:$CZ$500,11,FALSE)*100),"") ->  | H60: 4 | I60: =IFERROR(IF(VLOOKUP($A60,'R-2012'!$P$6:$AD$500,3,FALSE)<10,"",VLOOKUP($A60,'R-2012'!$P$6:$AD$500,10,FALSE)),"") ->  | J60: =IFERROR(IF(VLOOKUP($A60,'2012 WIA-Read'!$L$14:$V$500,3,FALSE)<10,"",VLOOKUP($A60,'2012 WIA-Read'!$L$14:$V$500,11,FALSE)*100),"") ->  | K60: =IFERROR(IF(VLOOKUP($A60,'WIAG4-RALL'!$A$14:$CZ$500,3,FALSE)<10,"",VLOOKUP($A60,'WIAG4-RALL'!$A$14:$CZ$500,11,FALSE)*100),"") ->  | M60: 5 | N60: =IFERROR(IF(VLOOKUP($A60,'R-2012'!$AE$6:$AS$500,3,FALSE)<10,"",VLOOKUP($A60,'R-2012'!$AE$6:$AS$500,10,FALSE)),"") ->  | O60: =IFERROR(IF(VLOOKUP($A60,'2012 WIA-Read'!$W$14:$AG$500,3,FALSE)<10,"",VLOOKUP($A60,'2012 WIA-Read'!$W$14:$AG$500,11,FALSE)*100),"") ->  | P60: =IFERROR(IF(VLOOKUP($A60,'WIAG5-RALL'!$A$14:$CZ$500,3,FALSE)<10,"",VLOOKUP($A60,'WIAG5-RALL'!$A$14:$CZ$500,11,FALSE)*100),"") ->  | R60: 3 | S60: =IFERROR(IF(VLOOKUP($A60,'M-2012'!$A$6:$N$500,3,FALSE)<10,"",VLOOKUP($A60,'M-2012'!$A$6:$N$500,10,FALSE)),"") ->  | T60: =IFERROR(IF(VLOOKUP($A60,'2012 WIA-Math'!$A$14:$K$500,3,FALSE)<10,"",VLOOKUP($A60,'2012 WIA-Math'!$A$14:$K$500,11,FALSE)*100),"") ->  | U60: =IFERROR(IF(VLOOKUP($A60,'WIAG3-MALL'!$A$14:$CZ$500,3,FALSE)<10,"",VLOOKUP($A60,'WIAG3-MALL'!$A$14:$CZ$500,11,FALSE)*100),"") ->  | W60: 4 | X60: =IFERROR(IF(VLOOKUP($A60,'M-2012'!$O$6:$AB$500,3,FALSE)<10,"",VLOOKUP($A60,'M-2012'!$O$6:$AB$500,10,FALSE)),"") ->  | Y60: =IFERROR(IF(VLOOKUP($A60,'2012 WIA-Math'!$L$14:$V$500,3,FALSE)<10,"",VLOOKUP($A60,'2012 WIA-Math'!$L$14:$V$500,11,FALSE)*100),"") ->  | Z60: =IFERROR(IF(VLOOKUP($A60,'WIAG4-MALL'!$A$14:$CZ$500,3,FALSE)<10,"",VLOOKUP($A60,'WIAG4-MALL'!$A$14:$CZ$500,11,FALSE)*100),"") ->  | AB60: 5 | AC60: =IFERROR(IF(VLOOKUP($A60,'M-2012'!$AC$6:$AP$500,3,FALSE)<10,"",VLOOKUP($A60,'M-2012'!$AC$6:$AP$500,10,FALSE)),"") ->  | AD60: =IFERROR(IF(VLOOKUP($A60,'2012 WIA-Math'!$W$14:$AG$500,3,FALSE)<10,"",VLOOKUP($A60,'2012 WIA-Math'!$W$14:$AG$500,11,FALSE)*100),"") ->  | AE60: =IFERROR(IF(VLOOKUP($A60,'WIAG5-MALL'!$A$14:$CZ$500,3,FALSE)<10,"",VLOOKUP($A60,'WIAG5-MALL'!$A$14:$CZ$500,11,FALSE)*100),"") ->  | AG60: 5 | AH60: =IFERROR(IF(VLOOKUP(TEXT($A60,"0000"),'2012 Sci Retrofitted'!$A$3:$G$267,3,FALSE)<10,"",VLOOKUP(TEXT($A60,"0000"),'2012 Sci Retrofitted'!$A$3:$G$267,5,FALSE)),"") ->  | AI60: =IFERROR(IF(VLOOKUP($A60,'2012 WIA-Sci'!$A$6:$G$500,3,FALSE)<10,"",VLOOKUP($A60,'2012 WIA-Sci'!$A$6:$G$500,7,FALSE)),"") ->  | AJ60: =IFERROR(IF(VLOOKUP($A60,'WIAG5-SALL'!$A$14:$CZ$500,3,FALSE)<10,"",VLOOKUP($A60,'WIAG5-SALL'!$A$14:$CZ$500,11,FALSE)*100),"") ->  | AL60: =VLOOKUP(TEXT($A60,"0000"),#REF!,2,FALSE) ->  | AM60: =VLOOKUP(TEXT($A60,"0000"),#REF!,2,FALSE) -> 
A61: 6161 | B61: LAWTON CHILES MIDDLE SCHOOL | C61: 3 | D61: =IFERROR(IF(VLOOKUP($A61,'R-2012'!$A$6:$O$500,3,FALSE)<10,"",VLOOKUP($A61,'R-2012'!$A$6:$O$500,10,FALSE)),"") ->  | E61: =IFERROR(IF(VLOOKUP($A61,'2012 WIA-Read'!$A$14:$K$500,3,FALSE)<10,"",VLOOKUP($A61,'2012 WIA-Read'!$A$14:$K$500,11,FALSE)*100),"") ->  | F61: =IFERROR(IF(VLOOKUP($A61,'WIAG3-RALL'!$A$14:$CZ$500,3,FALSE)<10,"",VLOOKUP($A61,'WIAG3-RALL'!$A$14:$CZ$500,11,FALSE)*100),"") ->  | H61: 4 | I61: =IFERROR(IF(VLOOKUP($A61,'R-2012'!$P$6:$AD$500,3,FALSE)<10,"",VLOOKUP($A61,'R-2012'!$P$6:$AD$500,10,FALSE)),"") ->  | J61: =IFERROR(IF(VLOOKUP($A61,'2012 WIA-Read'!$L$14:$V$500,3,FALSE)<10,"",VLOOKUP($A61,'2012 WIA-Read'!$L$14:$V$500,11,FALSE)*100),"") ->  | K61: =IFERROR(IF(VLOOKUP($A61,'WIAG4-RALL'!$A$14:$CZ$500,3,FALSE)<10,"",VLOOKUP($A61,'WIAG4-RALL'!$A$14:$CZ$500,11,FALSE)*100),"") ->  | M61: 5 | N61: =IFERROR(IF(VLOOKUP($A61,'R-2012'!$AE$6:$AS$500,3,FALSE)<10,"",VLOOKUP($A61,'R-2012'!$AE$6:$AS$500,10,FALSE)),"") ->  | O61: =IFERROR(IF(VLOOKUP($A61,'2012 WIA-Read'!$W$14:$AG$500,3,FALSE)<10,"",VLOOKUP($A61,'2012 WIA-Read'!$W$14:$AG$500,11,FALSE)*100),"") ->  | P61: =IFERROR(IF(VLOOKUP($A61,'WIAG5-RALL'!$A$14:$CZ$500,3,FALSE)<10,"",VLOOKUP($A61,'WIAG5-RALL'!$A$14:$CZ$500,11,FALSE)*100),"") ->  | R61: 3 | S61: =IFERROR(IF(VLOOKUP($A61,'M-2012'!$A$6:$N$500,3,FALSE)<10,"",VLOOKUP($A61,'M-2012'!$A$6:$N$500,10,FALSE)),"") ->  | T61: =IFERROR(IF(VLOOKUP($A61,'2012 WIA-Math'!$A$14:$K$500,3,FALSE)<10,"",VLOOKUP($A61,'2012 WIA-Math'!$A$14:$K$500,11,FALSE)*100),"") ->  | U61: =IFERROR(IF(VLOOKUP($A61,'WIAG3-MALL'!$A$14:$CZ$500,3,FALSE)<10,"",VLOOKUP($A61,'WIAG3-MALL'!$A$14:$CZ$500,11,FALSE)*100),"") ->  | W61: 4 | X61: =IFERROR(IF(VLOOKUP($A61,'M-2012'!$O$6:$AB$500,3,FALSE)<10,"",VLOOKUP($A61,'M-2012'!$O$6:$AB$500,10,FALSE)),"") ->  | Y61: =IFERROR(IF(VLOOKUP($A61,'2012 WIA-Math'!$L$14:$V$500,3,FALSE)<10,"",VLOOKUP($A61,'2012 WIA-Math'!$L$14:$V$500,11,FALSE)*100),"") ->  | Z61: =IFERROR(IF(VLOOKUP($A61,'WIAG4-MALL'!$A$14:$CZ$500,3,FALSE)<10,"",VLOOKUP($A61,'WIAG4-MALL'!$A$14:$CZ$500,11,FALSE)*100),"") ->  | AB61: 5 | AC61: =IFERROR(IF(VLOOKUP($A61,'M-2012'!$AC$6:$AP$500,3,FALSE)<10,"",VLOOKUP($A61,'M-2012'!$AC$6:$AP$500,10,FALSE)),"") ->  | AD61: =IFERROR(IF(VLOOKUP($A61,'2012 WIA-Math'!$W$14:$AG$500,3,FALSE)<10,"",VLOOKUP($A61,'2012 WIA-Math'!$W$14:$AG$500,11,FALSE)*100),"") ->  | AE61: =IFERROR(IF(VLOOKUP($A61,'WIAG5-MALL'!$A$14:$CZ$500,3,FALSE)<10,"",VLOOKUP($A61,'WIAG5-MALL'!$A$14:$CZ$500,11,FALSE)*100),"") ->  | AG61: 5 | AH61: =IFERROR(IF(VLOOKUP(TEXT($A61,"0000"),'2012 Sci Retrofitted'!$A$3:$G$267,3,FALSE)<10,"",VLOOKUP(TEXT($A61,"0000"),'2012 Sci Retrofitted'!$A$3:$G$267,5,FALSE)),"") ->  | AI61: =IFERROR(IF(VLOOKUP($A61,'2012 WIA-Sci'!$A$6:$G$500,3,FALSE)<10,"",VLOOKUP($A61,'2012 WIA-Sci'!$A$6:$G$500,7,FALSE)),"") ->  | AJ61: =IFERROR(IF(VLOOKUP($A61,'WIAG5-SALL'!$A$14:$CZ$500,3,FALSE)<10,"",VLOOKUP($A61,'WIAG5-SALL'!$A$14:$CZ$500,11,FALSE)*100),"") ->  | AL61: =VLOOKUP(TEXT($A61,"0000"),#REF!,2,FALSE) ->  | AM61: =VLOOKUP(TEXT($A61,"0000"),#REF!,2,FALSE) -> 
A62: 6171 | B62: HENRY H. FILER MIDDLE | C62: 3 | D62: =IFERROR(IF(VLOOKUP($A62,'R-2012'!$A$6:$O$500,3,FALSE)<10,"",VLOOKUP($A62,'R-2012'!$A$6:$O$500,10,FALSE)),"") ->  | E62: =IFERROR(IF(VLOOKUP($A62,'2012 WIA-Read'!$A$14:$K$500,3,FALSE)<10,"",VLOOKUP($A62,'2012 WIA-Read'!$A$14:$K$500,11,FALSE)*100),"") ->  | F62: =IFERROR(IF(VLOOKUP($A62,'WIAG3-RALL'!$A$14:$CZ$500,3,FALSE)<10,"",VLOOKUP($A62,'WIAG3-RALL'!$A$14:$CZ$500,11,FALSE)*100),"") ->  | H62: 4 | I62: =IFERROR(IF(VLOOKUP($A62,'R-2012'!$P$6:$AD$500,3,FALSE)<10,"",VLOOKUP($A62,'R-2012'!$P$6:$AD$500,10,FALSE)),"") ->  | J62: =IFERROR(IF(VLOOKUP($A62,'2012 WIA-Read'!$L$14:$V$500,3,FALSE)<10,"",VLOOKUP($A62,'2012 WIA-Read'!$L$14:$V$500,11,FALSE)*100),"") ->  | K62: =IFERROR(IF(VLOOKUP($A62,'WIAG4-RALL'!$A$14:$CZ$500,3,FALSE)<10,"",VLOOKUP($A62,'WIAG4-RALL'!$A$14:$CZ$500,11,FALSE)*100),"") ->  | M62: 5 | N62: =IFERROR(IF(VLOOKUP($A62,'R-2012'!$AE$6:$AS$500,3,FALSE)<10,"",VLOOKUP($A62,'R-2012'!$AE$6:$AS$500,10,FALSE)),"") ->  | O62: =IFERROR(IF(VLOOKUP($A62,'2012 WIA-Read'!$W$14:$AG$500,3,FALSE)<10,"",VLOOKUP($A62,'2012 WIA-Read'!$W$14:$AG$500,11,FALSE)*100),"") ->  | P62: =IFERROR(IF(VLOOKUP($A62,'WIAG5-RALL'!$A$14:$CZ$500,3,FALSE)<10,"",VLOOKUP($A62,'WIAG5-RALL'!$A$14:$CZ$500,11,FALSE)*100),"") ->  | R62: 3 | S62: =IFERROR(IF(VLOOKUP($A62,'M-2012'!$A$6:$N$500,3,FALSE)<10,"",VLOOKUP($A62,'M-2012'!$A$6:$N$500,10,FALSE)),"") ->  | T62: =IFERROR(IF(VLOOKUP($A62,'2012 WIA-Math'!$A$14:$K$500,3,FALSE)<10,"",VLOOKUP($A62,'2012 WIA-Math'!$A$14:$K$500,11,FALSE)*100),"") ->  | U62: =IFERROR(IF(VLOOKUP($A62,'WIAG3-MALL'!$A$14:$CZ$500,3,FALSE)<10,"",VLOOKUP($A62,'WIAG3-MALL'!$A$14:$CZ$500,11,FALSE)*100),"") ->  | W62: 4 | X62: =IFERROR(IF(VLOOKUP($A62,'M-2012'!$O$6:$AB$500,3,FALSE)<10,"",VLOOKUP($A62,'M-2012'!$O$6:$AB$500,10,FALSE)),"") ->  | Y62: =IFERROR(IF(VLOOKUP($A62,'2012 WIA-Math'!$L$14:$V$500,3,FALSE)<10,"",VLOOKUP($A62,'2012 WIA-Math'!$L$14:$V$500,11,FALSE)*100),"") ->  | Z62: =IFERROR(IF(VLOOKUP($A62,'WIAG4-MALL'!$A$14:$CZ$500,3,FALSE)<10,"",VLOOKUP($A62,'WIAG4-MALL'!$A$14:$CZ$500,11,FALSE)*100),"") ->  | AB62: 5 | AC62: =IFERROR(IF(VLOOKUP($A62,'M-2012'!$AC$6:$AP$500,3,FALSE)<10,"",VLOOKUP($A62,'M-2012'!$AC$6:$AP$500,10,FALSE)),"") ->  | AD62: =IFERROR(IF(VLOOKUP($A62,'2012 WIA-Math'!$W$14:$AG$500,3,FALSE)<10,"",VLOOKUP($A62,'2012 WIA-Math'!$W$14:$AG$500,11,FALSE)*100),"") ->  | AE62: =IFERROR(IF(VLOOKUP($A62,'WIAG5-MALL'!$A$14:$CZ$500,3,FALSE)<10,"",VLOOKUP($A62,'WIAG5-MALL'!$A$14:$CZ$500,11,FALSE)*100),"") ->  | AG62: 5 | AH62: =IFERROR(IF(VLOOKUP(TEXT($A62,"0000"),'2012 Sci Retrofitted'!$A$3:$G$267,3,FALSE)<10,"",VLOOKUP(TEXT($A62,"0000"),'2012 Sci Retrofitted'!$A$3:$G$267,5,FALSE)),"") ->  | AI62: =IFERROR(IF(VLOOKUP($A62,'2012 WIA-Sci'!$A$6:$G$500,3,FALSE)<10,"",VLOOKUP($A62,'2012 WIA-Sci'!$A$6:$G$500,7,FALSE)),"") ->  | AJ62: =IFERROR(IF(VLOOKUP($A62,'WIAG5-SALL'!$A$14:$CZ$500,3,FALSE)<10,"",VLOOKUP($A62,'WIAG5-SALL'!$A$14:$CZ$500,11,FALSE)*100),"") ->  | AL62: =VLOOKUP(TEXT($A62,"0000"),#REF!,2,FALSE) ->  | AM62: =VLOOKUP(TEXT($A62,"0000"),#REF!,2,FALSE) -> 
A63: 6241 | B63: HIGHLAND OAKS MIDDLE | C63: 3 | D63: =IFERROR(IF(VLOOKUP($A63,'R-2012'!$A$6:$O$500,3,FALSE)<10,"",VLOOKUP($A63,'R-2012'!$A$6:$O$500,10,FALSE)),"") ->  | E63: =IFERROR(IF(VLOOKUP($A63,'2012 WIA-Read'!$A$14:$K$500,3,FALSE)<10,"",VLOOKUP($A63,'2012 WIA-Read'!$A$14:$K$500,11,FALSE)*100),"") ->  | F63: =IFERROR(IF(VLOOKUP($A63,'WIAG3-RALL'!$A$14:$CZ$500,3,FALSE)<10,"",VLOOKUP($A63,'WIAG3-RALL'!$A$14:$CZ$500,11,FALSE)*100),"") ->  | H63: 4 | I63: =IFERROR(IF(VLOOKUP($A63,'R-2012'!$P$6:$AD$500,3,FALSE)<10,"",VLOOKUP($A63,'R-2012'!$P$6:$AD$500,10,FALSE)),"") ->  | J63: =IFERROR(IF(VLOOKUP($A63,'2012 WIA-Read'!$L$14:$V$500,3,FALSE)<10,"",VLOOKUP($A63,'2012 WIA-Read'!$L$14:$V$500,11,FALSE)*100),"") ->  | K63: =IFERROR(IF(VLOOKUP($A63,'WIAG4-RALL'!$A$14:$CZ$500,3,FALSE)<10,"",VLOOKUP($A63,'WIAG4-RALL'!$A$14:$CZ$500,11,FALSE)*100),"") ->  | M63: 5 | N63: =IFERROR(IF(VLOOKUP($A63,'R-2012'!$AE$6:$AS$500,3,FALSE)<10,"",VLOOKUP($A63,'R-2012'!$AE$6:$AS$500,10,FALSE)),"") ->  | O63: =IFERROR(IF(VLOOKUP($A63,'2012 WIA-Read'!$W$14:$AG$500,3,FALSE)<10,"",VLOOKUP($A63,'2012 WIA-Read'!$W$14:$AG$500,11,FALSE)*100),"") ->  | P63: =IFERROR(IF(VLOOKUP($A63,'WIAG5-RALL'!$A$14:$CZ$500,3,FALSE)<10,"",VLOOKUP($A63,'WIAG5-RALL'!$A$14:$CZ$500,11,FALSE)*100),"") ->  | R63: 3 | S63: =IFERROR(IF(VLOOKUP($A63,'M-2012'!$A$6:$N$500,3,FALSE)<10,"",VLOOKUP($A63,'M-2012'!$A$6:$N$500,10,FALSE)),"") ->  | T63: =IFERROR(IF(VLOOKUP($A63,'2012 WIA-Math'!$A$14:$K$500,3,FALSE)<10,"",VLOOKUP($A63,'2012 WIA-Math'!$A$14:$K$500,11,FALSE)*100),"") ->  | U63: =IFERROR(IF(VLOOKUP($A63,'WIAG3-MALL'!$A$14:$CZ$500,3,FALSE)<10,"",VLOOKUP($A63,'WIAG3-MALL'!$A$14:$CZ$500,11,FALSE)*100),"") ->  | W63: 4 | X63: =IFERROR(IF(VLOOKUP($A63,'M-2012'!$O$6:$AB$500,3,FALSE)<10,"",VLOOKUP($A63,'M-2012'!$O$6:$AB$500,10,FALSE)),"") ->  | Y63: =IFERROR(IF(VLOOKUP($A63,'2012 WIA-Math'!$L$14:$V$500,3,FALSE)<10,"",VLOOKUP($A63,'2012 WIA-Math'!$L$14:$V$500,11,FALSE)*100),"") ->  | Z63: =IFERROR(IF(VLOOKUP($A63,'WIAG4-MALL'!$A$14:$CZ$500,3,FALSE)<10,"",VLOOKUP($A63,'WIAG4-MALL'!$A$14:$CZ$500,11,FALSE)*100),"") ->  | AB63: 5 | AC63: =IFERROR(IF(VLOOKUP($A63,'M-2012'!$AC$6:$AP$500,3,FALSE)<10,"",VLOOKUP($A63,'M-2012'!$AC$6:$AP$500,10,FALSE)),"") ->  | AD63: =IFERROR(IF(VLOOKUP($A63,'2012 WIA-Math'!$W$14:$AG$500,3,FALSE)<10,"",VLOOKUP($A63,'2012 WIA-Math'!$W$14:$AG$500,11,FALSE)*100),"") ->  | AE63: =IFERROR(IF(VLOOKUP($A63,'WIAG5-MALL'!$A$14:$CZ$500,3,FALSE)<10,"",VLOOKUP($A63,'WIAG5-MALL'!$A$14:$CZ$500,11,FALSE)*100),"") ->  | AG63: 5 | AH63: =IFERROR(IF(VLOOKUP(TEXT($A63,"0000"),'2012 Sci Retrofitted'!$A$3:$G$267,3,FALSE)<10,"",VLOOKUP(TEXT($A63,"0000"),'2012 Sci Retrofitted'!$A$3:$G$267,5,FALSE)),"") ->  | AI63: =IFERROR(IF(VLOOKUP($A63,'2012 WIA-Sci'!$A$6:$G$500,3,FALSE)<10,"",VLOOKUP($A63,'2012 WIA-Sci'!$A$6:$G$500,7,FALSE)),"") ->  | AJ63: =IFERROR(IF(VLOOKUP($A63,'WIAG5-SALL'!$A$14:$CZ$500,3,FALSE)<10,"",VLOOKUP($A63,'WIAG5-SALL'!$A$14:$CZ$500,11,FALSE)*100),"") ->  | AL63: =VLOOKUP(TEXT($A63,"0000"),#REF!,2,FALSE) ->  | AM63: =VLOOKUP(TEXT($A63,"0000"),#REF!,2,FALSE) -> 
A64: 6301 | B64: JOHN F. KENNEDY MIDDLE | C64: 3 | D64: =IFERROR(IF(VLOOKUP($A64,'R-2012'!$A$6:$O$500,3,FALSE)<10,"",VLOOKUP($A64,'R-2012'!$A$6:$O$500,10,FALSE)),"") ->  | E64: =IFERROR(IF(VLOOKUP($A64,'2012 WIA-Read'!$A$14:$K$500,3,FALSE)<10,"",VLOOKUP($A64,'2012 WIA-Read'!$A$14:$K$500,11,FALSE)*100),"") ->  | F64: =IFERROR(IF(VLOOKUP($A64,'WIAG3-RALL'!$A$14:$CZ$500,3,FALSE)<10,"",VLOOKUP($A64,'WIAG3-RALL'!$A$14:$CZ$500,11,FALSE)*100),"") ->  | H64: 4 | I64: =IFERROR(IF(VLOOKUP($A64,'R-2012'!$P$6:$AD$500,3,FALSE)<10,"",VLOOKUP($A64,'R-2012'!$P$6:$AD$500,10,FALSE)),"") ->  | J64: =IFERROR(IF(VLOOKUP($A64,'2012 WIA-Read'!$L$14:$V$500,3,FALSE)<10,"",VLOOKUP($A64,'2012 WIA-Read'!$L$14:$V$500,11,FALSE)*100),"") ->  | K64: =IFERROR(IF(VLOOKUP($A64,'WIAG4-RALL'!$A$14:$CZ$500,3,FALSE)<10,"",VLOOKUP($A64,'WIAG4-RALL'!$A$14:$CZ$500,11,FALSE)*100),"") ->  | M64: 5 | N64: =IFERROR(IF(VLOOKUP($A64,'R-2012'!$AE$6:$AS$500,3,FALSE)<10,"",VLOOKUP($A64,'R-2012'!$AE$6:$AS$500,10,FALSE)),"") ->  | O64: =IFERROR(IF(VLOOKUP($A64,'2012 WIA-Read'!$W$14:$AG$500,3,FALSE)<10,"",VLOOKUP($A64,'2012 WIA-Read'!$W$14:$AG$500,11,FALSE)*100),"") ->  | P64: =IFERROR(IF(VLOOKUP($A64,'WIAG5-RALL'!$A$14:$CZ$500,3,FALSE)<10,"",VLOOKUP($A64,'WIAG5-RALL'!$A$14:$CZ$500,11,FALSE)*100),"") ->  | R64: 3 | S64: =IFERROR(IF(VLOOKUP($A64,'M-2012'!$A$6:$N$500,3,FALSE)<10,"",VLOOKUP($A64,'M-2012'!$A$6:$N$500,10,FALSE)),"") ->  | T64: =IFERROR(IF(VLOOKUP($A64,'2012 WIA-Math'!$A$14:$K$500,3,FALSE)<10,"",VLOOKUP($A64,'2012 WIA-Math'!$A$14:$K$500,11,FALSE)*100),"") ->  | U64: =IFERROR(IF(VLOOKUP($A64,'WIAG3-MALL'!$A$14:$CZ$500,3,FALSE)<10,"",VLOOKUP($A64,'WIAG3-MALL'!$A$14:$CZ$500,11,FALSE)*100),"") ->  | W64: 4 | X64: =IFERROR(IF(VLOOKUP($A64,'M-2012'!$O$6:$AB$500,3,FALSE)<10,"",VLOOKUP($A64,'M-2012'!$O$6:$AB$500,10,FALSE)),"") ->  | Y64: =IFERROR(IF(VLOOKUP($A64,'2012 WIA-Math'!$L$14:$V$500,3,FALSE)<10,"",VLOOKUP($A64,'2012 WIA-Math'!$L$14:$V$500,11,FALSE)*100),"") ->  | Z64: =IFERROR(IF(VLOOKUP($A64,'WIAG4-MALL'!$A$14:$CZ$500,3,FALSE)<10,"",VLOOKUP($A64,'WIAG4-MALL'!$A$14:$CZ$500,11,FALSE)*100),"") ->  | AB64: 5 | AC64: =IFERROR(IF(VLOOKUP($A64,'M-2012'!$AC$6:$AP$500,3,FALSE)<10,"",VLOOKUP($A64,'M-2012'!$AC$6:$AP$500,10,FALSE)),"") ->  | AD64: =IFERROR(IF(VLOOKUP($A64,'2012 WIA-Math'!$W$14:$AG$500,3,FALSE)<10,"",VLOOKUP($A64,'2012 WIA-Math'!$W$14:$AG$500,11,FALSE)*100),"") ->  | AE64: =IFERROR(IF(VLOOKUP($A64,'WIAG5-MALL'!$A$14:$CZ$500,3,FALSE)<10,"",VLOOKUP($A64,'WIAG5-MALL'!$A$14:$CZ$500,11,FALSE)*100),"") ->  | AG64: 5 | AH64: =IFERROR(IF(VLOOKUP(TEXT($A64,"0000"),'2012 Sci Retrofitted'!$A$3:$G$267,3,FALSE)<10,"",VLOOKUP(TEXT($A64,"0000"),'2012 Sci Retrofitted'!$A$3:$G$267,5,FALSE)),"") ->  | AI64: =IFERROR(IF(VLOOKUP($A64,'2012 WIA-Sci'!$A$6:$G$500,3,FALSE)<10,"",VLOOKUP($A64,'2012 WIA-Sci'!$A$6:$G$500,7,FALSE)),"") ->  | AJ64: =IFERROR(IF(VLOOKUP($A64,'WIAG5-SALL'!$A$14:$CZ$500,3,FALSE)<10,"",VLOOKUP($A64,'WIAG5-SALL'!$A$14:$CZ$500,11,FALSE)*100),"") ->  | AL64: =VLOOKUP(TEXT($A64,"0000"),#REF!,2,FALSE) ->  | AM64: =VLOOKUP(TEXT($A64,"0000"),#REF!,2,FALSE) -> 
A65: 6351 | B65: LAKE STEVENS MIDDLE | C65: 3 | D65: =IFERROR(IF(VLOOKUP($A65,'R-2012'!$A$6:$O$500,3,FALSE)<10,"",VLOOKUP($A65,'R-2012'!$A$6:$O$500,10,FALSE)),"") ->  | E65: =IFERROR(IF(VLOOKUP($A65,'2012 WIA-Read'!$A$14:$K$500,3,FALSE)<10,"",VLOOKUP($A65,'2012 WIA-Read'!$A$14:$K$500,11,FALSE)*100),"") ->  | F65: =IFERROR(IF(VLOOKUP($A65,'WIAG3-RALL'!$A$14:$CZ$500,3,FALSE)<10,"",VLOOKUP($A65,'WIAG3-RALL'!$A$14:$CZ$500,11,FALSE)*100),"") ->  | H65: 4 | I65: =IFERROR(IF(VLOOKUP($A65,'R-2012'!$P$6:$AD$500,3,FALSE)<10,"",VLOOKUP($A65,'R-2012'!$P$6:$AD$500,10,FALSE)),"") ->  | J65: =IFERROR(IF(VLOOKUP($A65,'2012 WIA-Read'!$L$14:$V$500,3,FALSE)<10,"",VLOOKUP($A65,'2012 WIA-Read'!$L$14:$V$500,11,FALSE)*100),"") ->  | K65: =IFERROR(IF(VLOOKUP($A65,'WIAG4-RALL'!$A$14:$CZ$500,3,FALSE)<10,"",VLOOKUP($A65,'WIAG4-RALL'!$A$14:$CZ$500,11,FALSE)*100),"") ->  | M65: 5 | N65: =IFERROR(IF(VLOOKUP($A65,'R-2012'!$AE$6:$AS$500,3,FALSE)<10,"",VLOOKUP($A65,'R-2012'!$AE$6:$AS$500,10,FALSE)),"") ->  | O65: =IFERROR(IF(VLOOKUP($A65,'2012 WIA-Read'!$W$14:$AG$500,3,FALSE)<10,"",VLOOKUP($A65,'2012 WIA-Read'!$W$14:$AG$500,11,FALSE)*100),"") ->  | P65: =IFERROR(IF(VLOOKUP($A65,'WIAG5-RALL'!$A$14:$CZ$500,3,FALSE)<10,"",VLOOKUP($A65,'WIAG5-RALL'!$A$14:$CZ$500,11,FALSE)*100),"") ->  | R65: 3 | S65: =IFERROR(IF(VLOOKUP($A65,'M-2012'!$A$6:$N$500,3,FALSE)<10,"",VLOOKUP($A65,'M-2012'!$A$6:$N$500,10,FALSE)),"") ->  | T65: =IFERROR(IF(VLOOKUP($A65,'2012 WIA-Math'!$A$14:$K$500,3,FALSE)<10,"",VLOOKUP($A65,'2012 WIA-Math'!$A$14:$K$500,11,FALSE)*100),"") ->  | U65: =IFERROR(IF(VLOOKUP($A65,'WIAG3-MALL'!$A$14:$CZ$500,3,FALSE)<10,"",VLOOKUP($A65,'WIAG3-MALL'!$A$14:$CZ$500,11,FALSE)*100),"") ->  | W65: 4 | X65: =IFERROR(IF(VLOOKUP($A65,'M-2012'!$O$6:$AB$500,3,FALSE)<10,"",VLOOKUP($A65,'M-2012'!$O$6:$AB$500,10,FALSE)),"") ->  | Y65: =IFERROR(IF(VLOOKUP($A65,'2012 WIA-Math'!$L$14:$V$500,3,FALSE)<10,"",VLOOKUP($A65,'2012 WIA-Math'!$L$14:$V$500,11,FALSE)*100),"") ->  | Z65: =IFERROR(IF(VLOOKUP($A65,'WIAG4-MALL'!$A$14:$CZ$500,3,FALSE)<10,"",VLOOKUP($A65,'WIAG4-MALL'!$A$14:$CZ$500,11,FALSE)*100),"") ->  | AB65: 5 | AC65: =IFERROR(IF(VLOOKUP($A65,'M-2012'!$AC$6:$AP$500,3,FALSE)<10,"",VLOOKUP($A65,'M-2012'!$AC$6:$AP$500,10,FALSE)),"") ->  | AD65: =IFERROR(IF(VLOOKUP($A65,'2012 WIA-Math'!$W$14:$AG$500,3,FALSE)<10,"",VLOOKUP($A65,'2012 WIA-Math'!$W$14:$AG$500,11,FALSE)*100),"") ->  | AE65: =IFERROR(IF(VLOOKUP($A65,'WIAG5-MALL'!$A$14:$CZ$500,3,FALSE)<10,"",VLOOKUP($A65,'WIAG5-MALL'!$A$14:$CZ$500,11,FALSE)*100),"") ->  | AG65: 5 | AH65: =IFERROR(IF(VLOOKUP(TEXT($A65,"0000"),'2012 Sci Retrofitted'!$A$3:$G$267,3,FALSE)<10,"",VLOOKUP(TEXT($A65,"0000"),'2012 Sci Retrofitted'!$A$3:$G$267,5,FALSE)),"") ->  | AI65: =IFERROR(IF(VLOOKUP($A65,'2012 WIA-Sci'!$A$6:$G$500,3,FALSE)<10,"",VLOOKUP($A65,'2012 WIA-Sci'!$A$6:$G$500,7,FALSE)),"") ->  | AJ65: =IFERROR(IF(VLOOKUP($A65,'WIAG5-SALL'!$A$14:$CZ$500,3,FALSE)<10,"",VLOOKUP($A65,'WIAG5-SALL'!$A$14:$CZ$500,11,FALSE)*100),"") ->  | AL65: =VLOOKUP(TEXT($A65,"0000"),#REF!,2,FALSE) ->  | AM65: =VLOOKUP(TEXT($A65,"0000"),#REF!,2,FALSE) -> 
A66: 6421 | B66: JOSE MARTI MIDDLE | C66: 3 | D66: =IFERROR(IF(VLOOKUP($A66,'R-2012'!$A$6:$O$500,3,FALSE)<10,"",VLOOKUP($A66,'R-2012'!$A$6:$O$500,10,FALSE)),"") ->  | E66: =IFERROR(IF(VLOOKUP($A66,'2012 WIA-Read'!$A$14:$K$500,3,FALSE)<10,"",VLOOKUP($A66,'2012 WIA-Read'!$A$14:$K$500,11,FALSE)*100),"") ->  | F66: =IFERROR(IF(VLOOKUP($A66,'WIAG3-RALL'!$A$14:$CZ$500,3,FALSE)<10,"",VLOOKUP($A66,'WIAG3-RALL'!$A$14:$CZ$500,11,FALSE)*100),"") ->  | H66: 4 | I66: =IFERROR(IF(VLOOKUP($A66,'R-2012'!$P$6:$AD$500,3,FALSE)<10,"",VLOOKUP($A66,'R-2012'!$P$6:$AD$500,10,FALSE)),"") ->  | J66: =IFERROR(IF(VLOOKUP($A66,'2012 WIA-Read'!$L$14:$V$500,3,FALSE)<10,"",VLOOKUP($A66,'2012 WIA-Read'!$L$14:$V$500,11,FALSE)*100),"") ->  | K66: =IFERROR(IF(VLOOKUP($A66,'WIAG4-RALL'!$A$14:$CZ$500,3,FALSE)<10,"",VLOOKUP($A66,'WIAG4-RALL'!$A$14:$CZ$500,11,FALSE)*100),"") ->  | M66: 5 | N66: =IFERROR(IF(VLOOKUP($A66,'R-2012'!$AE$6:$AS$500,3,FALSE)<10,"",VLOOKUP($A66,'R-2012'!$AE$6:$AS$500,10,FALSE)),"") ->  | O66: =IFERROR(IF(VLOOKUP($A66,'2012 WIA-Read'!$W$14:$AG$500,3,FALSE)<10,"",VLOOKUP($A66,'2012 WIA-Read'!$W$14:$AG$500,11,FALSE)*100),"") ->  | P66: =IFERROR(IF(VLOOKUP($A66,'WIAG5-RALL'!$A$14:$CZ$500,3,FALSE)<10,"",VLOOKUP($A66,'WIAG5-RALL'!$A$14:$CZ$500,11,FALSE)*100),"") ->  | R66: 3 | S66: =IFERROR(IF(VLOOKUP($A66,'M-2012'!$A$6:$N$500,3,FALSE)<10,"",VLOOKUP($A66,'M-2012'!$A$6:$N$500,10,FALSE)),"") ->  | T66: =IFERROR(IF(VLOOKUP($A66,'2012 WIA-Math'!$A$14:$K$500,3,FALSE)<10,"",VLOOKUP($A66,'2012 WIA-Math'!$A$14:$K$500,11,FALSE)*100),"") ->  | U66: =IFERROR(IF(VLOOKUP($A66,'WIAG3-MALL'!$A$14:$CZ$500,3,FALSE)<10,"",VLOOKUP($A66,'WIAG3-MALL'!$A$14:$CZ$500,11,FALSE)*100),"") ->  | W66: 4 | X66: =IFERROR(IF(VLOOKUP($A66,'M-2012'!$O$6:$AB$500,3,FALSE)<10,"",VLOOKUP($A66,'M-2012'!$O$6:$AB$500,10,FALSE)),"") ->  | Y66: =IFERROR(IF(VLOOKUP($A66,'2012 WIA-Math'!$L$14:$V$500,3,FALSE)<10,"",VLOOKUP($A66,'2012 WIA-Math'!$L$14:$V$500,11,FALSE)*100),"") ->  | Z66: =IFERROR(IF(VLOOKUP($A66,'WIAG4-MALL'!$A$14:$CZ$500,3,FALSE)<10,"",VLOOKUP($A66,'WIAG4-MALL'!$A$14:$CZ$500,11,FALSE)*100),"") ->  | AB66: 5 | AC66: =IFERROR(IF(VLOOKUP($A66,'M-2012'!$AC$6:$AP$500,3,FALSE)<10,"",VLOOKUP($A66,'M-2012'!$AC$6:$AP$500,10,FALSE)),"") ->  | AD66: =IFERROR(IF(VLOOKUP($A66,'2012 WIA-Math'!$W$14:$AG$500,3,FALSE)<10,"",VLOOKUP($A66,'2012 WIA-Math'!$W$14:$AG$500,11,FALSE)*100),"") ->  | AE66: =IFERROR(IF(VLOOKUP($A66,'WIAG5-MALL'!$A$14:$CZ$500,3,FALSE)<10,"",VLOOKUP($A66,'WIAG5-MALL'!$A$14:$CZ$500,11,FALSE)*100),"") ->  | AG66: 5 | AH66: =IFERROR(IF(VLOOKUP(TEXT($A66,"0000"),'2012 Sci Retrofitted'!$A$3:$G$267,3,FALSE)<10,"",VLOOKUP(TEXT($A66,"0000"),'2012 Sci Retrofitted'!$A$3:$G$267,5,FALSE)),"") ->  | AI66: =IFERROR(IF(VLOOKUP($A66,'2012 WIA-Sci'!$A$6:$G$500,3,FALSE)<10,"",VLOOKUP($A66,'2012 WIA-Sci'!$A$6:$G$500,7,FALSE)),"") ->  | AJ66: =IFERROR(IF(VLOOKUP($A66,'WIAG5-SALL'!$A$14:$CZ$500,3,FALSE)<10,"",VLOOKUP($A66,'WIAG5-SALL'!$A$14:$CZ$500,11,FALSE)*100),"") ->  | AL66: =VLOOKUP(TEXT($A66,"0000"),#REF!,2,FALSE) ->  | AM66: =VLOOKUP(TEXT($A66,"0000"),#REF!,2,FALSE) -> 
A67: 6501 | B67: MIAMI LAKES MIDDLE | C67: 3 | D67: =IFERROR(IF(VLOOKUP($A67,'R-2012'!$A$6:$O$500,3,FALSE)<10,"",VLOOKUP($A67,'R-2012'!$A$6:$O$500,10,FALSE)),"") ->  | E67: =IFERROR(IF(VLOOKUP($A67,'2012 WIA-Read'!$A$14:$K$500,3,FALSE)<10,"",VLOOKUP($A67,'2012 WIA-Read'!$A$14:$K$500,11,FALSE)*100),"") ->  | F67: =IFERROR(IF(VLOOKUP($A67,'WIAG3-RALL'!$A$14:$CZ$500,3,FALSE)<10,"",VLOOKUP($A67,'WIAG3-RALL'!$A$14:$CZ$500,11,FALSE)*100),"") ->  | G67: =IFERROR(ROUND(F67,0)-ROUND(E67,0),"") ->  | H67: 4 | I67: =IFERROR(IF(VLOOKUP($A67,'R-2012'!$P$6:$AD$500,3,FALSE)<10,"",VLOOKUP($A67,'R-2012'!$P$6:$AD$500,10,FALSE)),"") ->  | J67: =IFERROR(IF(VLOOKUP($A67,'2012 WIA-Read'!$L$14:$V$500,3,FALSE)<10,"",VLOOKUP($A67,'2012 WIA-Read'!$L$14:$V$500,11,FALSE)*100),"") ->  | K67: =IFERROR(IF(VLOOKUP($A67,'WIAG4-RALL'!$A$14:$CZ$500,3,FALSE)<10,"",VLOOKUP($A67,'WIAG4-RALL'!$A$14:$CZ$500,11,FALSE)*100),"") ->  | L67: =IFERROR(ROUND(K67,0)-ROUND(J67,0),"") ->  | M67: 5 | N67: =IFERROR(IF(VLOOKUP($A67,'R-2012'!$AE$6:$AS$500,3,FALSE)<10,"",VLOOKUP($A67,'R-2012'!$AE$6:$AS$500,10,FALSE)),"") ->  | O67: =IFERROR(IF(VLOOKUP($A67,'2012 WIA-Read'!$W$14:$AG$500,3,FALSE)<10,"",VLOOKUP($A67,'2012 WIA-Read'!$W$14:$AG$500,11,FALSE)*100),"") ->  | P67: =IFERROR(IF(VLOOKUP($A67,'WIAG5-RALL'!$A$14:$CZ$500,3,FALSE)<10,"",VLOOKUP($A67,'WIAG5-RALL'!$A$14:$CZ$500,11,FALSE)*100),"") ->  | Q67: =IFERROR(ROUND(P67,0)-ROUND(O67,0),"") ->  | R67: 3 | S67: =IFERROR(IF(VLOOKUP($A67,'M-2012'!$A$6:$N$500,3,FALSE)<10,"",VLOOKUP($A67,'M-2012'!$A$6:$N$500,10,FALSE)),"") ->  | T67: =IFERROR(IF(VLOOKUP($A67,'2012 WIA-Math'!$A$14:$K$500,3,FALSE)<10,"",VLOOKUP($A67,'2012 WIA-Math'!$A$14:$K$500,11,FALSE)*100),"") ->  | U67: =IFERROR(IF(VLOOKUP($A67,'WIAG3-MALL'!$A$14:$CZ$500,3,FALSE)<10,"",VLOOKUP($A67,'WIAG3-MALL'!$A$14:$CZ$500,11,FALSE)*100),"") ->  | V67: =IFERROR(ROUND(U67,0)-ROUND(T67,0),"") ->  | W67: 4 | X67: =IFERROR(IF(VLOOKUP($A67,'M-2012'!$O$6:$AB$500,3,FALSE)<10,"",VLOOKUP($A67,'M-2012'!$O$6:$AB$500,10,FALSE)),"") ->  | Y67: =IFERROR(IF(VLOOKUP($A67,'2012 WIA-Math'!$L$14:$V$500,3,FALSE)<10,"",VLOOKUP($A67,'2012 WIA-Math'!$L$14:$V$500,11,FALSE)*100),"") ->  | Z67: =IFERROR(IF(VLOOKUP($A67,'WIAG4-MALL'!$A$14:$CZ$500,3,FALSE)<10,"",VLOOKUP($A67,'WIAG4-MALL'!$A$14:$CZ$500,11,FALSE)*100),"") ->  | AA67: =IFERROR(ROUND(Z67,0)-ROUND(Y67,0),"") ->  | AB67: 5 | AC67: =IFERROR(IF(VLOOKUP($A67,'M-2012'!$AC$6:$AP$500,3,FALSE)<10,"",VLOOKUP($A67,'M-2012'!$AC$6:$AP$500,10,FALSE)),"") ->  | AD67: =IFERROR(IF(VLOOKUP($A67,'2012 WIA-Math'!$W$14:$AG$500,3,FALSE)<10,"",VLOOKUP($A67,'2012 WIA-Math'!$W$14:$AG$500,11,FALSE)*100),"") ->  | AE67: =IFERROR(IF(VLOOKUP($A67,'WIAG5-MALL'!$A$14:$CZ$500,3,FALSE)<10,"",VLOOKUP($A67,'WIAG5-MALL'!$A$14:$CZ$500,11,FALSE)*100),"") ->  | AF67: =IFERROR(ROUND(AE67,0)-ROUND(AD67,0),"") ->  | AG67: 5 | AH67: =IFERROR(IF(VLOOKUP(TEXT($A67,"0000"),'2012 Sci Retrofitted'!$A$3:$G$267,3,FALSE)<10,"",VLOOKUP(TEXT($A67,"0000"),'2012 Sci Retrofitted'!$A$3:$G$267,5,FALSE)),"") ->  | AI67: =IFERROR(IF(VLOOKUP($A67,'2012 WIA-Sci'!$A$6:$G$500,3,FALSE)<10,"",VLOOKUP($A67,'2012 WIA-Sci'!$A$6:$G$500,7,FALSE)),"") ->  | AJ67: =IFERROR(IF(VLOOKUP($A67,'WIAG5-SALL'!$A$14:$CZ$500,3,FALSE)<10,"",VLOOKUP($A67,'WIAG5-SALL'!$A$14:$CZ$500,11,FALSE)*100),"") ->  | AK67: =IFERROR(ROUND(AJ67,0)-ROUND(AI67,0),"") ->  | AL67: =VLOOKUP(TEXT($A67,"0000"),#REF!,2,FALSE) ->  | AM67: =VLOOKUP(TEXT($A67,"0000"),#REF!,2,FALSE) -> 
A68: 6541 | B68: NAUTILUS MIDDLE | C68: 3 | D68: =IFERROR(IF(VLOOKUP($A68,'R-2012'!$A$6:$O$500,3,FALSE)<10,"",VLOOKUP($A68,'R-2012'!$A$6:$O$500,10,FALSE)),"") ->  | E68: =IFERROR(IF(VLOOKUP($A68,'2012 WIA-Read'!$A$14:$K$500,3,FALSE)<10,"",VLOOKUP($A68,'2012 WIA-Read'!$A$14:$K$500,11,FALSE)*100),"") ->  | F68: =IFERROR(IF(VLOOKUP($A68,'WIAG3-RALL'!$A$14:$CZ$500,3,FALSE)<10,"",VLOOKUP($A68,'WIAG3-RALL'!$A$14:$CZ$500,11,FALSE)*100),"") ->  | H68: 4 | I68: =IFERROR(IF(VLOOKUP($A68,'R-2012'!$P$6:$AD$500,3,FALSE)<10,"",VLOOKUP($A68,'R-2012'!$P$6:$AD$500,10,FALSE)),"") ->  | J68: =IFERROR(IF(VLOOKUP($A68,'2012 WIA-Read'!$L$14:$V$500,3,FALSE)<10,"",VLOOKUP($A68,'2012 WIA-Read'!$L$14:$V$500,11,FALSE)*100),"") ->  | K68: =IFERROR(IF(VLOOKUP($A68,'WIAG4-RALL'!$A$14:$CZ$500,3,FALSE)<10,"",VLOOKUP($A68,'WIAG4-RALL'!$A$14:$CZ$500,11,FALSE)*100),"") ->  | M68: 5 | N68: =IFERROR(IF(VLOOKUP($A68,'R-2012'!$AE$6:$AS$500,3,FALSE)<10,"",VLOOKUP($A68,'R-2012'!$AE$6:$AS$500,10,FALSE)),"") ->  | O68: =IFERROR(IF(VLOOKUP($A68,'2012 WIA-Read'!$W$14:$AG$500,3,FALSE)<10,"",VLOOKUP($A68,'2012 WIA-Read'!$W$14:$AG$500,11,FALSE)*100),"") ->  | P68: =IFERROR(IF(VLOOKUP($A68,'WIAG5-RALL'!$A$14:$CZ$500,3,FALSE)<10,"",VLOOKUP($A68,'WIAG5-RALL'!$A$14:$CZ$500,11,FALSE)*100),"") ->  | R68: 3 | S68: =IFERROR(IF(VLOOKUP($A68,'M-2012'!$A$6:$N$500,3,FALSE)<10,"",VLOOKUP($A68,'M-2012'!$A$6:$N$500,10,FALSE)),"") ->  | T68: =IFERROR(IF(VLOOKUP($A68,'2012 WIA-Math'!$A$14:$K$500,3,FALSE)<10,"",VLOOKUP($A68,'2012 WIA-Math'!$A$14:$K$500,11,FALSE)*100),"") ->  | U68: =IFERROR(IF(VLOOKUP($A68,'WIAG3-MALL'!$A$14:$CZ$500,3,FALSE)<10,"",VLOOKUP($A68,'WIAG3-MALL'!$A$14:$CZ$500,11,FALSE)*100),"") ->  | W68: 4 | X68: =IFERROR(IF(VLOOKUP($A68,'M-2012'!$O$6:$AB$500,3,FALSE)<10,"",VLOOKUP($A68,'M-2012'!$O$6:$AB$500,10,FALSE)),"") ->  | Y68: =IFERROR(IF(VLOOKUP($A68,'2012 WIA-Math'!$L$14:$V$500,3,FALSE)<10,"",VLOOKUP($A68,'2012 WIA-Math'!$L$14:$V$500,11,FALSE)*100),"") ->  | Z68: =IFERROR(IF(VLOOKUP($A68,'WIAG4-MALL'!$A$14:$CZ$500,3,FALSE)<10,"",VLOOKUP($A68,'WIAG4-MALL'!$A$14:$CZ$500,11,FALSE)*100),"") ->  | AB68: 5 | AC68: =IFERROR(IF(VLOOKUP($A68,'M-2012'!$AC$6:$AP$500,3,FALSE)<10,"",VLOOKUP($A68,'M-2012'!$AC$6:$AP$500,10,FALSE)),"") ->  | AD68: =IFERROR(IF(VLOOKUP($A68,'2012 WIA-Math'!$W$14:$AG$500,3,FALSE)<10,"",VLOOKUP($A68,'2012 WIA-Math'!$W$14:$AG$500,11,FALSE)*100),"") ->  | AE68: =IFERROR(IF(VLOOKUP($A68,'WIAG5-MALL'!$A$14:$CZ$500,3,FALSE)<10,"",VLOOKUP($A68,'WIAG5-MALL'!$A$14:$CZ$500,11,FALSE)*100),"") ->  | AG68: 5 | AH68: =IFERROR(IF(VLOOKUP(TEXT($A68,"0000"),'2012 Sci Retrofitted'!$A$3:$G$267,3,FALSE)<10,"",VLOOKUP(TEXT($A68,"0000"),'2012 Sci Retrofitted'!$A$3:$G$267,5,FALSE)),"") ->  | AI68: =IFERROR(IF(VLOOKUP($A68,'2012 WIA-Sci'!$A$6:$G$500,3,FALSE)<10,"",VLOOKUP($A68,'2012 WIA-Sci'!$A$6:$G$500,7,FALSE)),"") ->  | AJ68: =IFERROR(IF(VLOOKUP($A68,'WIAG5-SALL'!$A$14:$CZ$500,3,FALSE)<10,"",VLOOKUP($A68,'WIAG5-SALL'!$A$14:$CZ$500,11,FALSE)*100),"") ->  | AL68: =VLOOKUP(TEXT($A68,"0000"),#REF!,2,FALSE) ->  | AM68: =VLOOKUP(TEXT($A68,"0000"),#REF!,2,FALSE) -> 
A69: 6571 | B69: NORLAND MIDDLE | C69: 3 | D69: =IFERROR(IF(VLOOKUP($A69,'R-2012'!$A$6:$O$500,3,FALSE)<10,"",VLOOKUP($A69,'R-2012'!$A$6:$O$500,10,FALSE)),"") ->  | E69: =IFERROR(IF(VLOOKUP($A69,'2012 WIA-Read'!$A$14:$K$500,3,FALSE)<10,"",VLOOKUP($A69,'2012 WIA-Read'!$A$14:$K$500,11,FALSE)*100),"") ->  | F69: =IFERROR(IF(VLOOKUP($A69,'WIAG3-RALL'!$A$14:$CZ$500,3,FALSE)<10,"",VLOOKUP($A69,'WIAG3-RALL'!$A$14:$CZ$500,11,FALSE)*100),"") ->  | H69: 4 | I69: =IFERROR(IF(VLOOKUP($A69,'R-2012'!$P$6:$AD$500,3,FALSE)<10,"",VLOOKUP($A69,'R-2012'!$P$6:$AD$500,10,FALSE)),"") ->  | J69: =IFERROR(IF(VLOOKUP($A69,'2012 WIA-Read'!$L$14:$V$500,3,FALSE)<10,"",VLOOKUP($A69,'2012 WIA-Read'!$L$14:$V$500,11,FALSE)*100),"") ->  | K69: =IFERROR(IF(VLOOKUP($A69,'WIAG4-RALL'!$A$14:$CZ$500,3,FALSE)<10,"",VLOOKUP($A69,'WIAG4-RALL'!$A$14:$CZ$500,11,FALSE)*100),"") ->  | M69: 5 | N69: =IFERROR(IF(VLOOKUP($A69,'R-2012'!$AE$6:$AS$500,3,FALSE)<10,"",VLOOKUP($A69,'R-2012'!$AE$6:$AS$500,10,FALSE)),"") ->  | O69: =IFERROR(IF(VLOOKUP($A69,'2012 WIA-Read'!$W$14:$AG$500,3,FALSE)<10,"",VLOOKUP($A69,'2012 WIA-Read'!$W$14:$AG$500,11,FALSE)*100),"") ->  | P69: =IFERROR(IF(VLOOKUP($A69,'WIAG5-RALL'!$A$14:$CZ$500,3,FALSE)<10,"",VLOOKUP($A69,'WIAG5-RALL'!$A$14:$CZ$500,11,FALSE)*100),"") ->  | R69: 3 | S69: =IFERROR(IF(VLOOKUP($A69,'M-2012'!$A$6:$N$500,3,FALSE)<10,"",VLOOKUP($A69,'M-2012'!$A$6:$N$500,10,FALSE)),"") ->  | T69: =IFERROR(IF(VLOOKUP($A69,'2012 WIA-Math'!$A$14:$K$500,3,FALSE)<10,"",VLOOKUP($A69,'2012 WIA-Math'!$A$14:$K$500,11,FALSE)*100),"") ->  | U69: =IFERROR(IF(VLOOKUP($A69,'WIAG3-MALL'!$A$14:$CZ$500,3,FALSE)<10,"",VLOOKUP($A69,'WIAG3-MALL'!$A$14:$CZ$500,11,FALSE)*100),"") ->  | W69: 4 | X69: =IFERROR(IF(VLOOKUP($A69,'M-2012'!$O$6:$AB$500,3,FALSE)<10,"",VLOOKUP($A69,'M-2012'!$O$6:$AB$500,10,FALSE)),"") ->  | Y69: =IFERROR(IF(VLOOKUP($A69,'2012 WIA-Math'!$L$14:$V$500,3,FALSE)<10,"",VLOOKUP($A69,'2012 WIA-Math'!$L$14:$V$500,11,FALSE)*100),"") ->  | Z69: =IFERROR(IF(VLOOKUP($A69,'WIAG4-MALL'!$A$14:$CZ$500,3,FALSE)<10,"",VLOOKUP($A69,'WIAG4-MALL'!$A$14:$CZ$500,11,FALSE)*100),"") ->  | AB69: 5 | AC69: =IFERROR(IF(VLOOKUP($A69,'M-2012'!$AC$6:$AP$500,3,FALSE)<10,"",VLOOKUP($A69,'M-2012'!$AC$6:$AP$500,10,FALSE)),"") ->  | AD69: =IFERROR(IF(VLOOKUP($A69,'2012 WIA-Math'!$W$14:$AG$500,3,FALSE)<10,"",VLOOKUP($A69,'2012 WIA-Math'!$W$14:$AG$500,11,FALSE)*100),"") ->  | AE69: =IFERROR(IF(VLOOKUP($A69,'WIAG5-MALL'!$A$14:$CZ$500,3,FALSE)<10,"",VLOOKUP($A69,'WIAG5-MALL'!$A$14:$CZ$500,11,FALSE)*100),"") ->  | AG69: 5 | AH69: =IFERROR(IF(VLOOKUP(TEXT($A69,"0000"),'2012 Sci Retrofitted'!$A$3:$G$267,3,FALSE)<10,"",VLOOKUP(TEXT($A69,"0000"),'2012 Sci Retrofitted'!$A$3:$G$267,5,FALSE)),"") ->  | AI69: =IFERROR(IF(VLOOKUP($A69,'2012 WIA-Sci'!$A$6:$G$500,3,FALSE)<10,"",VLOOKUP($A69,'2012 WIA-Sci'!$A$6:$G$500,7,FALSE)),"") ->  | AJ69: =IFERROR(IF(VLOOKUP($A69,'WIAG5-SALL'!$A$14:$CZ$500,3,FALSE)<10,"",VLOOKUP($A69,'WIAG5-SALL'!$A$14:$CZ$500,11,FALSE)*100),"") ->  | AL69: =VLOOKUP(TEXT($A69,"0000"),#REF!,2,FALSE) ->  | AM69: =VLOOKUP(TEXT($A69,"0000"),#REF!,2,FALSE) -> 
A70: 6611 | B70: COUNTRY CLUB MIDDLE SCHOOL | C70: 3 | D70: =IFERROR(IF(VLOOKUP($A70,'R-2012'!$A$6:$O$500,3,FALSE)<10,"",VLOOKUP($A70,'R-2012'!$A$6:$O$500,10,FALSE)),"") ->  | E70: =IFERROR(IF(VLOOKUP($A70,'2012 WIA-Read'!$A$14:$K$500,3,FALSE)<10,"",VLOOKUP($A70,'2012 WIA-Read'!$A$14:$K$500,11,FALSE)*100),"") ->  | F70: =IFERROR(IF(VLOOKUP($A70,'WIAG3-RALL'!$A$14:$CZ$500,3,FALSE)<10,"",VLOOKUP($A70,'WIAG3-RALL'!$A$14:$CZ$500,11,FALSE)*100),"") ->  | H70: 4 | I70: =IFERROR(IF(VLOOKUP($A70,'R-2012'!$P$6:$AD$500,3,FALSE)<10,"",VLOOKUP($A70,'R-2012'!$P$6:$AD$500,10,FALSE)),"") ->  | J70: =IFERROR(IF(VLOOKUP($A70,'2012 WIA-Read'!$L$14:$V$500,3,FALSE)<10,"",VLOOKUP($A70,'2012 WIA-Read'!$L$14:$V$500,11,FALSE)*100),"") ->  | K70: =IFERROR(IF(VLOOKUP($A70,'WIAG4-RALL'!$A$14:$CZ$500,3,FALSE)<10,"",VLOOKUP($A70,'WIAG4-RALL'!$A$14:$CZ$500,11,FALSE)*100),"") ->  | M70: 5 | N70: =IFERROR(IF(VLOOKUP($A70,'R-2012'!$AE$6:$AS$500,3,FALSE)<10,"",VLOOKUP($A70,'R-2012'!$AE$6:$AS$500,10,FALSE)),"") ->  | O70: =IFERROR(IF(VLOOKUP($A70,'2012 WIA-Read'!$W$14:$AG$500,3,FALSE)<10,"",VLOOKUP($A70,'2012 WIA-Read'!$W$14:$AG$500,11,FALSE)*100),"") ->  | P70: =IFERROR(IF(VLOOKUP($A70,'WIAG5-RALL'!$A$14:$CZ$500,3,FALSE)<10,"",VLOOKUP($A70,'WIAG5-RALL'!$A$14:$CZ$500,11,FALSE)*100),"") ->  | R70: 3 | S70: =IFERROR(IF(VLOOKUP($A70,'M-2012'!$A$6:$N$500,3,FALSE)<10,"",VLOOKUP($A70,'M-2012'!$A$6:$N$500,10,FALSE)),"") ->  | T70: =IFERROR(IF(VLOOKUP($A70,'2012 WIA-Math'!$A$14:$K$500,3,FALSE)<10,"",VLOOKUP($A70,'2012 WIA-Math'!$A$14:$K$500,11,FALSE)*100),"") ->  | U70: =IFERROR(IF(VLOOKUP($A70,'WIAG3-MALL'!$A$14:$CZ$500,3,FALSE)<10,"",VLOOKUP($A70,'WIAG3-MALL'!$A$14:$CZ$500,11,FALSE)*100),"") ->  | W70: 4 | X70: =IFERROR(IF(VLOOKUP($A70,'M-2012'!$O$6:$AB$500,3,FALSE)<10,"",VLOOKUP($A70,'M-2012'!$O$6:$AB$500,10,FALSE)),"") ->  | Y70: =IFERROR(IF(VLOOKUP($A70,'2012 WIA-Math'!$L$14:$V$500,3,FALSE)<10,"",VLOOKUP($A70,'2012 WIA-Math'!$L$14:$V$500,11,FALSE)*100),"") ->  | Z70: =IFERROR(IF(VLOOKUP($A70,'WIAG4-MALL'!$A$14:$CZ$500,3,FALSE)<10,"",VLOOKUP($A70,'WIAG4-MALL'!$A$14:$CZ$500,11,FALSE)*100),"") ->  | AB70: 5 | AC70: =IFERROR(IF(VLOOKUP($A70,'M-2012'!$AC$6:$AP$500,3,FALSE)<10,"",VLOOKUP($A70,'M-2012'!$AC$6:$AP$500,10,FALSE)),"") ->  | AD70: =IFERROR(IF(VLOOKUP($A70,'2012 WIA-Math'!$W$14:$AG$500,3,FALSE)<10,"",VLOOKUP($A70,'2012 WIA-Math'!$W$14:$AG$500,11,FALSE)*100),"") ->  | AE70: =IFERROR(IF(VLOOKUP($A70,'WIAG5-MALL'!$A$14:$CZ$500,3,FALSE)<10,"",VLOOKUP($A70,'WIAG5-MALL'!$A$14:$CZ$500,11,FALSE)*100),"") ->  | AG70: 5 | AH70: =IFERROR(IF(VLOOKUP(TEXT($A70,"0000"),'2012 Sci Retrofitted'!$A$3:$G$267,3,FALSE)<10,"",VLOOKUP(TEXT($A70,"0000"),'2012 Sci Retrofitted'!$A$3:$G$267,5,FALSE)),"") ->  | AI70: =IFERROR(IF(VLOOKUP($A70,'2012 WIA-Sci'!$A$6:$G$500,3,FALSE)<10,"",VLOOKUP($A70,'2012 WIA-Sci'!$A$6:$G$500,7,FALSE)),"") ->  | AJ70: =IFERROR(IF(VLOOKUP($A70,'WIAG5-SALL'!$A$14:$CZ$500,3,FALSE)<10,"",VLOOKUP($A70,'WIAG5-SALL'!$A$14:$CZ$500,11,FALSE)*100),"") ->  | AL70: =VLOOKUP(TEXT($A70,"0000"),#REF!,2,FALSE) ->  | AM70: =VLOOKUP(TEXT($A70,"0000"),#REF!,2,FALSE) -> 
A71: 6681 | B71: PALM SPRINGS MIDDLE | C71: 3 | D71: =IFERROR(IF(VLOOKUP($A71,'R-2012'!$A$6:$O$500,3,FALSE)<10,"",VLOOKUP($A71,'R-2012'!$A$6:$O$500,10,FALSE)),"") ->  | E71: =IFERROR(IF(VLOOKUP($A71,'2012 WIA-Read'!$A$14:$K$500,3,FALSE)<10,"",VLOOKUP($A71,'2012 WIA-Read'!$A$14:$K$500,11,FALSE)*100),"") ->  | F71: =IFERROR(IF(VLOOKUP($A71,'WIAG3-RALL'!$A$14:$CZ$500,3,FALSE)<10,"",VLOOKUP($A71,'WIAG3-RALL'!$A$14:$CZ$500,11,FALSE)*100),"") ->  | H71: 4 | I71: =IFERROR(IF(VLOOKUP($A71,'R-2012'!$P$6:$AD$500,3,FALSE)<10,"",VLOOKUP($A71,'R-2012'!$P$6:$AD$500,10,FALSE)),"") ->  | J71: =IFERROR(IF(VLOOKUP($A71,'2012 WIA-Read'!$L$14:$V$500,3,FALSE)<10,"",VLOOKUP($A71,'2012 WIA-Read'!$L$14:$V$500,11,FALSE)*100),"") ->  | K71: =IFERROR(IF(VLOOKUP($A71,'WIAG4-RALL'!$A$14:$CZ$500,3,FALSE)<10,"",VLOOKUP($A71,'WIAG4-RALL'!$A$14:$CZ$500,11,FALSE)*100),"") ->  | M71: 5 | N71: =IFERROR(IF(VLOOKUP($A71,'R-2012'!$AE$6:$AS$500,3,FALSE)<10,"",VLOOKUP($A71,'R-2012'!$AE$6:$AS$500,10,FALSE)),"") ->  | O71: =IFERROR(IF(VLOOKUP($A71,'2012 WIA-Read'!$W$14:$AG$500,3,FALSE)<10,"",VLOOKUP($A71,'2012 WIA-Read'!$W$14:$AG$500,11,FALSE)*100),"") ->  | P71: =IFERROR(IF(VLOOKUP($A71,'WIAG5-RALL'!$A$14:$CZ$500,3,FALSE)<10,"",VLOOKUP($A71,'WIAG5-RALL'!$A$14:$CZ$500,11,FALSE)*100),"") ->  | R71: 3 | S71: =IFERROR(IF(VLOOKUP($A71,'M-2012'!$A$6:$N$500,3,FALSE)<10,"",VLOOKUP($A71,'M-2012'!$A$6:$N$500,10,FALSE)),"") ->  | T71: =IFERROR(IF(VLOOKUP($A71,'2012 WIA-Math'!$A$14:$K$500,3,FALSE)<10,"",VLOOKUP($A71,'2012 WIA-Math'!$A$14:$K$500,11,FALSE)*100),"") ->  | U71: =IFERROR(IF(VLOOKUP($A71,'WIAG3-MALL'!$A$14:$CZ$500,3,FALSE)<10,"",VLOOKUP($A71,'WIAG3-MALL'!$A$14:$CZ$500,11,FALSE)*100),"") ->  | W71: 4 | X71: =IFERROR(IF(VLOOKUP($A71,'M-2012'!$O$6:$AB$500,3,FALSE)<10,"",VLOOKUP($A71,'M-2012'!$O$6:$AB$500,10,FALSE)),"") ->  | Y71: =IFERROR(IF(VLOOKUP($A71,'2012 WIA-Math'!$L$14:$V$500,3,FALSE)<10,"",VLOOKUP($A71,'2012 WIA-Math'!$L$14:$V$500,11,FALSE)*100),"") ->  | Z71: =IFERROR(IF(VLOOKUP($A71,'WIAG4-MALL'!$A$14:$CZ$500,3,FALSE)<10,"",VLOOKUP($A71,'WIAG4-MALL'!$A$14:$CZ$500,11,FALSE)*100),"") ->  | AB71: 5 | AC71: =IFERROR(IF(VLOOKUP($A71,'M-2012'!$AC$6:$AP$500,3,FALSE)<10,"",VLOOKUP($A71,'M-2012'!$AC$6:$AP$500,10,FALSE)),"") ->  | AD71: =IFERROR(IF(VLOOKUP($A71,'2012 WIA-Math'!$W$14:$AG$500,3,FALSE)<10,"",VLOOKUP($A71,'2012 WIA-Math'!$W$14:$AG$500,11,FALSE)*100),"") ->  | AE71: =IFERROR(IF(VLOOKUP($A71,'WIAG5-MALL'!$A$14:$CZ$500,3,FALSE)<10,"",VLOOKUP($A71,'WIAG5-MALL'!$A$14:$CZ$500,11,FALSE)*100),"") ->  | AG71: 5 | AH71: =IFERROR(IF(VLOOKUP(TEXT($A71,"0000"),'2012 Sci Retrofitted'!$A$3:$G$267,3,FALSE)<10,"",VLOOKUP(TEXT($A71,"0000"),'2012 Sci Retrofitted'!$A$3:$G$267,5,FALSE)),"") ->  | AI71: =IFERROR(IF(VLOOKUP($A71,'2012 WIA-Sci'!$A$6:$G$500,3,FALSE)<10,"",VLOOKUP($A71,'2012 WIA-Sci'!$A$6:$G$500,7,FALSE)),"") ->  | AJ71: =IFERROR(IF(VLOOKUP($A71,'WIAG5-SALL'!$A$14:$CZ$500,3,FALSE)<10,"",VLOOKUP($A71,'WIAG5-SALL'!$A$14:$CZ$500,11,FALSE)*100),"") ->  | AL71: =VLOOKUP(TEXT($A71,"0000"),#REF!,2,FALSE) ->  | AM71: =VLOOKUP(TEXT($A71,"0000"),#REF!,2,FALSE) -> 
A72: 6751 | B72: HIALEAH GARDENS MIDDLE SCHOOL | C72: 3 | D72: =IFERROR(IF(VLOOKUP($A72,'R-2012'!$A$6:$O$500,3,FALSE)<10,"",VLOOKUP($A72,'R-2012'!$A$6:$O$500,10,FALSE)),"") ->  | E72: =IFERROR(IF(VLOOKUP($A72,'2012 WIA-Read'!$A$14:$K$500,3,FALSE)<10,"",VLOOKUP($A72,'2012 WIA-Read'!$A$14:$K$500,11,FALSE)*100),"") ->  | F72: =IFERROR(IF(VLOOKUP($A72,'WIAG3-RALL'!$A$14:$CZ$500,3,FALSE)<10,"",VLOOKUP($A72,'WIAG3-RALL'!$A$14:$CZ$500,11,FALSE)*100),"") ->  | H72: 4 | I72: =IFERROR(IF(VLOOKUP($A72,'R-2012'!$P$6:$AD$500,3,FALSE)<10,"",VLOOKUP($A72,'R-2012'!$P$6:$AD$500,10,FALSE)),"") ->  | J72: =IFERROR(IF(VLOOKUP($A72,'2012 WIA-Read'!$L$14:$V$500,3,FALSE)<10,"",VLOOKUP($A72,'2012 WIA-Read'!$L$14:$V$500,11,FALSE)*100),"") ->  | K72: =IFERROR(IF(VLOOKUP($A72,'WIAG4-RALL'!$A$14:$CZ$500,3,FALSE)<10,"",VLOOKUP($A72,'WIAG4-RALL'!$A$14:$CZ$500,11,FALSE)*100),"") ->  | M72: 5 | N72: =IFERROR(IF(VLOOKUP($A72,'R-2012'!$AE$6:$AS$500,3,FALSE)<10,"",VLOOKUP($A72,'R-2012'!$AE$6:$AS$500,10,FALSE)),"") ->  | O72: =IFERROR(IF(VLOOKUP($A72,'2012 WIA-Read'!$W$14:$AG$500,3,FALSE)<10,"",VLOOKUP($A72,'2012 WIA-Read'!$W$14:$AG$500,11,FALSE)*100),"") ->  | P72: =IFERROR(IF(VLOOKUP($A72,'WIAG5-RALL'!$A$14:$CZ$500,3,FALSE)<10,"",VLOOKUP($A72,'WIAG5-RALL'!$A$14:$CZ$500,11,FALSE)*100),"") ->  | R72: 3 | S72: =IFERROR(IF(VLOOKUP($A72,'M-2012'!$A$6:$N$500,3,FALSE)<10,"",VLOOKUP($A72,'M-2012'!$A$6:$N$500,10,FALSE)),"") ->  | T72: =IFERROR(IF(VLOOKUP($A72,'2012 WIA-Math'!$A$14:$K$500,3,FALSE)<10,"",VLOOKUP($A72,'2012 WIA-Math'!$A$14:$K$500,11,FALSE)*100),"") ->  | U72: =IFERROR(IF(VLOOKUP($A72,'WIAG3-MALL'!$A$14:$CZ$500,3,FALSE)<10,"",VLOOKUP($A72,'WIAG3-MALL'!$A$14:$CZ$500,11,FALSE)*100),"") ->  | W72: 4 | X72: =IFERROR(IF(VLOOKUP($A72,'M-2012'!$O$6:$AB$500,3,FALSE)<10,"",VLOOKUP($A72,'M-2012'!$O$6:$AB$500,10,FALSE)),"") ->  | Y72: =IFERROR(IF(VLOOKUP($A72,'2012 WIA-Math'!$L$14:$V$500,3,FALSE)<10,"",VLOOKUP($A72,'2012 WIA-Math'!$L$14:$V$500,11,FALSE)*100),"") ->  | Z72: =IFERROR(IF(VLOOKUP($A72,'WIAG4-MALL'!$A$14:$CZ$500,3,FALSE)<10,"",VLOOKUP($A72,'WIAG4-MALL'!$A$14:$CZ$500,11,FALSE)*100),"") ->  | AB72: 5 | AC72: =IFERROR(IF(VLOOKUP($A72,'M-2012'!$AC$6:$AP$500,3,FALSE)<10,"",VLOOKUP($A72,'M-2012'!$AC$6:$AP$500,10,FALSE)),"") ->  | AD72: =IFERROR(IF(VLOOKUP($A72,'2012 WIA-Math'!$W$14:$AG$500,3,FALSE)<10,"",VLOOKUP($A72,'2012 WIA-Math'!$W$14:$AG$500,11,FALSE)*100),"") ->  | AE72: =IFERROR(IF(VLOOKUP($A72,'WIAG5-MALL'!$A$14:$CZ$500,3,FALSE)<10,"",VLOOKUP($A72,'WIAG5-MALL'!$A$14:$CZ$500,11,FALSE)*100),"") ->  | AG72: 5 | AH72: =IFERROR(IF(VLOOKUP(TEXT($A72,"0000"),'2012 Sci Retrofitted'!$A$3:$G$267,3,FALSE)<10,"",VLOOKUP(TEXT($A72,"0000"),'2012 Sci Retrofitted'!$A$3:$G$267,5,FALSE)),"") ->  | AI72: =IFERROR(IF(VLOOKUP($A72,'2012 WIA-Sci'!$A$6:$G$500,3,FALSE)<10,"",VLOOKUP($A72,'2012 WIA-Sci'!$A$6:$G$500,7,FALSE)),"") ->  | AJ72: =IFERROR(IF(VLOOKUP($A72,'WIAG5-SALL'!$A$14:$CZ$500,3,FALSE)<10,"",VLOOKUP($A72,'WIAG5-SALL'!$A$14:$CZ$500,11,FALSE)*100),"") ->  | AL72: =VLOOKUP(TEXT($A72,"0000"),#REF!,2,FALSE) ->  | AM72: =VLOOKUP(TEXT($A72,"0000"),#REF!,2,FALSE) -> 
A73: 7011 | B73: AMERICAN SENIOR | C73: 3 | D73: =IFERROR(IF(VLOOKUP($A73,'R-2012'!$A$6:$O$500,3,FALSE)<10,"",VLOOKUP($A73,'R-2012'!$A$6:$O$500,10,FALSE)),"") ->  | E73: =IFERROR(IF(VLOOKUP($A73,'2012 WIA-Read'!$A$14:$K$500,3,FALSE)<10,"",VLOOKUP($A73,'2012 WIA-Read'!$A$14:$K$500,11,FALSE)*100),"") ->  | F73: =IFERROR(IF(VLOOKUP($A73,'WIAG3-RALL'!$A$14:$CZ$500,3,FALSE)<10,"",VLOOKUP($A73,'WIAG3-RALL'!$A$14:$CZ$500,11,FALSE)*100),"") ->  | H73: 4 | I73: =IFERROR(IF(VLOOKUP($A73,'R-2012'!$P$6:$AD$500,3,FALSE)<10,"",VLOOKUP($A73,'R-2012'!$P$6:$AD$500,10,FALSE)),"") ->  | J73: =IFERROR(IF(VLOOKUP($A73,'2012 WIA-Read'!$L$14:$V$500,3,FALSE)<10,"",VLOOKUP($A73,'2012 WIA-Read'!$L$14:$V$500,11,FALSE)*100),"") ->  | K73: =IFERROR(IF(VLOOKUP($A73,'WIAG4-RALL'!$A$14:$CZ$500,3,FALSE)<10,"",VLOOKUP($A73,'WIAG4-RALL'!$A$14:$CZ$500,11,FALSE)*100),"") ->  | M73: 5 | N73: =IFERROR(IF(VLOOKUP($A73,'R-2012'!$AE$6:$AS$500,3,FALSE)<10,"",VLOOKUP($A73,'R-2012'!$AE$6:$AS$500,10,FALSE)),"") ->  | O73: =IFERROR(IF(VLOOKUP($A73,'2012 WIA-Read'!$W$14:$AG$500,3,FALSE)<10,"",VLOOKUP($A73,'2012 WIA-Read'!$W$14:$AG$500,11,FALSE)*100),"") ->  | P73: =IFERROR(IF(VLOOKUP($A73,'WIAG5-RALL'!$A$14:$CZ$500,3,FALSE)<10,"",VLOOKUP($A73,'WIAG5-RALL'!$A$14:$CZ$500,11,FALSE)*100),"") ->  | R73: 3 | S73: =IFERROR(IF(VLOOKUP($A73,'M-2012'!$A$6:$N$500,3,FALSE)<10,"",VLOOKUP($A73,'M-2012'!$A$6:$N$500,10,FALSE)),"") ->  | T73: =IFERROR(IF(VLOOKUP($A73,'2012 WIA-Math'!$A$14:$K$500,3,FALSE)<10,"",VLOOKUP($A73,'2012 WIA-Math'!$A$14:$K$500,11,FALSE)*100),"") ->  | U73: =IFERROR(IF(VLOOKUP($A73,'WIAG3-MALL'!$A$14:$CZ$500,3,FALSE)<10,"",VLOOKUP($A73,'WIAG3-MALL'!$A$14:$CZ$500,11,FALSE)*100),"") ->  | W73: 4 | X73: =IFERROR(IF(VLOOKUP($A73,'M-2012'!$O$6:$AB$500,3,FALSE)<10,"",VLOOKUP($A73,'M-2012'!$O$6:$AB$500,10,FALSE)),"") ->  | Y73: =IFERROR(IF(VLOOKUP($A73,'2012 WIA-Math'!$L$14:$V$500,3,FALSE)<10,"",VLOOKUP($A73,'2012 WIA-Math'!$L$14:$V$500,11,FALSE)*100),"") ->  | Z73: =IFERROR(IF(VLOOKUP($A73,'WIAG4-MALL'!$A$14:$CZ$500,3,FALSE)<10,"",VLOOKUP($A73,'WIAG4-MALL'!$A$14:$CZ$500,11,FALSE)*100),"") ->  | AB73: 5 | AC73: =IFERROR(IF(VLOOKUP($A73,'M-2012'!$AC$6:$AP$500,3,FALSE)<10,"",VLOOKUP($A73,'M-2012'!$AC$6:$AP$500,10,FALSE)),"") ->  | AD73: =IFERROR(IF(VLOOKUP($A73,'2012 WIA-Math'!$W$14:$AG$500,3,FALSE)<10,"",VLOOKUP($A73,'2012 WIA-Math'!$W$14:$AG$500,11,FALSE)*100),"") ->  | AE73: =IFERROR(IF(VLOOKUP($A73,'WIAG5-MALL'!$A$14:$CZ$500,3,FALSE)<10,"",VLOOKUP($A73,'WIAG5-MALL'!$A$14:$CZ$500,11,FALSE)*100),"") ->  | AG73: 5 | AH73: =IFERROR(IF(VLOOKUP(TEXT($A73,"0000"),'2012 Sci Retrofitted'!$A$3:$G$267,3,FALSE)<10,"",VLOOKUP(TEXT($A73,"0000"),'2012 Sci Retrofitted'!$A$3:$G$267,5,FALSE)),"") ->  | AI73: =IFERROR(IF(VLOOKUP($A73,'2012 WIA-Sci'!$A$6:$G$500,3,FALSE)<10,"",VLOOKUP($A73,'2012 WIA-Sci'!$A$6:$G$500,7,FALSE)),"") ->  | AJ73: =IFERROR(IF(VLOOKUP($A73,'WIAG5-SALL'!$A$14:$CZ$500,3,FALSE)<10,"",VLOOKUP($A73,'WIAG5-SALL'!$A$14:$CZ$500,11,FALSE)*100),"") ->  | AL73: =VLOOKUP(TEXT($A73,"0000"),#REF!,2,FALSE) ->  | AM73: =VLOOKUP(TEXT($A73,"0000"),#REF!,2,FALSE) -> 
A74: 7048 | B74: ALONZO & TRACY MOURNING SH | C74: 3 | D74: =IFERROR(IF(VLOOKUP($A74,'R-2012'!$A$6:$O$500,3,FALSE)<10,"",VLOOKUP($A74,'R-2012'!$A$6:$O$500,10,FALSE)),"") ->  | E74: =IFERROR(IF(VLOOKUP($A74,'2012 WIA-Read'!$A$14:$K$500,3,FALSE)<10,"",VLOOKUP($A74,'2012 WIA-Read'!$A$14:$K$500,11,FALSE)*100),"") ->  | F74: =IFERROR(IF(VLOOKUP($A74,'WIAG3-RALL'!$A$14:$CZ$500,3,FALSE)<10,"",VLOOKUP($A74,'WIAG3-RALL'!$A$14:$CZ$500,11,FALSE)*100),"") ->  | H74: 4 | I74: =IFERROR(IF(VLOOKUP($A74,'R-2012'!$P$6:$AD$500,3,FALSE)<10,"",VLOOKUP($A74,'R-2012'!$P$6:$AD$500,10,FALSE)),"") ->  | J74: =IFERROR(IF(VLOOKUP($A74,'2012 WIA-Read'!$L$14:$V$500,3,FALSE)<10,"",VLOOKUP($A74,'2012 WIA-Read'!$L$14:$V$500,11,FALSE)*100),"") ->  | K74: =IFERROR(IF(VLOOKUP($A74,'WIAG4-RALL'!$A$14:$CZ$500,3,FALSE)<10,"",VLOOKUP($A74,'WIAG4-RALL'!$A$14:$CZ$500,11,FALSE)*100),"") ->  | M74: 5 | N74: =IFERROR(IF(VLOOKUP($A74,'R-2012'!$AE$6:$AS$500,3,FALSE)<10,"",VLOOKUP($A74,'R-2012'!$AE$6:$AS$500,10,FALSE)),"") ->  | O74: =IFERROR(IF(VLOOKUP($A74,'2012 WIA-Read'!$W$14:$AG$500,3,FALSE)<10,"",VLOOKUP($A74,'2012 WIA-Read'!$W$14:$AG$500,11,FALSE)*100),"") ->  | P74: =IFERROR(IF(VLOOKUP($A74,'WIAG5-RALL'!$A$14:$CZ$500,3,FALSE)<10,"",VLOOKUP($A74,'WIAG5-RALL'!$A$14:$CZ$500,11,FALSE)*100),"") ->  | R74: 3 | S74: =IFERROR(IF(VLOOKUP($A74,'M-2012'!$A$6:$N$500,3,FALSE)<10,"",VLOOKUP($A74,'M-2012'!$A$6:$N$500,10,FALSE)),"") ->  | T74: =IFERROR(IF(VLOOKUP($A74,'2012 WIA-Math'!$A$14:$K$500,3,FALSE)<10,"",VLOOKUP($A74,'2012 WIA-Math'!$A$14:$K$500,11,FALSE)*100),"") ->  | U74: =IFERROR(IF(VLOOKUP($A74,'WIAG3-MALL'!$A$14:$CZ$500,3,FALSE)<10,"",VLOOKUP($A74,'WIAG3-MALL'!$A$14:$CZ$500,11,FALSE)*100),"") ->  | W74: 4 | X74: =IFERROR(IF(VLOOKUP($A74,'M-2012'!$O$6:$AB$500,3,FALSE)<10,"",VLOOKUP($A74,'M-2012'!$O$6:$AB$500,10,FALSE)),"") ->  | Y74: =IFERROR(IF(VLOOKUP($A74,'2012 WIA-Math'!$L$14:$V$500,3,FALSE)<10,"",VLOOKUP($A74,'2012 WIA-Math'!$L$14:$V$500,11,FALSE)*100),"") ->  | Z74: =IFERROR(IF(VLOOKUP($A74,'WIAG4-MALL'!$A$14:$CZ$500,3,FALSE)<10,"",VLOOKUP($A74,'WIAG4-MALL'!$A$14:$CZ$500,11,FALSE)*100),"") ->  | AB74: 5 | AC74: =IFERROR(IF(VLOOKUP($A74,'M-2012'!$AC$6:$AP$500,3,FALSE)<10,"",VLOOKUP($A74,'M-2012'!$AC$6:$AP$500,10,FALSE)),"") ->  | AD74: =IFERROR(IF(VLOOKUP($A74,'2012 WIA-Math'!$W$14:$AG$500,3,FALSE)<10,"",VLOOKUP($A74,'2012 WIA-Math'!$W$14:$AG$500,11,FALSE)*100),"") ->  | AE74: =IFERROR(IF(VLOOKUP($A74,'WIAG5-MALL'!$A$14:$CZ$500,3,FALSE)<10,"",VLOOKUP($A74,'WIAG5-MALL'!$A$14:$CZ$500,11,FALSE)*100),"") ->  | AG74: 5 | AH74: =IFERROR(IF(VLOOKUP(TEXT($A74,"0000"),'2012 Sci Retrofitted'!$A$3:$G$267,3,FALSE)<10,"",VLOOKUP(TEXT($A74,"0000"),'2012 Sci Retrofitted'!$A$3:$G$267,5,FALSE)),"") ->  | AI74: =IFERROR(IF(VLOOKUP($A74,'2012 WIA-Sci'!$A$6:$G$500,3,FALSE)<10,"",VLOOKUP($A74,'2012 WIA-Sci'!$A$6:$G$500,7,FALSE)),"") ->  | AJ74: =IFERROR(IF(VLOOKUP($A74,'WIAG5-SALL'!$A$14:$CZ$500,3,FALSE)<10,"",VLOOKUP($A74,'WIAG5-SALL'!$A$14:$CZ$500,11,FALSE)*100),"") ->  | AL74: =VLOOKUP(TEXT($A74,"0000"),#REF!,2,FALSE) ->  | AM74: =VLOOKUP(TEXT($A74,"0000"),#REF!,2,FALSE) -> 
A75: 7049 | B75: WESTLAND HIALEAH SENIOR HIGH | C75: 3 | D75: =IFERROR(IF(VLOOKUP($A75,'R-2012'!$A$6:$O$500,3,FALSE)<10,"",VLOOKUP($A75,'R-2012'!$A$6:$O$500,10,FALSE)),"") ->  | E75: =IFERROR(IF(VLOOKUP($A75,'2012 WIA-Read'!$A$14:$K$500,3,FALSE)<10,"",VLOOKUP($A75,'2012 WIA-Read'!$A$14:$K$500,11,FALSE)*100),"") ->  | F75: =IFERROR(IF(VLOOKUP($A75,'WIAG3-RALL'!$A$14:$CZ$500,3,FALSE)<10,"",VLOOKUP($A75,'WIAG3-RALL'!$A$14:$CZ$500,11,FALSE)*100),"") ->  | H75: 4 | I75: =IFERROR(IF(VLOOKUP($A75,'R-2012'!$P$6:$AD$500,3,FALSE)<10,"",VLOOKUP($A75,'R-2012'!$P$6:$AD$500,10,FALSE)),"") ->  | J75: =IFERROR(IF(VLOOKUP($A75,'2012 WIA-Read'!$L$14:$V$500,3,FALSE)<10,"",VLOOKUP($A75,'2012 WIA-Read'!$L$14:$V$500,11,FALSE)*100),"") ->  | K75: =IFERROR(IF(VLOOKUP($A75,'WIAG4-RALL'!$A$14:$CZ$500,3,FALSE)<10,"",VLOOKUP($A75,'WIAG4-RALL'!$A$14:$CZ$500,11,FALSE)*100),"") ->  | M75: 5 | N75: =IFERROR(IF(VLOOKUP($A75,'R-2012'!$AE$6:$AS$500,3,FALSE)<10,"",VLOOKUP($A75,'R-2012'!$AE$6:$AS$500,10,FALSE)),"") ->  | O75: =IFERROR(IF(VLOOKUP($A75,'2012 WIA-Read'!$W$14:$AG$500,3,FALSE)<10,"",VLOOKUP($A75,'2012 WIA-Read'!$W$14:$AG$500,11,FALSE)*100),"") ->  | P75: =IFERROR(IF(VLOOKUP($A75,'WIAG5-RALL'!$A$14:$CZ$500,3,FALSE)<10,"",VLOOKUP($A75,'WIAG5-RALL'!$A$14:$CZ$500,11,FALSE)*100),"") ->  | R75: 3 | S75: =IFERROR(IF(VLOOKUP($A75,'M-2012'!$A$6:$N$500,3,FALSE)<10,"",VLOOKUP($A75,'M-2012'!$A$6:$N$500,10,FALSE)),"") ->  | T75: =IFERROR(IF(VLOOKUP($A75,'2012 WIA-Math'!$A$14:$K$500,3,FALSE)<10,"",VLOOKUP($A75,'2012 WIA-Math'!$A$14:$K$500,11,FALSE)*100),"") ->  | U75: =IFERROR(IF(VLOOKUP($A75,'WIAG3-MALL'!$A$14:$CZ$500,3,FALSE)<10,"",VLOOKUP($A75,'WIAG3-MALL'!$A$14:$CZ$500,11,FALSE)*100),"") ->  | W75: 4 | X75: =IFERROR(IF(VLOOKUP($A75,'M-2012'!$O$6:$AB$500,3,FALSE)<10,"",VLOOKUP($A75,'M-2012'!$O$6:$AB$500,10,FALSE)),"") ->  | Y75: =IFERROR(IF(VLOOKUP($A75,'2012 WIA-Math'!$L$14:$V$500,3,FALSE)<10,"",VLOOKUP($A75,'2012 WIA-Math'!$L$14:$V$500,11,FALSE)*100),"") ->  | Z75: =IFERROR(IF(VLOOKUP($A75,'WIAG4-MALL'!$A$14:$CZ$500,3,FALSE)<10,"",VLOOKUP($A75,'WIAG4-MALL'!$A$14:$CZ$500,11,FALSE)*100),"") ->  | AB75: 5 | AC75: =IFERROR(IF(VLOOKUP($A75,'M-2012'!$AC$6:$AP$500,3,FALSE)<10,"",VLOOKUP($A75,'M-2012'!$AC$6:$AP$500,10,FALSE)),"") ->  | AD75: =IFERROR(IF(VLOOKUP($A75,'2012 WIA-Math'!$W$14:$AG$500,3,FALSE)<10,"",VLOOKUP($A75,'2012 WIA-Math'!$W$14:$AG$500,11,FALSE)*100),"") ->  | AE75: =IFERROR(IF(VLOOKUP($A75,'WIAG5-MALL'!$A$14:$CZ$500,3,FALSE)<10,"",VLOOKUP($A75,'WIAG5-MALL'!$A$14:$CZ$500,11,FALSE)*100),"") ->  | AG75: 5 | AH75: =IFERROR(IF(VLOOKUP(TEXT($A75,"0000"),'2012 Sci Retrofitted'!$A$3:$G$267,3,FALSE)<10,"",VLOOKUP(TEXT($A75,"0000"),'2012 Sci Retrofitted'!$A$3:$G$267,5,FALSE)),"") ->  | AI75: =IFERROR(IF(VLOOKUP($A75,'2012 WIA-Sci'!$A$6:$G$500,3,FALSE)<10,"",VLOOKUP($A75,'2012 WIA-Sci'!$A$6:$G$500,7,FALSE)),"") ->  | AJ75: =IFERROR(IF(VLOOKUP($A75,'WIAG5-SALL'!$A$14:$CZ$500,3,FALSE)<10,"",VLOOKUP($A75,'WIAG5-SALL'!$A$14:$CZ$500,11,FALSE)*100),"") ->  | AL75: =VLOOKUP(TEXT($A75,"0000"),#REF!,2,FALSE) ->  | AM75: =VLOOKUP(TEXT($A75,"0000"),#REF!,2,FALSE) -> 
A76: 7111 | B76: HIALEAH SENIOR | C76: 3 | D76: =IFERROR(IF(VLOOKUP($A76,'R-2012'!$A$6:$O$500,3,FALSE)<10,"",VLOOKUP($A76,'R-2012'!$A$6:$O$500,10,FALSE)),"") ->  | E76: =IFERROR(IF(VLOOKUP($A76,'2012 WIA-Read'!$A$14:$K$500,3,FALSE)<10,"",VLOOKUP($A76,'2012 WIA-Read'!$A$14:$K$500,11,FALSE)*100),"") ->  | F76: =IFERROR(IF(VLOOKUP($A76,'WIAG3-RALL'!$A$14:$CZ$500,3,FALSE)<10,"",VLOOKUP($A76,'WIAG3-RALL'!$A$14:$CZ$500,11,FALSE)*100),"") ->  | H76: 4 | I76: =IFERROR(IF(VLOOKUP($A76,'R-2012'!$P$6:$AD$500,3,FALSE)<10,"",VLOOKUP($A76,'R-2012'!$P$6:$AD$500,10,FALSE)),"") ->  | J76: =IFERROR(IF(VLOOKUP($A76,'2012 WIA-Read'!$L$14:$V$500,3,FALSE)<10,"",VLOOKUP($A76,'2012 WIA-Read'!$L$14:$V$500,11,FALSE)*100),"") ->  | K76: =IFERROR(IF(VLOOKUP($A76,'WIAG4-RALL'!$A$14:$CZ$500,3,FALSE)<10,"",VLOOKUP($A76,'WIAG4-RALL'!$A$14:$CZ$500,11,FALSE)*100),"") ->  | M76: 5 | N76: =IFERROR(IF(VLOOKUP($A76,'R-2012'!$AE$6:$AS$500,3,FALSE)<10,"",VLOOKUP($A76,'R-2012'!$AE$6:$AS$500,10,FALSE)),"") ->  | O76: =IFERROR(IF(VLOOKUP($A76,'2012 WIA-Read'!$W$14:$AG$500,3,FALSE)<10,"",VLOOKUP($A76,'2012 WIA-Read'!$W$14:$AG$500,11,FALSE)*100),"") ->  | P76: =IFERROR(IF(VLOOKUP($A76,'WIAG5-RALL'!$A$14:$CZ$500,3,FALSE)<10,"",VLOOKUP($A76,'WIAG5-RALL'!$A$14:$CZ$500,11,FALSE)*100),"") ->  | R76: 3 | S76: =IFERROR(IF(VLOOKUP($A76,'M-2012'!$A$6:$N$500,3,FALSE)<10,"",VLOOKUP($A76,'M-2012'!$A$6:$N$500,10,FALSE)),"") ->  | T76: =IFERROR(IF(VLOOKUP($A76,'2012 WIA-Math'!$A$14:$K$500,3,FALSE)<10,"",VLOOKUP($A76,'2012 WIA-Math'!$A$14:$K$500,11,FALSE)*100),"") ->  | U76: =IFERROR(IF(VLOOKUP($A76,'WIAG3-MALL'!$A$14:$CZ$500,3,FALSE)<10,"",VLOOKUP($A76,'WIAG3-MALL'!$A$14:$CZ$500,11,FALSE)*100),"") ->  | W76: 4 | X76: =IFERROR(IF(VLOOKUP($A76,'M-2012'!$O$6:$AB$500,3,FALSE)<10,"",VLOOKUP($A76,'M-2012'!$O$6:$AB$500,10,FALSE)),"") ->  | Y76: =IFERROR(IF(VLOOKUP($A76,'2012 WIA-Math'!$L$14:$V$500,3,FALSE)<10,"",VLOOKUP($A76,'2012 WIA-Math'!$L$14:$V$500,11,FALSE)*100),"") ->  | Z76: =IFERROR(IF(VLOOKUP($A76,'WIAG4-MALL'!$A$14:$CZ$500,3,FALSE)<10,"",VLOOKUP($A76,'WIAG4-MALL'!$A$14:$CZ$500,11,FALSE)*100),"") ->  | AB76: 5 | AC76: =IFERROR(IF(VLOOKUP($A76,'M-2012'!$AC$6:$AP$500,3,FALSE)<10,"",VLOOKUP($A76,'M-2012'!$AC$6:$AP$500,10,FALSE)),"") ->  | AD76: =IFERROR(IF(VLOOKUP($A76,'2012 WIA-Math'!$W$14:$AG$500,3,FALSE)<10,"",VLOOKUP($A76,'2012 WIA-Math'!$W$14:$AG$500,11,FALSE)*100),"") ->  | AE76: =IFERROR(IF(VLOOKUP($A76,'WIAG5-MALL'!$A$14:$CZ$500,3,FALSE)<10,"",VLOOKUP($A76,'WIAG5-MALL'!$A$14:$CZ$500,11,FALSE)*100),"") ->  | AG76: 5 | AH76: =IFERROR(IF(VLOOKUP(TEXT($A76,"0000"),'2012 Sci Retrofitted'!$A$3:$G$267,3,FALSE)<10,"",VLOOKUP(TEXT($A76,"0000"),'2012 Sci Retrofitted'!$A$3:$G$267,5,FALSE)),"") ->  | AI76: =IFERROR(IF(VLOOKUP($A76,'2012 WIA-Sci'!$A$6:$G$500,3,FALSE)<10,"",VLOOKUP($A76,'2012 WIA-Sci'!$A$6:$G$500,7,FALSE)),"") ->  | AJ76: =IFERROR(IF(VLOOKUP($A76,'WIAG5-SALL'!$A$14:$CZ$500,3,FALSE)<10,"",VLOOKUP($A76,'WIAG5-SALL'!$A$14:$CZ$500,11,FALSE)*100),"") ->  | AL76: =VLOOKUP(TEXT($A76,"0000"),#REF!,2,FALSE) ->  | AM76: =VLOOKUP(TEXT($A76,"0000"),#REF!,2,FALSE) -> 
A77: 7141 | B77: DR MICHAEL M KROP SENIOR HIGH | C77: 3 | D77: =IFERROR(IF(VLOOKUP($A77,'R-2012'!$A$6:$O$500,3,FALSE)<10,"",VLOOKUP($A77,'R-2012'!$A$6:$O$500,10,FALSE)),"") ->  | E77: =IFERROR(IF(VLOOKUP($A77,'2012 WIA-Read'!$A$14:$K$500,3,FALSE)<10,"",VLOOKUP($A77,'2012 WIA-Read'!$A$14:$K$500,11,FALSE)*100),"") ->  | F77: =IFERROR(IF(VLOOKUP($A77,'WIAG3-RALL'!$A$14:$CZ$500,3,FALSE)<10,"",VLOOKUP($A77,'WIAG3-RALL'!$A$14:$CZ$500,11,FALSE)*100),"") ->  | H77: 4 | I77: =IFERROR(IF(VLOOKUP($A77,'R-2012'!$P$6:$AD$500,3,FALSE)<10,"",VLOOKUP($A77,'R-2012'!$P$6:$AD$500,10,FALSE)),"") ->  | J77: =IFERROR(IF(VLOOKUP($A77,'2012 WIA-Read'!$L$14:$V$500,3,FALSE)<10,"",VLOOKUP($A77,'2012 WIA-Read'!$L$14:$V$500,11,FALSE)*100),"") ->  | K77: =IFERROR(IF(VLOOKUP($A77,'WIAG4-RALL'!$A$14:$CZ$500,3,FALSE)<10,"",VLOOKUP($A77,'WIAG4-RALL'!$A$14:$CZ$500,11,FALSE)*100),"") ->  | M77: 5 | N77: =IFERROR(IF(VLOOKUP($A77,'R-2012'!$AE$6:$AS$500,3,FALSE)<10,"",VLOOKUP($A77,'R-2012'!$AE$6:$AS$500,10,FALSE)),"") ->  | O77: =IFERROR(IF(VLOOKUP($A77,'2012 WIA-Read'!$W$14:$AG$500,3,FALSE)<10,"",VLOOKUP($A77,'2012 WIA-Read'!$W$14:$AG$500,11,FALSE)*100),"") ->  | P77: =IFERROR(IF(VLOOKUP($A77,'WIAG5-RALL'!$A$14:$CZ$500,3,FALSE)<10,"",VLOOKUP($A77,'WIAG5-RALL'!$A$14:$CZ$500,11,FALSE)*100),"") ->  | R77: 3 | S77: =IFERROR(IF(VLOOKUP($A77,'M-2012'!$A$6:$N$500,3,FALSE)<10,"",VLOOKUP($A77,'M-2012'!$A$6:$N$500,10,FALSE)),"") ->  | T77: =IFERROR(IF(VLOOKUP($A77,'2012 WIA-Math'!$A$14:$K$500,3,FALSE)<10,"",VLOOKUP($A77,'2012 WIA-Math'!$A$14:$K$500,11,FALSE)*100),"") ->  | U77: =IFERROR(IF(VLOOKUP($A77,'WIAG3-MALL'!$A$14:$CZ$500,3,FALSE)<10,"",VLOOKUP($A77,'WIAG3-MALL'!$A$14:$CZ$500,11,FALSE)*100),"") ->  | W77: 4 | X77: =IFERROR(IF(VLOOKUP($A77,'M-2012'!$O$6:$AB$500,3,FALSE)<10,"",VLOOKUP($A77,'M-2012'!$O$6:$AB$500,10,FALSE)),"") ->  | Y77: =IFERROR(IF(VLOOKUP($A77,'2012 WIA-Math'!$L$14:$V$500,3,FALSE)<10,"",VLOOKUP($A77,'2012 WIA-Math'!$L$14:$V$500,11,FALSE)*100),"") ->  | Z77: =IFERROR(IF(VLOOKUP($A77,'WIAG4-MALL'!$A$14:$CZ$500,3,FALSE)<10,"",VLOOKUP($A77,'WIAG4-MALL'!$A$14:$CZ$500,11,FALSE)*100),"") ->  | AB77: 5 | AC77: =IFERROR(IF(VLOOKUP($A77,'M-2012'!$AC$6:$AP$500,3,FALSE)<10,"",VLOOKUP($A77,'M-2012'!$AC$6:$AP$500,10,FALSE)),"") ->  | AD77: =IFERROR(IF(VLOOKUP($A77,'2012 WIA-Math'!$W$14:$AG$500,3,FALSE)<10,"",VLOOKUP($A77,'2012 WIA-Math'!$W$14:$AG$500,11,FALSE)*100),"") ->  | AE77: =IFERROR(IF(VLOOKUP($A77,'WIAG5-MALL'!$A$14:$CZ$500,3,FALSE)<10,"",VLOOKUP($A77,'WIAG5-MALL'!$A$14:$CZ$500,11,FALSE)*100),"") ->  | AG77: 5 | AH77: =IFERROR(IF(VLOOKUP(TEXT($A77,"0000"),'2012 Sci Retrofitted'!$A$3:$G$267,3,FALSE)<10,"",VLOOKUP(TEXT($A77,"0000"),'2012 Sci Retrofitted'!$A$3:$G$267,5,FALSE)),"") ->  | AI77: =IFERROR(IF(VLOOKUP($A77,'2012 WIA-Sci'!$A$6:$G$500,3,FALSE)<10,"",VLOOKUP($A77,'2012 WIA-Sci'!$A$6:$G$500,7,FALSE)),"") ->  | AJ77: =IFERROR(IF(VLOOKUP($A77,'WIAG5-SALL'!$A$14:$CZ$500,3,FALSE)<10,"",VLOOKUP($A77,'WIAG5-SALL'!$A$14:$CZ$500,11,FALSE)*100),"") ->  | AL77: =VLOOKUP(TEXT($A77,"0000"),#REF!,2,FALSE) ->  | AM77: =VLOOKUP(TEXT($A77,"0000"),#REF!,2,FALSE) -> 
A78: 7191 | B78: HIALEAH GARDENS SENIOR | C78: 3 | D78: =IFERROR(IF(VLOOKUP($A78,'R-2012'!$A$6:$O$500,3,FALSE)<10,"",VLOOKUP($A78,'R-2012'!$A$6:$O$500,10,FALSE)),"") ->  | E78: =IFERROR(IF(VLOOKUP($A78,'2012 WIA-Read'!$A$14:$K$500,3,FALSE)<10,"",VLOOKUP($A78,'2012 WIA-Read'!$A$14:$K$500,11,FALSE)*100),"") ->  | F78: =IFERROR(IF(VLOOKUP($A78,'WIAG3-RALL'!$A$14:$CZ$500,3,FALSE)<10,"",VLOOKUP($A78,'WIAG3-RALL'!$A$14:$CZ$500,11,FALSE)*100),"") ->  | H78: 4 | I78: =IFERROR(IF(VLOOKUP($A78,'R-2012'!$P$6:$AD$500,3,FALSE)<10,"",VLOOKUP($A78,'R-2012'!$P$6:$AD$500,10,FALSE)),"") ->  | J78: =IFERROR(IF(VLOOKUP($A78,'2012 WIA-Read'!$L$14:$V$500,3,FALSE)<10,"",VLOOKUP($A78,'2012 WIA-Read'!$L$14:$V$500,11,FALSE)*100),"") ->  | K78: =IFERROR(IF(VLOOKUP($A78,'WIAG4-RALL'!$A$14:$CZ$500,3,FALSE)<10,"",VLOOKUP($A78,'WIAG4-RALL'!$A$14:$CZ$500,11,FALSE)*100),"") ->  | M78: 5 | N78: =IFERROR(IF(VLOOKUP($A78,'R-2012'!$AE$6:$AS$500,3,FALSE)<10,"",VLOOKUP($A78,'R-2012'!$AE$6:$AS$500,10,FALSE)),"") ->  | O78: =IFERROR(IF(VLOOKUP($A78,'2012 WIA-Read'!$W$14:$AG$500,3,FALSE)<10,"",VLOOKUP($A78,'2012 WIA-Read'!$W$14:$AG$500,11,FALSE)*100),"") ->  | P78: =IFERROR(IF(VLOOKUP($A78,'WIAG5-RALL'!$A$14:$CZ$500,3,FALSE)<10,"",VLOOKUP($A78,'WIAG5-RALL'!$A$14:$CZ$500,11,FALSE)*100),"") ->  | R78: 3 | S78: =IFERROR(IF(VLOOKUP($A78,'M-2012'!$A$6:$N$500,3,FALSE)<10,"",VLOOKUP($A78,'M-2012'!$A$6:$N$500,10,FALSE)),"") ->  | T78: =IFERROR(IF(VLOOKUP($A78,'2012 WIA-Math'!$A$14:$K$500,3,FALSE)<10,"",VLOOKUP($A78,'2012 WIA-Math'!$A$14:$K$500,11,FALSE)*100),"") ->  | U78: =IFERROR(IF(VLOOKUP($A78,'WIAG3-MALL'!$A$14:$CZ$500,3,FALSE)<10,"",VLOOKUP($A78,'WIAG3-MALL'!$A$14:$CZ$500,11,FALSE)*100),"") ->  | W78: 4 | X78: =IFERROR(IF(VLOOKUP($A78,'M-2012'!$O$6:$AB$500,3,FALSE)<10,"",VLOOKUP($A78,'M-2012'!$O$6:$AB$500,10,FALSE)),"") ->  | Y78: =IFERROR(IF(VLOOKUP($A78,'2012 WIA-Math'!$L$14:$V$500,3,FALSE)<10,"",VLOOKUP($A78,'2012 WIA-Math'!$L$14:$V$500,11,FALSE)*100),"") ->  | Z78: =IFERROR(IF(VLOOKUP($A78,'WIAG4-MALL'!$A$14:$CZ$500,3,FALSE)<10,"",VLOOKUP($A78,'WIAG4-MALL'!$A$14:$CZ$500,11,FALSE)*100),"") ->  | AB78: 5 | AC78: =IFERROR(IF(VLOOKUP($A78,'M-2012'!$AC$6:$AP$500,3,FALSE)<10,"",VLOOKUP($A78,'M-2012'!$AC$6:$AP$500,10,FALSE)),"") ->  | AD78: =IFERROR(IF(VLOOKUP($A78,'2012 WIA-Math'!$W$14:$AG$500,3,FALSE)<10,"",VLOOKUP($A78,'2012 WIA-Math'!$W$14:$AG$500,11,FALSE)*100),"") ->  | AE78: =IFERROR(IF(VLOOKUP($A78,'WIAG5-MALL'!$A$14:$CZ$500,3,FALSE)<10,"",VLOOKUP($A78,'WIAG5-MALL'!$A$14:$CZ$500,11,FALSE)*100),"") ->  | AG78: 5 | AH78: =IFERROR(IF(VLOOKUP(TEXT($A78,"0000"),'2012 Sci Retrofitted'!$A$3:$G$267,3,FALSE)<10,"",VLOOKUP(TEXT($A78,"0000"),'2012 Sci Retrofitted'!$A$3:$G$267,5,FALSE)),"") ->  | AI78: =IFERROR(IF(VLOOKUP($A78,'2012 WIA-Sci'!$A$6:$G$500,3,FALSE)<10,"",VLOOKUP($A78,'2012 WIA-Sci'!$A$6:$G$500,7,FALSE)),"") ->  | AJ78: =IFERROR(IF(VLOOKUP($A78,'WIAG5-SALL'!$A$14:$CZ$500,3,FALSE)<10,"",VLOOKUP($A78,'WIAG5-SALL'!$A$14:$CZ$500,11,FALSE)*100),"") ->  | AL78: =VLOOKUP(TEXT($A78,"0000"),#REF!,2,FALSE) ->  | AM78: =VLOOKUP(TEXT($A78,"0000"),#REF!,2,FALSE) -> 
A79: 7201 | B79: MIAMI BEACH SENIOR HIGH | C79: 3 | D79: =IFERROR(IF(VLOOKUP($A79,'R-2012'!$A$6:$O$500,3,FALSE)<10,"",VLOOKUP($A79,'R-2012'!$A$6:$O$500,10,FALSE)),"") ->  | E79: =IFERROR(IF(VLOOKUP($A79,'2012 WIA-Read'!$A$14:$K$500,3,FALSE)<10,"",VLOOKUP($A79,'2012 WIA-Read'!$A$14:$K$500,11,FALSE)*100),"") ->  | F79: =IFERROR(IF(VLOOKUP($A79,'WIAG3-RALL'!$A$14:$CZ$500,3,FALSE)<10,"",VLOOKUP($A79,'WIAG3-RALL'!$A$14:$CZ$500,11,FALSE)*100),"") ->  | H79: 4 | I79: =IFERROR(IF(VLOOKUP($A79,'R-2012'!$P$6:$AD$500,3,FALSE)<10,"",VLOOKUP($A79,'R-2012'!$P$6:$AD$500,10,FALSE)),"") ->  | J79: =IFERROR(IF(VLOOKUP($A79,'2012 WIA-Read'!$L$14:$V$500,3,FALSE)<10,"",VLOOKUP($A79,'2012 WIA-Read'!$L$14:$V$500,11,FALSE)*100),"") ->  | K79: =IFERROR(IF(VLOOKUP($A79,'WIAG4-RALL'!$A$14:$CZ$500,3,FALSE)<10,"",VLOOKUP($A79,'WIAG4-RALL'!$A$14:$CZ$500,11,FALSE)*100),"") ->  | M79: 5 | N79: =IFERROR(IF(VLOOKUP($A79,'R-2012'!$AE$6:$AS$500,3,FALSE)<10,"",VLOOKUP($A79,'R-2012'!$AE$6:$AS$500,10,FALSE)),"") ->  | O79: =IFERROR(IF(VLOOKUP($A79,'2012 WIA-Read'!$W$14:$AG$500,3,FALSE)<10,"",VLOOKUP($A79,'2012 WIA-Read'!$W$14:$AG$500,11,FALSE)*100),"") ->  | P79: =IFERROR(IF(VLOOKUP($A79,'WIAG5-RALL'!$A$14:$CZ$500,3,FALSE)<10,"",VLOOKUP($A79,'WIAG5-RALL'!$A$14:$CZ$500,11,FALSE)*100),"") ->  | R79: 3 | S79: =IFERROR(IF(VLOOKUP($A79,'M-2012'!$A$6:$N$500,3,FALSE)<10,"",VLOOKUP($A79,'M-2012'!$A$6:$N$500,10,FALSE)),"") ->  | T79: =IFERROR(IF(VLOOKUP($A79,'2012 WIA-Math'!$A$14:$K$500,3,FALSE)<10,"",VLOOKUP($A79,'2012 WIA-Math'!$A$14:$K$500,11,FALSE)*100),"") ->  | U79: =IFERROR(IF(VLOOKUP($A79,'WIAG3-MALL'!$A$14:$CZ$500,3,FALSE)<10,"",VLOOKUP($A79,'WIAG3-MALL'!$A$14:$CZ$500,11,FALSE)*100),"") ->  | W79: 4 | X79: =IFERROR(IF(VLOOKUP($A79,'M-2012'!$O$6:$AB$500,3,FALSE)<10,"",VLOOKUP($A79,'M-2012'!$O$6:$AB$500,10,FALSE)),"") ->  | Y79: =IFERROR(IF(VLOOKUP($A79,'2012 WIA-Math'!$L$14:$V$500,3,FALSE)<10,"",VLOOKUP($A79,'2012 WIA-Math'!$L$14:$V$500,11,FALSE)*100),"") ->  | Z79: =IFERROR(IF(VLOOKUP($A79,'WIAG4-MALL'!$A$14:$CZ$500,3,FALSE)<10,"",VLOOKUP($A79,'WIAG4-MALL'!$A$14:$CZ$500,11,FALSE)*100),"") ->  | AB79: 5 | AC79: =IFERROR(IF(VLOOKUP($A79,'M-2012'!$AC$6:$AP$500,3,FALSE)<10,"",VLOOKUP($A79,'M-2012'!$AC$6:$AP$500,10,FALSE)),"") ->  | AD79: =IFERROR(IF(VLOOKUP($A79,'2012 WIA-Math'!$W$14:$AG$500,3,FALSE)<10,"",VLOOKUP($A79,'2012 WIA-Math'!$W$14:$AG$500,11,FALSE)*100),"") ->  | AE79: =IFERROR(IF(VLOOKUP($A79,'WIAG5-MALL'!$A$14:$CZ$500,3,FALSE)<10,"",VLOOKUP($A79,'WIAG5-MALL'!$A$14:$CZ$500,11,FALSE)*100),"") ->  | AG79: 5 | AH79: =IFERROR(IF(VLOOKUP(TEXT($A79,"0000"),'2012 Sci Retrofitted'!$A$3:$G$267,3,FALSE)<10,"",VLOOKUP(TEXT($A79,"0000"),'2012 Sci Retrofitted'!$A$3:$G$267,5,FALSE)),"") ->  | AI79: =IFERROR(IF(VLOOKUP($A79,'2012 WIA-Sci'!$A$6:$G$500,3,FALSE)<10,"",VLOOKUP($A79,'2012 WIA-Sci'!$A$6:$G$500,7,FALSE)),"") ->  | AJ79: =IFERROR(IF(VLOOKUP($A79,'WIAG5-SALL'!$A$14:$CZ$500,3,FALSE)<10,"",VLOOKUP($A79,'WIAG5-SALL'!$A$14:$CZ$500,11,FALSE)*100),"") ->  | AL79: =VLOOKUP(TEXT($A79,"0000"),#REF!,2,FALSE) ->  | AM79: =VLOOKUP(TEXT($A79,"0000"),#REF!,2,FALSE) -> 
A80: 7291 | B80: JOSE MARTI MAST 6-12 ACADEMY | C80: 3 | D80: =IFERROR(IF(VLOOKUP($A80,'R-2012'!$A$6:$O$500,3,FALSE)<10,"",VLOOKUP($A80,'R-2012'!$A$6:$O$500,10,FALSE)),"") ->  | E80: =IFERROR(IF(VLOOKUP($A80,'2012 WIA-Read'!$A$14:$K$500,3,FALSE)<10,"",VLOOKUP($A80,'2012 WIA-Read'!$A$14:$K$500,11,FALSE)*100),"") ->  | F80: =IFERROR(IF(VLOOKUP($A80,'WIAG3-RALL'!$A$14:$CZ$500,3,FALSE)<10,"",VLOOKUP($A80,'WIAG3-RALL'!$A$14:$CZ$500,11,FALSE)*100),"") ->  | H80: 4 | I80: =IFERROR(IF(VLOOKUP($A80,'R-2012'!$P$6:$AD$500,3,FALSE)<10,"",VLOOKUP($A80,'R-2012'!$P$6:$AD$500,10,FALSE)),"") ->  | J80: =IFERROR(IF(VLOOKUP($A80,'2012 WIA-Read'!$L$14:$V$500,3,FALSE)<10,"",VLOOKUP($A80,'2012 WIA-Read'!$L$14:$V$500,11,FALSE)*100),"") ->  | K80: =IFERROR(IF(VLOOKUP($A80,'WIAG4-RALL'!$A$14:$CZ$500,3,FALSE)<10,"",VLOOKUP($A80,'WIAG4-RALL'!$A$14:$CZ$500,11,FALSE)*100),"") ->  | M80: 5 | N80: =IFERROR(IF(VLOOKUP($A80,'R-2012'!$AE$6:$AS$500,3,FALSE)<10,"",VLOOKUP($A80,'R-2012'!$AE$6:$AS$500,10,FALSE)),"") ->  | O80: =IFERROR(IF(VLOOKUP($A80,'2012 WIA-Read'!$W$14:$AG$500,3,FALSE)<10,"",VLOOKUP($A80,'2012 WIA-Read'!$W$14:$AG$500,11,FALSE)*100),"") ->  | P80: =IFERROR(IF(VLOOKUP($A80,'WIAG5-RALL'!$A$14:$CZ$500,3,FALSE)<10,"",VLOOKUP($A80,'WIAG5-RALL'!$A$14:$CZ$500,11,FALSE)*100),"") ->  | R80: 3 | S80: =IFERROR(IF(VLOOKUP($A80,'M-2012'!$A$6:$N$500,3,FALSE)<10,"",VLOOKUP($A80,'M-2012'!$A$6:$N$500,10,FALSE)),"") ->  | T80: =IFERROR(IF(VLOOKUP($A80,'2012 WIA-Math'!$A$14:$K$500,3,FALSE)<10,"",VLOOKUP($A80,'2012 WIA-Math'!$A$14:$K$500,11,FALSE)*100),"") ->  | U80: =IFERROR(IF(VLOOKUP($A80,'WIAG3-MALL'!$A$14:$CZ$500,3,FALSE)<10,"",VLOOKUP($A80,'WIAG3-MALL'!$A$14:$CZ$500,11,FALSE)*100),"") ->  | W80: 4 | X80: =IFERROR(IF(VLOOKUP($A80,'M-2012'!$O$6:$AB$500,3,FALSE)<10,"",VLOOKUP($A80,'M-2012'!$O$6:$AB$500,10,FALSE)),"") ->  | Y80: =IFERROR(IF(VLOOKUP($A80,'2012 WIA-Math'!$L$14:$V$500,3,FALSE)<10,"",VLOOKUP($A80,'2012 WIA-Math'!$L$14:$V$500,11,FALSE)*100),"") ->  | Z80: =IFERROR(IF(VLOOKUP($A80,'WIAG4-MALL'!$A$14:$CZ$500,3,FALSE)<10,"",VLOOKUP($A80,'WIAG4-MALL'!$A$14:$CZ$500,11,FALSE)*100),"") ->  | AB80: 5 | AC80: =IFERROR(IF(VLOOKUP($A80,'M-2012'!$AC$6:$AP$500,3,FALSE)<10,"",VLOOKUP($A80,'M-2012'!$AC$6:$AP$500,10,FALSE)),"") ->  | AD80: =IFERROR(IF(VLOOKUP($A80,'2012 WIA-Math'!$W$14:$AG$500,3,FALSE)<10,"",VLOOKUP($A80,'2012 WIA-Math'!$W$14:$AG$500,11,FALSE)*100),"") ->  | AE80: =IFERROR(IF(VLOOKUP($A80,'WIAG5-MALL'!$A$14:$CZ$500,3,FALSE)<10,"",VLOOKUP($A80,'WIAG5-MALL'!$A$14:$CZ$500,11,FALSE)*100),"") ->  | AG80: 5 | AH80: =IFERROR(IF(VLOOKUP(TEXT($A80,"0000"),'2012 Sci Retrofitted'!$A$3:$G$267,3,FALSE)<10,"",VLOOKUP(TEXT($A80,"0000"),'2012 Sci Retrofitted'!$A$3:$G$267,5,FALSE)),"") ->  | AI80: =IFERROR(IF(VLOOKUP($A80,'2012 WIA-Sci'!$A$6:$G$500,3,FALSE)<10,"",VLOOKUP($A80,'2012 WIA-Sci'!$A$6:$G$500,7,FALSE)),"") ->  | AJ80: =IFERROR(IF(VLOOKUP($A80,'WIAG5-SALL'!$A$14:$CZ$500,3,FALSE)<10,"",VLOOKUP($A80,'WIAG5-SALL'!$A$14:$CZ$500,11,FALSE)*100),"") ->  | AL80: =VLOOKUP(TEXT($A80,"0000"),#REF!,2,FALSE) ->  | AM80: =VLOOKUP(TEXT($A80,"0000"),#REF!,2,FALSE) -> 
A81: 7391 | B81: MIAMI LAKES EDUCATIONAL CENTER | C81: 3 | D81: =IFERROR(IF(VLOOKUP($A81,'R-2012'!$A$6:$O$500,3,FALSE)<10,"",VLOOKUP($A81,'R-2012'!$A$6:$O$500,10,FALSE)),"") ->  | E81: =IFERROR(IF(VLOOKUP($A81,'2012 WIA-Read'!$A$14:$K$500,3,FALSE)<10,"",VLOOKUP($A81,'2012 WIA-Read'!$A$14:$K$500,11,FALSE)*100),"") ->  | F81: =IFERROR(IF(VLOOKUP($A81,'WIAG3-RALL'!$A$14:$CZ$500,3,FALSE)<10,"",VLOOKUP($A81,'WIAG3-RALL'!$A$14:$CZ$500,11,FALSE)*100),"") ->  | H81: 4 | I81: =IFERROR(IF(VLOOKUP($A81,'R-2012'!$P$6:$AD$500,3,FALSE)<10,"",VLOOKUP($A81,'R-2012'!$P$6:$AD$500,10,FALSE)),"") ->  | J81: =IFERROR(IF(VLOOKUP($A81,'2012 WIA-Read'!$L$14:$V$500,3,FALSE)<10,"",VLOOKUP($A81,'2012 WIA-Read'!$L$14:$V$500,11,FALSE)*100),"") ->  | K81: =IFERROR(IF(VLOOKUP($A81,'WIAG4-RALL'!$A$14:$CZ$500,3,FALSE)<10,"",VLOOKUP($A81,'WIAG4-RALL'!$A$14:$CZ$500,11,FALSE)*100),"") ->  | M81: 5 | N81: =IFERROR(IF(VLOOKUP($A81,'R-2012'!$AE$6:$AS$500,3,FALSE)<10,"",VLOOKUP($A81,'R-2012'!$AE$6:$AS$500,10,FALSE)),"") ->  | O81: =IFERROR(IF(VLOOKUP($A81,'2012 WIA-Read'!$W$14:$AG$500,3,FALSE)<10,"",VLOOKUP($A81,'2012 WIA-Read'!$W$14:$AG$500,11,FALSE)*100),"") ->  | P81: =IFERROR(IF(VLOOKUP($A81,'WIAG5-RALL'!$A$14:$CZ$500,3,FALSE)<10,"",VLOOKUP($A81,'WIAG5-RALL'!$A$14:$CZ$500,11,FALSE)*100),"") ->  | R81: 3 | S81: =IFERROR(IF(VLOOKUP($A81,'M-2012'!$A$6:$N$500,3,FALSE)<10,"",VLOOKUP($A81,'M-2012'!$A$6:$N$500,10,FALSE)),"") ->  | T81: =IFERROR(IF(VLOOKUP($A81,'2012 WIA-Math'!$A$14:$K$500,3,FALSE)<10,"",VLOOKUP($A81,'2012 WIA-Math'!$A$14:$K$500,11,FALSE)*100),"") ->  | U81: =IFERROR(IF(VLOOKUP($A81,'WIAG3-MALL'!$A$14:$CZ$500,3,FALSE)<10,"",VLOOKUP($A81,'WIAG3-MALL'!$A$14:$CZ$500,11,FALSE)*100),"") ->  | W81: 4 | X81: =IFERROR(IF(VLOOKUP($A81,'M-2012'!$O$6:$AB$500,3,FALSE)<10,"",VLOOKUP($A81,'M-2012'!$O$6:$AB$500,10,FALSE)),"") ->  | Y81: =IFERROR(IF(VLOOKUP($A81,'2012 WIA-Math'!$L$14:$V$500,3,FALSE)<10,"",VLOOKUP($A81,'2012 WIA-Math'!$L$14:$V$500,11,FALSE)*100),"") ->  | Z81: =IFERROR(IF(VLOOKUP($A81,'WIAG4-MALL'!$A$14:$CZ$500,3,FALSE)<10,"",VLOOKUP($A81,'WIAG4-MALL'!$A$14:$CZ$500,11,FALSE)*100),"") ->  | AB81: 5 | AC81: =IFERROR(IF(VLOOKUP($A81,'M-2012'!$AC$6:$AP$500,3,FALSE)<10,"",VLOOKUP($A81,'M-2012'!$AC$6:$AP$500,10,FALSE)),"") ->  | AD81: =IFERROR(IF(VLOOKUP($A81,'2012 WIA-Math'!$W$14:$AG$500,3,FALSE)<10,"",VLOOKUP($A81,'2012 WIA-Math'!$W$14:$AG$500,11,FALSE)*100),"") ->  | AE81: =IFERROR(IF(VLOOKUP($A81,'WIAG5-MALL'!$A$14:$CZ$500,3,FALSE)<10,"",VLOOKUP($A81,'WIAG5-MALL'!$A$14:$CZ$500,11,FALSE)*100),"") ->  | AG81: 5 | AH81: =IFERROR(IF(VLOOKUP(TEXT($A81,"0000"),'2012 Sci Retrofitted'!$A$3:$G$267,3,FALSE)<10,"",VLOOKUP(TEXT($A81,"0000"),'2012 Sci Retrofitted'!$A$3:$G$267,5,FALSE)),"") ->  | AI81: =IFERROR(IF(VLOOKUP($A81,'2012 WIA-Sci'!$A$6:$G$500,3,FALSE)<10,"",VLOOKUP($A81,'2012 WIA-Sci'!$A$6:$G$500,7,FALSE)),"") ->  | AJ81: =IFERROR(IF(VLOOKUP($A81,'WIAG5-SALL'!$A$14:$CZ$500,3,FALSE)<10,"",VLOOKUP($A81,'WIAG5-SALL'!$A$14:$CZ$500,11,FALSE)*100),"") ->  | AL81: =VLOOKUP(TEXT($A81,"0000"),#REF!,2,FALSE) ->  | AM81: =VLOOKUP(TEXT($A81,"0000"),#REF!,2,FALSE) -> 
A82: 7751 | B82: BARBARA GOLEMAN SENIOR HIGH | C82: 3 | D82: =IFERROR(IF(VLOOKUP($A82,'R-2012'!$A$6:$O$500,3,FALSE)<10,"",VLOOKUP($A82,'R-2012'!$A$6:$O$500,10,FALSE)),"") ->  | E82: =IFERROR(IF(VLOOKUP($A82,'2012 WIA-Read'!$A$14:$K$500,3,FALSE)<10,"",VLOOKUP($A82,'2012 WIA-Read'!$A$14:$K$500,11,FALSE)*100),"") ->  | F82: =IFERROR(IF(VLOOKUP($A82,'WIAG3-RALL'!$A$14:$CZ$500,3,FALSE)<10,"",VLOOKUP($A82,'WIAG3-RALL'!$A$14:$CZ$500,11,FALSE)*100),"") ->  | H82: 4 | I82: =IFERROR(IF(VLOOKUP($A82,'R-2012'!$P$6:$AD$500,3,FALSE)<10,"",VLOOKUP($A82,'R-2012'!$P$6:$AD$500,10,FALSE)),"") ->  | J82: =IFERROR(IF(VLOOKUP($A82,'2012 WIA-Read'!$L$14:$V$500,3,FALSE)<10,"",VLOOKUP($A82,'2012 WIA-Read'!$L$14:$V$500,11,FALSE)*100),"") ->  | K82: =IFERROR(IF(VLOOKUP($A82,'WIAG4-RALL'!$A$14:$CZ$500,3,FALSE)<10,"",VLOOKUP($A82,'WIAG4-RALL'!$A$14:$CZ$500,11,FALSE)*100),"") ->  | M82: 5 | N82: =IFERROR(IF(VLOOKUP($A82,'R-2012'!$AE$6:$AS$500,3,FALSE)<10,"",VLOOKUP($A82,'R-2012'!$AE$6:$AS$500,10,FALSE)),"") ->  | O82: =IFERROR(IF(VLOOKUP($A82,'2012 WIA-Read'!$W$14:$AG$500,3,FALSE)<10,"",VLOOKUP($A82,'2012 WIA-Read'!$W$14:$AG$500,11,FALSE)*100),"") ->  | P82: =IFERROR(IF(VLOOKUP($A82,'WIAG5-RALL'!$A$14:$CZ$500,3,FALSE)<10,"",VLOOKUP($A82,'WIAG5-RALL'!$A$14:$CZ$500,11,FALSE)*100),"") ->  | R82: 3 | S82: =IFERROR(IF(VLOOKUP($A82,'M-2012'!$A$6:$N$500,3,FALSE)<10,"",VLOOKUP($A82,'M-2012'!$A$6:$N$500,10,FALSE)),"") ->  | T82: =IFERROR(IF(VLOOKUP($A82,'2012 WIA-Math'!$A$14:$K$500,3,FALSE)<10,"",VLOOKUP($A82,'2012 WIA-Math'!$A$14:$K$500,11,FALSE)*100),"") ->  | U82: =IFERROR(IF(VLOOKUP($A82,'WIAG3-MALL'!$A$14:$CZ$500,3,FALSE)<10,"",VLOOKUP($A82,'WIAG3-MALL'!$A$14:$CZ$500,11,FALSE)*100),"") ->  | W82: 4 | X82: =IFERROR(IF(VLOOKUP($A82,'M-2012'!$O$6:$AB$500,3,FALSE)<10,"",VLOOKUP($A82,'M-2012'!$O$6:$AB$500,10,FALSE)),"") ->  | Y82: =IFERROR(IF(VLOOKUP($A82,'2012 WIA-Math'!$L$14:$V$500,3,FALSE)<10,"",VLOOKUP($A82,'2012 WIA-Math'!$L$14:$V$500,11,FALSE)*100),"") ->  | Z82: =IFERROR(IF(VLOOKUP($A82,'WIAG4-MALL'!$A$14:$CZ$500,3,FALSE)<10,"",VLOOKUP($A82,'WIAG4-MALL'!$A$14:$CZ$500,11,FALSE)*100),"") ->  | AB82: 5 | AC82: =IFERROR(IF(VLOOKUP($A82,'M-2012'!$AC$6:$AP$500,3,FALSE)<10,"",VLOOKUP($A82,'M-2012'!$AC$6:$AP$500,10,FALSE)),"") ->  | AD82: =IFERROR(IF(VLOOKUP($A82,'2012 WIA-Math'!$W$14:$AG$500,3,FALSE)<10,"",VLOOKUP($A82,'2012 WIA-Math'!$W$14:$AG$500,11,FALSE)*100),"") ->  | AE82: =IFERROR(IF(VLOOKUP($A82,'WIAG5-MALL'!$A$14:$CZ$500,3,FALSE)<10,"",VLOOKUP($A82,'WIAG5-MALL'!$A$14:$CZ$500,11,FALSE)*100),"") ->  | AG82: 5 | AH82: =IFERROR(IF(VLOOKUP(TEXT($A82,"0000"),'2012 Sci Retrofitted'!$A$3:$G$267,3,FALSE)<10,"",VLOOKUP(TEXT($A82,"0000"),'2012 Sci Retrofitted'!$A$3:$G$267,5,FALSE)),"") ->  | AI82: =IFERROR(IF(VLOOKUP($A82,'2012 WIA-Sci'!$A$6:$G$500,3,FALSE)<10,"",VLOOKUP($A82,'2012 WIA-Sci'!$A$6:$G$500,7,FALSE)),"") ->  | AJ82: =IFERROR(IF(VLOOKUP($A82,'WIAG5-SALL'!$A$14:$CZ$500,3,FALSE)<10,"",VLOOKUP($A82,'WIAG5-SALL'!$A$14:$CZ$500,11,FALSE)*100),"") ->  | AL82: =VLOOKUP(TEXT($A82,"0000"),#REF!,2,FALSE) ->  | AM82: =VLOOKUP(TEXT($A82,"0000"),#REF!,2,FALSE) -> 
A83: 8101 | B83: JAN MANN OPPORTUNITY SCHOOL | C83: 3 | D83: =IFERROR(IF(VLOOKUP($A83,'R-2012'!$A$6:$O$500,3,FALSE)<10,"",VLOOKUP($A83,'R-2012'!$A$6:$O$500,10,FALSE)),"") ->  | E83: =IFERROR(IF(VLOOKUP($A83,'2012 WIA-Read'!$A$14:$K$500,3,FALSE)<10,"",VLOOKUP($A83,'2012 WIA-Read'!$A$14:$K$500,11,FALSE)*100),"") ->  | F83: =IFERROR(IF(VLOOKUP($A83,'WIAG3-RALL'!$A$14:$CZ$500,3,FALSE)<10,"",VLOOKUP($A83,'WIAG3-RALL'!$A$14:$CZ$500,11,FALSE)*100),"") ->  | H83: 4 | I83: =IFERROR(IF(VLOOKUP($A83,'R-2012'!$P$6:$AD$500,3,FALSE)<10,"",VLOOKUP($A83,'R-2012'!$P$6:$AD$500,10,FALSE)),"") ->  | J83: =IFERROR(IF(VLOOKUP($A83,'2012 WIA-Read'!$L$14:$V$500,3,FALSE)<10,"",VLOOKUP($A83,'2012 WIA-Read'!$L$14:$V$500,11,FALSE)*100),"") ->  | K83: =IFERROR(IF(VLOOKUP($A83,'WIAG4-RALL'!$A$14:$CZ$500,3,FALSE)<10,"",VLOOKUP($A83,'WIAG4-RALL'!$A$14:$CZ$500,11,FALSE)*100),"") ->  | M83: 5 | N83: =IFERROR(IF(VLOOKUP($A83,'R-2012'!$AE$6:$AS$500,3,FALSE)<10,"",VLOOKUP($A83,'R-2012'!$AE$6:$AS$500,10,FALSE)),"") ->  | O83: =IFERROR(IF(VLOOKUP($A83,'2012 WIA-Read'!$W$14:$AG$500,3,FALSE)<10,"",VLOOKUP($A83,'2012 WIA-Read'!$W$14:$AG$500,11,FALSE)*100),"") ->  | P83: =IFERROR(IF(VLOOKUP($A83,'WIAG5-RALL'!$A$14:$CZ$500,3,FALSE)<10,"",VLOOKUP($A83,'WIAG5-RALL'!$A$14:$CZ$500,11,FALSE)*100),"") ->  | R83: 3 | S83: =IFERROR(IF(VLOOKUP($A83,'M-2012'!$A$6:$N$500,3,FALSE)<10,"",VLOOKUP($A83,'M-2012'!$A$6:$N$500,10,FALSE)),"") ->  | T83: =IFERROR(IF(VLOOKUP($A83,'2012 WIA-Math'!$A$14:$K$500,3,FALSE)<10,"",VLOOKUP($A83,'2012 WIA-Math'!$A$14:$K$500,11,FALSE)*100),"") ->  | U83: =IFERROR(IF(VLOOKUP($A83,'WIAG3-MALL'!$A$14:$CZ$500,3,FALSE)<10,"",VLOOKUP($A83,'WIAG3-MALL'!$A$14:$CZ$500,11,FALSE)*100),"") ->  | W83: 4 | X83: =IFERROR(IF(VLOOKUP($A83,'M-2012'!$O$6:$AB$500,3,FALSE)<10,"",VLOOKUP($A83,'M-2012'!$O$6:$AB$500,10,FALSE)),"") ->  | Y83: =IFERROR(IF(VLOOKUP($A83,'2012 WIA-Math'!$L$14:$V$500,3,FALSE)<10,"",VLOOKUP($A83,'2012 WIA-Math'!$L$14:$V$500,11,FALSE)*100),"") ->  | Z83: =IFERROR(IF(VLOOKUP($A83,'WIAG4-MALL'!$A$14:$CZ$500,3,FALSE)<10,"",VLOOKUP($A83,'WIAG4-MALL'!$A$14:$CZ$500,11,FALSE)*100),"") ->  | AB83: 5 | AC83: =IFERROR(IF(VLOOKUP($A83,'M-2012'!$AC$6:$AP$500,3,FALSE)<10,"",VLOOKUP($A83,'M-2012'!$AC$6:$AP$500,10,FALSE)),"") ->  | AD83: =IFERROR(IF(VLOOKUP($A83,'2012 WIA-Math'!$W$14:$AG$500,3,FALSE)<10,"",VLOOKUP($A83,'2012 WIA-Math'!$W$14:$AG$500,11,FALSE)*100),"") ->  | AE83: =IFERROR(IF(VLOOKUP($A83,'WIAG5-MALL'!$A$14:$CZ$500,3,FALSE)<10,"",VLOOKUP($A83,'WIAG5-MALL'!$A$14:$CZ$500,11,FALSE)*100),"") ->  | AG83: 5 | AH83: =IFERROR(IF(VLOOKUP(TEXT($A83,"0000"),'2012 Sci Retrofitted'!$A$3:$G$267,3,FALSE)<10,"",VLOOKUP(TEXT($A83,"0000"),'2012 Sci Retrofitted'!$A$3:$G$267,5,FALSE)),"") ->  | AI83: =IFERROR(IF(VLOOKUP($A83,'2012 WIA-Sci'!$A$6:$G$500,3,FALSE)<10,"",VLOOKUP($A83,'2012 WIA-Sci'!$A$6:$G$500,7,FALSE)),"") ->  | AJ83: =IFERROR(IF(VLOOKUP($A83,'WIAG5-SALL'!$A$14:$CZ$500,3,FALSE)<10,"",VLOOKUP($A83,'WIAG5-SALL'!$A$14:$CZ$500,11,FALSE)*100),"") ->  | AL83: =VLOOKUP(TEXT($A83,"0000"),#REF!,2,FALSE) ->  | AM83: =VLOOKUP(TEXT($A83,"0000"),#REF!,2,FALSE) -> 
A84: 8151 | B84: ROBERT RENICK EDUCATION CTR | C84: 3 | D84: =IFERROR(IF(VLOOKUP($A84,'R-2012'!$A$6:$O$500,3,FALSE)<10,"",VLOOKUP($A84,'R-2012'!$A$6:$O$500,10,FALSE)),"") ->  | E84: =IFERROR(IF(VLOOKUP($A84,'2012 WIA-Read'!$A$14:$K$500,3,FALSE)<10,"",VLOOKUP($A84,'2012 WIA-Read'!$A$14:$K$500,11,FALSE)*100),"") ->  | F84: =IFERROR(IF(VLOOKUP($A84,'WIAG3-RALL'!$A$14:$CZ$500,3,FALSE)<10,"",VLOOKUP($A84,'WIAG3-RALL'!$A$14:$CZ$500,11,FALSE)*100),"") ->  | H84: 4 | I84: =IFERROR(IF(VLOOKUP($A84,'R-2012'!$P$6:$AD$500,3,FALSE)<10,"",VLOOKUP($A84,'R-2012'!$P$6:$AD$500,10,FALSE)),"") ->  | J84: =IFERROR(IF(VLOOKUP($A84,'2012 WIA-Read'!$L$14:$V$500,3,FALSE)<10,"",VLOOKUP($A84,'2012 WIA-Read'!$L$14:$V$500,11,FALSE)*100),"") ->  | K84: =IFERROR(IF(VLOOKUP($A84,'WIAG4-RALL'!$A$14:$CZ$500,3,FALSE)<10,"",VLOOKUP($A84,'WIAG4-RALL'!$A$14:$CZ$500,11,FALSE)*100),"") ->  | M84: 5 | N84: =IFERROR(IF(VLOOKUP($A84,'R-2012'!$AE$6:$AS$500,3,FALSE)<10,"",VLOOKUP($A84,'R-2012'!$AE$6:$AS$500,10,FALSE)),"") ->  | O84: =IFERROR(IF(VLOOKUP($A84,'2012 WIA-Read'!$W$14:$AG$500,3,FALSE)<10,"",VLOOKUP($A84,'2012 WIA-Read'!$W$14:$AG$500,11,FALSE)*100),"") ->  | P84: =IFERROR(IF(VLOOKUP($A84,'WIAG5-RALL'!$A$14:$CZ$500,3,FALSE)<10,"",VLOOKUP($A84,'WIAG5-RALL'!$A$14:$CZ$500,11,FALSE)*100),"") ->  | R84: 3 | S84: =IFERROR(IF(VLOOKUP($A84,'M-2012'!$A$6:$N$500,3,FALSE)<10,"",VLOOKUP($A84,'M-2012'!$A$6:$N$500,10,FALSE)),"") ->  | T84: =IFERROR(IF(VLOOKUP($A84,'2012 WIA-Math'!$A$14:$K$500,3,FALSE)<10,"",VLOOKUP($A84,'2012 WIA-Math'!$A$14:$K$500,11,FALSE)*100),"") ->  | U84: =IFERROR(IF(VLOOKUP($A84,'WIAG3-MALL'!$A$14:$CZ$500,3,FALSE)<10,"",VLOOKUP($A84,'WIAG3-MALL'!$A$14:$CZ$500,11,FALSE)*100),"") ->  | W84: 4 | X84: =IFERROR(IF(VLOOKUP($A84,'M-2012'!$O$6:$AB$500,3,FALSE)<10,"",VLOOKUP($A84,'M-2012'!$O$6:$AB$500,10,FALSE)),"") ->  | Y84: =IFERROR(IF(VLOOKUP($A84,'2012 WIA-Math'!$L$14:$V$500,3,FALSE)<10,"",VLOOKUP($A84,'2012 WIA-Math'!$L$14:$V$500,11,FALSE)*100),"") ->  | Z84: =IFERROR(IF(VLOOKUP($A84,'WIAG4-MALL'!$A$14:$CZ$500,3,FALSE)<10,"",VLOOKUP($A84,'WIAG4-MALL'!$A$14:$CZ$500,11,FALSE)*100),"") ->  | AB84: 5 | AC84: =IFERROR(IF(VLOOKUP($A84,'M-2012'!$AC$6:$AP$500,3,FALSE)<10,"",VLOOKUP($A84,'M-2012'!$AC$6:$AP$500,10,FALSE)),"") ->  | AD84: =IFERROR(IF(VLOOKUP($A84,'2012 WIA-Math'!$W$14:$AG$500,3,FALSE)<10,"",VLOOKUP($A84,'2012 WIA-Math'!$W$14:$AG$500,11,FALSE)*100),"") ->  | AE84: =IFERROR(IF(VLOOKUP($A84,'WIAG5-MALL'!$A$14:$CZ$500,3,FALSE)<10,"",VLOOKUP($A84,'WIAG5-MALL'!$A$14:$CZ$500,11,FALSE)*100),"") ->  | AG84: 5 | AH84: =IFERROR(IF(VLOOKUP(TEXT($A84,"0000"),'2012 Sci Retrofitted'!$A$3:$G$267,3,FALSE)<10,"",VLOOKUP(TEXT($A84,"0000"),'2012 Sci Retrofitted'!$A$3:$G$267,5,FALSE)),"") ->  | AI84: =IFERROR(IF(VLOOKUP($A84,'2012 WIA-Sci'!$A$6:$G$500,3,FALSE)<10,"",VLOOKUP($A84,'2012 WIA-Sci'!$A$6:$G$500,7,FALSE)),"") ->  | AJ84: =IFERROR(IF(VLOOKUP($A84,'WIAG5-SALL'!$A$14:$CZ$500,3,FALSE)<10,"",VLOOKUP($A84,'WIAG5-SALL'!$A$14:$CZ$500,11,FALSE)*100),"") ->  | AL84: =VLOOKUP(TEXT($A84,"0000"),#REF!,2,FALSE) ->  | AM84: =VLOOKUP(TEXT($A84,"0000"),#REF!,2,FALSE) -> 
A85: 71 | B85: EUGENIA B. THOMAS K-8 CENTER | C85: 3 | D85: =IFERROR(IF(VLOOKUP($A85,'R-2012'!$A$6:$O$500,3,FALSE)<10,"",VLOOKUP($A85,'R-2012'!$A$6:$O$500,10,FALSE)),"") -> 61 | E85: =IFERROR(IF(VLOOKUP($A85,'2012 WIA-Read'!$A$14:$K$500,3,FALSE)<10,"",VLOOKUP($A85,'2012 WIA-Read'!$A$14:$K$500,11,FALSE)*100),"") -> 47.12 | F85: =IFERROR(IF(VLOOKUP($A85,'WIAG3-RALL'!$A$14:$CZ$500,3,FALSE)<10,"",VLOOKUP($A85,'WIAG3-RALL'!$A$14:$CZ$500,11,FALSE)*100),"") -> 54.21 | G85: 7 | H85: 4 | I85: =IFERROR(IF(VLOOKUP($A85,'R-2012'!$P$6:$AD$500,3,FALSE)<10,"",VLOOKUP($A85,'R-2012'!$P$6:$AD$500,10,FALSE)),"") -> 77 | J85: =IFERROR(IF(VLOOKUP($A85,'2012 WIA-Read'!$L$14:$V$500,3,FALSE)<10,"",VLOOKUP($A85,'2012 WIA-Read'!$L$14:$V$500,11,FALSE)*100),"") -> 66.04 | K85: =IFERROR(IF(VLOOKUP($A85,'WIAG4-RALL'!$A$14:$CZ$500,3,FALSE)<10,"",VLOOKUP($A85,'WIAG4-RALL'!$A$14:$CZ$500,11,FALSE)*100),"") -> 62.5 | L85: -3 | M85: 5 | N85: =IFERROR(IF(VLOOKUP($A85,'R-2012'!$AE$6:$AS$500,3,FALSE)<10,"",VLOOKUP($A85,'R-2012'!$AE$6:$AS$500,10,FALSE)),"") -> 67 | O85: =IFERROR(IF(VLOOKUP($A85,'2012 WIA-Read'!$W$14:$AG$500,3,FALSE)<10,"",VLOOKUP($A85,'2012 WIA-Read'!$W$14:$AG$500,11,FALSE)*100),"") -> 52.6 | P85: =IFERROR(IF(VLOOKUP($A85,'WIAG5-RALL'!$A$14:$CZ$500,3,FALSE)<10,"",VLOOKUP($A85,'WIAG5-RALL'!$A$14:$CZ$500,11,FALSE)*100),"") -> 59.87 | Q85: 7 | R85: 3 | S85: =IFERROR(IF(VLOOKUP($A85,'M-2012'!$A$6:$N$500,3,FALSE)<10,"",VLOOKUP($A85,'M-2012'!$A$6:$N$500,10,FALSE)),"") -> 61 | T85: =IFERROR(IF(VLOOKUP($A85,'2012 WIA-Math'!$A$14:$K$500,3,FALSE)<10,"",VLOOKUP($A85,'2012 WIA-Math'!$A$14:$K$500,11,FALSE)*100),"") -> 54.74 | U85: =IFERROR(IF(VLOOKUP($A85,'WIAG3-MALL'!$A$14:$CZ$500,3,FALSE)<10,"",VLOOKUP($A85,'WIAG3-MALL'!$A$14:$CZ$500,11,FALSE)*100),"") -> 51.56 | V85: -3 | W85: 4 | X85: =IFERROR(IF(VLOOKUP($A85,'M-2012'!$O$6:$AB$500,3,FALSE)<10,"",VLOOKUP($A85,'M-2012'!$O$6:$AB$500,10,FALSE)),"") -> 79 | Y85: =IFERROR(IF(VLOOKUP($A85,'2012 WIA-Math'!$L$14:$V$500,3,FALSE)<10,"",VLOOKUP($A85,'2012 WIA-Math'!$L$14:$V$500,11,FALSE)*100),"") -> 73.08 | Z85: =IFERROR(IF(VLOOKUP($A85,'WIAG4-MALL'!$A$14:$CZ$500,3,FALSE)<10,"",VLOOKUP($A85,'WIAG4-MALL'!$A$14:$CZ$500,11,FALSE)*100),"") -> 72.97 | AA85: 0 | AB85: 5 | AC85: =IFERROR(IF(VLOOKUP($A85,'M-2012'!$AC$6:$AP$500,3,FALSE)<10,"",VLOOKUP($A85,'M-2012'!$AC$6:$AP$500,10,FALSE)),"") -> 64 | AD85: =IFERROR(IF(VLOOKUP($A85,'2012 WIA-Math'!$W$14:$AG$500,3,FALSE)<10,"",VLOOKUP($A85,'2012 WIA-Math'!$W$14:$AG$500,11,FALSE)*100),"") -> 47.98 | AE85: =IFERROR(IF(VLOOKUP($A85,'WIAG5-MALL'!$A$14:$CZ$500,3,FALSE)<10,"",VLOOKUP($A85,'WIAG5-MALL'!$A$14:$CZ$500,11,FALSE)*100),"") -> 51.27 | AF85: 3 | AG85: 5 | AH85: =IFERROR(IF(VLOOKUP(TEXT($A85,"0000"),'2012 Sci Retrofitted'!$A$3:$G$267,3,FALSE)<10,"",VLOOKUP(TEXT($A85,"0000"),'2012 Sci Retrofitted'!$A$3:$G$267,5,FALSE)),"") -> 57.22543353 | AI85: =IFERROR(IF(VLOOKUP($A85,'2012 WIA-Sci'!$A$6:$G$500,3,FALSE)<10,"",VLOOKUP($A85,'2012 WIA-Sci'!$A$6:$G$500,7,FALSE)),"") -> 43 | AJ85: =IFERROR(IF(VLOOKUP($A85,'WIAG5-SALL'!$A$14:$CZ$500,3,FALSE)<10,"",VLOOKUP($A85,'WIAG5-SALL'!$A$14:$CZ$500,11,FALSE)*100),"") -> 58.13 | AK85: 15 | AL85: =VLOOKUP(TEXT($A85,"0000"),#REF!,2,FALSE) ->  | AM85: =VLOOKUP(TEXT($A85,"0000"),#REF!,2,FALSE) -> 
A86: 101 | B86: ARCOLA LAKE ELEMENTARY | C86: 3 | D86: =IFERROR(IF(VLOOKUP($A86,'R-2012'!$A$6:$O$500,3,FALSE)<10,"",VLOOKUP($A86,'R-2012'!$A$6:$O$500,10,FALSE)),"") -> 28 | E86: =IFERROR(IF(VLOOKUP($A86,'2012 WIA-Read'!$A$14:$K$500,3,FALSE)<10,"",VLOOKUP($A86,'2012 WIA-Read'!$A$14:$K$500,11,FALSE)*100),"") -> 33.87 | F86: =IFERROR(IF(VLOOKUP($A86,'WIAG3-RALL'!$A$14:$CZ$500,3,FALSE)<10,"",VLOOKUP($A86,'WIAG3-RALL'!$A$14:$CZ$500,11,FALSE)*100),"") -> 38.57 | G86: 5 | H86: 4 | I86: =IFERROR(IF(VLOOKUP($A86,'R-2012'!$P$6:$AD$500,3,FALSE)<10,"",VLOOKUP($A86,'R-2012'!$P$6:$AD$500,10,FALSE)),"") -> 40 | J86: =IFERROR(IF(VLOOKUP($A86,'2012 WIA-Read'!$L$14:$V$500,3,FALSE)<10,"",VLOOKUP($A86,'2012 WIA-Read'!$L$14:$V$500,11,FALSE)*100),"") -> 40.54 | K86: =IFERROR(IF(VLOOKUP($A86,'WIAG4-RALL'!$A$14:$CZ$500,3,FALSE)<10,"",VLOOKUP($A86,'WIAG4-RALL'!$A$14:$CZ$500,11,FALSE)*100),"") -> 46.97 | L86: 6 | M86: 5 | N86: =IFERROR(IF(VLOOKUP($A86,'R-2012'!$AE$6:$AS$500,3,FALSE)<10,"",VLOOKUP($A86,'R-2012'!$AE$6:$AS$500,10,FALSE)),"") -> 50 | O86: =IFERROR(IF(VLOOKUP($A86,'2012 WIA-Read'!$W$14:$AG$500,3,FALSE)<10,"",VLOOKUP($A86,'2012 WIA-Read'!$W$14:$AG$500,11,FALSE)*100),"") -> 50 | P86: =IFERROR(IF(VLOOKUP($A86,'WIAG5-RALL'!$A$14:$CZ$500,3,FALSE)<10,"",VLOOKUP($A86,'WIAG5-RALL'!$A$14:$CZ$500,11,FALSE)*100),"") -> 48.28 | Q86: -2 | R86: 3 | S86: =IFERROR(IF(VLOOKUP($A86,'M-2012'!$A$6:$N$500,3,FALSE)<10,"",VLOOKUP($A86,'M-2012'!$A$6:$N$500,10,FALSE)),"") -> 40 | T86: =IFERROR(IF(VLOOKUP($A86,'2012 WIA-Math'!$A$14:$K$500,3,FALSE)<10,"",VLOOKUP($A86,'2012 WIA-Math'!$A$14:$K$500,11,FALSE)*100),"") -> 55.22 | U86: =IFERROR(IF(VLOOKUP($A86,'WIAG3-MALL'!$A$14:$CZ$500,3,FALSE)<10,"",VLOOKUP($A86,'WIAG3-MALL'!$A$14:$CZ$500,11,FALSE)*100),"") -> 48.53 | V86: -6 | W86: 4 | X86: =IFERROR(IF(VLOOKUP($A86,'M-2012'!$O$6:$AB$500,3,FALSE)<10,"",VLOOKUP($A86,'M-2012'!$O$6:$AB$500,10,FALSE)),"") -> 39 | Y86: =IFERROR(IF(VLOOKUP($A86,'2012 WIA-Math'!$L$14:$V$500,3,FALSE)<10,"",VLOOKUP($A86,'2012 WIA-Math'!$L$14:$V$500,11,FALSE)*100),"") -> 50.67 | Z86: =IFERROR(IF(VLOOKUP($A86,'WIAG4-MALL'!$A$14:$CZ$500,3,FALSE)<10,"",VLOOKUP($A86,'WIAG4-MALL'!$A$14:$CZ$500,11,FALSE)*100),"") -> 47.69 | AA86: -3 | AB86: 5 | AC86: =IFERROR(IF(VLOOKUP($A86,'M-2012'!$AC$6:$AP$500,3,FALSE)<10,"",VLOOKUP($A86,'M-2012'!$AC$6:$AP$500,10,FALSE)),"") -> 45 | AD86: =IFERROR(IF(VLOOKUP($A86,'2012 WIA-Math'!$W$14:$AG$500,3,FALSE)<10,"",VLOOKUP($A86,'2012 WIA-Math'!$W$14:$AG$500,11,FALSE)*100),"") -> 52.46 | AE86: =IFERROR(IF(VLOOKUP($A86,'WIAG5-MALL'!$A$14:$CZ$500,3,FALSE)<10,"",VLOOKUP($A86,'WIAG5-MALL'!$A$14:$CZ$500,11,FALSE)*100),"") -> 55.29 | AF86: 3 | AG86: 5 | AH86: =IFERROR(IF(VLOOKUP(TEXT($A86,"0000"),'2012 Sci Retrofitted'!$A$3:$G$267,3,FALSE)<10,"",VLOOKUP(TEXT($A86,"0000"),'2012 Sci Retrofitted'!$A$3:$G$267,5,FALSE)),"") -> 37.09677419 | AI86: =IFERROR(IF(VLOOKUP($A86,'2012 WIA-Sci'!$A$6:$G$500,3,FALSE)<10,"",VLOOKUP($A86,'2012 WIA-Sci'!$A$6:$G$500,7,FALSE)),"") -> 38 | AJ86: =IFERROR(IF(VLOOKUP($A86,'WIAG5-SALL'!$A$14:$CZ$500,3,FALSE)<10,"",VLOOKUP($A86,'WIAG5-SALL'!$A$14:$CZ$500,11,FALSE)*100),"") -> 54.76 | AK86: 17 | AL86: =VLOOKUP(TEXT($A86,"0000"),#REF!,2,FALSE) ->  | AM86: =VLOOKUP(TEXT($A86,"0000"),#REF!,2,FALSE) -> 
A87: 111 | B87: MAYA ANGELOU ELEMENTARY | C87: 3 | D87: =IFERROR(IF(VLOOKUP($A87,'R-2012'!$A$6:$O$500,3,FALSE)<10,"",VLOOKUP($A87,'R-2012'!$A$6:$O$500,10,FALSE)),"") -> 34 | E87: =IFERROR(IF(VLOOKUP($A87,'2012 WIA-Read'!$A$14:$K$500,3,FALSE)<10,"",VLOOKUP($A87,'2012 WIA-Read'!$A$14:$K$500,11,FALSE)*100),"") -> 37.65 | F87: =IFERROR(IF(VLOOKUP($A87,'WIAG3-RALL'!$A$14:$CZ$500,3,FALSE)<10,"",VLOOKUP($A87,'WIAG3-RALL'!$A$14:$CZ$500,11,FALSE)*100),"") -> 25.25 | G87: -13 | H87: 4 | I87: =IFERROR(IF(VLOOKUP($A87,'R-2012'!$P$6:$AD$500,3,FALSE)<10,"",VLOOKUP($A87,'R-2012'!$P$6:$AD$500,10,FALSE)),"") -> 51 | J87: =IFERROR(IF(VLOOKUP($A87,'2012 WIA-Read'!$L$14:$V$500,3,FALSE)<10,"",VLOOKUP($A87,'2012 WIA-Read'!$L$14:$V$500,11,FALSE)*100),"") -> 65.52 | K87: =IFERROR(IF(VLOOKUP($A87,'WIAG4-RALL'!$A$14:$CZ$500,3,FALSE)<10,"",VLOOKUP($A87,'WIAG4-RALL'!$A$14:$CZ$500,11,FALSE)*100),"") -> 43.68 | L87: -22 | M87: 5 | N87: =IFERROR(IF(VLOOKUP($A87,'R-2012'!$AE$6:$AS$500,3,FALSE)<10,"",VLOOKUP($A87,'R-2012'!$AE$6:$AS$500,10,FALSE)),"") -> 51 | O87: =IFERROR(IF(VLOOKUP($A87,'2012 WIA-Read'!$W$14:$AG$500,3,FALSE)<10,"",VLOOKUP($A87,'2012 WIA-Read'!$W$14:$AG$500,11,FALSE)*100),"") -> 47.62 | P87: =IFERROR(IF(VLOOKUP($A87,'WIAG5-RALL'!$A$14:$CZ$500,3,FALSE)<10,"",VLOOKUP($A87,'WIAG5-RALL'!$A$14:$CZ$500,11,FALSE)*100),"") -> 51.55 | Q87: 4 | R87: 3 | S87: =IFERROR(IF(VLOOKUP($A87,'M-2012'!$A$6:$N$500,3,FALSE)<10,"",VLOOKUP($A87,'M-2012'!$A$6:$N$500,10,FALSE)),"") -> 52 | T87: =IFERROR(IF(VLOOKUP($A87,'2012 WIA-Math'!$A$14:$K$500,3,FALSE)<10,"",VLOOKUP($A87,'2012 WIA-Math'!$A$14:$K$500,11,FALSE)*100),"") -> 55.29 | U87: =IFERROR(IF(VLOOKUP($A87,'WIAG3-MALL'!$A$14:$CZ$500,3,FALSE)<10,"",VLOOKUP($A87,'WIAG3-MALL'!$A$14:$CZ$500,11,FALSE)*100),"") -> 58.59 | V87: 4 | W87: 4 | X87: =IFERROR(IF(VLOOKUP($A87,'M-2012'!$O$6:$AB$500,3,FALSE)<10,"",VLOOKUP($A87,'M-2012'!$O$6:$AB$500,10,FALSE)),"") -> 72 | Y87: =IFERROR(IF(VLOOKUP($A87,'2012 WIA-Math'!$L$14:$V$500,3,FALSE)<10,"",VLOOKUP($A87,'2012 WIA-Math'!$L$14:$V$500,11,FALSE)*100),"") -> 75.58 | Z87: =IFERROR(IF(VLOOKUP($A87,'WIAG4-MALL'!$A$14:$CZ$500,3,FALSE)<10,"",VLOOKUP($A87,'WIAG4-MALL'!$A$14:$CZ$500,11,FALSE)*100),"") -> 80.46 | AA87: 4 | AB87: 5 | AC87: =IFERROR(IF(VLOOKUP($A87,'M-2012'!$AC$6:$AP$500,3,FALSE)<10,"",VLOOKUP($A87,'M-2012'!$AC$6:$AP$500,10,FALSE)),"") -> 53 | AD87: =IFERROR(IF(VLOOKUP($A87,'2012 WIA-Math'!$W$14:$AG$500,3,FALSE)<10,"",VLOOKUP($A87,'2012 WIA-Math'!$W$14:$AG$500,11,FALSE)*100),"") -> 58.33 | AE87: =IFERROR(IF(VLOOKUP($A87,'WIAG5-MALL'!$A$14:$CZ$500,3,FALSE)<10,"",VLOOKUP($A87,'WIAG5-MALL'!$A$14:$CZ$500,11,FALSE)*100),"") -> 38.14 | AF87: -20 | AG87: 5 | AH87: =IFERROR(IF(VLOOKUP(TEXT($A87,"0000"),'2012 Sci Retrofitted'!$A$3:$G$267,3,FALSE)<10,"",VLOOKUP(TEXT($A87,"0000"),'2012 Sci Retrofitted'!$A$3:$G$267,5,FALSE)),"") -> 29.76190476 | AI87: =IFERROR(IF(VLOOKUP($A87,'2012 WIA-Sci'!$A$6:$G$500,3,FALSE)<10,"",VLOOKUP($A87,'2012 WIA-Sci'!$A$6:$G$500,7,FALSE)),"") -> 40 | AJ87: =IFERROR(IF(VLOOKUP($A87,'WIAG5-SALL'!$A$14:$CZ$500,3,FALSE)<10,"",VLOOKUP($A87,'WIAG5-SALL'!$A$14:$CZ$500,11,FALSE)*100),"") -> 45.92 | AK87: 6 | AL87: =VLOOKUP(TEXT($A87,"0000"),#REF!,2,FALSE) ->  | AM87: =VLOOKUP(TEXT($A87,"0000"),#REF!,2,FALSE) -> 
A88: 121 | B88: AUBURNDALE ELEMENTARY | C88: 3 | D88: =IFERROR(IF(VLOOKUP($A88,'R-2012'!$A$6:$O$500,3,FALSE)<10,"",VLOOKUP($A88,'R-2012'!$A$6:$O$500,10,FALSE)),"") -> 53 | E88: =IFERROR(IF(VLOOKUP($A88,'2012 WIA-Read'!$A$14:$K$500,3,FALSE)<10,"",VLOOKUP($A88,'2012 WIA-Read'!$A$14:$K$500,11,FALSE)*100),"") -> 42.28 | F88: =IFERROR(IF(VLOOKUP($A88,'WIAG3-RALL'!$A$14:$CZ$500,3,FALSE)<10,"",VLOOKUP($A88,'WIAG3-RALL'!$A$14:$CZ$500,11,FALSE)*100),"") -> 50.77 | G88: 9 | H88: 4 | I88: =IFERROR(IF(VLOOKUP($A88,'R-2012'!$P$6:$AD$500,3,FALSE)<10,"",VLOOKUP($A88,'R-2012'!$P$6:$AD$500,10,FALSE)),"") -> 51 | J88: =IFERROR(IF(VLOOKUP($A88,'2012 WIA-Read'!$L$14:$V$500,3,FALSE)<10,"",VLOOKUP($A88,'2012 WIA-Read'!$L$14:$V$500,11,FALSE)*100),"") -> 46.97 | K88: =IFERROR(IF(VLOOKUP($A88,'WIAG4-RALL'!$A$14:$CZ$500,3,FALSE)<10,"",VLOOKUP($A88,'WIAG4-RALL'!$A$14:$CZ$500,11,FALSE)*100),"") -> 51.54 | L88: 5 | M88: 5 | N88: =IFERROR(IF(VLOOKUP($A88,'R-2012'!$AE$6:$AS$500,3,FALSE)<10,"",VLOOKUP($A88,'R-2012'!$AE$6:$AS$500,10,FALSE)),"") -> 53 | O88: =IFERROR(IF(VLOOKUP($A88,'2012 WIA-Read'!$W$14:$AG$500,3,FALSE)<10,"",VLOOKUP($A88,'2012 WIA-Read'!$W$14:$AG$500,11,FALSE)*100),"") -> 47.02 | P88: =IFERROR(IF(VLOOKUP($A88,'WIAG5-RALL'!$A$14:$CZ$500,3,FALSE)<10,"",VLOOKUP($A88,'WIAG5-RALL'!$A$14:$CZ$500,11,FALSE)*100),"") -> 41.22 | Q88: -6 | R88: 3 | S88: =IFERROR(IF(VLOOKUP($A88,'M-2012'!$A$6:$N$500,3,FALSE)<10,"",VLOOKUP($A88,'M-2012'!$A$6:$N$500,10,FALSE)),"") -> 60 | T88: =IFERROR(IF(VLOOKUP($A88,'2012 WIA-Math'!$A$14:$K$500,3,FALSE)<10,"",VLOOKUP($A88,'2012 WIA-Math'!$A$14:$K$500,11,FALSE)*100),"") -> 53.66 | U88: =IFERROR(IF(VLOOKUP($A88,'WIAG3-MALL'!$A$14:$CZ$500,3,FALSE)<10,"",VLOOKUP($A88,'WIAG3-MALL'!$A$14:$CZ$500,11,FALSE)*100),"") -> 63.85 | V88: 10 | W88: 4 | X88: =IFERROR(IF(VLOOKUP($A88,'M-2012'!$O$6:$AB$500,3,FALSE)<10,"",VLOOKUP($A88,'M-2012'!$O$6:$AB$500,10,FALSE)),"") -> 63 | Y88: =IFERROR(IF(VLOOKUP($A88,'2012 WIA-Math'!$L$14:$V$500,3,FALSE)<10,"",VLOOKUP($A88,'2012 WIA-Math'!$L$14:$V$500,11,FALSE)*100),"") -> 48.85 | Z88: =IFERROR(IF(VLOOKUP($A88,'WIAG4-MALL'!$A$14:$CZ$500,3,FALSE)<10,"",VLOOKUP($A88,'WIAG4-MALL'!$A$14:$CZ$500,11,FALSE)*100),"") -> 54.62 | AA88: 6 | AB88: 5 | AC88: =IFERROR(IF(VLOOKUP($A88,'M-2012'!$AC$6:$AP$500,3,FALSE)<10,"",VLOOKUP($A88,'M-2012'!$AC$6:$AP$500,10,FALSE)),"") -> 46 | AD88: =IFERROR(IF(VLOOKUP($A88,'2012 WIA-Math'!$W$14:$AG$500,3,FALSE)<10,"",VLOOKUP($A88,'2012 WIA-Math'!$W$14:$AG$500,11,FALSE)*100),"") -> 39.74 | AE88: =IFERROR(IF(VLOOKUP($A88,'WIAG5-MALL'!$A$14:$CZ$500,3,FALSE)<10,"",VLOOKUP($A88,'WIAG5-MALL'!$A$14:$CZ$500,11,FALSE)*100),"") -> 20.16 | AF88: -20 | AG88: 5 | AH88: =IFERROR(IF(VLOOKUP(TEXT($A88,"0000"),'2012 Sci Retrofitted'!$A$3:$G$267,3,FALSE)<10,"",VLOOKUP(TEXT($A88,"0000"),'2012 Sci Retrofitted'!$A$3:$G$267,5,FALSE)),"") -> 44.15584416 | AI88: =IFERROR(IF(VLOOKUP($A88,'2012 WIA-Sci'!$A$6:$G$500,3,FALSE)<10,"",VLOOKUP($A88,'2012 WIA-Sci'!$A$6:$G$500,7,FALSE)),"") -> 38 | AJ88: =IFERROR(IF(VLOOKUP($A88,'WIAG5-SALL'!$A$14:$CZ$500,3,FALSE)<10,"",VLOOKUP($A88,'WIAG5-SALL'!$A$14:$CZ$500,11,FALSE)*100),"") -> 34.11 | AK88: -4 | AL88: =VLOOKUP(TEXT($A88,"0000"),#REF!,2,FALSE) ->  | AM88: =VLOOKUP(TEXT($A88,"0000"),#REF!,2,FALSE) -> 
A89: 122 | B89: DR ROLANDO ESPINOSA K-8 | C89: 3 | D89: =IFERROR(IF(VLOOKUP($A89,'R-2012'!$A$6:$O$500,3,FALSE)<10,"",VLOOKUP($A89,'R-2012'!$A$6:$O$500,10,FALSE)),"") -> 68 | E89: =IFERROR(IF(VLOOKUP($A89,'2012 WIA-Read'!$A$14:$K$500,3,FALSE)<10,"",VLOOKUP($A89,'2012 WIA-Read'!$A$14:$K$500,11,FALSE)*100),"") -> 61.31 | F89: =IFERROR(IF(VLOOKUP($A89,'WIAG3-RALL'!$A$14:$CZ$500,3,FALSE)<10,"",VLOOKUP($A89,'WIAG3-RALL'!$A$14:$CZ$500,11,FALSE)*100),"") -> 53.67 | G89: -7 | H89: 4 | I89: =IFERROR(IF(VLOOKUP($A89,'R-2012'!$P$6:$AD$500,3,FALSE)<10,"",VLOOKUP($A89,'R-2012'!$P$6:$AD$500,10,FALSE)),"") -> 72 | J89: =IFERROR(IF(VLOOKUP($A89,'2012 WIA-Read'!$L$14:$V$500,3,FALSE)<10,"",VLOOKUP($A89,'2012 WIA-Read'!$L$14:$V$500,11,FALSE)*100),"") -> 66.47 | K89: =IFERROR(IF(VLOOKUP($A89,'WIAG4-RALL'!$A$14:$CZ$500,3,FALSE)<10,"",VLOOKUP($A89,'WIAG4-RALL'!$A$14:$CZ$500,11,FALSE)*100),"") -> 64.32 | L89: -2 | M89: 5 | N89: =IFERROR(IF(VLOOKUP($A89,'R-2012'!$AE$6:$AS$500,3,FALSE)<10,"",VLOOKUP($A89,'R-2012'!$AE$6:$AS$500,10,FALSE)),"") -> 70 | O89: =IFERROR(IF(VLOOKUP($A89,'2012 WIA-Read'!$W$14:$AG$500,3,FALSE)<10,"",VLOOKUP($A89,'2012 WIA-Read'!$W$14:$AG$500,11,FALSE)*100),"") -> 59.13 | P89: =IFERROR(IF(VLOOKUP($A89,'WIAG5-RALL'!$A$14:$CZ$500,3,FALSE)<10,"",VLOOKUP($A89,'WIAG5-RALL'!$A$14:$CZ$500,11,FALSE)*100),"") -> 58.58 | Q89: 0 | R89: 3 | S89: =IFERROR(IF(VLOOKUP($A89,'M-2012'!$A$6:$N$500,3,FALSE)<10,"",VLOOKUP($A89,'M-2012'!$A$6:$N$500,10,FALSE)),"") -> 74 | T89: =IFERROR(IF(VLOOKUP($A89,'2012 WIA-Math'!$A$14:$K$500,3,FALSE)<10,"",VLOOKUP($A89,'2012 WIA-Math'!$A$14:$K$500,11,FALSE)*100),"") -> 71.14 | U89: =IFERROR(IF(VLOOKUP($A89,'WIAG3-MALL'!$A$14:$CZ$500,3,FALSE)<10,"",VLOOKUP($A89,'WIAG3-MALL'!$A$14:$CZ$500,11,FALSE)*100),"") -> 69.1 | V89: -2 | W89: 4 | X89: =IFERROR(IF(VLOOKUP($A89,'M-2012'!$O$6:$AB$500,3,FALSE)<10,"",VLOOKUP($A89,'M-2012'!$O$6:$AB$500,10,FALSE)),"") -> 78 | Y89: =IFERROR(IF(VLOOKUP($A89,'2012 WIA-Math'!$L$14:$V$500,3,FALSE)<10,"",VLOOKUP($A89,'2012 WIA-Math'!$L$14:$V$500,11,FALSE)*100),"") -> 72.73 | Z89: =IFERROR(IF(VLOOKUP($A89,'WIAG4-MALL'!$A$14:$CZ$500,3,FALSE)<10,"",VLOOKUP($A89,'WIAG4-MALL'!$A$14:$CZ$500,11,FALSE)*100),"") -> 67.34 | AA89: -6 | AB89: 5 | AC89: =IFERROR(IF(VLOOKUP($A89,'M-2012'!$AC$6:$AP$500,3,FALSE)<10,"",VLOOKUP($A89,'M-2012'!$AC$6:$AP$500,10,FALSE)),"") -> 70 | AD89: =IFERROR(IF(VLOOKUP($A89,'2012 WIA-Math'!$W$14:$AG$500,3,FALSE)<10,"",VLOOKUP($A89,'2012 WIA-Math'!$W$14:$AG$500,11,FALSE)*100),"") -> 57.69 | AE89: =IFERROR(IF(VLOOKUP($A89,'WIAG5-MALL'!$A$14:$CZ$500,3,FALSE)<10,"",VLOOKUP($A89,'WIAG5-MALL'!$A$14:$CZ$500,11,FALSE)*100),"") -> 43.53 | AF89: -14 | AG89: 5 | AH89: =IFERROR(IF(VLOOKUP(TEXT($A89,"0000"),'2012 Sci Retrofitted'!$A$3:$G$267,3,FALSE)<10,"",VLOOKUP(TEXT($A89,"0000"),'2012 Sci Retrofitted'!$A$3:$G$267,5,FALSE)),"") -> 59.44700461 | AI89: =IFERROR(IF(VLOOKUP($A89,'2012 WIA-Sci'!$A$6:$G$500,3,FALSE)<10,"",VLOOKUP($A89,'2012 WIA-Sci'!$A$6:$G$500,7,FALSE)),"") -> 51 | AJ89: =IFERROR(IF(VLOOKUP($A89,'WIAG5-SALL'!$A$14:$CZ$500,3,FALSE)<10,"",VLOOKUP($A89,'WIAG5-SALL'!$A$14:$CZ$500,11,FALSE)*100),"") -> 48.24 | AK89: -3 | AL89: =VLOOKUP(TEXT($A89,"0000"),#REF!,2,FALSE) ->  | AM89: =VLOOKUP(TEXT($A89,"0000"),#REF!,2,FALSE) -> 
A90: 201 | B90: BANYAN ELEMENTARY | C90: 3 | D90: =IFERROR(IF(VLOOKUP($A90,'R-2012'!$A$6:$O$500,3,FALSE)<10,"",VLOOKUP($A90,'R-2012'!$A$6:$O$500,10,FALSE)),"") -> 82 | E90: =IFERROR(IF(VLOOKUP($A90,'2012 WIA-Read'!$A$14:$K$500,3,FALSE)<10,"",VLOOKUP($A90,'2012 WIA-Read'!$A$14:$K$500,11,FALSE)*100),"") -> 78.57 | F90: =IFERROR(IF(VLOOKUP($A90,'WIAG3-RALL'!$A$14:$CZ$500,3,FALSE)<10,"",VLOOKUP($A90,'WIAG3-RALL'!$A$14:$CZ$500,11,FALSE)*100),"") -> 72.22 | G90: -7 | H90: 4 | I90: =IFERROR(IF(VLOOKUP($A90,'R-2012'!$P$6:$AD$500,3,FALSE)<10,"",VLOOKUP($A90,'R-2012'!$P$6:$AD$500,10,FALSE)),"") -> 68 | J90: =IFERROR(IF(VLOOKUP($A90,'2012 WIA-Read'!$L$14:$V$500,3,FALSE)<10,"",VLOOKUP($A90,'2012 WIA-Read'!$L$14:$V$500,11,FALSE)*100),"") -> 70.37 | K90: =IFERROR(IF(VLOOKUP($A90,'WIAG4-RALL'!$A$14:$CZ$500,3,FALSE)<10,"",VLOOKUP($A90,'WIAG4-RALL'!$A$14:$CZ$500,11,FALSE)*100),"") -> 81.03 | L90: 11 | M90: 5 | N90: =IFERROR(IF(VLOOKUP($A90,'R-2012'!$AE$6:$AS$500,3,FALSE)<10,"",VLOOKUP($A90,'R-2012'!$AE$6:$AS$500,10,FALSE)),"") -> 68 | O90: =IFERROR(IF(VLOOKUP($A90,'2012 WIA-Read'!$W$14:$AG$500,3,FALSE)<10,"",VLOOKUP($A90,'2012 WIA-Read'!$W$14:$AG$500,11,FALSE)*100),"") -> 48.15 | P90: =IFERROR(IF(VLOOKUP($A90,'WIAG5-RALL'!$A$14:$CZ$500,3,FALSE)<10,"",VLOOKUP($A90,'WIAG5-RALL'!$A$14:$CZ$500,11,FALSE)*100),"") -> 53.7 | Q90: 6 | R90: 3 | S90: =IFERROR(IF(VLOOKUP($A90,'M-2012'!$A$6:$N$500,3,FALSE)<10,"",VLOOKUP($A90,'M-2012'!$A$6:$N$500,10,FALSE)),"") -> 68 | T90: =IFERROR(IF(VLOOKUP($A90,'2012 WIA-Math'!$A$14:$K$500,3,FALSE)<10,"",VLOOKUP($A90,'2012 WIA-Math'!$A$14:$K$500,11,FALSE)*100),"") -> 75 | U90: =IFERROR(IF(VLOOKUP($A90,'WIAG3-MALL'!$A$14:$CZ$500,3,FALSE)<10,"",VLOOKUP($A90,'WIAG3-MALL'!$A$14:$CZ$500,11,FALSE)*100),"") -> 62.16 | V90: -13 | W90: 4 | X90: =IFERROR(IF(VLOOKUP($A90,'M-2012'!$O$6:$AB$500,3,FALSE)<10,"",VLOOKUP($A90,'M-2012'!$O$6:$AB$500,10,FALSE)),"") -> 74 | Y90: =IFERROR(IF(VLOOKUP($A90,'2012 WIA-Math'!$L$14:$V$500,3,FALSE)<10,"",VLOOKUP($A90,'2012 WIA-Math'!$L$14:$V$500,11,FALSE)*100),"") -> 91.07 | Z90: =IFERROR(IF(VLOOKUP($A90,'WIAG4-MALL'!$A$14:$CZ$500,3,FALSE)<10,"",VLOOKUP($A90,'WIAG4-MALL'!$A$14:$CZ$500,11,FALSE)*100),"") -> 77.59 | AA90: -13 | AB90: 5 | AC90: =IFERROR(IF(VLOOKUP($A90,'M-2012'!$AC$6:$AP$500,3,FALSE)<10,"",VLOOKUP($A90,'M-2012'!$AC$6:$AP$500,10,FALSE)),"") -> 74 | AD90: =IFERROR(IF(VLOOKUP($A90,'2012 WIA-Math'!$W$14:$AG$500,3,FALSE)<10,"",VLOOKUP($A90,'2012 WIA-Math'!$W$14:$AG$500,11,FALSE)*100),"") -> 57.14 | AE90: =IFERROR(IF(VLOOKUP($A90,'WIAG5-MALL'!$A$14:$CZ$500,3,FALSE)<10,"",VLOOKUP($A90,'WIAG5-MALL'!$A$14:$CZ$500,11,FALSE)*100),"") -> 64.81 | AF90: 8 | AG90: 5 | AH90: =IFERROR(IF(VLOOKUP(TEXT($A90,"0000"),'2012 Sci Retrofitted'!$A$3:$G$267,3,FALSE)<10,"",VLOOKUP(TEXT($A90,"0000"),'2012 Sci Retrofitted'!$A$3:$G$267,5,FALSE)),"") -> 63.15789474 | AI90: =IFERROR(IF(VLOOKUP($A90,'2012 WIA-Sci'!$A$6:$G$500,3,FALSE)<10,"",VLOOKUP($A90,'2012 WIA-Sci'!$A$6:$G$500,7,FALSE)),"") -> 54 | AJ90: =IFERROR(IF(VLOOKUP($A90,'WIAG5-SALL'!$A$14:$CZ$500,3,FALSE)<10,"",VLOOKUP($A90,'WIAG5-SALL'!$A$14:$CZ$500,11,FALSE)*100),"") -> 59.62 | AK90: 6 | AL90: =VLOOKUP(TEXT($A90,"0000"),#REF!,2,FALSE) ->  | AM90: =VLOOKUP(TEXT($A90,"0000"),#REF!,2,FALSE) -> 
A91: 331 | B91: CHAPMAN PARTNERSHIP ECC NORTH | C91: 3 | D91: =IFERROR(IF(VLOOKUP($A91,'R-2012'!$A$6:$O$500,3,FALSE)<10,"",VLOOKUP($A91,'R-2012'!$A$6:$O$500,10,FALSE)),"") ->  | E91: =IFERROR(IF(VLOOKUP($A91,'2012 WIA-Read'!$A$14:$K$500,3,FALSE)<10,"",VLOOKUP($A91,'2012 WIA-Read'!$A$14:$K$500,11,FALSE)*100),"") ->  | F91: =IFERROR(IF(VLOOKUP($A91,'WIAG3-RALL'!$A$14:$CZ$500,3,FALSE)<10,"",VLOOKUP($A91,'WIAG3-RALL'!$A$14:$CZ$500,11,FALSE)*100),"") ->  | H91: 4 | I91: =IFERROR(IF(VLOOKUP($A91,'R-2012'!$P$6:$AD$500,3,FALSE)<10,"",VLOOKUP($A91,'R-2012'!$P$6:$AD$500,10,FALSE)),"") ->  | J91: =IFERROR(IF(VLOOKUP($A91,'2012 WIA-Read'!$L$14:$V$500,3,FALSE)<10,"",VLOOKUP($A91,'2012 WIA-Read'!$L$14:$V$500,11,FALSE)*100),"") ->  | K91: =IFERROR(IF(VLOOKUP($A91,'WIAG4-RALL'!$A$14:$CZ$500,3,FALSE)<10,"",VLOOKUP($A91,'WIAG4-RALL'!$A$14:$CZ$500,11,FALSE)*100),"") ->  | M91: 5 | N91: =IFERROR(IF(VLOOKUP($A91,'R-2012'!$AE$6:$AS$500,3,FALSE)<10,"",VLOOKUP($A91,'R-2012'!$AE$6:$AS$500,10,FALSE)),"") ->  | O91: =IFERROR(IF(VLOOKUP($A91,'2012 WIA-Read'!$W$14:$AG$500,3,FALSE)<10,"",VLOOKUP($A91,'2012 WIA-Read'!$W$14:$AG$500,11,FALSE)*100),"") ->  | P91: =IFERROR(IF(VLOOKUP($A91,'WIAG5-RALL'!$A$14:$CZ$500,3,FALSE)<10,"",VLOOKUP($A91,'WIAG5-RALL'!$A$14:$CZ$500,11,FALSE)*100),"") ->  | R91: 3 | S91: =IFERROR(IF(VLOOKUP($A91,'M-2012'!$A$6:$N$500,3,FALSE)<10,"",VLOOKUP($A91,'M-2012'!$A$6:$N$500,10,FALSE)),"") ->  | T91: =IFERROR(IF(VLOOKUP($A91,'2012 WIA-Math'!$A$14:$K$500,3,FALSE)<10,"",VLOOKUP($A91,'2012 WIA-Math'!$A$14:$K$500,11,FALSE)*100),"") ->  | U91: =IFERROR(IF(VLOOKUP($A91,'WIAG3-MALL'!$A$14:$CZ$500,3,FALSE)<10,"",VLOOKUP($A91,'WIAG3-MALL'!$A$14:$CZ$500,11,FALSE)*100),"") ->  | W91: 4 | X91: =IFERROR(IF(VLOOKUP($A91,'M-2012'!$O$6:$AB$500,3,FALSE)<10,"",VLOOKUP($A91,'M-2012'!$O$6:$AB$500,10,FALSE)),"") ->  | Y91: =IFERROR(IF(VLOOKUP($A91,'2012 WIA-Math'!$L$14:$V$500,3,FALSE)<10,"",VLOOKUP($A91,'2012 WIA-Math'!$L$14:$V$500,11,FALSE)*100),"") ->  | Z91: =IFERROR(IF(VLOOKUP($A91,'WIAG4-MALL'!$A$14:$CZ$500,3,FALSE)<10,"",VLOOKUP($A91,'WIAG4-MALL'!$A$14:$CZ$500,11,FALSE)*100),"") ->  | AB91: 5 | AC91: =IFERROR(IF(VLOOKUP($A91,'M-2012'!$AC$6:$AP$500,3,FALSE)<10,"",VLOOKUP($A91,'M-2012'!$AC$6:$AP$500,10,FALSE)),"") ->  | AD91: =IFERROR(IF(VLOOKUP($A91,'2012 WIA-Math'!$W$14:$AG$500,3,FALSE)<10,"",VLOOKUP($A91,'2012 WIA-Math'!$W$14:$AG$500,11,FALSE)*100),"") ->  | AE91: =IFERROR(IF(VLOOKUP($A91,'WIAG5-MALL'!$A$14:$CZ$500,3,FALSE)<10,"",VLOOKUP($A91,'WIAG5-MALL'!$A$14:$CZ$500,11,FALSE)*100),"") ->  | AG91: 5 | AH91: =IFERROR(IF(VLOOKUP(TEXT($A91,"0000"),'2012 Sci Retrofitted'!$A$3:$G$267,3,FALSE)<10,"",VLOOKUP(TEXT($A91,"0000"),'2012 Sci Retrofitted'!$A$3:$G$267,5,FALSE)),"") ->  | AI91: =IFERROR(IF(VLOOKUP($A91,'2012 WIA-Sci'!$A$6:$G$500,3,FALSE)<10,"",VLOOKUP($A91,'2012 WIA-Sci'!$A$6:$G$500,7,FALSE)),"") ->  | AJ91: =IFERROR(IF(VLOOKUP($A91,'WIAG5-SALL'!$A$14:$CZ$500,3,FALSE)<10,"",VLOOKUP($A91,'WIAG5-SALL'!$A$14:$CZ$500,11,FALSE)*100),"") ->  | AL91: =VLOOKUP(TEXT($A91,"0000"),#REF!,2,FALSE) ->  | AM91: =VLOOKUP(TEXT($A91,"0000"),#REF!,2,FALSE) -> 
A92: 401 | B92: VAN E. BLANTON ELEMENTARY | C92: 3 | D92: =IFERROR(IF(VLOOKUP($A92,'R-2012'!$A$6:$O$500,3,FALSE)<10,"",VLOOKUP($A92,'R-2012'!$A$6:$O$500,10,FALSE)),"") -> 37 | E92: =IFERROR(IF(VLOOKUP($A92,'2012 WIA-Read'!$A$14:$K$500,3,FALSE)<10,"",VLOOKUP($A92,'2012 WIA-Read'!$A$14:$K$500,11,FALSE)*100),"") -> 40.82 | F92: =IFERROR(IF(VLOOKUP($A92,'WIAG3-RALL'!$A$14:$CZ$500,3,FALSE)<10,"",VLOOKUP($A92,'WIAG3-RALL'!$A$14:$CZ$500,11,FALSE)*100),"") -> 41 | G92: 0 | H92: 4 | I92: =IFERROR(IF(VLOOKUP($A92,'R-2012'!$P$6:$AD$500,3,FALSE)<10,"",VLOOKUP($A92,'R-2012'!$P$6:$AD$500,10,FALSE)),"") -> 49 | J92: =IFERROR(IF(VLOOKUP($A92,'2012 WIA-Read'!$L$14:$V$500,3,FALSE)<10,"",VLOOKUP($A92,'2012 WIA-Read'!$L$14:$V$500,11,FALSE)*100),"") -> 42.31 | K92: =IFERROR(IF(VLOOKUP($A92,'WIAG4-RALL'!$A$14:$CZ$500,3,FALSE)<10,"",VLOOKUP($A92,'WIAG4-RALL'!$A$14:$CZ$500,11,FALSE)*100),"") -> 48.61 | L92: 7 | M92: 5 | N92: =IFERROR(IF(VLOOKUP($A92,'R-2012'!$AE$6:$AS$500,3,FALSE)<10,"",VLOOKUP($A92,'R-2012'!$AE$6:$AS$500,10,FALSE)),"") -> 54 | O92: =IFERROR(IF(VLOOKUP($A92,'2012 WIA-Read'!$W$14:$AG$500,3,FALSE)<10,"",VLOOKUP($A92,'2012 WIA-Read'!$W$14:$AG$500,11,FALSE)*100),"") -> 50 | P92: =IFERROR(IF(VLOOKUP($A92,'WIAG5-RALL'!$A$14:$CZ$500,3,FALSE)<10,"",VLOOKUP($A92,'WIAG5-RALL'!$A$14:$CZ$500,11,FALSE)*100),"") -> 50.62 | Q92: 1 | R92: 3 | S92: =IFERROR(IF(VLOOKUP($A92,'M-2012'!$A$6:$N$500,3,FALSE)<10,"",VLOOKUP($A92,'M-2012'!$A$6:$N$500,10,FALSE)),"") -> 60 | T92: =IFERROR(IF(VLOOKUP($A92,'2012 WIA-Math'!$A$14:$K$500,3,FALSE)<10,"",VLOOKUP($A92,'2012 WIA-Math'!$A$14:$K$500,11,FALSE)*100),"") -> 63.92 | U92: =IFERROR(IF(VLOOKUP($A92,'WIAG3-MALL'!$A$14:$CZ$500,3,FALSE)<10,"",VLOOKUP($A92,'WIAG3-MALL'!$A$14:$CZ$500,11,FALSE)*100),"") -> 51 | V92: -13 | W92: 4 | X92: =IFERROR(IF(VLOOKUP($A92,'M-2012'!$O$6:$AB$500,3,FALSE)<10,"",VLOOKUP($A92,'M-2012'!$O$6:$AB$500,10,FALSE)),"") -> 52 | Y92: =IFERROR(IF(VLOOKUP($A92,'2012 WIA-Math'!$L$14:$V$500,3,FALSE)<10,"",VLOOKUP($A92,'2012 WIA-Math'!$L$14:$V$500,11,FALSE)*100),"") -> 80.77 | Z92: =IFERROR(IF(VLOOKUP($A92,'WIAG4-MALL'!$A$14:$CZ$500,3,FALSE)<10,"",VLOOKUP($A92,'WIAG4-MALL'!$A$14:$CZ$500,11,FALSE)*100),"") -> 69.44 | AA92: -12 | AB92: 5 | AC92: =IFERROR(IF(VLOOKUP($A92,'M-2012'!$AC$6:$AP$500,3,FALSE)<10,"",VLOOKUP($A92,'M-2012'!$AC$6:$AP$500,10,FALSE)),"") -> 76 | AD92: =IFERROR(IF(VLOOKUP($A92,'2012 WIA-Math'!$W$14:$AG$500,3,FALSE)<10,"",VLOOKUP($A92,'2012 WIA-Math'!$W$14:$AG$500,11,FALSE)*100),"") -> 69.51 | AE92: =IFERROR(IF(VLOOKUP($A92,'WIAG5-MALL'!$A$14:$CZ$500,3,FALSE)<10,"",VLOOKUP($A92,'WIAG5-MALL'!$A$14:$CZ$500,11,FALSE)*100),"") -> 46.91 | AF92: -23 | AG92: 5 | AH92: =IFERROR(IF(VLOOKUP(TEXT($A92,"0000"),'2012 Sci Retrofitted'!$A$3:$G$267,3,FALSE)<10,"",VLOOKUP(TEXT($A92,"0000"),'2012 Sci Retrofitted'!$A$3:$G$267,5,FALSE)),"") -> 56.09756098 | AI92: =IFERROR(IF(VLOOKUP($A92,'2012 WIA-Sci'!$A$6:$G$500,3,FALSE)<10,"",VLOOKUP($A92,'2012 WIA-Sci'!$A$6:$G$500,7,FALSE)),"") -> 60 | AJ92: =IFERROR(IF(VLOOKUP($A92,'WIAG5-SALL'!$A$14:$CZ$500,3,FALSE)<10,"",VLOOKUP($A92,'WIAG5-SALL'!$A$14:$CZ$500,11,FALSE)*100),"") -> 49.38 | AK92: -11 | AL92: =VLOOKUP(TEXT($A92,"0000"),#REF!,2,FALSE) ->  | AM92: =VLOOKUP(TEXT($A92,"0000"),#REF!,2,FALSE) -> 
A93: 521 | B93: BROADMOOR ELEMENTARY | C93: 3 | D93: =IFERROR(IF(VLOOKUP($A93,'R-2012'!$A$6:$O$500,3,FALSE)<10,"",VLOOKUP($A93,'R-2012'!$A$6:$O$500,10,FALSE)),"") -> 39 | E93: =IFERROR(IF(VLOOKUP($A93,'2012 WIA-Read'!$A$14:$K$500,3,FALSE)<10,"",VLOOKUP($A93,'2012 WIA-Read'!$A$14:$K$500,11,FALSE)*100),"") -> 27.14 | F93: =IFERROR(IF(VLOOKUP($A93,'WIAG3-RALL'!$A$14:$CZ$500,3,FALSE)<10,"",VLOOKUP($A93,'WIAG3-RALL'!$A$14:$CZ$500,11,FALSE)*100),"") -> 31.34 | G93: 4 | H93: 4 | I93: =IFERROR(IF(VLOOKUP($A93,'R-2012'!$P$6:$AD$500,3,FALSE)<10,"",VLOOKUP($A93,'R-2012'!$P$6:$AD$500,10,FALSE)),"") -> 32 | J93: =IFERROR(IF(VLOOKUP($A93,'2012 WIA-Read'!$L$14:$V$500,3,FALSE)<10,"",VLOOKUP($A93,'2012 WIA-Read'!$L$14:$V$500,11,FALSE)*100),"") -> 42.62 | K93: =IFERROR(IF(VLOOKUP($A93,'WIAG4-RALL'!$A$14:$CZ$500,3,FALSE)<10,"",VLOOKUP($A93,'WIAG4-RALL'!$A$14:$CZ$500,11,FALSE)*100),"") -> 35.48 | L93: -8 | M93: 5 | N93: =IFERROR(IF(VLOOKUP($A93,'R-2012'!$AE$6:$AS$500,3,FALSE)<10,"",VLOOKUP($A93,'R-2012'!$AE$6:$AS$500,10,FALSE)),"") -> 45 | O93: =IFERROR(IF(VLOOKUP($A93,'2012 WIA-Read'!$W$14:$AG$500,3,FALSE)<10,"",VLOOKUP($A93,'2012 WIA-Read'!$W$14:$AG$500,11,FALSE)*100),"") -> 47.22 | P93: =IFERROR(IF(VLOOKUP($A93,'WIAG5-RALL'!$A$14:$CZ$500,3,FALSE)<10,"",VLOOKUP($A93,'WIAG5-RALL'!$A$14:$CZ$500,11,FALSE)*100),"") -> 43.94 | Q93: -3 | R93: 3 | S93: =IFERROR(IF(VLOOKUP($A93,'M-2012'!$A$6:$N$500,3,FALSE)<10,"",VLOOKUP($A93,'M-2012'!$A$6:$N$500,10,FALSE)),"") -> 38 | T93: =IFERROR(IF(VLOOKUP($A93,'2012 WIA-Math'!$A$14:$K$500,3,FALSE)<10,"",VLOOKUP($A93,'2012 WIA-Math'!$A$14:$K$500,11,FALSE)*100),"") -> 37.14 | U93: =IFERROR(IF(VLOOKUP($A93,'WIAG3-MALL'!$A$14:$CZ$500,3,FALSE)<10,"",VLOOKUP($A93,'WIAG3-MALL'!$A$14:$CZ$500,11,FALSE)*100),"") -> 47.69 | V93: 11 | W93: 4 | X93: =IFERROR(IF(VLOOKUP($A93,'M-2012'!$O$6:$AB$500,3,FALSE)<10,"",VLOOKUP($A93,'M-2012'!$O$6:$AB$500,10,FALSE)),"") -> 40 | Y93: =IFERROR(IF(VLOOKUP($A93,'2012 WIA-Math'!$L$14:$V$500,3,FALSE)<10,"",VLOOKUP($A93,'2012 WIA-Math'!$L$14:$V$500,11,FALSE)*100),"") -> 49.18 | Z93: =IFERROR(IF(VLOOKUP($A93,'WIAG4-MALL'!$A$14:$CZ$500,3,FALSE)<10,"",VLOOKUP($A93,'WIAG4-MALL'!$A$14:$CZ$500,11,FALSE)*100),"") -> 37.1 | AA93: -12 | AB93: 5 | AC93: =IFERROR(IF(VLOOKUP($A93,'M-2012'!$AC$6:$AP$500,3,FALSE)<10,"",VLOOKUP($A93,'M-2012'!$AC$6:$AP$500,10,FALSE)),"") -> 41 | AD93: =IFERROR(IF(VLOOKUP($A93,'2012 WIA-Math'!$W$14:$AG$500,3,FALSE)<10,"",VLOOKUP($A93,'2012 WIA-Math'!$W$14:$AG$500,11,FALSE)*100),"") -> 30.56 | AE93: =IFERROR(IF(VLOOKUP($A93,'WIAG5-MALL'!$A$14:$CZ$500,3,FALSE)<10,"",VLOOKUP($A93,'WIAG5-MALL'!$A$14:$CZ$500,11,FALSE)*100),"") -> 34.85 | AF93: 4 | AG93: 5 | AH93: =IFERROR(IF(VLOOKUP(TEXT($A93,"0000"),'2012 Sci Retrofitted'!$A$3:$G$267,3,FALSE)<10,"",VLOOKUP(TEXT($A93,"0000"),'2012 Sci Retrofitted'!$A$3:$G$267,5,FALSE)),"") -> 35.21126761 | AI93: =IFERROR(IF(VLOOKUP($A93,'2012 WIA-Sci'!$A$6:$G$500,3,FALSE)<10,"",VLOOKUP($A93,'2012 WIA-Sci'!$A$6:$G$500,7,FALSE)),"") -> 24 | AJ93: =IFERROR(IF(VLOOKUP($A93,'WIAG5-SALL'!$A$14:$CZ$500,3,FALSE)<10,"",VLOOKUP($A93,'WIAG5-SALL'!$A$14:$CZ$500,11,FALSE)*100),"") -> 36.36 | AK93: 12 | AL93: =VLOOKUP(TEXT($A93,"0000"),#REF!,2,FALSE) ->  | AM93: =VLOOKUP(TEXT($A93,"0000"),#REF!,2,FALSE) -> 
A94: 721 | B94: GEORGE WASHINGTON CARVER ELEM | C94: 3 | D94: =IFERROR(IF(VLOOKUP($A94,'R-2012'!$A$6:$O$500,3,FALSE)<10,"",VLOOKUP($A94,'R-2012'!$A$6:$O$500,10,FALSE)),"") -> 46 | E94: =IFERROR(IF(VLOOKUP($A94,'2012 WIA-Read'!$A$14:$K$500,3,FALSE)<10,"",VLOOKUP($A94,'2012 WIA-Read'!$A$14:$K$500,11,FALSE)*100),"") -> 45.05 | F94: =IFERROR(IF(VLOOKUP($A94,'WIAG3-RALL'!$A$14:$CZ$500,3,FALSE)<10,"",VLOOKUP($A94,'WIAG3-RALL'!$A$14:$CZ$500,11,FALSE)*100),"") -> 65.88 | G94: 21 | H94: 4 | I94: =IFERROR(IF(VLOOKUP($A94,'R-2012'!$P$6:$AD$500,3,FALSE)<10,"",VLOOKUP($A94,'R-2012'!$P$6:$AD$500,10,FALSE)),"") -> 49 | J94: =IFERROR(IF(VLOOKUP($A94,'2012 WIA-Read'!$L$14:$V$500,3,FALSE)<10,"",VLOOKUP($A94,'2012 WIA-Read'!$L$14:$V$500,11,FALSE)*100),"") -> 53.95 | K94: =IFERROR(IF(VLOOKUP($A94,'WIAG4-RALL'!$A$14:$CZ$500,3,FALSE)<10,"",VLOOKUP($A94,'WIAG4-RALL'!$A$14:$CZ$500,11,FALSE)*100),"") -> 61.54 | L94: 8 | M94: 5 | N94: =IFERROR(IF(VLOOKUP($A94,'R-2012'!$AE$6:$AS$500,3,FALSE)<10,"",VLOOKUP($A94,'R-2012'!$AE$6:$AS$500,10,FALSE)),"") -> 53 | O94: =IFERROR(IF(VLOOKUP($A94,'2012 WIA-Read'!$W$14:$AG$500,3,FALSE)<10,"",VLOOKUP($A94,'2012 WIA-Read'!$W$14:$AG$500,11,FALSE)*100),"") -> 44.09 | P94: =IFERROR(IF(VLOOKUP($A94,'WIAG5-RALL'!$A$14:$CZ$500,3,FALSE)<10,"",VLOOKUP($A94,'WIAG5-RALL'!$A$14:$CZ$500,11,FALSE)*100),"") -> 59.74 | Q94: 16 | R94: 3 | S94: =IFERROR(IF(VLOOKUP($A94,'M-2012'!$A$6:$N$500,3,FALSE)<10,"",VLOOKUP($A94,'M-2012'!$A$6:$N$500,10,FALSE)),"") -> 49 | T94: =IFERROR(IF(VLOOKUP($A94,'2012 WIA-Math'!$A$14:$K$500,3,FALSE)<10,"",VLOOKUP($A94,'2012 WIA-Math'!$A$14:$K$500,11,FALSE)*100),"") -> 68.82 | U94: =IFERROR(IF(VLOOKUP($A94,'WIAG3-MALL'!$A$14:$CZ$500,3,FALSE)<10,"",VLOOKUP($A94,'WIAG3-MALL'!$A$14:$CZ$500,11,FALSE)*100),"") -> 81.93 | V94: 13 | W94: 4 | X94: =IFERROR(IF(VLOOKUP($A94,'M-2012'!$O$6:$AB$500,3,FALSE)<10,"",VLOOKUP($A94,'M-2012'!$O$6:$AB$500,10,FALSE)),"") -> 51 | Y94: =IFERROR(IF(VLOOKUP($A94,'2012 WIA-Math'!$L$14:$V$500,3,FALSE)<10,"",VLOOKUP($A94,'2012 WIA-Math'!$L$14:$V$500,11,FALSE)*100),"") -> 52.63 | Z94: =IFERROR(IF(VLOOKUP($A94,'WIAG4-MALL'!$A$14:$CZ$500,3,FALSE)<10,"",VLOOKUP($A94,'WIAG4-MALL'!$A$14:$CZ$500,11,FALSE)*100),"") -> 63.77 | AA94: 11 | AB94: 5 | AC94: =IFERROR(IF(VLOOKUP($A94,'M-2012'!$AC$6:$AP$500,3,FALSE)<10,"",VLOOKUP($A94,'M-2012'!$AC$6:$AP$500,10,FALSE)),"") -> 38 | AD94: =IFERROR(IF(VLOOKUP($A94,'2012 WIA-Math'!$W$14:$AG$500,3,FALSE)<10,"",VLOOKUP($A94,'2012 WIA-Math'!$W$14:$AG$500,11,FALSE)*100),"") -> 49.46 | AE94: =IFERROR(IF(VLOOKUP($A94,'WIAG5-MALL'!$A$14:$CZ$500,3,FALSE)<10,"",VLOOKUP($A94,'WIAG5-MALL'!$A$14:$CZ$500,11,FALSE)*100),"") -> 58.97 | AF94: 10 | AG94: 5 | AH94: =IFERROR(IF(VLOOKUP(TEXT($A94,"0000"),'2012 Sci Retrofitted'!$A$3:$G$267,3,FALSE)<10,"",VLOOKUP(TEXT($A94,"0000"),'2012 Sci Retrofitted'!$A$3:$G$267,5,FALSE)),"") -> 37.89473684 | AI94: =IFERROR(IF(VLOOKUP($A94,'2012 WIA-Sci'!$A$6:$G$500,3,FALSE)<10,"",VLOOKUP($A94,'2012 WIA-Sci'!$A$6:$G$500,7,FALSE)),"") -> 38 | AJ94: =IFERROR(IF(VLOOKUP($A94,'WIAG5-SALL'!$A$14:$CZ$500,3,FALSE)<10,"",VLOOKUP($A94,'WIAG5-SALL'!$A$14:$CZ$500,11,FALSE)*100),"") -> 41.1 | AK94: 3 | AL94: =VLOOKUP(TEXT($A94,"0000"),#REF!,2,FALSE) ->  | AM94: =VLOOKUP(TEXT($A94,"0000"),#REF!,2,FALSE) -> 
